Workbook

Sheet Summary
C1: 2
C2: 3
A3: title | B3: =Translations!I13 -> W | C3: 4
A4: =IF(H6="","",H6)&" "&IF(H7="","",H7)&" - "&IF(H8="","",TEXT(H8,"ddd-d-mmm-yyyy")) -> - | B4: L | C4: 5
B5: F | C5: 6
C6: 7 | G6: Event: | Q6: =Translations!I8&"^" -> Club^ | R6: Entries | T6: rank | V6: =Translations!I8 -> Club | W6: Entries^ | X6: =Translations!I10 -> Men | Y6: =Translations!I12 -> Women
C7: 8 | G7: Venue: | M7: Duplicate awards Overall | O7: Y | Q7: =Dec!AF50 ->  | R7: =IF(Q7="","",COUNTIF(Dec!O$49:O$5048,Summary!Q7)) ->  | S7: =IF(R7="","",R7+1-ROW()/200) ->  | T7: =IF(S7="","",RANK(S7,S$7:S$106)) ->  | V7: =IF(MAX(T$7:T$106)<ROW()-6,"",INDIRECT("Q"&MATCH(ROW()-6,T$7:T$106,0)+6)) ->  | W7: =IF(V7="","",INDIRECT("R"&MATCH(ROW()-6,T$7:T$106,0)+6)) ->  | X7: =IF(V7="","",SUMPRODUCT(--(Dec!O$49:O$5048=Summary!V7),--(ISNUMBER(SEARCH("M",Dec!P$49:P$5048,1))))) ->  | Y7: =IF(V7="","",SUMPRODUCT(--(Dec!O$49:O$5048=Summary!V7),--(ISNUMBER(SEARCH(O$12,Dec!P$49:P$5048,1))))) -> 
G8: =Translations!I45&":" -> Date: | Q8: =Dec!AF51 ->  | R8: =IF(Q8="","",COUNTIF(Dec!O$49:O$5048,Summary!Q8)) ->  | S8: =IF(R8="","",R8+1-ROW()/200) ->  | T8: =IF(S8="","",RANK(S8,S$7:S$106)) ->  | V8: =IF(MAX(T$7:T$106)<ROW()-6,"",INDIRECT("Q"&MATCH(ROW()-6,T$7:T$106,0)+6)) ->  | W8: =IF(V8="","",INDIRECT("R"&MATCH(ROW()-6,T$7:T$106,0)+6)) ->  | X8: =IF(V8="","",SUMPRODUCT(--(Dec!O$49:O$5048=Summary!V8),--(ISNUMBER(SEARCH("M",Dec!P$49:P$5048,1))))) ->  | Y8: =IF(V8="","",SUMPRODUCT(--(Dec!O$49:O$5048=Summary!V8),--(ISNUMBER(SEARCH(O$12,Dec!P$49:P$5048,1))))) -> 
G9: Sub Competition: | M9: Duplicate awards Sub Competition | O9: Y | Q9: =Dec!AF52 ->  | R9: =IF(Q9="","",COUNTIF(Dec!O$49:O$5048,Summary!Q9)) ->  | X9: =IF(V9="","",SUMPRODUCT(--(Dec!O$49:O$5048=Summary!V9),--(ISNUMBER(SEARCH("M",Dec!P$49:P$5048,1))))) ->  | Y9: =IF(V9="","",SUMPRODUCT(--(Dec!O$49:O$5048=Summary!V9),--(ISNUMBER(SEARCH(O$12,Dec!P$49:P$5048,1))))) -> 
G10: Athletes per team | K10: Sub Competition | Q10: =Dec!AF53 ->  | R10: =IF(Q10="","",COUNTIF(Dec!O$49:O$5048,Summary!Q10)) ->  | X10: =IF(V10="","",SUMPRODUCT(--(Dec!O$49:O$5048=Summary!V10),--(ISNUMBER(SEARCH("M",Dec!P$49:P$5048,1))))) ->  | Y10: =IF(V10="","",SUMPRODUCT(--(Dec!O$49:O$5048=Summary!V10),--(ISNUMBER(SEARCH(O$12,Dec!P$49:P$5048,1))))) -> 
G11: (8 max) | H11: Senior | J11: =Translations!I21 -> Masters | K11: Senior | L11: =J11 -> Masters | Q11: =Dec!AF54 ->  | R11: =IF(Q11="","",COUNTIF(Dec!O$49:O$5048,Summary!Q11)) ->  | X11: =IF(V11="","",SUMPRODUCT(--(Dec!O$49:O$5048=Summary!V11),--(ISNUMBER(SEARCH("M",Dec!P$49:P$5048,1))))) ->  | Y11: =IF(V11="","",SUMPRODUCT(--(Dec!O$49:O$5048=Summary!V11),--(ISNUMBER(SEARCH(O$12,Dec!P$49:P$5048,1))))) -> 
G12: =Translations!I10 -> Men | H12: 4 | J12: 4 | K12: 4 | L12: 4 | M12: Womens Label | O12: W | Q12: =Dec!AF55 ->  | R12: =IF(Q12="","",COUNTIF(Dec!O$49:O$5048,Summary!Q12)) ->  | X12: =IF(V12="","",SUMPRODUCT(--(Dec!O$49:O$5048=Summary!V12),--(ISNUMBER(SEARCH("M",Dec!P$49:P$5048,1))))) ->  | Y12: =IF(V12="","",SUMPRODUCT(--(Dec!O$49:O$5048=Summary!V12),--(ISNUMBER(SEARCH(O$12,Dec!P$49:P$5048,1))))) -> 
D13: =N27-(80*E13) -> 0 | E13: =FLOOR(N27/80,1) -> 0 | G13: =Translations!I12 -> Women | H13: 4 | J13: 4 | K13: 4 | L13: 4 | Q13: =Dec!AF56 ->  | R13: =IF(Q13="","",COUNTIF(Dec!O$49:O$5048,Summary!Q13)) ->  | X13: =IF(V13="","",SUMPRODUCT(--(Dec!O$49:O$5048=Summary!V13),--(ISNUMBER(SEARCH("M",Dec!P$49:P$5048,1))))) ->  | Y13: =IF(V13="","",SUMPRODUCT(--(Dec!O$49:O$5048=Summary!V13),--(ISNUMBER(SEARCH(O$12,Dec!P$49:P$5048,1))))) -> 
D14: =14+N27 -> 14 | G14: Include womens category position on results print out | O14: Y | Q14: =Dec!AF57 ->  | R14: =IF(Q14="","",COUNTIF(Dec!O$49:O$5048,Summary!Q14)) ->  | X14: =IF(V14="","",SUMPRODUCT(--(Dec!O$49:O$5048=Summary!V14),--(ISNUMBER(SEARCH("M",Dec!P$49:P$5048,1))))) ->  | Y14: =IF(V14="","",SUMPRODUCT(--(Dec!O$49:O$5048=Summary!V14),--(ISNUMBER(SEARCH(O$12,Dec!P$49:P$5048,1))))) -> 
G15: Include mens masters category position on results print out | O15: N | Q15: =Dec!AF58 ->  | R15: =IF(Q15="","",COUNTIF(Dec!O$49:O$5048,Summary!Q15)) ->  | X15: =IF(V15="","",SUMPRODUCT(--(Dec!O$49:O$5048=Summary!V15),--(ISNUMBER(SEARCH("M",Dec!P$49:P$5048,1))))) ->  | Y15: =IF(V15="","",SUMPRODUCT(--(Dec!O$49:O$5048=Summary!V15),--(ISNUMBER(SEARCH(O$12,Dec!P$49:P$5048,1))))) -> 
G16: Include womens masters category position on results print out | O16: N | Q16: =Dec!AF59 ->  | R16: =IF(Q16="","",COUNTIF(Dec!O$49:O$5048,Summary!Q16)) ->  | X16: =IF(V16="","",SUMPRODUCT(--(Dec!O$49:O$5048=Summary!V16),--(ISNUMBER(SEARCH("M",Dec!P$49:P$5048,1))))) ->  | Y16: =IF(V16="","",SUMPRODUCT(--(Dec!O$49:O$5048=Summary!V16),--(ISNUMBER(SEARCH(O$12,Dec!P$49:P$5048,1))))) -> 
G17: Include category position on results print out | O17: Y | Q17: =Dec!AF60 ->  | R17: =IF(Q17="","",COUNTIF(Dec!O$49:O$5048,Summary!Q17)) ->  | X17: =IF(V17="","",SUMPRODUCT(--(Dec!O$49:O$5048=Summary!V17),--(ISNUMBER(SEARCH("M",Dec!P$49:P$5048,1))))) ->  | Y17: =IF(V17="","",SUMPRODUCT(--(Dec!O$49:O$5048=Summary!V17),--(ISNUMBER(SEARCH(O$12,Dec!P$49:P$5048,1))))) -> 
G18: Junior Age groups (Odd - U11, U13, U15, U17. Even - U10, U12, U14, U16) | N18: Odd | Q18: =Dec!AF61 ->  | R18: =IF(Q18="","",COUNTIF(Dec!O$49:O$5048,Summary!Q18)) ->  | X18: =IF(V18="","",SUMPRODUCT(--(Dec!O$49:O$5048=Summary!V18),--(ISNUMBER(SEARCH("M",Dec!P$49:P$5048,1))))) ->  | Y18: =IF(V18="","",SUMPRODUCT(--(Dec!O$49:O$5048=Summary!V18),--(ISNUMBER(SEARCH(O$12,Dec!P$49:P$5048,1))))) -> 
G19: Show 'Run time' when handicap start time used | O19: N | Q19: =Dec!AF62 ->  | R19: =IF(Q19="","",COUNTIF(Dec!O$49:O$5048,Summary!Q19)) ->  | X19: =IF(V19="","",SUMPRODUCT(--(Dec!O$49:O$5048=Summary!V19),--(ISNUMBER(SEARCH("M",Dec!P$49:P$5048,1))))) ->  | Y19: =IF(V19="","",SUMPRODUCT(--(Dec!O$49:O$5048=Summary!V19),--(ISNUMBER(SEARCH(O$12,Dec!P$49:P$5048,1))))) -> 
D20: =MATCH(N21,AgeFactors!A2:I2,0) -> 2 | E20: =IF(D20=2,"b",IF(D20=3,"c",IF(D20=4,"d",IF(D20=5,"e",IF(D20=6,"f",IF(D20=7,"g",IF(D20=8,"h","i"))))))) -> b | G20: Show Age graded Time/Pos (Run time is age graded) | O20: N | Q20: =Dec!AF63 ->  | R20: =IF(Q20="","",COUNTIF(Dec!O$49:O$5048,Summary!Q20)) ->  | X20: =IF(V20="","",SUMPRODUCT(--(Dec!O$49:O$5048=Summary!V20),--(ISNUMBER(SEARCH("M",Dec!P$49:P$5048,1))))) ->  | Y20: =IF(V20="","",SUMPRODUCT(--(Dec!O$49:O$5048=Summary!V20),--(ISNUMBER(SEARCH(O$12,Dec!P$49:P$5048,1))))) -> 
E21: PAGE START ROW | F21: PAGE END ROW | G21: Age Grading factors to use | N21: None | Q21: =Dec!AF64 ->  | R21: =IF(Q21="","",COUNTIF(Dec!O$49:O$5048,Summary!Q21)) ->  | X21: =IF(V21="","",SUMPRODUCT(--(Dec!O$49:O$5048=Summary!V21),--(ISNUMBER(SEARCH("M",Dec!P$49:P$5048,1))))) ->  | Y21: =IF(V21="","",SUMPRODUCT(--(Dec!O$49:O$5048=Summary!V21),--(ISNUMBER(SEARCH(O$12,Dec!P$49:P$5048,1))))) -> 
D22: =IF(H30="6","L"&E22&":AA"&E22+D$13-1,"L"&E22&":AA"&F22) -> L15:AA94 | E22: 15 | F22: 94 | Q22: =Dec!AF65 ->  | R22: =IF(Q22="","",COUNTIF(Dec!O$49:O$5048,Summary!Q22)) ->  | X22: =IF(V22="","",SUMPRODUCT(--(Dec!O$49:O$5048=Summary!V22),--(ISNUMBER(SEARCH("M",Dec!P$49:P$5048,1))))) ->  | Y22: =IF(V22="","",SUMPRODUCT(--(Dec!O$49:O$5048=Summary!V22),--(ISNUMBER(SEARCH(O$12,Dec!P$49:P$5048,1))))) -> 
D23: L95:AA174 | E23: =E22+80 -> 95 | F23: =F22+80 -> 174 | Q23: =Dec!AF66 ->  | R23: =IF(Q23="","",COUNTIF(Dec!O$49:O$5048,Summary!Q23)) ->  | X23: =IF(V23="","",SUMPRODUCT(--(Dec!O$49:O$5048=Summary!V23),--(ISNUMBER(SEARCH("M",Dec!P$49:P$5048,1))))) ->  | Y23: =IF(V23="","",SUMPRODUCT(--(Dec!O$49:O$5048=Summary!V23),--(ISNUMBER(SEARCH(O$12,Dec!P$49:P$5048,1))))) -> 
D24: L175:AA254 | E24: =E23+80 -> 175 | F24: =F23+80 -> 254 | Q24: =Dec!AF67 ->  | R24: =IF(Q24="","",COUNTIF(Dec!O$49:O$5048,Summary!Q24)) ->  | X24: =IF(V24="","",SUMPRODUCT(--(Dec!O$49:O$5048=Summary!V24),--(ISNUMBER(SEARCH("M",Dec!P$49:P$5048,1))))) ->  | Y24: =IF(V24="","",SUMPRODUCT(--(Dec!O$49:O$5048=Summary!V24),--(ISNUMBER(SEARCH(O$12,Dec!P$49:P$5048,1))))) -> 
D25: L255:AA334 | E25: 255 | F25: 334 | G25: Key | Q25: =Dec!AF68 ->  | R25: =IF(Q25="","",COUNTIF(Dec!O$49:O$5048,Summary!Q25)) ->  | X25: =IF(V25="","",SUMPRODUCT(--(Dec!O$49:O$5048=Summary!V25),--(ISNUMBER(SEARCH("M",Dec!P$49:P$5048,1))))) ->  | Y25: =IF(V25="","",SUMPRODUCT(--(Dec!O$49:O$5048=Summary!V25),--(ISNUMBER(SEARCH(O$12,Dec!P$49:P$5048,1))))) -> 
D26: L335:AA414 | E26: 335 | F26: 414 | G26: Page complete | H26: þ | K26: Athletes Declared | N26: Finishers | Q26: =Dec!AF69 ->  | R26: =IF(Q26="","",COUNTIF(Dec!O$49:O$5048,Summary!Q26)) ->  | X26: =IF(V26="","",SUMPRODUCT(--(Dec!O$49:O$5048=Summary!V26),--(ISNUMBER(SEARCH("M",Dec!P$49:P$5048,1))))) ->  | Y26: =IF(V26="","",SUMPRODUCT(--(Dec!O$49:O$5048=Summary!V26),--(ISNUMBER(SEARCH(O$12,Dec!P$49:P$5048,1))))) -> 
D27: L415:AA494 | E27: 415 | F27: 494 | G27: Partial complete | H27: 6 | K27: Total | L27: =COUNTIF(Dec!N49:N1548,"*") -> 0 | M27: % | N27: =2000-COUNTIF(Results!V15:V2014,"") -> 0 | O27: % | Q27: =Dec!AF70 ->  | R27: =IF(Q27="","",COUNTIF(Dec!O$49:O$5048,Summary!Q27)) ->  | X27: =IF(V27="","",SUMPRODUCT(--(Dec!O$49:O$5048=Summary!V27),--(ISNUMBER(SEARCH("M",Dec!P$49:P$5048,1))))) ->  | Y27: =IF(V27="","",SUMPRODUCT(--(Dec!O$49:O$5048=Summary!V27),--(ISNUMBER(SEARCH(O$12,Dec!P$49:P$5048,1))))) -> 
D28: L495:AA574 | E28: 495 | F28: 574 | G28: Page blank | H28: ý | K28: =Dec!P1 -> MU18 | L28: =Dec!Q1 -> 0 | M28: =IF(L$27=0,0,L28/L$27*100) -> 0 | N28: =COUNTIF(Results!P$15:P$5015,K28) -> 0 | O28: =IF(N$27=0,0,N28/N$27*100) -> 0 | Q28: =Dec!AF71 ->  | R28: =IF(Q28="","",COUNTIF(Dec!O$49:O$5048,Summary!Q28)) ->  | X28: =IF(V28="","",SUMPRODUCT(--(Dec!O$49:O$5048=Summary!V28),--(ISNUMBER(SEARCH("M",Dec!P$49:P$5048,1))))) ->  | Y28: =IF(V28="","",SUMPRODUCT(--(Dec!O$49:O$5048=Summary!V28),--(ISNUMBER(SEARCH(O$12,Dec!P$49:P$5048,1))))) -> 
D29: L575:AA654 | E29: 575 | F29: 654 | G29: Results | H29: Status | I29: =MAX(Results!V$1:V$2014) -> 0 | J29: Sub comp | K29: =Dec!P2 -> MU20 | L29: =Dec!Q2 -> 0 | M29: =IF(L$27=0,0,L29/L$27*100) -> 0 | N29: =COUNTIF(Results!P$15:P$5015,K29) -> 0 | O29: 0 | Q29: =Dec!AF72 ->  | R29: =IF(Q29="","",COUNTIF(Dec!O$49:O$5048,Summary!Q29)) ->  | X29: =IF(V29="","",SUMPRODUCT(--(Dec!O$49:O$5048=Summary!V29),--(ISNUMBER(SEARCH("M",Dec!P$49:P$5048,1))))) ->  | Y29: =IF(V29="","",SUMPRODUCT(--(Dec!O$49:O$5048=Summary!V29),--(ISNUMBER(SEARCH(O$12,Dec!P$49:P$5048,1))))) -> 
D30: L655:AA734 | E30: 655 | F30: 734 | G30: ="Page "&ROW()-29 -> Page 1 | H30: =IF(INDIRECT("Results!H"&F22)>0,"þ",IF(INDIRECT("Results!H"&E22)>0,"6","ý")) -> ý | I30: =80*(ROW()-23) -> 560 | J30: =IF(I$29<=I30-80,"ý",IF(I$29>I30,"þ","6")) -> ý | K30: =Dec!P3 -> M | L30: =Dec!Q3 -> 0 | M30: 0 | N30: =COUNTIF(Results!P$15:P$5015,K30) -> 0 | O30: 0 | Q30: =Dec!AF73 ->  | R30: =IF(Q30="","",COUNTIF(Dec!O$49:O$5048,Summary!Q30)) ->  | X30: =IF(V30="","",SUMPRODUCT(--(Dec!O$49:O$5048=Summary!V30),--(ISNUMBER(SEARCH("M",Dec!P$49:P$5048,1))))) ->  | Y30: =IF(V30="","",SUMPRODUCT(--(Dec!O$49:O$5048=Summary!V30),--(ISNUMBER(SEARCH(O$12,Dec!P$49:P$5048,1))))) -> 
D31: L735:AA814 | E31: 735 | F31: 814 | G31: ="Page "&ROW()-29 -> Page 2 | H31: ý | I31: =80*(ROW()-23) -> 640 | J31: =IF(I$29<=I31-80,"ý",IF(I$29>I31,"þ","6")) -> ý | K31: =Dec!P4 -> M35 | L31: =Dec!Q4 -> 0 | M31: 0 | N31: =COUNTIF(Results!P$15:P$5015,K31) -> 0 | O31: 0 | Q31: =Dec!AF74 ->  | R31: =IF(Q31="","",COUNTIF(Dec!O$49:O$5048,Summary!Q31)) ->  | X31: =IF(V31="","",SUMPRODUCT(--(Dec!O$49:O$5048=Summary!V31),--(ISNUMBER(SEARCH("M",Dec!P$49:P$5048,1))))) ->  | Y31: =IF(V31="","",SUMPRODUCT(--(Dec!O$49:O$5048=Summary!V31),--(ISNUMBER(SEARCH(O$12,Dec!P$49:P$5048,1))))) -> 
D32: L815:AA894 | E32: 815 | F32: 894 | G32: Page 3 | H32: ý | I32: 720 | J32: ý | K32: =Dec!P5 -> M40 | L32: =Dec!Q5 -> 0 | M32: 0 | N32: =COUNTIF(Results!P$15:P$5015,K32) -> 0 | O32: 0 | Q32: =Dec!AF75 ->  | R32: =IF(Q32="","",COUNTIF(Dec!O$49:O$5048,Summary!Q32)) ->  | X32: =IF(V32="","",SUMPRODUCT(--(Dec!O$49:O$5048=Summary!V32),--(ISNUMBER(SEARCH("M",Dec!P$49:P$5048,1))))) ->  | Y32: =IF(V32="","",SUMPRODUCT(--(Dec!O$49:O$5048=Summary!V32),--(ISNUMBER(SEARCH(O$12,Dec!P$49:P$5048,1))))) -> 
D33: L895:AA974 | E33: 895 | F33: 974 | G33: Page 4 | H33: ý | I33: 800 | J33: ý | K33: =Dec!P6 -> M45 | L33: =Dec!Q6 -> 0 | M33: 0 | N33: =COUNTIF(Results!P$15:P$5015,K33) -> 0 | O33: 0 | Q33: =Dec!AF76 ->  | R33: =IF(Q33="","",COUNTIF(Dec!O$49:O$5048,Summary!Q33)) ->  | X33: =IF(V33="","",SUMPRODUCT(--(Dec!O$49:O$5048=Summary!V33),--(ISNUMBER(SEARCH("M",Dec!P$49:P$5048,1))))) ->  | Y33: =IF(V33="","",SUMPRODUCT(--(Dec!O$49:O$5048=Summary!V33),--(ISNUMBER(SEARCH(O$12,Dec!P$49:P$5048,1))))) -> 
D34: L975:AA1054 | E34: 975 | F34: 1054 | G34: Page 5 | H34: ý | I34: 880 | J34: ý | K34: =Dec!P7 -> M50 | L34: =Dec!Q7 -> 0 | M34: 0 | N34: =COUNTIF(Results!P$15:P$5015,K34) -> 0 | O34: 0 | Q34: =Dec!AF77 ->  | R34: =IF(Q34="","",COUNTIF(Dec!O$49:O$5048,Summary!Q34)) ->  | X34: =IF(V34="","",SUMPRODUCT(--(Dec!O$49:O$5048=Summary!V34),--(ISNUMBER(SEARCH("M",Dec!P$49:P$5048,1))))) ->  | Y34: =IF(V34="","",SUMPRODUCT(--(Dec!O$49:O$5048=Summary!V34),--(ISNUMBER(SEARCH(O$12,Dec!P$49:P$5048,1))))) -> 
D35: L1055:AA1134 | E35: 1055 | F35: 1134 | G35: Page 6 | H35: ý | I35: 960 | J35: ý | K35: =Dec!P8 -> M55 | L35: =Dec!Q8 -> 0 | M35: 0 | N35: =COUNTIF(Results!P$15:P$5015,K35) -> 0 | O35: 0 | Q35: =Dec!AF78 ->  | R35: =IF(Q35="","",COUNTIF(Dec!O$49:O$5048,Summary!Q35)) ->  | X35: =IF(V35="","",SUMPRODUCT(--(Dec!O$49:O$5048=Summary!V35),--(ISNUMBER(SEARCH("M",Dec!P$49:P$5048,1))))) ->  | Y35: =IF(V35="","",SUMPRODUCT(--(Dec!O$49:O$5048=Summary!V35),--(ISNUMBER(SEARCH(O$12,Dec!P$49:P$5048,1))))) -> 
D36: L1135:AA1214 | E36: 1135 | F36: 1214 | G36: Page 7 | H36: ý | I36: 1040 | J36: ý | K36: =Dec!P9 -> M60 | L36: =Dec!Q9 -> 0 | M36: 0 | N36: =COUNTIF(Results!P$15:P$5015,K36) -> 0 | O36: 0 | Q36: =Dec!AF79 ->  | R36: =IF(Q36="","",COUNTIF(Dec!O$49:O$5048,Summary!Q36)) ->  | X36: =IF(V36="","",SUMPRODUCT(--(Dec!O$49:O$5048=Summary!V36),--(ISNUMBER(SEARCH("M",Dec!P$49:P$5048,1))))) ->  | Y36: =IF(V36="","",SUMPRODUCT(--(Dec!O$49:O$5048=Summary!V36),--(ISNUMBER(SEARCH(O$12,Dec!P$49:P$5048,1))))) -> 
D37: L1215:AA1294 | E37: 1215 | F37: 1294 | G37: Page 8 | H37: ý | I37: 1120 | J37: ý | K37: =Dec!P10 -> M65 | L37: =Dec!Q10 -> 0 | M37: 0 | N37: =COUNTIF(Results!P$15:P$5015,K37) -> 0 | O37: 0 | Q37: =Dec!AF80 ->  | R37: =IF(Q37="","",COUNTIF(Dec!O$49:O$5048,Summary!Q37)) ->  | X37: =IF(V37="","",SUMPRODUCT(--(Dec!O$49:O$5048=Summary!V37),--(ISNUMBER(SEARCH("M",Dec!P$49:P$5048,1))))) ->  | Y37: =IF(V37="","",SUMPRODUCT(--(Dec!O$49:O$5048=Summary!V37),--(ISNUMBER(SEARCH(O$12,Dec!P$49:P$5048,1))))) -> 
D38: L1295:AA1374 | E38: 1295 | F38: 1374 | G38: Page 9 | H38: ý | I38: 1200 | J38: ý | K38: =Dec!P11 -> M70 | L38: =Dec!Q11 -> 0 | M38: 0 | N38: =COUNTIF(Results!P$15:P$5015,K38) -> 0 | O38: 0 | Q38: =Dec!AF81 ->  | R38: =IF(Q38="","",COUNTIF(Dec!O$49:O$5048,Summary!Q38)) ->  | X38: =IF(V38="","",SUMPRODUCT(--(Dec!O$49:O$5048=Summary!V38),--(ISNUMBER(SEARCH("M",Dec!P$49:P$5048,1))))) ->  | Y38: =IF(V38="","",SUMPRODUCT(--(Dec!O$49:O$5048=Summary!V38),--(ISNUMBER(SEARCH(O$12,Dec!P$49:P$5048,1))))) -> 
D39: L1375:AA1454 | E39: 1375 | F39: 1454 | G39: Page 10 | H39: ý | I39: 1280 | J39: ý | K39: =Dec!P12 -> M75 | L39: =Dec!Q12 -> 0 | M39: 0 | N39: =COUNTIF(Results!P$15:P$5015,K39) -> 0 | O39: 0 | Q39: =Dec!AF82 ->  | R39: =IF(Q39="","",COUNTIF(Dec!O$49:O$5048,Summary!Q39)) ->  | X39: =IF(V39="","",SUMPRODUCT(--(Dec!O$49:O$5048=Summary!V39),--(ISNUMBER(SEARCH("M",Dec!P$49:P$5048,1))))) ->  | Y39: =IF(V39="","",SUMPRODUCT(--(Dec!O$49:O$5048=Summary!V39),--(ISNUMBER(SEARCH(O$12,Dec!P$49:P$5048,1))))) -> 
D40: L1455:AA1534 | E40: 1455 | F40: 1534 | G40: Page 11 | H40: ý | I40: 1360 | J40: ý | K40: =Dec!P13 -> M80 | L40: =Dec!Q13 -> 0 | M40: 0 | N40: =COUNTIF(Results!P$15:P$5015,K40) -> 0 | O40: 0 | Q40: =Dec!AF83 ->  | R40: =IF(Q40="","",COUNTIF(Dec!O$49:O$5048,Summary!Q40)) ->  | X40: =IF(V40="","",SUMPRODUCT(--(Dec!O$49:O$5048=Summary!V40),--(ISNUMBER(SEARCH("M",Dec!P$49:P$5048,1))))) ->  | Y40: =IF(V40="","",SUMPRODUCT(--(Dec!O$49:O$5048=Summary!V40),--(ISNUMBER(SEARCH(O$12,Dec!P$49:P$5048,1))))) -> 
D41: L1535:AA1614 | E41: 1535 | F41: 1614 | G41: Page 12 | H41: ý | I41: 1440 | J41: ý | K41: =Dec!P14 -> M85 | L41: =Dec!Q14 -> 0 | M41: 0 | N41: =COUNTIF(Results!P$15:P$5015,K41) -> 0 | O41: 0 | Q41: =Dec!AF84 ->  | R41: =IF(Q41="","",COUNTIF(Dec!O$49:O$5048,Summary!Q41)) ->  | X41: =IF(V41="","",SUMPRODUCT(--(Dec!O$49:O$5048=Summary!V41),--(ISNUMBER(SEARCH("M",Dec!P$49:P$5048,1))))) ->  | Y41: =IF(V41="","",SUMPRODUCT(--(Dec!O$49:O$5048=Summary!V41),--(ISNUMBER(SEARCH(O$12,Dec!P$49:P$5048,1))))) -> 
D42: L1615:AA1694 | E42: 1615 | F42: 1694 | G42: Page 13 | H42: ý | I42: 1520 | J42: ý | K42: =Dec!P15 -> M90 | L42: =Dec!Q15 -> 0 | M42: 0 | N42: =COUNTIF(Results!P$15:P$5015,K42) -> 0 | O42: 0 | Q42: =Dec!AF85 ->  | R42: =IF(Q42="","",COUNTIF(Dec!O$49:O$5048,Summary!Q42)) ->  | X42: =IF(V42="","",SUMPRODUCT(--(Dec!O$49:O$5048=Summary!V42),--(ISNUMBER(SEARCH("M",Dec!P$49:P$5048,1))))) ->  | Y42: =IF(V42="","",SUMPRODUCT(--(Dec!O$49:O$5048=Summary!V42),--(ISNUMBER(SEARCH(O$12,Dec!P$49:P$5048,1))))) -> 
D43: L1695:AA1774 | E43: 1695 | F43: 1774 | G43: Page 14 | H43: ý | I43: 1600 | J43: ý | K43: =Dec!P16 -> M95 | L43: =Dec!Q16 -> 0 | M43: 0 | N43: =COUNTIF(Results!P$15:P$5015,K43) -> 0 | O43: 0 | Q43: =Dec!AF86 ->  | R43: =IF(Q43="","",COUNTIF(Dec!O$49:O$5048,Summary!Q43)) ->  | X43: =IF(V43="","",SUMPRODUCT(--(Dec!O$49:O$5048=Summary!V43),--(ISNUMBER(SEARCH("M",Dec!P$49:P$5048,1))))) ->  | Y43: =IF(V43="","",SUMPRODUCT(--(Dec!O$49:O$5048=Summary!V43),--(ISNUMBER(SEARCH(O$12,Dec!P$49:P$5048,1))))) -> 
D44: L1775:AA1854 | E44: 1775 | F44: 1854 | G44: Page 15 | H44: ý | I44: 1680 | J44: ý | K44: =Dec!P17 -> M100 | L44: =Dec!Q17 -> 0 | M44: 0 | N44: =COUNTIF(Results!P$15:P$5015,K44) -> 0 | O44: 0 | Q44: =Dec!AF87 ->  | R44: =IF(Q44="","",COUNTIF(Dec!O$49:O$5048,Summary!Q44)) ->  | X44: =IF(V44="","",SUMPRODUCT(--(Dec!O$49:O$5048=Summary!V44),--(ISNUMBER(SEARCH("M",Dec!P$49:P$5048,1))))) ->  | Y44: =IF(V44="","",SUMPRODUCT(--(Dec!O$49:O$5048=Summary!V44),--(ISNUMBER(SEARCH(O$12,Dec!P$49:P$5048,1))))) -> 
D45: L1855:AA1934 | E45: 1855 | F45: 1934 | G45: Page 16 | H45: ý | I45: 1760 | J45: ý | K45: =Dec!P18 -> M105 | L45: =Dec!Q18 -> 0 | M45: 0 | N45: =COUNTIF(Results!P$15:P$5015,K45) -> 0 | O45: 0 | Q45: =Dec!AF88 ->  | R45: =IF(Q45="","",COUNTIF(Dec!O$49:O$5048,Summary!Q45)) ->  | X45: =IF(V45="","",SUMPRODUCT(--(Dec!O$49:O$5048=Summary!V45),--(ISNUMBER(SEARCH("M",Dec!P$49:P$5048,1))))) ->  | Y45: =IF(V45="","",SUMPRODUCT(--(Dec!O$49:O$5048=Summary!V45),--(ISNUMBER(SEARCH(O$12,Dec!P$49:P$5048,1))))) -> 
D46: L1935:AA2014 | E46: 1935 | F46: 2014 | G46: Page 17 | H46: ý | I46: 1840 | J46: ý | K46: =Dec!P19 -> M110 | L46: =Dec!Q19 -> 0 | M46: 0 | N46: =COUNTIF(Results!P$15:P$5015,K46) -> 0 | O46: 0 | Q46: =Dec!AF89 ->  | R46: =IF(Q46="","",COUNTIF(Dec!O$49:O$5048,Summary!Q46)) ->  | X46: =IF(V46="","",SUMPRODUCT(--(Dec!O$49:O$5048=Summary!V46),--(ISNUMBER(SEARCH("M",Dec!P$49:P$5048,1))))) ->  | Y46: =IF(V46="","",SUMPRODUCT(--(Dec!O$49:O$5048=Summary!V46),--(ISNUMBER(SEARCH(O$12,Dec!P$49:P$5048,1))))) -> 
D47: =IF(H49="6","L"&E47&":AA"&E47+D$13-1,"L"&E47&":AA"&F47) -> L2015:AA2094 | E47: 2015 | F47: 2094 | G47: Page 18 | H47: ý | I47: 1920 | J47: ý | K47: =Dec!P20 -> WU18 | L47: =Dec!Q20 -> 0 | M47: 0 | N47: =COUNTIF(Results!P$15:P$5015,K47) -> 0 | O47: 0 | Q47: =Dec!AF90 ->  | R47: =IF(Q47="","",COUNTIF(Dec!O$49:O$5048,Summary!Q47)) ->  | X47: =IF(V47="","",SUMPRODUCT(--(Dec!O$49:O$5048=Summary!V47),--(ISNUMBER(SEARCH("M",Dec!P$49:P$5048,1))))) ->  | Y47: =IF(V47="","",SUMPRODUCT(--(Dec!O$49:O$5048=Summary!V47),--(ISNUMBER(SEARCH(O$12,Dec!P$49:P$5048,1))))) -> 
D48: L2095:AA2174 | E48: 2095 | F48: 2174 | G48: Page 19 | H48: ý | I48: 2000 | J48: ý | K48: =Dec!P21 -> WU20 | L48: =Dec!Q21 -> 0 | M48: 0 | N48: =COUNTIF(Results!P$15:P$5015,K48) -> 0 | O48: 0 | Q48: =Dec!AF91 ->  | R48: =IF(Q48="","",COUNTIF(Dec!O$49:O$5048,Summary!Q48)) ->  | X48: =IF(V48="","",SUMPRODUCT(--(Dec!O$49:O$5048=Summary!V48),--(ISNUMBER(SEARCH("M",Dec!P$49:P$5048,1))))) ->  | Y48: =IF(V48="","",SUMPRODUCT(--(Dec!O$49:O$5048=Summary!V48),--(ISNUMBER(SEARCH(O$12,Dec!P$49:P$5048,1))))) -> 
D49: L2175:AA2254 | E49: 2175 | F49: 2254 | G49: Page 20 | H49: ý | I49: 2080 | J49: ý | K49: =Dec!P22 -> W | L49: =Dec!Q22 -> 0 | M49: 0 | N49: =COUNTIF(Results!P$15:P$5015,K49) -> 0 | O49: 0 | Q49: =Dec!AF92 ->  | R49: =IF(Q49="","",COUNTIF(Dec!O$49:O$5048,Summary!Q49)) ->  | X49: =IF(V49="","",SUMPRODUCT(--(Dec!O$49:O$5048=Summary!V49),--(ISNUMBER(SEARCH("M",Dec!P$49:P$5048,1))))) ->  | Y49: =IF(V49="","",SUMPRODUCT(--(Dec!O$49:O$5048=Summary!V49),--(ISNUMBER(SEARCH(O$12,Dec!P$49:P$5048,1))))) -> 
D50: L2255:AA2334 | E50: 2255 | F50: 2334 | G50: Page 21 | H50: ý | I50: 2160 | J50: ý | K50: =Dec!P23 -> W35 | L50: =Dec!Q23 -> 0 | M50: 0 | N50: =COUNTIF(Results!P$15:P$5015,K50) -> 0 | O50: 0 | Q50: =Dec!AF93 ->  | R50: =IF(Q50="","",COUNTIF(Dec!O$49:O$5048,Summary!Q50)) ->  | X50: =IF(V50="","",SUMPRODUCT(--(Dec!O$49:O$5048=Summary!V50),--(ISNUMBER(SEARCH("M",Dec!P$49:P$5048,1))))) ->  | Y50: =IF(V50="","",SUMPRODUCT(--(Dec!O$49:O$5048=Summary!V50),--(ISNUMBER(SEARCH(O$12,Dec!P$49:P$5048,1))))) -> 
D51: L2335:AA2414 | E51: 2335 | F51: 2414 | G51: Page 22 | H51: ý | I51: 2240 | J51: ý | K51: =Dec!P24 -> W40 | L51: =Dec!Q24 -> 0 | M51: 0 | N51: =COUNTIF(Results!P$15:P$5015,K51) -> 0 | O51: 0 | Q51: =Dec!AF94 ->  | R51: =IF(Q51="","",COUNTIF(Dec!O$49:O$5048,Summary!Q51)) ->  | X51: =IF(V51="","",SUMPRODUCT(--(Dec!O$49:O$5048=Summary!V51),--(ISNUMBER(SEARCH("M",Dec!P$49:P$5048,1))))) ->  | Y51: =IF(V51="","",SUMPRODUCT(--(Dec!O$49:O$5048=Summary!V51),--(ISNUMBER(SEARCH(O$12,Dec!P$49:P$5048,1))))) -> 
D52: L2415:AA2494 | E52: 2415 | F52: 2494 | G52: Page 23 | H52: ý | I52: 2320 | J52: ý | K52: =Dec!P25 -> W45 | L52: =Dec!Q25 -> 0 | M52: 0 | N52: =COUNTIF(Results!P$15:P$5015,K52) -> 0 | O52: 0 | Q52: =Dec!AF95 ->  | R52: =IF(Q52="","",COUNTIF(Dec!O$49:O$5048,Summary!Q52)) ->  | X52: =IF(V52="","",SUMPRODUCT(--(Dec!O$49:O$5048=Summary!V52),--(ISNUMBER(SEARCH("M",Dec!P$49:P$5048,1))))) ->  | Y52: =IF(V52="","",SUMPRODUCT(--(Dec!O$49:O$5048=Summary!V52),--(ISNUMBER(SEARCH(O$12,Dec!P$49:P$5048,1))))) -> 
D53: L2495:AA2574 | E53: 2495 | F53: 2574 | G53: Page 24 | H53: ý | I53: 2400 | J53: ý | K53: =Dec!P26 -> W50 | L53: =Dec!Q26 -> 0 | M53: 0 | N53: =COUNTIF(Results!P$15:P$5015,K53) -> 0 | O53: 0 | Q53: =Dec!AF96 ->  | R53: =IF(Q53="","",COUNTIF(Dec!O$49:O$5048,Summary!Q53)) ->  | X53: =IF(V53="","",SUMPRODUCT(--(Dec!O$49:O$5048=Summary!V53),--(ISNUMBER(SEARCH("M",Dec!P$49:P$5048,1))))) ->  | Y53: =IF(V53="","",SUMPRODUCT(--(Dec!O$49:O$5048=Summary!V53),--(ISNUMBER(SEARCH(O$12,Dec!P$49:P$5048,1))))) -> 
D54: L2575:AA2654 | E54: 2575 | F54: 2654 | G54: Page 25 | H54: =IF(INDIRECT("Results!H"&F46)>0,"þ",IF(INDIRECT("Results!H"&E46)>0,"6","ý")) -> ý | I54: 2480 | J54: ý | K54: =Dec!P27 -> W55 | L54: =Dec!Q27 -> 0 | M54: 0 | N54: =COUNTIF(Results!P$15:P$5015,K54) -> 0 | O54: 0 | Q54: =Dec!AF97 ->  | R54: =IF(Q54="","",COUNTIF(Dec!O$49:O$5048,Summary!Q54)) ->  | X54: =IF(V54="","",SUMPRODUCT(--(Dec!O$49:O$5048=Summary!V54),--(ISNUMBER(SEARCH("M",Dec!P$49:P$5048,1))))) ->  | Y54: =IF(V54="","",SUMPRODUCT(--(Dec!O$49:O$5048=Summary!V54),--(ISNUMBER(SEARCH(O$12,Dec!P$49:P$5048,1))))) -> 
D55: L2655:AA2734 | E55: 2655 | F55: 2734 | G55: Page 26 | H55: =IF(INDIRECT("Results!H"&F47)>0,"þ",IF(INDIRECT("Results!H"&E47)>0,"6","ý")) -> ý | I55: 2560 | J55: =IF(I$29<=I55-80,"ý",IF(I$29>I55,"þ","6")) -> ý | K55: =Dec!P28 -> W60 | L55: =Dec!Q28 -> 0 | M55: 0 | N55: =COUNTIF(Results!P$15:P$5015,K55) -> 0 | O55: 0 | Q55: =Dec!AF98 ->  | R55: =IF(Q55="","",COUNTIF(Dec!O$49:O$5048,Summary!Q55)) ->  | X55: =IF(V55="","",SUMPRODUCT(--(Dec!O$49:O$5048=Summary!V55),--(ISNUMBER(SEARCH("M",Dec!P$49:P$5048,1))))) ->  | Y55: =IF(V55="","",SUMPRODUCT(--(Dec!O$49:O$5048=Summary!V55),--(ISNUMBER(SEARCH(O$12,Dec!P$49:P$5048,1))))) -> 
D56: L2735:AA2814 | E56: 2735 | F56: 2814 | G56: Page 27 | H56: ý | I56: 2640 | J56: ý | K56: =Dec!P29 -> W65 | L56: =Dec!Q29 -> 0 | M56: 0 | N56: =COUNTIF(Results!P$15:P$5015,K56) -> 0 | O56: 0 | Q56: =Dec!AF99 ->  | R56: =IF(Q56="","",COUNTIF(Dec!O$49:O$5048,Summary!Q56)) ->  | X56: =IF(V56="","",SUMPRODUCT(--(Dec!O$49:O$5048=Summary!V56),--(ISNUMBER(SEARCH("M",Dec!P$49:P$5048,1))))) ->  | Y56: =IF(V56="","",SUMPRODUCT(--(Dec!O$49:O$5048=Summary!V56),--(ISNUMBER(SEARCH(O$12,Dec!P$49:P$5048,1))))) -> 
D57: L2815:AA2894 | E57: 2815 | F57: 2894 | G57: Page 28 | H57: ý | I57: 2720 | J57: ý | K57: =Dec!P30 -> W70 | L57: =Dec!Q30 -> 0 | M57: 0 | N57: =COUNTIF(Results!P$15:P$5015,K57) -> 0 | O57: 0 | Q57: =Dec!AF100 ->  | R57: =IF(Q57="","",COUNTIF(Dec!O$49:O$5048,Summary!Q57)) ->  | X57: =IF(V57="","",SUMPRODUCT(--(Dec!O$49:O$5048=Summary!V57),--(ISNUMBER(SEARCH("M",Dec!P$49:P$5048,1))))) ->  | Y57: =IF(V57="","",SUMPRODUCT(--(Dec!O$49:O$5048=Summary!V57),--(ISNUMBER(SEARCH(O$12,Dec!P$49:P$5048,1))))) -> 
D58: L2895:AA2974 | E58: 2895 | F58: 2974 | G58: Page 29 | H58: ý | I58: 2800 | J58: ý | K58: =Dec!P31 -> W75 | L58: =Dec!Q31 -> 0 | M58: 0 | N58: =COUNTIF(Results!P$15:P$5015,K58) -> 0 | O58: 0 | Q58: =Dec!AF101 ->  | R58: =IF(Q58="","",COUNTIF(Dec!O$49:O$5048,Summary!Q58)) ->  | X58: =IF(V58="","",SUMPRODUCT(--(Dec!O$49:O$5048=Summary!V58),--(ISNUMBER(SEARCH("M",Dec!P$49:P$5048,1))))) ->  | Y58: =IF(V58="","",SUMPRODUCT(--(Dec!O$49:O$5048=Summary!V58),--(ISNUMBER(SEARCH(O$12,Dec!P$49:P$5048,1))))) -> 
D59: L2975:AA3054 | E59: 2975 | F59: 3054 | G59: Page 30 | H59: ý | I59: 2880 | J59: ý | K59: =Dec!P32 -> W80 | L59: =Dec!Q32 -> 0 | M59: 0 | N59: =COUNTIF(Results!P$15:P$5015,K59) -> 0 | O59: 0 | Q59: =Dec!AF102 ->  | R59: =IF(Q59="","",COUNTIF(Dec!O$49:O$5048,Summary!Q59)) ->  | X59: =IF(V59="","",SUMPRODUCT(--(Dec!O$49:O$5048=Summary!V59),--(ISNUMBER(SEARCH("M",Dec!P$49:P$5048,1))))) ->  | Y59: =IF(V59="","",SUMPRODUCT(--(Dec!O$49:O$5048=Summary!V59),--(ISNUMBER(SEARCH(O$12,Dec!P$49:P$5048,1))))) -> 
D60: L3055:AA3134 | E60: 3055 | F60: 3134 | G60: Page 31 | H60: ý | I60: 2960 | J60: ý | K60: =Dec!P33 -> W85 | L60: =Dec!Q33 -> 0 | M60: 0 | N60: =COUNTIF(Results!P$15:P$5015,K60) -> 0 | O60: 0 | Q60: =Dec!AF103 ->  | R60: =IF(Q60="","",COUNTIF(Dec!O$49:O$5048,Summary!Q60)) ->  | X60: =IF(V60="","",SUMPRODUCT(--(Dec!O$49:O$5048=Summary!V60),--(ISNUMBER(SEARCH("M",Dec!P$49:P$5048,1))))) ->  | Y60: =IF(V60="","",SUMPRODUCT(--(Dec!O$49:O$5048=Summary!V60),--(ISNUMBER(SEARCH(O$12,Dec!P$49:P$5048,1))))) -> 
D61: L3135:AA3214 | E61: 3135 | F61: 3214 | G61: Page 32 | H61: ý | I61: 3040 | J61: ý | K61: =Dec!P34 -> W90 | L61: =Dec!Q34 -> 0 | M61: 0 | N61: =COUNTIF(Results!P$15:P$5015,K61) -> 0 | O61: 0 | Q61: =Dec!AF104 ->  | R61: =IF(Q61="","",COUNTIF(Dec!O$49:O$5048,Summary!Q61)) ->  | X61: =IF(V61="","",SUMPRODUCT(--(Dec!O$49:O$5048=Summary!V61),--(ISNUMBER(SEARCH("M",Dec!P$49:P$5048,1))))) ->  | Y61: =IF(V61="","",SUMPRODUCT(--(Dec!O$49:O$5048=Summary!V61),--(ISNUMBER(SEARCH(O$12,Dec!P$49:P$5048,1))))) -> 
D62: L3215:AA3294 | E62: 3215 | F62: 3294 | G62: Page 33 | H62: ý | I62: 3120 | J62: ý | K62: =Dec!P35 -> W95 | L62: =Dec!Q35 -> 0 | M62: 0 | N62: =COUNTIF(Results!P$15:P$5015,K62) -> 0 | O62: 0 | Q62: =Dec!AF105 ->  | R62: =IF(Q62="","",COUNTIF(Dec!O$49:O$5048,Summary!Q62)) ->  | X62: =IF(V62="","",SUMPRODUCT(--(Dec!O$49:O$5048=Summary!V62),--(ISNUMBER(SEARCH("M",Dec!P$49:P$5048,1))))) ->  | Y62: =IF(V62="","",SUMPRODUCT(--(Dec!O$49:O$5048=Summary!V62),--(ISNUMBER(SEARCH(O$12,Dec!P$49:P$5048,1))))) -> 
D63: L3295:AA3374 | E63: 3295 | F63: 3374 | G63: Page 34 | H63: ý | I63: 3200 | J63: ý | K63: =Dec!P36 -> W100 | L63: =Dec!Q36 -> 0 | M63: 0 | N63: =COUNTIF(Results!P$15:P$5015,K63) -> 0 | O63: 0 | Q63: =Dec!AF106 ->  | R63: =IF(Q63="","",COUNTIF(Dec!O$49:O$5048,Summary!Q63)) ->  | X63: =IF(V63="","",SUMPRODUCT(--(Dec!O$49:O$5048=Summary!V63),--(ISNUMBER(SEARCH("M",Dec!P$49:P$5048,1))))) ->  | Y63: =IF(V63="","",SUMPRODUCT(--(Dec!O$49:O$5048=Summary!V63),--(ISNUMBER(SEARCH(O$12,Dec!P$49:P$5048,1))))) -> 
D64: L3375:AA3454 | E64: 3375 | F64: 3454 | G64: Page 35 | H64: ý | I64: 3280 | J64: ý | K64: =Dec!P37 -> W105 | L64: =Dec!Q37 -> 0 | M64: 0 | N64: =COUNTIF(Results!P$15:P$5015,K64) -> 0 | O64: 0 | Q64: =Dec!AF107 ->  | R64: =IF(Q64="","",COUNTIF(Dec!O$49:O$5048,Summary!Q64)) ->  | X64: =IF(V64="","",SUMPRODUCT(--(Dec!O$49:O$5048=Summary!V64),--(ISNUMBER(SEARCH("M",Dec!P$49:P$5048,1))))) ->  | Y64: =IF(V64="","",SUMPRODUCT(--(Dec!O$49:O$5048=Summary!V64),--(ISNUMBER(SEARCH(O$12,Dec!P$49:P$5048,1))))) -> 
D65: L3455:AA3534 | E65: 3455 | F65: 3534 | G65: Page 36 | H65: ý | I65: 3360 | J65: ý | K65: =Dec!P38 -> W110 | L65: =Dec!Q38 -> 0 | M65: 0 | N65: =COUNTIF(Results!P$15:P$5015,K65) -> 0 | O65: 0 | Q65: =Dec!AF108 ->  | R65: =IF(Q65="","",COUNTIF(Dec!O$49:O$5048,Summary!Q65)) ->  | X65: =IF(V65="","",SUMPRODUCT(--(Dec!O$49:O$5048=Summary!V65),--(ISNUMBER(SEARCH("M",Dec!P$49:P$5048,1))))) ->  | Y65: =IF(V65="","",SUMPRODUCT(--(Dec!O$49:O$5048=Summary!V65),--(ISNUMBER(SEARCH(O$12,Dec!P$49:P$5048,1))))) -> 
D66: L3535:AA3614 | E66: 3535 | F66: 3614 | G66: Page 37 | H66: ý | I66: 3440 | J66: ý | K66: =Dec!P39 -> MU11 | L66: =Dec!Q39 -> 0 | M66: 0 | N66: =COUNTIF(Results!P$15:P$5015,K66) -> 0 | O66: 0 | Q66: =Dec!AF109 ->  | R66: =IF(Q66="","",COUNTIF(Dec!O$49:O$5048,Summary!Q66)) ->  | X66: =IF(V66="","",SUMPRODUCT(--(Dec!O$49:O$5048=Summary!V66),--(ISNUMBER(SEARCH("M",Dec!P$49:P$5048,1))))) ->  | Y66: =IF(V66="","",SUMPRODUCT(--(Dec!O$49:O$5048=Summary!V66),--(ISNUMBER(SEARCH(O$12,Dec!P$49:P$5048,1))))) -> 
D67: L3615:AA3694 | E67: 3615 | F67: 3694 | G67: Page 38 | H67: ý | I67: 3520 | J67: ý | K67: =Dec!P40 -> MU13 | L67: =Dec!Q40 -> 0 | M67: 0 | N67: =COUNTIF(Results!P$15:P$5015,K67) -> 0 | O67: 0 | Q67: =Dec!AF110 ->  | R67: =IF(Q67="","",COUNTIF(Dec!O$49:O$5048,Summary!Q67)) ->  | X67: =IF(V67="","",SUMPRODUCT(--(Dec!O$49:O$5048=Summary!V67),--(ISNUMBER(SEARCH("M",Dec!P$49:P$5048,1))))) ->  | Y67: =IF(V67="","",SUMPRODUCT(--(Dec!O$49:O$5048=Summary!V67),--(ISNUMBER(SEARCH(O$12,Dec!P$49:P$5048,1))))) -> 
D68: L3695:AA3774 | E68: 3695 | F68: 3774 | G68: Page 39 | H68: ý | I68: 3600 | J68: ý | K68: =Dec!P41 -> MU15 | L68: =Dec!Q41 -> 0 | M68: 0 | N68: =COUNTIF(Results!P$15:P$5015,K68) -> 0 | O68: 0 | Q68: =Dec!AF111 ->  | R68: =IF(Q68="","",COUNTIF(Dec!O$49:O$5048,Summary!Q68)) ->  | X68: =IF(V68="","",SUMPRODUCT(--(Dec!O$49:O$5048=Summary!V68),--(ISNUMBER(SEARCH("M",Dec!P$49:P$5048,1))))) ->  | Y68: =IF(V68="","",SUMPRODUCT(--(Dec!O$49:O$5048=Summary!V68),--(ISNUMBER(SEARCH(O$12,Dec!P$49:P$5048,1))))) -> 
D69: L3775:AA3854 | E69: 3775 | F69: 3854 | G69: Page 40 | H69: ý | I69: 3680 | J69: ý | K69: =Dec!P42 -> MU17 | L69: =Dec!Q42 -> 0 | M69: 0 | N69: =COUNTIF(Results!P$15:P$5015,K69) -> 0 | O69: 0 | Q69: =Dec!AF112 ->  | R69: =IF(Q69="","",COUNTIF(Dec!O$49:O$5048,Summary!Q69)) ->  | X69: =IF(V69="","",SUMPRODUCT(--(Dec!O$49:O$5048=Summary!V69),--(ISNUMBER(SEARCH("M",Dec!P$49:P$5048,1))))) ->  | Y69: =IF(V69="","",SUMPRODUCT(--(Dec!O$49:O$5048=Summary!V69),--(ISNUMBER(SEARCH(O$12,Dec!P$49:P$5048,1))))) -> 
D70: L3855:AA3934 | E70: 3855 | F70: 3934 | G70: Page 41 | H70: ý | I70: 3760 | J70: ý | K70: =Dec!P43 -> WU11 | L70: =Dec!Q43 -> 0 | M70: 0 | N70: =COUNTIF(Results!P$15:P$5015,K70) -> 0 | O70: 0 | Q70: =Dec!AF113 ->  | R70: =IF(Q70="","",COUNTIF(Dec!O$49:O$5048,Summary!Q70)) ->  | X70: =IF(V70="","",SUMPRODUCT(--(Dec!O$49:O$5048=Summary!V70),--(ISNUMBER(SEARCH("M",Dec!P$49:P$5048,1))))) ->  | Y70: =IF(V70="","",SUMPRODUCT(--(Dec!O$49:O$5048=Summary!V70),--(ISNUMBER(SEARCH(O$12,Dec!P$49:P$5048,1))))) -> 
D71: L3935:AA4014 | E71: 3935 | F71: 4014 | G71: Page 42 | H71: ý | I71: 3840 | J71: ý | K71: =Dec!P44 -> WU13 | L71: =Dec!Q44 -> 0 | M71: 0 | N71: =COUNTIF(Results!P$15:P$5015,K71) -> 0 | O71: 0 | Q71: =Dec!AF114 ->  | R71: =IF(Q71="","",COUNTIF(Dec!O$49:O$5048,Summary!Q71)) ->  | X71: =IF(V71="","",SUMPRODUCT(--(Dec!O$49:O$5048=Summary!V71),--(ISNUMBER(SEARCH("M",Dec!P$49:P$5048,1))))) ->  | Y71: =IF(V71="","",SUMPRODUCT(--(Dec!O$49:O$5048=Summary!V71),--(ISNUMBER(SEARCH(O$12,Dec!P$49:P$5048,1))))) -> 
D72: L4015:AA4094 | E72: 4015 | F72: 4094 | G72: Page 43 | H72: ý | I72: 3920 | J72: ý | K72: =Dec!P45 -> WU15 | L72: =Dec!Q45 -> 0 | M72: 0 | N72: =COUNTIF(Results!P$15:P$5015,K72) -> 0 | O72: 0 | Q72: =Dec!AF115 ->  | R72: =IF(Q72="","",COUNTIF(Dec!O$49:O$5048,Summary!Q72)) ->  | S72: =IF(R72="","",R72+1-ROW()/200) ->  | T72: =IF(S72="","",RANK(S72,S$7:S$106)) ->  | V72: =IF(MAX(T$7:T$106)<ROW()-6,"",INDIRECT("Q"&MATCH(ROW()-6,T$7:T$106,0)+6)) ->  | W72: =IF(V72="","",INDIRECT("R"&MATCH(ROW()-6,T$7:T$106,0)+6)) ->  | X72: =IF(V72="","",SUMPRODUCT(--(Dec!O$49:O$5048=Summary!V72),--(ISNUMBER(SEARCH("M",Dec!P$49:P$5048,1))))) ->  | Y72: =IF(V72="","",SUMPRODUCT(--(Dec!O$49:O$5048=Summary!V72),--(ISNUMBER(SEARCH(O$12,Dec!P$49:P$5048,1))))) -> 
D73: L4095:AA4174 | E73: 4095 | F73: 4174 | G73: Page 44 | H73: ý | I73: 4000 | J73: ý | K73: =Dec!P46 -> WU17 | L73: =Dec!Q46 -> 0 | M73: 0 | N73: =COUNTIF(Results!P$15:P$5015,K73) -> 0 | O73: 0 | Q73: =Dec!AF116 ->  | R73: =IF(Q73="","",COUNTIF(Dec!O$49:O$5048,Summary!Q73)) ->  | X73: =IF(V73="","",SUMPRODUCT(--(Dec!O$49:O$5048=Summary!V73),--(ISNUMBER(SEARCH("M",Dec!P$49:P$5048,1))))) ->  | Y73: =IF(V73="","",SUMPRODUCT(--(Dec!O$49:O$5048=Summary!V73),--(ISNUMBER(SEARCH(O$12,Dec!P$49:P$5048,1))))) -> 
D74: L4175:AA4254 | E74: 4175 | F74: 4254 | G74: Page 45 | H74: ý | I74: 4080 | J74: ý | Q74: =Dec!AF117 ->  | R74: =IF(Q74="","",COUNTIF(Dec!O$49:O$5048,Summary!Q74)) ->  | X74: =IF(V74="","",SUMPRODUCT(--(Dec!O$49:O$5048=Summary!V74),--(ISNUMBER(SEARCH("M",Dec!P$49:P$5048,1))))) ->  | Y74: =IF(V74="","",SUMPRODUCT(--(Dec!O$49:O$5048=Summary!V74),--(ISNUMBER(SEARCH(O$12,Dec!P$49:P$5048,1))))) -> 
D75: L4255:AA4334 | E75: 4255 | F75: 4334 | G75: Page 46 | H75: ý | I75: 4160 | J75: ý | Q75: =Dec!AF118 ->  | R75: =IF(Q75="","",COUNTIF(Dec!O$49:O$5048,Summary!Q75)) ->  | X75: =IF(V75="","",SUMPRODUCT(--(Dec!O$49:O$5048=Summary!V75),--(ISNUMBER(SEARCH("M",Dec!P$49:P$5048,1))))) ->  | Y75: =IF(V75="","",SUMPRODUCT(--(Dec!O$49:O$5048=Summary!V75),--(ISNUMBER(SEARCH(O$12,Dec!P$49:P$5048,1))))) -> 
D76: L4335:AA4414 | E76: 4335 | F76: 4414 | G76: Page 47 | H76: ý | I76: 4240 | J76: ý | Q76: =Dec!AF119 ->  | R76: =IF(Q76="","",COUNTIF(Dec!O$49:O$5048,Summary!Q76)) ->  | X76: =IF(V76="","",SUMPRODUCT(--(Dec!O$49:O$5048=Summary!V76),--(ISNUMBER(SEARCH("M",Dec!P$49:P$5048,1))))) ->  | Y76: =IF(V76="","",SUMPRODUCT(--(Dec!O$49:O$5048=Summary!V76),--(ISNUMBER(SEARCH(O$12,Dec!P$49:P$5048,1))))) -> 
D77: L4415:AA4494 | E77: 4415 | F77: 4494 | G77: Page 48 | H77: ý | I77: 4320 | J77: ý | Q77: =Dec!AF120 ->  | R77: =IF(Q77="","",COUNTIF(Dec!O$49:O$5048,Summary!Q77)) ->  | X77: =IF(V77="","",SUMPRODUCT(--(Dec!O$49:O$5048=Summary!V77),--(ISNUMBER(SEARCH("M",Dec!P$49:P$5048,1))))) ->  | Y77: =IF(V77="","",SUMPRODUCT(--(Dec!O$49:O$5048=Summary!V77),--(ISNUMBER(SEARCH(O$12,Dec!P$49:P$5048,1))))) -> 
D78: L4495:AA4574 | E78: 4495 | F78: 4574 | G78: Page 49 | H78: ý | I78: 4400 | J78: ý | Q78: =Dec!AF121 ->  | R78: =IF(Q78="","",COUNTIF(Dec!O$49:O$5048,Summary!Q78)) ->  | X78: =IF(V78="","",SUMPRODUCT(--(Dec!O$49:O$5048=Summary!V78),--(ISNUMBER(SEARCH("M",Dec!P$49:P$5048,1))))) ->  | Y78: =IF(V78="","",SUMPRODUCT(--(Dec!O$49:O$5048=Summary!V78),--(ISNUMBER(SEARCH(O$12,Dec!P$49:P$5048,1))))) -> 
D79: L4575:AA4654 | E79: 4575 | F79: 4654 | G79: Page 50 | H79: ý | I79: 4480 | J79: ý | Q79: =Dec!AF122 ->  | R79: =IF(Q79="","",COUNTIF(Dec!O$49:O$5048,Summary!Q79)) ->  | X79: =IF(V79="","",SUMPRODUCT(--(Dec!O$49:O$5048=Summary!V79),--(ISNUMBER(SEARCH("M",Dec!P$49:P$5048,1))))) ->  | Y79: =IF(V79="","",SUMPRODUCT(--(Dec!O$49:O$5048=Summary!V79),--(ISNUMBER(SEARCH(O$12,Dec!P$49:P$5048,1))))) -> 
D80: L4655:AA4734 | E80: 4655 | F80: 4734 | G80: Page 51 | H80: ý | I80: 4560 | J80: ý | Q80: =Dec!AF123 ->  | R80: =IF(Q80="","",COUNTIF(Dec!O$49:O$5048,Summary!Q80)) ->  | X80: =IF(V80="","",SUMPRODUCT(--(Dec!O$49:O$5048=Summary!V80),--(ISNUMBER(SEARCH("M",Dec!P$49:P$5048,1))))) ->  | Y80: =IF(V80="","",SUMPRODUCT(--(Dec!O$49:O$5048=Summary!V80),--(ISNUMBER(SEARCH(O$12,Dec!P$49:P$5048,1))))) -> 
D81: L4735:AA4814 | E81: 4735 | F81: 4814 | G81: Page 52 | H81: ý | I81: 4640 | J81: ý | Q81: =Dec!AF124 ->  | R81: =IF(Q81="","",COUNTIF(Dec!O$49:O$5048,Summary!Q81)) ->  | X81: =IF(V81="","",SUMPRODUCT(--(Dec!O$49:O$5048=Summary!V81),--(ISNUMBER(SEARCH("M",Dec!P$49:P$5048,1))))) ->  | Y81: =IF(V81="","",SUMPRODUCT(--(Dec!O$49:O$5048=Summary!V81),--(ISNUMBER(SEARCH(O$12,Dec!P$49:P$5048,1))))) -> 
D82: L4815:AA4894 | E82: 4815 | F82: 4894 | G82: Page 53 | H82: ý | I82: 4720 | J82: ý | Q82: =Dec!AF125 ->  | R82: =IF(Q82="","",COUNTIF(Dec!O$49:O$5048,Summary!Q82)) ->  | X82: =IF(V82="","",SUMPRODUCT(--(Dec!O$49:O$5048=Summary!V82),--(ISNUMBER(SEARCH("M",Dec!P$49:P$5048,1))))) ->  | Y82: =IF(V82="","",SUMPRODUCT(--(Dec!O$49:O$5048=Summary!V82),--(ISNUMBER(SEARCH(O$12,Dec!P$49:P$5048,1))))) -> 
D83: L4895:AA4974 | E83: 4895 | F83: 4974 | G83: Page 54 | H83: ý | I83: 4800 | J83: ý | Q83: =Dec!AF126 ->  | R83: =IF(Q83="","",COUNTIF(Dec!O$49:O$5048,Summary!Q83)) ->  | X83: =IF(V83="","",SUMPRODUCT(--(Dec!O$49:O$5048=Summary!V83),--(ISNUMBER(SEARCH("M",Dec!P$49:P$5048,1))))) ->  | Y83: =IF(V83="","",SUMPRODUCT(--(Dec!O$49:O$5048=Summary!V83),--(ISNUMBER(SEARCH(O$12,Dec!P$49:P$5048,1))))) -> 
D84: L4975:AA5054 | E84: 4975 | F84: 5054 | G84: Page 55 | H84: ý | I84: 4880 | J84: ý | Q84: =Dec!AF127 ->  | R84: =IF(Q84="","",COUNTIF(Dec!O$49:O$5048,Summary!Q84)) ->  | X84: =IF(V84="","",SUMPRODUCT(--(Dec!O$49:O$5048=Summary!V84),--(ISNUMBER(SEARCH("M",Dec!P$49:P$5048,1))))) ->  | Y84: =IF(V84="","",SUMPRODUCT(--(Dec!O$49:O$5048=Summary!V84),--(ISNUMBER(SEARCH(O$12,Dec!P$49:P$5048,1))))) -> 
G85: Page 56 | H85: ý | I85: 4960 | J85: ý | Q85: =Dec!AF128 ->  | R85: =IF(Q85="","",COUNTIF(Dec!O$49:O$5048,Summary!Q85)) ->  | X85: =IF(V85="","",SUMPRODUCT(--(Dec!O$49:O$5048=Summary!V85),--(ISNUMBER(SEARCH("M",Dec!P$49:P$5048,1))))) ->  | Y85: =IF(V85="","",SUMPRODUCT(--(Dec!O$49:O$5048=Summary!V85),--(ISNUMBER(SEARCH(O$12,Dec!P$49:P$5048,1))))) -> 
G86: Page 57 | H86: ý | I86: 5040 | J86: ý | Q86: =Dec!AF129 ->  | R86: =IF(Q86="","",COUNTIF(Dec!O$49:O$5048,Summary!Q86)) ->  | X86: =IF(V86="","",SUMPRODUCT(--(Dec!O$49:O$5048=Summary!V86),--(ISNUMBER(SEARCH("M",Dec!P$49:P$5048,1))))) ->  | Y86: =IF(V86="","",SUMPRODUCT(--(Dec!O$49:O$5048=Summary!V86),--(ISNUMBER(SEARCH(O$12,Dec!P$49:P$5048,1))))) -> 
G87: Page 58 | H87: ý | I87: 5120 | J87: ý | Q87: =Dec!AF130 ->  | R87: =IF(Q87="","",COUNTIF(Dec!O$49:O$5048,Summary!Q87)) ->  | X87: =IF(V87="","",SUMPRODUCT(--(Dec!O$49:O$5048=Summary!V87),--(ISNUMBER(SEARCH("M",Dec!P$49:P$5048,1))))) ->  | Y87: =IF(V87="","",SUMPRODUCT(--(Dec!O$49:O$5048=Summary!V87),--(ISNUMBER(SEARCH(O$12,Dec!P$49:P$5048,1))))) -> 
G88: Page 59 | H88: ý | I88: 5200 | J88: ý | Q88: =Dec!AF131 ->  | R88: =IF(Q88="","",COUNTIF(Dec!O$49:O$5048,Summary!Q88)) ->  | X88: =IF(V88="","",SUMPRODUCT(--(Dec!O$49:O$5048=Summary!V88),--(ISNUMBER(SEARCH("M",Dec!P$49:P$5048,1))))) ->  | Y88: =IF(V88="","",SUMPRODUCT(--(Dec!O$49:O$5048=Summary!V88),--(ISNUMBER(SEARCH(O$12,Dec!P$49:P$5048,1))))) -> 
G89: Page 60 | H89: ý | I89: 5280 | J89: ý | Q89: =Dec!AF132 ->  | R89: =IF(Q89="","",COUNTIF(Dec!O$49:O$5048,Summary!Q89)) ->  | X89: =IF(V89="","",SUMPRODUCT(--(Dec!O$49:O$5048=Summary!V89),--(ISNUMBER(SEARCH("M",Dec!P$49:P$5048,1))))) ->  | Y89: =IF(V89="","",SUMPRODUCT(--(Dec!O$49:O$5048=Summary!V89),--(ISNUMBER(SEARCH(O$12,Dec!P$49:P$5048,1))))) -> 
G90: Page 61 | H90: =IF(INDIRECT("Results!H"&F82)>0,"þ",IF(INDIRECT("Results!H"&E82)>0,"6","ý")) -> ý | I90: 5360 | J90: =IF(I$29<=I90-80,"ý",IF(I$29>I90,"þ","6")) -> ý | Q90: =Dec!AF133 ->  | R90: =IF(Q90="","",COUNTIF(Dec!O$49:O$5048,Summary!Q90)) ->  | X90: =IF(V90="","",SUMPRODUCT(--(Dec!O$49:O$5048=Summary!V90),--(ISNUMBER(SEARCH("M",Dec!P$49:P$5048,1))))) ->  | Y90: =IF(V90="","",SUMPRODUCT(--(Dec!O$49:O$5048=Summary!V90),--(ISNUMBER(SEARCH(O$12,Dec!P$49:P$5048,1))))) -> 
G91: Page 62 | H91: ý | I91: 5440 | J91: ý | Q91: =Dec!AF134 ->  | R91: =IF(Q91="","",COUNTIF(Dec!O$49:O$5048,Summary!Q91)) ->  | X91: =IF(V91="","",SUMPRODUCT(--(Dec!O$49:O$5048=Summary!V91),--(ISNUMBER(SEARCH("M",Dec!P$49:P$5048,1))))) ->  | Y91: =IF(V91="","",SUMPRODUCT(--(Dec!O$49:O$5048=Summary!V91),--(ISNUMBER(SEARCH(O$12,Dec!P$49:P$5048,1))))) -> 
G92: Page 63 | H92: =IF(INDIRECT("Results!H"&F84)>0,"þ",IF(INDIRECT("Results!H"&E84)>0,"6","ý")) -> ý | I92: 5520 | J92: ý | Q92: =Dec!AF135 ->  | R92: =IF(Q92="","",COUNTIF(Dec!O$49:O$5048,Summary!Q92)) ->  | X92: =IF(V92="","",SUMPRODUCT(--(Dec!O$49:O$5048=Summary!V92),--(ISNUMBER(SEARCH("M",Dec!P$49:P$5048,1))))) ->  | Y92: =IF(V92="","",SUMPRODUCT(--(Dec!O$49:O$5048=Summary!V92),--(ISNUMBER(SEARCH(O$12,Dec!P$49:P$5048,1))))) -> 
Q93: =Dec!AF136 ->  | R93: =IF(Q93="","",COUNTIF(Dec!O$49:O$5048,Summary!Q93)) ->  | X93: =IF(V93="","",SUMPRODUCT(--(Dec!O$49:O$5048=Summary!V93),--(ISNUMBER(SEARCH("M",Dec!P$49:P$5048,1))))) ->  | Y93: =IF(V93="","",SUMPRODUCT(--(Dec!O$49:O$5048=Summary!V93),--(ISNUMBER(SEARCH(O$12,Dec!P$49:P$5048,1))))) -> 
Q94: =Dec!AF137 ->  | R94: =IF(Q94="","",COUNTIF(Dec!O$49:O$5048,Summary!Q94)) ->  | X94: =IF(V94="","",SUMPRODUCT(--(Dec!O$49:O$5048=Summary!V94),--(ISNUMBER(SEARCH("M",Dec!P$49:P$5048,1))))) ->  | Y94: =IF(V94="","",SUMPRODUCT(--(Dec!O$49:O$5048=Summary!V94),--(ISNUMBER(SEARCH(O$12,Dec!P$49:P$5048,1))))) -> 
Q95: =Dec!AF138 ->  | R95: =IF(Q95="","",COUNTIF(Dec!O$49:O$5048,Summary!Q95)) ->  | X95: =IF(V95="","",SUMPRODUCT(--(Dec!O$49:O$5048=Summary!V95),--(ISNUMBER(SEARCH("M",Dec!P$49:P$5048,1))))) ->  | Y95: =IF(V95="","",SUMPRODUCT(--(Dec!O$49:O$5048=Summary!V95),--(ISNUMBER(SEARCH(O$12,Dec!P$49:P$5048,1))))) -> 
Q96: =Dec!AF139 ->  | R96: =IF(Q96="","",COUNTIF(Dec!O$49:O$5048,Summary!Q96)) ->  | X96: =IF(V96="","",SUMPRODUCT(--(Dec!O$49:O$5048=Summary!V96),--(ISNUMBER(SEARCH("M",Dec!P$49:P$5048,1))))) ->  | Y96: =IF(V96="","",SUMPRODUCT(--(Dec!O$49:O$5048=Summary!V96),--(ISNUMBER(SEARCH(O$12,Dec!P$49:P$5048,1))))) -> 
Q97: =Dec!AF140 ->  | R97: =IF(Q97="","",COUNTIF(Dec!O$49:O$5048,Summary!Q97)) ->  | X97: =IF(V97="","",SUMPRODUCT(--(Dec!O$49:O$5048=Summary!V97),--(ISNUMBER(SEARCH("M",Dec!P$49:P$5048,1))))) ->  | Y97: =IF(V97="","",SUMPRODUCT(--(Dec!O$49:O$5048=Summary!V97),--(ISNUMBER(SEARCH(O$12,Dec!P$49:P$5048,1))))) -> 
Q98: =Dec!AF141 ->  | R98: =IF(Q98="","",COUNTIF(Dec!O$49:O$5048,Summary!Q98)) ->  | X98: =IF(V98="","",SUMPRODUCT(--(Dec!O$49:O$5048=Summary!V98),--(ISNUMBER(SEARCH("M",Dec!P$49:P$5048,1))))) ->  | Y98: =IF(V98="","",SUMPRODUCT(--(Dec!O$49:O$5048=Summary!V98),--(ISNUMBER(SEARCH(O$12,Dec!P$49:P$5048,1))))) -> 
Q99: =Dec!AF142 ->  | R99: =IF(Q99="","",COUNTIF(Dec!O$49:O$5048,Summary!Q99)) ->  | X99: =IF(V99="","",SUMPRODUCT(--(Dec!O$49:O$5048=Summary!V99),--(ISNUMBER(SEARCH("M",Dec!P$49:P$5048,1))))) ->  | Y99: =IF(V99="","",SUMPRODUCT(--(Dec!O$49:O$5048=Summary!V99),--(ISNUMBER(SEARCH(O$12,Dec!P$49:P$5048,1))))) -> 
Q100: =Dec!AF143 ->  | R100: =IF(Q100="","",COUNTIF(Dec!O$49:O$5048,Summary!Q100)) ->  | X100: =IF(V100="","",SUMPRODUCT(--(Dec!O$49:O$5048=Summary!V100),--(ISNUMBER(SEARCH("M",Dec!P$49:P$5048,1))))) ->  | Y100: =IF(V100="","",SUMPRODUCT(--(Dec!O$49:O$5048=Summary!V100),--(ISNUMBER(SEARCH(O$12,Dec!P$49:P$5048,1))))) -> 
Q101: =Dec!AF144 ->  | R101: =IF(Q101="","",COUNTIF(Dec!O$49:O$5048,Summary!Q101)) ->  | X101: =IF(V101="","",SUMPRODUCT(--(Dec!O$49:O$5048=Summary!V101),--(ISNUMBER(SEARCH("M",Dec!P$49:P$5048,1))))) ->  | Y101: =IF(V101="","",SUMPRODUCT(--(Dec!O$49:O$5048=Summary!V101),--(ISNUMBER(SEARCH(O$12,Dec!P$49:P$5048,1))))) -> 
Q102: =Dec!AF145 ->  | R102: =IF(Q102="","",COUNTIF(Dec!O$49:O$5048,Summary!Q102)) ->  | X102: =IF(V102="","",SUMPRODUCT(--(Dec!O$49:O$5048=Summary!V102),--(ISNUMBER(SEARCH("M",Dec!P$49:P$5048,1))))) ->  | Y102: =IF(V102="","",SUMPRODUCT(--(Dec!O$49:O$5048=Summary!V102),--(ISNUMBER(SEARCH(O$12,Dec!P$49:P$5048,1))))) -> 
Q103: =Dec!AF146 ->  | R103: =IF(Q103="","",COUNTIF(Dec!O$49:O$5048,Summary!Q103)) ->  | X103: =IF(V103="","",SUMPRODUCT(--(Dec!O$49:O$5048=Summary!V103),--(ISNUMBER(SEARCH("M",Dec!P$49:P$5048,1))))) ->  | Y103: =IF(V103="","",SUMPRODUCT(--(Dec!O$49:O$5048=Summary!V103),--(ISNUMBER(SEARCH(O$12,Dec!P$49:P$5048,1))))) -> 
Q104: =Dec!AF147 ->  | R104: =IF(Q104="","",COUNTIF(Dec!O$49:O$5048,Summary!Q104)) ->  | X104: =IF(V104="","",SUMPRODUCT(--(Dec!O$49:O$5048=Summary!V104),--(ISNUMBER(SEARCH("M",Dec!P$49:P$5048,1))))) ->  | Y104: =IF(V104="","",SUMPRODUCT(--(Dec!O$49:O$5048=Summary!V104),--(ISNUMBER(SEARCH(O$12,Dec!P$49:P$5048,1))))) -> 
Q105: =Dec!AF148 ->  | R105: =IF(Q105="","",COUNTIF(Dec!O$49:O$5048,Summary!Q105)) ->  | X105: =IF(V105="","",SUMPRODUCT(--(Dec!O$49:O$5048=Summary!V105),--(ISNUMBER(SEARCH("M",Dec!P$49:P$5048,1))))) ->  | Y105: =IF(V105="","",SUMPRODUCT(--(Dec!O$49:O$5048=Summary!V105),--(ISNUMBER(SEARCH(O$12,Dec!P$49:P$5048,1))))) -> 
Q106: =Dec!AF149 ->  | R106: =IF(Q106="","",COUNTIF(Dec!O$49:O$5048,Summary!Q106)) ->  | X106: =IF(V106="","",SUMPRODUCT(--(Dec!O$49:O$5048=Summary!V106),--(ISNUMBER(SEARCH("M",Dec!P$49:P$5048,1))))) ->  | Y106: =IF(V106="","",SUMPRODUCT(--(Dec!O$49:O$5048=Summary!V106),--(ISNUMBER(SEARCH(O$12,Dec!P$49:P$5048,1))))) -> 

Sheet Dec
L1: hidden | P1: =Translations!I11&Translations!I14&18 -> MU18 | Q1: =COUNTIF(P:P,P1)-1 -> 0 | R1: Y | U1: Withdrawn
P2: =Translations!I11&Translations!I14&20 -> MU20 | Q2: 0 | R2: N | U2: DNS
P3: =Translations!I11 -> M | Q3: 0
P4: =Translations!I11&35 -> M35 | Q4: 0
P5: =Translations!I11&40 -> M40 | Q5: 0
P6: =Translations!I11&45 -> M45 | Q6: 0
P7: =Translations!I11&50 -> M50 | Q7: 0
P8: =Translations!I11&55 -> M55 | Q8: 0
P9: =Translations!I11&60 -> M60 | Q9: 0
P10: =Translations!I11&65 -> M65 | Q10: 0
P11: =Translations!I11&70 -> M70 | Q11: 0
P12: =Translations!I11&75 -> M75 | Q12: 0
P13: =Translations!I11&80 -> M80 | Q13: 0
P14: =Translations!I11&85 -> M85 | Q14: 0
P15: =Translations!I11&90 -> M90 | Q15: 0
P16: =Translations!I11&95 -> M95 | Q16: 0
P17: =Translations!I11&100 -> M100 | Q17: 0
P18: =Translations!I11&105 -> M105 | Q18: 0
P19: =Translations!I11&110 -> M110 | Q19: 0
P20: =IF(Summary!O$12="",Translations!I13&Translations!I14&20,Summary!O$12&Translations!I14&18) -> WU18 | Q20: 0
P21: =IF(Summary!O$12="",Translations!I13&Translations!I14&20,Summary!O$12&Translations!I14&20) -> WU20 | Q21: 0
P22: =IF(Summary!O$12="",Translations!I15,Summary!O$12) -> W | Q22: 0
P23: =IF(Summary!O$12="",Translations!I$13&35,Summary!O$12&"35") -> W35 | Q23: 0
P24: =IF(Summary!O$12="",Translations!I$13&40,Summary!O$12&"40") -> W40 | Q24: 0
P25: =IF(Summary!O$12="",Translations!I$13&45,Summary!O$12&"45") -> W45 | Q25: 0
P26: =IF(Summary!O$12="",Translations!I$13&50,Summary!O$12&"50") -> W50 | Q26: 0
P27: =IF(Summary!O$12="",Translations!I$13&55,Summary!O$12&"55") -> W55 | Q27: 0
P28: =IF(Summary!O$12="",Translations!I$13&60,Summary!O$12&"60") -> W60 | Q28: 0
P29: =IF(Summary!O$12="",Translations!I$13&65,Summary!O$12&"65") -> W65 | Q29: 0
P30: =IF(Summary!O$12="",Translations!I$13&70,Summary!O$12&"70") -> W70 | Q30: 0
P31: =IF(Summary!O$12="",Translations!I$13&75,Summary!O$12&"75") -> W75 | Q31: 0
P32: =IF(Summary!O$12="",Translations!I$13&80,Summary!O$12&"80") -> W80 | Q32: 0
P33: =IF(Summary!O$12="",Translations!I$13&85,Summary!O$12&"85") -> W85 | Q33: 0
P34: =IF(Summary!O$12="",Translations!I$13&90,Summary!O$12&"90") -> W90 | Q34: 0
P35: =IF(Summary!O$12="",Translations!I$13&95,Summary!O$12&"95") -> W95 | Q35: 0
P36: =IF(Summary!O$12="",Translations!I$13&100,Summary!O$12&"100") -> W100 | Q36: 0
P37: =IF(Summary!O$12="",Translations!I$13&105,Summary!O$12&"105") -> W105 | Q37: =COUNTIF(P:P,P37)-1 -> 0
P38: =IF(Summary!O$12="",Translations!I$13&110,Summary!O$12&"110") -> W110 | Q38: 0
P39: =Translations!I$11&Translations!I$14&IF(Summary!N$18="Even",10,11) -> MU11 | Q39: 0
P40: =Translations!I$11&Translations!I$14&IF(Summary!N$18="Even",12,13) -> MU13 | Q40: =COUNTIF(P:P,P40)-1 -> 0
P41: =Translations!I$11&Translations!I$14&IF(Summary!N$18="Even",14,15) -> MU15 | Q41: 0
P42: =Translations!I$11&Translations!I$14&IF(Summary!N$18="Even",16,17) -> MU17 | Q42: 0
P43: =IF(Summary!O$12="",Translations!I$13,Summary!O$12)&Translations!I$14&IF(Summary!N$18="Even",10,11) -> WU11 | Q43: 0
P44: =IF(Summary!O$12="",Translations!I$13,Summary!O$12)&Translations!I$14&IF(Summary!N$18="Even",12,13) -> WU13 | Q44: 0
P45: =IF(Summary!O$12="",Translations!I$13,Summary!O$12)&Translations!I$14&IF(Summary!N$18="Even",14,15) -> WU15 | Q45: 0
P46: =IF(Summary!O$12="",Translations!I$13,Summary!O$12)&Translations!I$14&IF(Summary!N$18="Even",16,17) -> WU17 | Q46: 0
L47: =Summary!A4 -> - | Q47: DOB | S47: =Translations!I28 -> Handicap | AA47: Age on
J48: used no | K48: Default No. | L48: Assigned No. | M48: =Translations!I17 -> No. | N48: =Translations!I7&" " -> Name | O48: =Translations!I8&" " -> Club | P48: =Translations!I18 -> Category | Q48: dd/mm/yy | R48: =IF(Summary!H9="","Sub Comp",Summary!H9) -> Sub Comp | S48: Min | T48: Sec | U48: Status | AA48: race day | AF48: =MAX(AE50:AE149) -> 0
I49: =IF(O49="","",IF(COUNTIF(O$48:O48,O49)=0,ROW(),"")) ->  | J49: =IF(AND(N49<>"",U49=""),L49,"") ->  | K49: =IF(M49="",1,M49) -> 1 | L49: =IF(M49="",IF(COUNTIF(M$49:M$5076,K49)>0,MAX(M$49:M$5076,L$48:L48,K$49:K$5076)+1,K49),M49) -> 1 | AA49: =IF(OR(Summary!H$8="",Q49=""),"",DATEDIF(Q49,Summary!H$8,"y")) -> 
I50: =IF(O50="","",IF(COUNTIF(O$48:O49,O50)=0,ROW(),"")) ->  | K50: =K49+1 -> 2 | L50: =IF(M50="",IF(COUNTIF(M$49:M$5076,K50)>0,MAX(M$49:M$5076,L$48:L49,K$49:K$5076)+1,K50),M50) -> 2 | AA50: =IF(OR(Summary!H$8="",Q50=""),"",DATEDIF(Q50,Summary!H$8,"y")) ->  | AB50: 1 | AC50: =IF(COUNTIF(I$49:I$5048,">0")<AB50,"",INDIRECT("o"&SMALL(I$49:I$5048,AB50))) ->  | AD50: =IF(AC50<>"",SUMPRODUCT((AC50>=$AC$50:$AC$149)+0)+1,"") ->  | AE50: =IF(N(AD50),RANK(AD50,$AD$50:$AD$149,1)+COUNTIF($AD$50:OFFSET(AD50,0,0),AD50)-1,"") ->  | AF50: =IF(ROW()-ROW(AF$50)+1<=$AF$48,INDEX($AC$50:$AC$149,MATCH(ROW()-ROW(AF$50)+1,$AE$50:$AE$149,0)),"") -> 
I51: =IF(O51="","",IF(COUNTIF(O$48:O50,O51)=0,ROW(),"")) ->  | J51: =IF(AND(N51<>"",U51=""),L51,"") ->  | K51: 3 | L51: =IF(M51="",IF(COUNTIF(M$49:M$5076,K51)>0,MAX(M$49:M$5076,L$48:L50,K$49:K$5076)+1,K51),M51) -> 3 | AA51: =IF(OR(Summary!H$8="",Q51=""),"",DATEDIF(Q51,Summary!H$8,"y")) ->  | AB51: =AB50+1 -> 2 | AD51: =IF(AC51<>"",SUMPRODUCT((AC51>=$AC$50:$AC$149)+0)+1,"") ->  | AE51: =IF(N(AD51),RANK(AD51,$AD$50:$AD$149,1)+COUNTIF($AD$50:OFFSET(AD51,0,0),AD51)-1,"") ->  | AF51: =IF(ROW()-ROW(AF$50)+1<=$AF$48,INDEX($AC$50:$AC$149,MATCH(ROW()-ROW(AF$50)+1,$AE$50:$AE$149,0)),"") -> 
I52: =IF(O52="","",IF(COUNTIF(O$48:O51,O52)=0,ROW(),"")) ->  | K52: 4 | L52: =IF(M52="",IF(COUNTIF(M$49:M$5076,K52)>0,MAX(M$49:M$5076,L$48:L51,K$49:K$5076)+1,K52),M52) -> 4 | AA52: =IF(OR(Summary!H$8="",Q52=""),"",DATEDIF(Q52,Summary!H$8,"y")) ->  | AB52: =AB51+1 -> 3 | AE52: =IF(N(AD52),RANK(AD52,$AD$50:$AD$149,1)+COUNTIF($AD$50:OFFSET(AD52,0,0),AD52)-1,"") -> 
I53: =IF(O53="","",IF(COUNTIF(O$48:O52,O53)=0,ROW(),"")) ->  | K53: 5 | L53: =IF(M53="",IF(COUNTIF(M$49:M$5076,K53)>0,MAX(M$49:M$5076,L$48:L52,K$49:K$5076)+1,K53),M53) -> 5 | AA53: =IF(OR(Summary!H$8="",Q53=""),"",DATEDIF(Q53,Summary!H$8,"y")) ->  | AB53: 4 | AE53: =IF(N(AD53),RANK(AD53,$AD$50:$AD$149,1)+COUNTIF($AD$50:OFFSET(AD53,0,0),AD53)-1,"") -> 
I54: =IF(O54="","",IF(COUNTIF(O$48:O53,O54)=0,ROW(),"")) ->  | K54: 6 | L54: =IF(M54="",IF(COUNTIF(M$49:M$5076,K54)>0,MAX(M$49:M$5076,L$48:L53,K$49:K$5076)+1,K54),M54) -> 6 | AA54: =IF(OR(Summary!H$8="",Q54=""),"",DATEDIF(Q54,Summary!H$8,"y")) ->  | AB54: 5 | AE54: =IF(N(AD54),RANK(AD54,$AD$50:$AD$149,1)+COUNTIF($AD$50:OFFSET(AD54,0,0),AD54)-1,"") -> 
I55: =IF(O55="","",IF(COUNTIF(O$48:O54,O55)=0,ROW(),"")) ->  | K55: 7 | L55: =IF(M55="",IF(COUNTIF(M$49:M$5076,K55)>0,MAX(M$49:M$5076,L$48:L54,K$49:K$5076)+1,K55),M55) -> 7 | AA55: =IF(OR(Summary!H$8="",Q55=""),"",DATEDIF(Q55,Summary!H$8,"y")) ->  | AB55: 6 | AE55: =IF(N(AD55),RANK(AD55,$AD$50:$AD$149,1)+COUNTIF($AD$50:OFFSET(AD55,0,0),AD55)-1,"") -> 
I56: =IF(O56="","",IF(COUNTIF(O$48:O55,O56)=0,ROW(),"")) ->  | K56: =K55+1 -> 8 | L56: =IF(M56="",IF(COUNTIF(M$49:M$5076,K56)>0,MAX(M$49:M$5076,L$48:L55,K$49:K$5076)+1,K56),M56) -> 8 | AA56: =IF(OR(Summary!H$8="",Q56=""),"",DATEDIF(Q56,Summary!H$8,"y")) ->  | AB56: 7 | AE56: =IF(N(AD56),RANK(AD56,$AD$50:$AD$149,1)+COUNTIF($AD$50:OFFSET(AD56,0,0),AD56)-1,"") -> 
I57: =IF(O57="","",IF(COUNTIF(O$48:O56,O57)=0,ROW(),"")) ->  | K57: 9 | L57: =IF(M57="",IF(COUNTIF(M$49:M$5076,K57)>0,MAX(M$49:M$5076,L$48:L56,K$49:K$5076)+1,K57),M57) -> 9 | AA57: =IF(OR(Summary!H$8="",Q57=""),"",DATEDIF(Q57,Summary!H$8,"y")) ->  | AB57: 8 | AE57: =IF(N(AD57),RANK(AD57,$AD$50:$AD$149,1)+COUNTIF($AD$50:OFFSET(AD57,0,0),AD57)-1,"") -> 
I58: =IF(O58="","",IF(COUNTIF(O$48:O57,O58)=0,ROW(),"")) ->  | K58: 10 | L58: =IF(M58="",IF(COUNTIF(M$49:M$5076,K58)>0,MAX(M$49:M$5076,L$48:L57,K$49:K$5076)+1,K58),M58) -> 10 | AA58: =IF(OR(Summary!H$8="",Q58=""),"",DATEDIF(Q58,Summary!H$8,"y")) ->  | AB58: 9 | AE58: =IF(N(AD58),RANK(AD58,$AD$50:$AD$149,1)+COUNTIF($AD$50:OFFSET(AD58,0,0),AD58)-1,"") -> 
I59: =IF(O59="","",IF(COUNTIF(O$48:O58,O59)=0,ROW(),"")) ->  | K59: 11 | L59: =IF(M59="",IF(COUNTIF(M$49:M$5076,K59)>0,MAX(M$49:M$5076,L$48:L58,K$49:K$5076)+1,K59),M59) -> 11 | AA59: =IF(OR(Summary!H$8="",Q59=""),"",DATEDIF(Q59,Summary!H$8,"y")) ->  | AB59: 10 | AE59: =IF(N(AD59),RANK(AD59,$AD$50:$AD$149,1)+COUNTIF($AD$50:OFFSET(AD59,0,0),AD59)-1,"") -> 
I60: =IF(O60="","",IF(COUNTIF(O$48:O59,O60)=0,ROW(),"")) ->  | K60: 12 | L60: =IF(M60="",IF(COUNTIF(M$49:M$5076,K60)>0,MAX(M$49:M$5076,L$48:L59,K$49:K$5076)+1,K60),M60) -> 12 | AA60: =IF(OR(Summary!H$8="",Q60=""),"",DATEDIF(Q60,Summary!H$8,"y")) ->  | AB60: 11 | AE60: =IF(N(AD60),RANK(AD60,$AD$50:$AD$149,1)+COUNTIF($AD$50:OFFSET(AD60,0,0),AD60)-1,"") -> 
I61: =IF(O61="","",IF(COUNTIF(O$48:O60,O61)=0,ROW(),"")) ->  | K61: 13 | L61: =IF(M61="",IF(COUNTIF(M$49:M$5076,K61)>0,MAX(M$49:M$5076,L$48:L60,K$49:K$5076)+1,K61),M61) -> 13 | AA61: =IF(OR(Summary!H$8="",Q61=""),"",DATEDIF(Q61,Summary!H$8,"y")) ->  | AB61: 12 | AE61: =IF(N(AD61),RANK(AD61,$AD$50:$AD$149,1)+COUNTIF($AD$50:OFFSET(AD61,0,0),AD61)-1,"") -> 
I62: =IF(O62="","",IF(COUNTIF(O$48:O61,O62)=0,ROW(),"")) ->  | K62: 14 | L62: =IF(M62="",IF(COUNTIF(M$49:M$5076,K62)>0,MAX(M$49:M$5076,L$48:L61,K$49:K$5076)+1,K62),M62) -> 14 | AA62: =IF(OR(Summary!H$8="",Q62=""),"",DATEDIF(Q62,Summary!H$8,"y")) ->  | AB62: 13 | AE62: =IF(N(AD62),RANK(AD62,$AD$50:$AD$149,1)+COUNTIF($AD$50:OFFSET(AD62,0,0),AD62)-1,"") -> 
I63: =IF(O63="","",IF(COUNTIF(O$48:O62,O63)=0,ROW(),"")) ->  | K63: 15 | L63: =IF(M63="",IF(COUNTIF(M$49:M$5076,K63)>0,MAX(M$49:M$5076,L$48:L62,K$49:K$5076)+1,K63),M63) -> 15 | AA63: =IF(OR(Summary!H$8="",Q63=""),"",DATEDIF(Q63,Summary!H$8,"y")) ->  | AB63: 14 | AE63: =IF(N(AD63),RANK(AD63,$AD$50:$AD$149,1)+COUNTIF($AD$50:OFFSET(AD63,0,0),AD63)-1,"") -> 
I64: =IF(O64="","",IF(COUNTIF(O$48:O63,O64)=0,ROW(),"")) ->  | K64: 16 | L64: =IF(M64="",IF(COUNTIF(M$49:M$5076,K64)>0,MAX(M$49:M$5076,L$48:L63,K$49:K$5076)+1,K64),M64) -> 16 | AA64: =IF(OR(Summary!H$8="",Q64=""),"",DATEDIF(Q64,Summary!H$8,"y")) ->  | AB64: 15 | AE64: =IF(N(AD64),RANK(AD64,$AD$50:$AD$149,1)+COUNTIF($AD$50:OFFSET(AD64,0,0),AD64)-1,"") -> 
I65: =IF(O65="","",IF(COUNTIF(O$48:O64,O65)=0,ROW(),"")) ->  | K65: 17 | L65: =IF(M65="",IF(COUNTIF(M$49:M$5076,K65)>0,MAX(M$49:M$5076,L$48:L64,K$49:K$5076)+1,K65),M65) -> 17 | AA65: =IF(OR(Summary!H$8="",Q65=""),"",DATEDIF(Q65,Summary!H$8,"y")) ->  | AB65: 16 | AE65: =IF(N(AD65),RANK(AD65,$AD$50:$AD$149,1)+COUNTIF($AD$50:OFFSET(AD65,0,0),AD65)-1,"") -> 
I66: =IF(O66="","",IF(COUNTIF(O$48:O65,O66)=0,ROW(),"")) ->  | K66: 18 | L66: =IF(M66="",IF(COUNTIF(M$49:M$5076,K66)>0,MAX(M$49:M$5076,L$48:L65,K$49:K$5076)+1,K66),M66) -> 18 | AA66: =IF(OR(Summary!H$8="",Q66=""),"",DATEDIF(Q66,Summary!H$8,"y")) ->  | AB66: 17 | AE66: =IF(N(AD66),RANK(AD66,$AD$50:$AD$149,1)+COUNTIF($AD$50:OFFSET(AD66,0,0),AD66)-1,"") -> 
I67: =IF(O67="","",IF(COUNTIF(O$48:O66,O67)=0,ROW(),"")) ->  | K67: 19 | L67: =IF(M67="",IF(COUNTIF(M$49:M$5076,K67)>0,MAX(M$49:M$5076,L$48:L66,K$49:K$5076)+1,K67),M67) -> 19 | AA67: =IF(OR(Summary!H$8="",Q67=""),"",DATEDIF(Q67,Summary!H$8,"y")) ->  | AB67: 18 | AE67: =IF(N(AD67),RANK(AD67,$AD$50:$AD$149,1)+COUNTIF($AD$50:OFFSET(AD67,0,0),AD67)-1,"") -> 
I68: =IF(O68="","",IF(COUNTIF(O$48:O67,O68)=0,ROW(),"")) ->  | K68: 20 | L68: =IF(M68="",IF(COUNTIF(M$49:M$5076,K68)>0,MAX(M$49:M$5076,L$48:L67,K$49:K$5076)+1,K68),M68) -> 20 | AA68: =IF(OR(Summary!H$8="",Q68=""),"",DATEDIF(Q68,Summary!H$8,"y")) ->  | AB68: 19 | AE68: =IF(N(AD68),RANK(AD68,$AD$50:$AD$149,1)+COUNTIF($AD$50:OFFSET(AD68,0,0),AD68)-1,"") -> 
I69: =IF(O69="","",IF(COUNTIF(O$48:O68,O69)=0,ROW(),"")) ->  | K69: 21 | L69: =IF(M69="",IF(COUNTIF(M$49:M$5076,K69)>0,MAX(M$49:M$5076,L$48:L68,K$49:K$5076)+1,K69),M69) -> 21 | AA69: =IF(OR(Summary!H$8="",Q69=""),"",DATEDIF(Q69,Summary!H$8,"y")) ->  | AB69: 20 | AE69: =IF(N(AD69),RANK(AD69,$AD$50:$AD$149,1)+COUNTIF($AD$50:OFFSET(AD69,0,0),AD69)-1,"") -> 
I70: =IF(O70="","",IF(COUNTIF(O$48:O69,O70)=0,ROW(),"")) ->  | K70: 22 | L70: =IF(M70="",IF(COUNTIF(M$49:M$5076,K70)>0,MAX(M$49:M$5076,L$48:L69,K$49:K$5076)+1,K70),M70) -> 22 | AA70: =IF(OR(Summary!H$8="",Q70=""),"",DATEDIF(Q70,Summary!H$8,"y")) ->  | AB70: 21 | AE70: =IF(N(AD70),RANK(AD70,$AD$50:$AD$149,1)+COUNTIF($AD$50:OFFSET(AD70,0,0),AD70)-1,"") -> 
I71: =IF(O71="","",IF(COUNTIF(O$48:O70,O71)=0,ROW(),"")) ->  | K71: 23 | L71: =IF(M71="",IF(COUNTIF(M$49:M$5076,K71)>0,MAX(M$49:M$5076,L$48:L70,K$49:K$5076)+1,K71),M71) -> 23 | AA71: =IF(OR(Summary!H$8="",Q71=""),"",DATEDIF(Q71,Summary!H$8,"y")) ->  | AB71: 22 | AE71: =IF(N(AD71),RANK(AD71,$AD$50:$AD$149,1)+COUNTIF($AD$50:OFFSET(AD71,0,0),AD71)-1,"") -> 
I72: =IF(O72="","",IF(COUNTIF(O$48:O71,O72)=0,ROW(),"")) ->  | K72: 24 | L72: =IF(M72="",IF(COUNTIF(M$49:M$5076,K72)>0,MAX(M$49:M$5076,L$48:L71,K$49:K$5076)+1,K72),M72) -> 24 | AA72: =IF(OR(Summary!H$8="",Q72=""),"",DATEDIF(Q72,Summary!H$8,"y")) ->  | AB72: 23 | AE72: =IF(N(AD72),RANK(AD72,$AD$50:$AD$149,1)+COUNTIF($AD$50:OFFSET(AD72,0,0),AD72)-1,"") -> 
I73: =IF(O73="","",IF(COUNTIF(O$48:O72,O73)=0,ROW(),"")) ->  | K73: 25 | L73: =IF(M73="",IF(COUNTIF(M$49:M$5076,K73)>0,MAX(M$49:M$5076,L$48:L72,K$49:K$5076)+1,K73),M73) -> 25 | AA73: =IF(OR(Summary!H$8="",Q73=""),"",DATEDIF(Q73,Summary!H$8,"y")) ->  | AB73: 24 | AE73: =IF(N(AD73),RANK(AD73,$AD$50:$AD$149,1)+COUNTIF($AD$50:OFFSET(AD73,0,0),AD73)-1,"") -> 
I74: =IF(O74="","",IF(COUNTIF(O$48:O73,O74)=0,ROW(),"")) ->  | K74: 26 | L74: =IF(M74="",IF(COUNTIF(M$49:M$5076,K74)>0,MAX(M$49:M$5076,L$48:L73,K$49:K$5076)+1,K74),M74) -> 26 | AA74: =IF(OR(Summary!H$8="",Q74=""),"",DATEDIF(Q74,Summary!H$8,"y")) ->  | AB74: 25 | AE74: =IF(N(AD74),RANK(AD74,$AD$50:$AD$149,1)+COUNTIF($AD$50:OFFSET(AD74,0,0),AD74)-1,"") -> 
I75: =IF(O75="","",IF(COUNTIF(O$48:O74,O75)=0,ROW(),"")) ->  | K75: 27 | L75: =IF(M75="",IF(COUNTIF(M$49:M$5076,K75)>0,MAX(M$49:M$5076,L$48:L74,K$49:K$5076)+1,K75),M75) -> 27 | AA75: =IF(OR(Summary!H$8="",Q75=""),"",DATEDIF(Q75,Summary!H$8,"y")) ->  | AB75: 26 | AE75: =IF(N(AD75),RANK(AD75,$AD$50:$AD$149,1)+COUNTIF($AD$50:OFFSET(AD75,0,0),AD75)-1,"") -> 
I76: =IF(O76="","",IF(COUNTIF(O$48:O75,O76)=0,ROW(),"")) ->  | K76: 28 | L76: =IF(M76="",IF(COUNTIF(M$49:M$5076,K76)>0,MAX(M$49:M$5076,L$48:L75,K$49:K$5076)+1,K76),M76) -> 28 | AA76: =IF(OR(Summary!H$8="",Q76=""),"",DATEDIF(Q76,Summary!H$8,"y")) ->  | AB76: 27 | AE76: =IF(N(AD76),RANK(AD76,$AD$50:$AD$149,1)+COUNTIF($AD$50:OFFSET(AD76,0,0),AD76)-1,"") -> 
I77: =IF(O77="","",IF(COUNTIF(O$48:O76,O77)=0,ROW(),"")) ->  | K77: 29 | L77: =IF(M77="",IF(COUNTIF(M$49:M$5076,K77)>0,MAX(M$49:M$5076,L$48:L76,K$49:K$5076)+1,K77),M77) -> 29 | AA77: =IF(OR(Summary!H$8="",Q77=""),"",DATEDIF(Q77,Summary!H$8,"y")) ->  | AB77: 28 | AE77: =IF(N(AD77),RANK(AD77,$AD$50:$AD$149,1)+COUNTIF($AD$50:OFFSET(AD77,0,0),AD77)-1,"") -> 
I78: =IF(O78="","",IF(COUNTIF(O$48:O77,O78)=0,ROW(),"")) ->  | K78: 30 | L78: =IF(M78="",IF(COUNTIF(M$49:M$5076,K78)>0,MAX(M$49:M$5076,L$48:L77,K$49:K$5076)+1,K78),M78) -> 30 | AA78: =IF(OR(Summary!H$8="",Q78=""),"",DATEDIF(Q78,Summary!H$8,"y")) ->  | AB78: 29 | AE78: =IF(N(AD78),RANK(AD78,$AD$50:$AD$149,1)+COUNTIF($AD$50:OFFSET(AD78,0,0),AD78)-1,"") -> 
I79: =IF(O79="","",IF(COUNTIF(O$48:O78,O79)=0,ROW(),"")) ->  | K79: 31 | L79: =IF(M79="",IF(COUNTIF(M$49:M$5076,K79)>0,MAX(M$49:M$5076,L$48:L78,K$49:K$5076)+1,K79),M79) -> 31 | AA79: =IF(OR(Summary!H$8="",Q79=""),"",DATEDIF(Q79,Summary!H$8,"y")) ->  | AB79: 30 | AE79: =IF(N(AD79),RANK(AD79,$AD$50:$AD$149,1)+COUNTIF($AD$50:OFFSET(AD79,0,0),AD79)-1,"") -> 
I80: =IF(O80="","",IF(COUNTIF(O$48:O79,O80)=0,ROW(),"")) ->  | K80: 32 | L80: =IF(M80="",IF(COUNTIF(M$49:M$5076,K80)>0,MAX(M$49:M$5076,L$48:L79,K$49:K$5076)+1,K80),M80) -> 32 | AA80: =IF(OR(Summary!H$8="",Q80=""),"",DATEDIF(Q80,Summary!H$8,"y")) ->  | AB80: =AB79+1 -> 31 | AE80: =IF(N(AD80),RANK(AD80,$AD$50:$AD$149,1)+COUNTIF($AD$50:OFFSET(AD80,0,0),AD80)-1,"") -> 
I81: =IF(O81="","",IF(COUNTIF(O$48:O80,O81)=0,ROW(),"")) ->  | K81: 33 | L81: =IF(M81="",IF(COUNTIF(M$49:M$5076,K81)>0,MAX(M$49:M$5076,L$48:L80,K$49:K$5076)+1,K81),M81) -> 33 | AA81: =IF(OR(Summary!H$8="",Q81=""),"",DATEDIF(Q81,Summary!H$8,"y")) ->  | AB81: =AB80+1 -> 32 | AE81: =IF(N(AD81),RANK(AD81,$AD$50:$AD$149,1)+COUNTIF($AD$50:OFFSET(AD81,0,0),AD81)-1,"") -> 
I82: =IF(O82="","",IF(COUNTIF(O$48:O81,O82)=0,ROW(),"")) ->  | K82: 34 | L82: =IF(M82="",IF(COUNTIF(M$49:M$5076,K82)>0,MAX(M$49:M$5076,L$48:L81,K$49:K$5076)+1,K82),M82) -> 34 | AA82: =IF(OR(Summary!H$8="",Q82=""),"",DATEDIF(Q82,Summary!H$8,"y")) ->  | AB82: =AB81+1 -> 33 | AC82: =IF(COUNTIF(I$49:I$5048,">0")<AB82,"",INDIRECT("o"&SMALL(I$49:I$5048,AB82))) ->  | AE82: =IF(N(AD82),RANK(AD82,$AD$50:$AD$149,1)+COUNTIF($AD$50:OFFSET(AD82,0,0),AD82)-1,"") -> 
I83: =IF(O83="","",IF(COUNTIF(O$48:O82,O83)=0,ROW(),"")) ->  | K83: 35 | L83: =IF(M83="",IF(COUNTIF(M$49:M$5076,K83)>0,MAX(M$49:M$5076,L$48:L82,K$49:K$5076)+1,K83),M83) -> 35 | AA83: =IF(OR(Summary!H$8="",Q83=""),"",DATEDIF(Q83,Summary!H$8,"y")) ->  | AB83: =AB82+1 -> 34 | AE83: =IF(N(AD83),RANK(AD83,$AD$50:$AD$149,1)+COUNTIF($AD$50:OFFSET(AD83,0,0),AD83)-1,"") -> 
I84: =IF(O84="","",IF(COUNTIF(O$48:O83,O84)=0,ROW(),"")) ->  | K84: 36 | L84: =IF(M84="",IF(COUNTIF(M$49:M$5076,K84)>0,MAX(M$49:M$5076,L$48:L83,K$49:K$5076)+1,K84),M84) -> 36 | AA84: =IF(OR(Summary!H$8="",Q84=""),"",DATEDIF(Q84,Summary!H$8,"y")) ->  | AB84: =AB83+1 -> 35 | AE84: =IF(N(AD84),RANK(AD84,$AD$50:$AD$149,1)+COUNTIF($AD$50:OFFSET(AD84,0,0),AD84)-1,"") -> 
I85: =IF(O85="","",IF(COUNTIF(O$48:O84,O85)=0,ROW(),"")) ->  | K85: 37 | L85: =IF(M85="",IF(COUNTIF(M$49:M$5076,K85)>0,MAX(M$49:M$5076,L$48:L84,K$49:K$5076)+1,K85),M85) -> 37 | AA85: =IF(OR(Summary!H$8="",Q85=""),"",DATEDIF(Q85,Summary!H$8,"y")) ->  | AB85: =AB84+1 -> 36 | AE85: =IF(N(AD85),RANK(AD85,$AD$50:$AD$149,1)+COUNTIF($AD$50:OFFSET(AD85,0,0),AD85)-1,"") -> 
I86: =IF(O86="","",IF(COUNTIF(O$48:O85,O86)=0,ROW(),"")) ->  | K86: 38 | L86: =IF(M86="",IF(COUNTIF(M$49:M$5076,K86)>0,MAX(M$49:M$5076,L$48:L85,K$49:K$5076)+1,K86),M86) -> 38 | AA86: =IF(OR(Summary!H$8="",Q86=""),"",DATEDIF(Q86,Summary!H$8,"y")) ->  | AB86: 37 | AE86: =IF(N(AD86),RANK(AD86,$AD$50:$AD$149,1)+COUNTIF($AD$50:OFFSET(AD86,0,0),AD86)-1,"") -> 
I87: =IF(O87="","",IF(COUNTIF(O$48:O86,O87)=0,ROW(),"")) ->  | K87: 39 | L87: =IF(M87="",IF(COUNTIF(M$49:M$5076,K87)>0,MAX(M$49:M$5076,L$48:L86,K$49:K$5076)+1,K87),M87) -> 39 | AA87: =IF(OR(Summary!H$8="",Q87=""),"",DATEDIF(Q87,Summary!H$8,"y")) ->  | AB87: 38 | AE87: =IF(N(AD87),RANK(AD87,$AD$50:$AD$149,1)+COUNTIF($AD$50:OFFSET(AD87,0,0),AD87)-1,"") -> 
I88: =IF(O88="","",IF(COUNTIF(O$48:O87,O88)=0,ROW(),"")) ->  | K88: 40 | L88: =IF(M88="",IF(COUNTIF(M$49:M$5076,K88)>0,MAX(M$49:M$5076,L$48:L87,K$49:K$5076)+1,K88),M88) -> 40 | AA88: =IF(OR(Summary!H$8="",Q88=""),"",DATEDIF(Q88,Summary!H$8,"y")) ->  | AB88: 39 | AE88: =IF(N(AD88),RANK(AD88,$AD$50:$AD$149,1)+COUNTIF($AD$50:OFFSET(AD88,0,0),AD88)-1,"") -> 
I89: =IF(O89="","",IF(COUNTIF(O$48:O88,O89)=0,ROW(),"")) ->  | K89: 41 | L89: =IF(M89="",IF(COUNTIF(M$49:M$5076,K89)>0,MAX(M$49:M$5076,L$48:L88,K$49:K$5076)+1,K89),M89) -> 41 | AA89: =IF(OR(Summary!H$8="",Q89=""),"",DATEDIF(Q89,Summary!H$8,"y")) ->  | AB89: 40 | AE89: =IF(N(AD89),RANK(AD89,$AD$50:$AD$149,1)+COUNTIF($AD$50:OFFSET(AD89,0,0),AD89)-1,"") -> 
I90: =IF(O90="","",IF(COUNTIF(O$48:O89,O90)=0,ROW(),"")) ->  | K90: 42 | L90: =IF(M90="",IF(COUNTIF(M$49:M$5076,K90)>0,MAX(M$49:M$5076,L$48:L89,K$49:K$5076)+1,K90),M90) -> 42 | AA90: =IF(OR(Summary!H$8="",Q90=""),"",DATEDIF(Q90,Summary!H$8,"y")) ->  | AB90: 41 | AE90: =IF(N(AD90),RANK(AD90,$AD$50:$AD$149,1)+COUNTIF($AD$50:OFFSET(AD90,0,0),AD90)-1,"") -> 
I91: =IF(O91="","",IF(COUNTIF(O$48:O90,O91)=0,ROW(),"")) ->  | K91: 43 | L91: =IF(M91="",IF(COUNTIF(M$49:M$5076,K91)>0,MAX(M$49:M$5076,L$48:L90,K$49:K$5076)+1,K91),M91) -> 43 | AA91: =IF(OR(Summary!H$8="",Q91=""),"",DATEDIF(Q91,Summary!H$8,"y")) ->  | AB91: 42 | AE91: =IF(N(AD91),RANK(AD91,$AD$50:$AD$149,1)+COUNTIF($AD$50:OFFSET(AD91,0,0),AD91)-1,"") -> 
I92: =IF(O92="","",IF(COUNTIF(O$48:O91,O92)=0,ROW(),"")) ->  | K92: 44 | L92: =IF(M92="",IF(COUNTIF(M$49:M$5076,K92)>0,MAX(M$49:M$5076,L$48:L91,K$49:K$5076)+1,K92),M92) -> 44 | AA92: =IF(OR(Summary!H$8="",Q92=""),"",DATEDIF(Q92,Summary!H$8,"y")) ->  | AB92: 43 | AE92: =IF(N(AD92),RANK(AD92,$AD$50:$AD$149,1)+COUNTIF($AD$50:OFFSET(AD92,0,0),AD92)-1,"") -> 
I93: =IF(O93="","",IF(COUNTIF(O$48:O92,O93)=0,ROW(),"")) ->  | K93: 45 | L93: =IF(M93="",IF(COUNTIF(M$49:M$5076,K93)>0,MAX(M$49:M$5076,L$48:L92,K$49:K$5076)+1,K93),M93) -> 45 | AA93: =IF(OR(Summary!H$8="",Q93=""),"",DATEDIF(Q93,Summary!H$8,"y")) ->  | AB93: 44 | AE93: =IF(N(AD93),RANK(AD93,$AD$50:$AD$149,1)+COUNTIF($AD$50:OFFSET(AD93,0,0),AD93)-1,"") -> 
I94: =IF(O94="","",IF(COUNTIF(O$48:O93,O94)=0,ROW(),"")) ->  | K94: 46 | L94: =IF(M94="",IF(COUNTIF(M$49:M$5076,K94)>0,MAX(M$49:M$5076,L$48:L93,K$49:K$5076)+1,K94),M94) -> 46 | AA94: =IF(OR(Summary!H$8="",Q94=""),"",DATEDIF(Q94,Summary!H$8,"y")) ->  | AB94: 45 | AE94: =IF(N(AD94),RANK(AD94,$AD$50:$AD$149,1)+COUNTIF($AD$50:OFFSET(AD94,0,0),AD94)-1,"") -> 
I95: =IF(O95="","",IF(COUNTIF(O$48:O94,O95)=0,ROW(),"")) ->  | K95: 47 | L95: =IF(M95="",IF(COUNTIF(M$49:M$5076,K95)>0,MAX(M$49:M$5076,L$48:L94,K$49:K$5076)+1,K95),M95) -> 47 | AA95: =IF(OR(Summary!H$8="",Q95=""),"",DATEDIF(Q95,Summary!H$8,"y")) ->  | AB95: 46 | AE95: =IF(N(AD95),RANK(AD95,$AD$50:$AD$149,1)+COUNTIF($AD$50:OFFSET(AD95,0,0),AD95)-1,"") -> 
I96: =IF(O96="","",IF(COUNTIF(O$48:O95,O96)=0,ROW(),"")) ->  | K96: 48 | L96: =IF(M96="",IF(COUNTIF(M$49:M$5076,K96)>0,MAX(M$49:M$5076,L$48:L95,K$49:K$5076)+1,K96),M96) -> 48 | AA96: =IF(OR(Summary!H$8="",Q96=""),"",DATEDIF(Q96,Summary!H$8,"y")) ->  | AB96: 47 | AE96: =IF(N(AD96),RANK(AD96,$AD$50:$AD$149,1)+COUNTIF($AD$50:OFFSET(AD96,0,0),AD96)-1,"") -> 
I97: =IF(O97="","",IF(COUNTIF(O$48:O96,O97)=0,ROW(),"")) ->  | K97: 49 | L97: =IF(M97="",IF(COUNTIF(M$49:M$5076,K97)>0,MAX(M$49:M$5076,L$48:L96,K$49:K$5076)+1,K97),M97) -> 49 | AA97: =IF(OR(Summary!H$8="",Q97=""),"",DATEDIF(Q97,Summary!H$8,"y")) ->  | AB97: 48 | AE97: =IF(N(AD97),RANK(AD97,$AD$50:$AD$149,1)+COUNTIF($AD$50:OFFSET(AD97,0,0),AD97)-1,"") -> 
I98: =IF(O98="","",IF(COUNTIF(O$48:O97,O98)=0,ROW(),"")) ->  | K98: 50 | L98: =IF(M98="",IF(COUNTIF(M$49:M$5076,K98)>0,MAX(M$49:M$5076,L$48:L97,K$49:K$5076)+1,K98),M98) -> 50 | AA98: =IF(OR(Summary!H$8="",Q98=""),"",DATEDIF(Q98,Summary!H$8,"y")) ->  | AB98: 49 | AE98: =IF(N(AD98),RANK(AD98,$AD$50:$AD$149,1)+COUNTIF($AD$50:OFFSET(AD98,0,0),AD98)-1,"") -> 
I99: =IF(O99="","",IF(COUNTIF(O$48:O98,O99)=0,ROW(),"")) ->  | K99: 51 | L99: =IF(M99="",IF(COUNTIF(M$49:M$5076,K99)>0,MAX(M$49:M$5076,L$48:L98,K$49:K$5076)+1,K99),M99) -> 51 | AA99: =IF(OR(Summary!H$8="",Q99=""),"",DATEDIF(Q99,Summary!H$8,"y")) ->  | AB99: 50 | AE99: =IF(N(AD99),RANK(AD99,$AD$50:$AD$149,1)+COUNTIF($AD$50:OFFSET(AD99,0,0),AD99)-1,"") -> 
I100: =IF(O100="","",IF(COUNTIF(O$48:O99,O100)=0,ROW(),"")) ->  | K100: 52 | L100: =IF(M100="",IF(COUNTIF(M$49:M$5076,K100)>0,MAX(M$49:M$5076,L$48:L99,K$49:K$5076)+1,K100),M100) -> 52 | AA100: =IF(OR(Summary!H$8="",Q100=""),"",DATEDIF(Q100,Summary!H$8,"y")) ->  | AB100: 51 | AE100: =IF(N(AD100),RANK(AD100,$AD$50:$AD$149,1)+COUNTIF($AD$50:OFFSET(AD100,0,0),AD100)-1,"") -> 
I101: =IF(O101="","",IF(COUNTIF(O$48:O100,O101)=0,ROW(),"")) ->  | K101: 53 | L101: =IF(M101="",IF(COUNTIF(M$49:M$5076,K101)>0,MAX(M$49:M$5076,L$48:L100,K$49:K$5076)+1,K101),M101) -> 53 | AA101: =IF(OR(Summary!H$8="",Q101=""),"",DATEDIF(Q101,Summary!H$8,"y")) ->  | AB101: 52 | AE101: =IF(N(AD101),RANK(AD101,$AD$50:$AD$149,1)+COUNTIF($AD$50:OFFSET(AD101,0,0),AD101)-1,"") -> 
I102: =IF(O102="","",IF(COUNTIF(O$48:O101,O102)=0,ROW(),"")) ->  | K102: 54 | L102: =IF(M102="",IF(COUNTIF(M$49:M$5076,K102)>0,MAX(M$49:M$5076,L$48:L101,K$49:K$5076)+1,K102),M102) -> 54 | AA102: =IF(OR(Summary!H$8="",Q102=""),"",DATEDIF(Q102,Summary!H$8,"y")) ->  | AB102: 53 | AE102: =IF(N(AD102),RANK(AD102,$AD$50:$AD$149,1)+COUNTIF($AD$50:OFFSET(AD102,0,0),AD102)-1,"") -> 
I103: =IF(O103="","",IF(COUNTIF(O$48:O102,O103)=0,ROW(),"")) ->  | K103: 55 | L103: =IF(M103="",IF(COUNTIF(M$49:M$5076,K103)>0,MAX(M$49:M$5076,L$48:L102,K$49:K$5076)+1,K103),M103) -> 55 | AA103: =IF(OR(Summary!H$8="",Q103=""),"",DATEDIF(Q103,Summary!H$8,"y")) ->  | AB103: 54 | AE103: =IF(N(AD103),RANK(AD103,$AD$50:$AD$149,1)+COUNTIF($AD$50:OFFSET(AD103,0,0),AD103)-1,"") -> 
I104: =IF(O104="","",IF(COUNTIF(O$48:O103,O104)=0,ROW(),"")) ->  | K104: 56 | L104: =IF(M104="",IF(COUNTIF(M$49:M$5076,K104)>0,MAX(M$49:M$5076,L$48:L103,K$49:K$5076)+1,K104),M104) -> 56 | AA104: =IF(OR(Summary!H$8="",Q104=""),"",DATEDIF(Q104,Summary!H$8,"y")) ->  | AB104: 55 | AE104: =IF(N(AD104),RANK(AD104,$AD$50:$AD$149,1)+COUNTIF($AD$50:OFFSET(AD104,0,0),AD104)-1,"") -> 
I105: =IF(O105="","",IF(COUNTIF(O$48:O104,O105)=0,ROW(),"")) ->  | K105: 57 | L105: =IF(M105="",IF(COUNTIF(M$49:M$5076,K105)>0,MAX(M$49:M$5076,L$48:L104,K$49:K$5076)+1,K105),M105) -> 57 | AA105: =IF(OR(Summary!H$8="",Q105=""),"",DATEDIF(Q105,Summary!H$8,"y")) ->  | AB105: 56 | AE105: =IF(N(AD105),RANK(AD105,$AD$50:$AD$149,1)+COUNTIF($AD$50:OFFSET(AD105,0,0),AD105)-1,"") -> 
I106: =IF(O106="","",IF(COUNTIF(O$48:O105,O106)=0,ROW(),"")) ->  | K106: 58 | L106: =IF(M106="",IF(COUNTIF(M$49:M$5076,K106)>0,MAX(M$49:M$5076,L$48:L105,K$49:K$5076)+1,K106),M106) -> 58 | AA106: =IF(OR(Summary!H$8="",Q106=""),"",DATEDIF(Q106,Summary!H$8,"y")) ->  | AB106: 57 | AE106: =IF(N(AD106),RANK(AD106,$AD$50:$AD$149,1)+COUNTIF($AD$50:OFFSET(AD106,0,0),AD106)-1,"") -> 
I107: =IF(O107="","",IF(COUNTIF(O$48:O106,O107)=0,ROW(),"")) ->  | K107: 59 | L107: =IF(M107="",IF(COUNTIF(M$49:M$5076,K107)>0,MAX(M$49:M$5076,L$48:L106,K$49:K$5076)+1,K107),M107) -> 59 | AA107: =IF(OR(Summary!H$8="",Q107=""),"",DATEDIF(Q107,Summary!H$8,"y")) ->  | AB107: 58 | AE107: =IF(N(AD107),RANK(AD107,$AD$50:$AD$149,1)+COUNTIF($AD$50:OFFSET(AD107,0,0),AD107)-1,"") -> 
I108: =IF(O108="","",IF(COUNTIF(O$48:O107,O108)=0,ROW(),"")) ->  | K108: 60 | L108: =IF(M108="",IF(COUNTIF(M$49:M$5076,K108)>0,MAX(M$49:M$5076,L$48:L107,K$49:K$5076)+1,K108),M108) -> 60 | AA108: =IF(OR(Summary!H$8="",Q108=""),"",DATEDIF(Q108,Summary!H$8,"y")) ->  | AB108: 59 | AE108: =IF(N(AD108),RANK(AD108,$AD$50:$AD$149,1)+COUNTIF($AD$50:OFFSET(AD108,0,0),AD108)-1,"") -> 
I109: =IF(O109="","",IF(COUNTIF(O$48:O108,O109)=0,ROW(),"")) ->  | K109: 61 | L109: =IF(M109="",IF(COUNTIF(M$49:M$5076,K109)>0,MAX(M$49:M$5076,L$48:L108,K$49:K$5076)+1,K109),M109) -> 61 | AA109: =IF(OR(Summary!H$8="",Q109=""),"",DATEDIF(Q109,Summary!H$8,"y")) ->  | AB109: 60 | AE109: =IF(N(AD109),RANK(AD109,$AD$50:$AD$149,1)+COUNTIF($AD$50:OFFSET(AD109,0,0),AD109)-1,"") -> 
I110: =IF(O110="","",IF(COUNTIF(O$48:O109,O110)=0,ROW(),"")) ->  | K110: 62 | L110: =IF(M110="",IF(COUNTIF(M$49:M$5076,K110)>0,MAX(M$49:M$5076,L$48:L109,K$49:K$5076)+1,K110),M110) -> 62 | AA110: =IF(OR(Summary!H$8="",Q110=""),"",DATEDIF(Q110,Summary!H$8,"y")) ->  | AB110: 61 | AE110: =IF(N(AD110),RANK(AD110,$AD$50:$AD$149,1)+COUNTIF($AD$50:OFFSET(AD110,0,0),AD110)-1,"") -> 
I111: =IF(O111="","",IF(COUNTIF(O$48:O110,O111)=0,ROW(),"")) ->  | K111: 63 | L111: =IF(M111="",IF(COUNTIF(M$49:M$5076,K111)>0,MAX(M$49:M$5076,L$48:L110,K$49:K$5076)+1,K111),M111) -> 63 | AA111: =IF(OR(Summary!H$8="",Q111=""),"",DATEDIF(Q111,Summary!H$8,"y")) ->  | AB111: 62 | AE111: =IF(N(AD111),RANK(AD111,$AD$50:$AD$149,1)+COUNTIF($AD$50:OFFSET(AD111,0,0),AD111)-1,"") -> 
I112: =IF(O112="","",IF(COUNTIF(O$48:O111,O112)=0,ROW(),"")) ->  | K112: 64 | L112: =IF(M112="",IF(COUNTIF(M$49:M$5076,K112)>0,MAX(M$49:M$5076,L$48:L111,K$49:K$5076)+1,K112),M112) -> 64 | AA112: =IF(OR(Summary!H$8="",Q112=""),"",DATEDIF(Q112,Summary!H$8,"y")) ->  | AB112: 63 | AE112: =IF(N(AD112),RANK(AD112,$AD$50:$AD$149,1)+COUNTIF($AD$50:OFFSET(AD112,0,0),AD112)-1,"") -> 
I113: =IF(O113="","",IF(COUNTIF(O$48:O112,O113)=0,ROW(),"")) ->  | J113: =IF(AND(N113<>"",U113=""),L113,"") ->  | K113: 65 | L113: =IF(M113="",IF(COUNTIF(M$49:M$5076,K113)>0,MAX(M$49:M$5076,L$48:L112,K$49:K$5076)+1,K113),M113) -> 65 | AA113: =IF(OR(Summary!H$8="",Q113=""),"",DATEDIF(Q113,Summary!H$8,"y")) ->  | AB113: 64 | AE113: =IF(N(AD113),RANK(AD113,$AD$50:$AD$149,1)+COUNTIF($AD$50:OFFSET(AD113,0,0),AD113)-1,"") -> 
I114: =IF(O114="","",IF(COUNTIF(O$48:O113,O114)=0,ROW(),"")) ->  | K114: 66 | L114: =IF(M114="",IF(COUNTIF(M$49:M$5076,K114)>0,MAX(M$49:M$5076,L$48:L113,K$49:K$5076)+1,K114),M114) -> 66 | AA114: =IF(OR(Summary!H$8="",Q114=""),"",DATEDIF(Q114,Summary!H$8,"y")) ->  | AB114: 65 | AC114: =IF(COUNTIF(I$49:I$5048,">0")<AB114,"",INDIRECT("o"&SMALL(I$49:I$5048,AB114))) ->  | AE114: =IF(N(AD114),RANK(AD114,$AD$50:$AD$149,1)+COUNTIF($AD$50:OFFSET(AD114,0,0),AD114)-1,"") -> 
I115: =IF(O115="","",IF(COUNTIF(O$48:O114,O115)=0,ROW(),"")) ->  | K115: 67 | L115: =IF(M115="",IF(COUNTIF(M$49:M$5076,K115)>0,MAX(M$49:M$5076,L$48:L114,K$49:K$5076)+1,K115),M115) -> 67 | AA115: =IF(OR(Summary!H$8="",Q115=""),"",DATEDIF(Q115,Summary!H$8,"y")) ->  | AB115: 66 | AD115: =IF(AC115<>"",SUMPRODUCT((AC115>=$AC$50:$AC$149)+0)+1,"") ->  | AE115: =IF(N(AD115),RANK(AD115,$AD$50:$AD$149,1)+COUNTIF($AD$50:OFFSET(AD115,0,0),AD115)-1,"") ->  | AF115: =IF(ROW()-ROW(AF$50)+1<=$AF$48,INDEX($AC$50:$AC$149,MATCH(ROW()-ROW(AF$50)+1,$AE$50:$AE$149,0)),"") -> 
I116: =IF(O116="","",IF(COUNTIF(O$48:O115,O116)=0,ROW(),"")) ->  | K116: 68 | L116: =IF(M116="",IF(COUNTIF(M$49:M$5076,K116)>0,MAX(M$49:M$5076,L$48:L115,K$49:K$5076)+1,K116),M116) -> 68 | AA116: =IF(OR(Summary!H$8="",Q116=""),"",DATEDIF(Q116,Summary!H$8,"y")) ->  | AB116: 67 | AE116: =IF(N(AD116),RANK(AD116,$AD$50:$AD$149,1)+COUNTIF($AD$50:OFFSET(AD116,0,0),AD116)-1,"") -> 
I117: =IF(O117="","",IF(COUNTIF(O$48:O116,O117)=0,ROW(),"")) ->  | K117: 69 | L117: =IF(M117="",IF(COUNTIF(M$49:M$5076,K117)>0,MAX(M$49:M$5076,L$48:L116,K$49:K$5076)+1,K117),M117) -> 69 | AA117: =IF(OR(Summary!H$8="",Q117=""),"",DATEDIF(Q117,Summary!H$8,"y")) ->  | AB117: 68 | AE117: =IF(N(AD117),RANK(AD117,$AD$50:$AD$149,1)+COUNTIF($AD$50:OFFSET(AD117,0,0),AD117)-1,"") -> 
I118: =IF(O118="","",IF(COUNTIF(O$48:O117,O118)=0,ROW(),"")) ->  | K118: 70 | L118: =IF(M118="",IF(COUNTIF(M$49:M$5076,K118)>0,MAX(M$49:M$5076,L$48:L117,K$49:K$5076)+1,K118),M118) -> 70 | AA118: =IF(OR(Summary!H$8="",Q118=""),"",DATEDIF(Q118,Summary!H$8,"y")) ->  | AB118: 69 | AE118: =IF(N(AD118),RANK(AD118,$AD$50:$AD$149,1)+COUNTIF($AD$50:OFFSET(AD118,0,0),AD118)-1,"") -> 
I119: =IF(O119="","",IF(COUNTIF(O$48:O118,O119)=0,ROW(),"")) ->  | K119: 71 | L119: =IF(M119="",IF(COUNTIF(M$49:M$5076,K119)>0,MAX(M$49:M$5076,L$48:L118,K$49:K$5076)+1,K119),M119) -> 71 | AA119: =IF(OR(Summary!H$8="",Q119=""),"",DATEDIF(Q119,Summary!H$8,"y")) ->  | AB119: 70 | AE119: =IF(N(AD119),RANK(AD119,$AD$50:$AD$149,1)+COUNTIF($AD$50:OFFSET(AD119,0,0),AD119)-1,"") -> 
I120: =IF(O120="","",IF(COUNTIF(O$48:O119,O120)=0,ROW(),"")) ->  | K120: =K119+1 -> 72 | L120: =IF(M120="",IF(COUNTIF(M$49:M$5076,K120)>0,MAX(M$49:M$5076,L$48:L119,K$49:K$5076)+1,K120),M120) -> 72 | AA120: =IF(OR(Summary!H$8="",Q120=""),"",DATEDIF(Q120,Summary!H$8,"y")) ->  | AB120: 71 | AE120: =IF(N(AD120),RANK(AD120,$AD$50:$AD$149,1)+COUNTIF($AD$50:OFFSET(AD120,0,0),AD120)-1,"") -> 
I121: =IF(O121="","",IF(COUNTIF(O$48:O120,O121)=0,ROW(),"")) ->  | K121: 73 | L121: =IF(M121="",IF(COUNTIF(M$49:M$5076,K121)>0,MAX(M$49:M$5076,L$48:L120,K$49:K$5076)+1,K121),M121) -> 73 | AA121: =IF(OR(Summary!H$8="",Q121=""),"",DATEDIF(Q121,Summary!H$8,"y")) ->  | AB121: 72 | AE121: =IF(N(AD121),RANK(AD121,$AD$50:$AD$149,1)+COUNTIF($AD$50:OFFSET(AD121,0,0),AD121)-1,"") -> 
I122: =IF(O122="","",IF(COUNTIF(O$48:O121,O122)=0,ROW(),"")) ->  | K122: 74 | L122: =IF(M122="",IF(COUNTIF(M$49:M$5076,K122)>0,MAX(M$49:M$5076,L$48:L121,K$49:K$5076)+1,K122),M122) -> 74 | AA122: =IF(OR(Summary!H$8="",Q122=""),"",DATEDIF(Q122,Summary!H$8,"y")) ->  | AB122: 73 | AE122: =IF(N(AD122),RANK(AD122,$AD$50:$AD$149,1)+COUNTIF($AD$50:OFFSET(AD122,0,0),AD122)-1,"") -> 
I123: =IF(O123="","",IF(COUNTIF(O$48:O122,O123)=0,ROW(),"")) ->  | K123: 75 | L123: =IF(M123="",IF(COUNTIF(M$49:M$5076,K123)>0,MAX(M$49:M$5076,L$48:L122,K$49:K$5076)+1,K123),M123) -> 75 | AA123: =IF(OR(Summary!H$8="",Q123=""),"",DATEDIF(Q123,Summary!H$8,"y")) ->  | AB123: 74 | AE123: =IF(N(AD123),RANK(AD123,$AD$50:$AD$149,1)+COUNTIF($AD$50:OFFSET(AD123,0,0),AD123)-1,"") -> 
I124: =IF(O124="","",IF(COUNTIF(O$48:O123,O124)=0,ROW(),"")) ->  | K124: 76 | L124: =IF(M124="",IF(COUNTIF(M$49:M$5076,K124)>0,MAX(M$49:M$5076,L$48:L123,K$49:K$5076)+1,K124),M124) -> 76 | AA124: =IF(OR(Summary!H$8="",Q124=""),"",DATEDIF(Q124,Summary!H$8,"y")) ->  | AB124: 75 | AE124: =IF(N(AD124),RANK(AD124,$AD$50:$AD$149,1)+COUNTIF($AD$50:OFFSET(AD124,0,0),AD124)-1,"") -> 
I125: =IF(O125="","",IF(COUNTIF(O$48:O124,O125)=0,ROW(),"")) ->  | K125: 77 | L125: =IF(M125="",IF(COUNTIF(M$49:M$5076,K125)>0,MAX(M$49:M$5076,L$48:L124,K$49:K$5076)+1,K125),M125) -> 77 | AA125: =IF(OR(Summary!H$8="",Q125=""),"",DATEDIF(Q125,Summary!H$8,"y")) ->  | AB125: 76 | AE125: =IF(N(AD125),RANK(AD125,$AD$50:$AD$149,1)+COUNTIF($AD$50:OFFSET(AD125,0,0),AD125)-1,"") -> 
I126: =IF(O126="","",IF(COUNTIF(O$48:O125,O126)=0,ROW(),"")) ->  | K126: 78 | L126: =IF(M126="",IF(COUNTIF(M$49:M$5076,K126)>0,MAX(M$49:M$5076,L$48:L125,K$49:K$5076)+1,K126),M126) -> 78 | AA126: =IF(OR(Summary!H$8="",Q126=""),"",DATEDIF(Q126,Summary!H$8,"y")) ->  | AB126: 77 | AE126: =IF(N(AD126),RANK(AD126,$AD$50:$AD$149,1)+COUNTIF($AD$50:OFFSET(AD126,0,0),AD126)-1,"") -> 
I127: =IF(O127="","",IF(COUNTIF(O$48:O126,O127)=0,ROW(),"")) ->  | K127: 79 | L127: =IF(M127="",IF(COUNTIF(M$49:M$5076,K127)>0,MAX(M$49:M$5076,L$48:L126,K$49:K$5076)+1,K127),M127) -> 79 | AA127: =IF(OR(Summary!H$8="",Q127=""),"",DATEDIF(Q127,Summary!H$8,"y")) ->  | AB127: 78 | AE127: =IF(N(AD127),RANK(AD127,$AD$50:$AD$149,1)+COUNTIF($AD$50:OFFSET(AD127,0,0),AD127)-1,"") -> 
I128: =IF(O128="","",IF(COUNTIF(O$48:O127,O128)=0,ROW(),"")) ->  | K128: 80 | L128: =IF(M128="",IF(COUNTIF(M$49:M$5076,K128)>0,MAX(M$49:M$5076,L$48:L127,K$49:K$5076)+1,K128),M128) -> 80 | AA128: =IF(OR(Summary!H$8="",Q128=""),"",DATEDIF(Q128,Summary!H$8,"y")) ->  | AB128: 79 | AE128: =IF(N(AD128),RANK(AD128,$AD$50:$AD$149,1)+COUNTIF($AD$50:OFFSET(AD128,0,0),AD128)-1,"") -> 
I129: =IF(O129="","",IF(COUNTIF(O$48:O128,O129)=0,ROW(),"")) ->  | K129: 81 | L129: =IF(M129="",IF(COUNTIF(M$49:M$5076,K129)>0,MAX(M$49:M$5076,L$48:L128,K$49:K$5076)+1,K129),M129) -> 81 | AA129: =IF(OR(Summary!H$8="",Q129=""),"",DATEDIF(Q129,Summary!H$8,"y")) ->  | AB129: 80 | AE129: =IF(N(AD129),RANK(AD129,$AD$50:$AD$149,1)+COUNTIF($AD$50:OFFSET(AD129,0,0),AD129)-1,"") -> 
I130: =IF(O130="","",IF(COUNTIF(O$48:O129,O130)=0,ROW(),"")) ->  | K130: 82 | L130: =IF(M130="",IF(COUNTIF(M$49:M$5076,K130)>0,MAX(M$49:M$5076,L$48:L129,K$49:K$5076)+1,K130),M130) -> 82 | AA130: =IF(OR(Summary!H$8="",Q130=""),"",DATEDIF(Q130,Summary!H$8,"y")) ->  | AB130: 81 | AE130: =IF(N(AD130),RANK(AD130,$AD$50:$AD$149,1)+COUNTIF($AD$50:OFFSET(AD130,0,0),AD130)-1,"") -> 
I131: =IF(O131="","",IF(COUNTIF(O$48:O130,O131)=0,ROW(),"")) ->  | K131: 83 | L131: =IF(M131="",IF(COUNTIF(M$49:M$5076,K131)>0,MAX(M$49:M$5076,L$48:L130,K$49:K$5076)+1,K131),M131) -> 83 | AA131: =IF(OR(Summary!H$8="",Q131=""),"",DATEDIF(Q131,Summary!H$8,"y")) ->  | AB131: 82 | AE131: =IF(N(AD131),RANK(AD131,$AD$50:$AD$149,1)+COUNTIF($AD$50:OFFSET(AD131,0,0),AD131)-1,"") -> 
I132: =IF(O132="","",IF(COUNTIF(O$48:O131,O132)=0,ROW(),"")) ->  | K132: 84 | L132: =IF(M132="",IF(COUNTIF(M$49:M$5076,K132)>0,MAX(M$49:M$5076,L$48:L131,K$49:K$5076)+1,K132),M132) -> 84 | AA132: =IF(OR(Summary!H$8="",Q132=""),"",DATEDIF(Q132,Summary!H$8,"y")) ->  | AB132: 83 | AE132: =IF(N(AD132),RANK(AD132,$AD$50:$AD$149,1)+COUNTIF($AD$50:OFFSET(AD132,0,0),AD132)-1,"") -> 
I133: =IF(O133="","",IF(COUNTIF(O$48:O132,O133)=0,ROW(),"")) ->  | K133: 85 | L133: =IF(M133="",IF(COUNTIF(M$49:M$5076,K133)>0,MAX(M$49:M$5076,L$48:L132,K$49:K$5076)+1,K133),M133) -> 85 | AA133: =IF(OR(Summary!H$8="",Q133=""),"",DATEDIF(Q133,Summary!H$8,"y")) ->  | AB133: 84 | AE133: =IF(N(AD133),RANK(AD133,$AD$50:$AD$149,1)+COUNTIF($AD$50:OFFSET(AD133,0,0),AD133)-1,"") -> 
I134: =IF(O134="","",IF(COUNTIF(O$48:O133,O134)=0,ROW(),"")) ->  | K134: 86 | L134: =IF(M134="",IF(COUNTIF(M$49:M$5076,K134)>0,MAX(M$49:M$5076,L$48:L133,K$49:K$5076)+1,K134),M134) -> 86 | AA134: =IF(OR(Summary!H$8="",Q134=""),"",DATEDIF(Q134,Summary!H$8,"y")) ->  | AB134: 85 | AE134: =IF(N(AD134),RANK(AD134,$AD$50:$AD$149,1)+COUNTIF($AD$50:OFFSET(AD134,0,0),AD134)-1,"") -> 
I135: =IF(O135="","",IF(COUNTIF(O$48:O134,O135)=0,ROW(),"")) ->  | K135: 87 | L135: =IF(M135="",IF(COUNTIF(M$49:M$5076,K135)>0,MAX(M$49:M$5076,L$48:L134,K$49:K$5076)+1,K135),M135) -> 87 | AA135: =IF(OR(Summary!H$8="",Q135=""),"",DATEDIF(Q135,Summary!H$8,"y")) ->  | AB135: 86 | AE135: =IF(N(AD135),RANK(AD135,$AD$50:$AD$149,1)+COUNTIF($AD$50:OFFSET(AD135,0,0),AD135)-1,"") -> 
I136: =IF(O136="","",IF(COUNTIF(O$48:O135,O136)=0,ROW(),"")) ->  | K136: 88 | L136: =IF(M136="",IF(COUNTIF(M$49:M$5076,K136)>0,MAX(M$49:M$5076,L$48:L135,K$49:K$5076)+1,K136),M136) -> 88 | AA136: =IF(OR(Summary!H$8="",Q136=""),"",DATEDIF(Q136,Summary!H$8,"y")) ->  | AB136: 87 | AE136: =IF(N(AD136),RANK(AD136,$AD$50:$AD$149,1)+COUNTIF($AD$50:OFFSET(AD136,0,0),AD136)-1,"") -> 
I137: =IF(O137="","",IF(COUNTIF(O$48:O136,O137)=0,ROW(),"")) ->  | K137: 89 | L137: =IF(M137="",IF(COUNTIF(M$49:M$5076,K137)>0,MAX(M$49:M$5076,L$48:L136,K$49:K$5076)+1,K137),M137) -> 89 | AA137: =IF(OR(Summary!H$8="",Q137=""),"",DATEDIF(Q137,Summary!H$8,"y")) ->  | AB137: 88 | AE137: =IF(N(AD137),RANK(AD137,$AD$50:$AD$149,1)+COUNTIF($AD$50:OFFSET(AD137,0,0),AD137)-1,"") -> 
I138: =IF(O138="","",IF(COUNTIF(O$48:O137,O138)=0,ROW(),"")) ->  | K138: 90 | L138: =IF(M138="",IF(COUNTIF(M$49:M$5076,K138)>0,MAX(M$49:M$5076,L$48:L137,K$49:K$5076)+1,K138),M138) -> 90 | AA138: =IF(OR(Summary!H$8="",Q138=""),"",DATEDIF(Q138,Summary!H$8,"y")) ->  | AB138: 89 | AE138: =IF(N(AD138),RANK(AD138,$AD$50:$AD$149,1)+COUNTIF($AD$50:OFFSET(AD138,0,0),AD138)-1,"") -> 
I139: =IF(O139="","",IF(COUNTIF(O$48:O138,O139)=0,ROW(),"")) ->  | K139: 91 | L139: =IF(M139="",IF(COUNTIF(M$49:M$5076,K139)>0,MAX(M$49:M$5076,L$48:L138,K$49:K$5076)+1,K139),M139) -> 91 | AA139: =IF(OR(Summary!H$8="",Q139=""),"",DATEDIF(Q139,Summary!H$8,"y")) ->  | AB139: 90 | AE139: =IF(N(AD139),RANK(AD139,$AD$50:$AD$149,1)+COUNTIF($AD$50:OFFSET(AD139,0,0),AD139)-1,"") -> 
I140: =IF(O140="","",IF(COUNTIF(O$48:O139,O140)=0,ROW(),"")) ->  | K140: 92 | L140: =IF(M140="",IF(COUNTIF(M$49:M$5076,K140)>0,MAX(M$49:M$5076,L$48:L139,K$49:K$5076)+1,K140),M140) -> 92 | AA140: =IF(OR(Summary!H$8="",Q140=""),"",DATEDIF(Q140,Summary!H$8,"y")) ->  | AB140: 91 | AE140: =IF(N(AD140),RANK(AD140,$AD$50:$AD$149,1)+COUNTIF($AD$50:OFFSET(AD140,0,0),AD140)-1,"") -> 
I141: =IF(O141="","",IF(COUNTIF(O$48:O140,O141)=0,ROW(),"")) ->  | K141: 93 | L141: =IF(M141="",IF(COUNTIF(M$49:M$5076,K141)>0,MAX(M$49:M$5076,L$48:L140,K$49:K$5076)+1,K141),M141) -> 93 | AA141: =IF(OR(Summary!H$8="",Q141=""),"",DATEDIF(Q141,Summary!H$8,"y")) ->  | AB141: 92 | AE141: =IF(N(AD141),RANK(AD141,$AD$50:$AD$149,1)+COUNTIF($AD$50:OFFSET(AD141,0,0),AD141)-1,"") -> 
I142: =IF(O142="","",IF(COUNTIF(O$48:O141,O142)=0,ROW(),"")) ->  | K142: 94 | L142: =IF(M142="",IF(COUNTIF(M$49:M$5076,K142)>0,MAX(M$49:M$5076,L$48:L141,K$49:K$5076)+1,K142),M142) -> 94 | AA142: =IF(OR(Summary!H$8="",Q142=""),"",DATEDIF(Q142,Summary!H$8,"y")) ->  | AB142: 93 | AE142: =IF(N(AD142),RANK(AD142,$AD$50:$AD$149,1)+COUNTIF($AD$50:OFFSET(AD142,0,0),AD142)-1,"") -> 
I143: =IF(O143="","",IF(COUNTIF(O$48:O142,O143)=0,ROW(),"")) ->  | K143: 95 | L143: =IF(M143="",IF(COUNTIF(M$49:M$5076,K143)>0,MAX(M$49:M$5076,L$48:L142,K$49:K$5076)+1,K143),M143) -> 95 | AA143: =IF(OR(Summary!H$8="",Q143=""),"",DATEDIF(Q143,Summary!H$8,"y")) ->  | AB143: 94 | AE143: =IF(N(AD143),RANK(AD143,$AD$50:$AD$149,1)+COUNTIF($AD$50:OFFSET(AD143,0,0),AD143)-1,"") -> 
I144: =IF(O144="","",IF(COUNTIF(O$48:O143,O144)=0,ROW(),"")) ->  | K144: 96 | L144: =IF(M144="",IF(COUNTIF(M$49:M$5076,K144)>0,MAX(M$49:M$5076,L$48:L143,K$49:K$5076)+1,K144),M144) -> 96 | AA144: =IF(OR(Summary!H$8="",Q144=""),"",DATEDIF(Q144,Summary!H$8,"y")) ->  | AB144: 95 | AE144: =IF(N(AD144),RANK(AD144,$AD$50:$AD$149,1)+COUNTIF($AD$50:OFFSET(AD144,0,0),AD144)-1,"") -> 
I145: =IF(O145="","",IF(COUNTIF(O$48:O144,O145)=0,ROW(),"")) ->  | K145: 97 | L145: =IF(M145="",IF(COUNTIF(M$49:M$5076,K145)>0,MAX(M$49:M$5076,L$48:L144,K$49:K$5076)+1,K145),M145) -> 97 | AA145: =IF(OR(Summary!H$8="",Q145=""),"",DATEDIF(Q145,Summary!H$8,"y")) ->  | AB145: 96 | AE145: =IF(N(AD145),RANK(AD145,$AD$50:$AD$149,1)+COUNTIF($AD$50:OFFSET(AD145,0,0),AD145)-1,"") -> 
I146: =IF(O146="","",IF(COUNTIF(O$48:O145,O146)=0,ROW(),"")) ->  | K146: 98 | L146: =IF(M146="",IF(COUNTIF(M$49:M$5076,K146)>0,MAX(M$49:M$5076,L$48:L145,K$49:K$5076)+1,K146),M146) -> 98 | AA146: =IF(OR(Summary!H$8="",Q146=""),"",DATEDIF(Q146,Summary!H$8,"y")) ->  | AB146: 97 | AC146: =IF(COUNTIF(I$49:I$5048,">0")<AB146,"",INDIRECT("o"&SMALL(I$49:I$5048,AB146))) ->  | AE146: =IF(N(AD146),RANK(AD146,$AD$50:$AD$149,1)+COUNTIF($AD$50:OFFSET(AD146,0,0),AD146)-1,"") -> 
I147: =IF(O147="","",IF(COUNTIF(O$48:O146,O147)=0,ROW(),"")) ->  | K147: 99 | L147: =IF(M147="",IF(COUNTIF(M$49:M$5076,K147)>0,MAX(M$49:M$5076,L$48:L146,K$49:K$5076)+1,K147),M147) -> 99 | AA147: =IF(OR(Summary!H$8="",Q147=""),"",DATEDIF(Q147,Summary!H$8,"y")) ->  | AB147: 98 | AE147: =IF(N(AD147),RANK(AD147,$AD$50:$AD$149,1)+COUNTIF($AD$50:OFFSET(AD147,0,0),AD147)-1,"") -> 
I148: =IF(O148="","",IF(COUNTIF(O$48:O147,O148)=0,ROW(),"")) ->  | K148: 100 | L148: =IF(M148="",IF(COUNTIF(M$49:M$5076,K148)>0,MAX(M$49:M$5076,L$48:L147,K$49:K$5076)+1,K148),M148) -> 100 | AA148: =IF(OR(Summary!H$8="",Q148=""),"",DATEDIF(Q148,Summary!H$8,"y")) ->  | AB148: 99 | AE148: =IF(N(AD148),RANK(AD148,$AD$50:$AD$149,1)+COUNTIF($AD$50:OFFSET(AD148,0,0),AD148)-1,"") -> 
I149: =IF(O149="","",IF(COUNTIF(O$48:O148,O149)=0,ROW(),"")) ->  | K149: 101 | L149: =IF(M149="",IF(COUNTIF(M$49:M$5076,K149)>0,MAX(M$49:M$5076,L$48:L148,K$49:K$5076)+1,K149),M149) -> 101 | AA149: =IF(OR(Summary!H$8="",Q149=""),"",DATEDIF(Q149,Summary!H$8,"y")) ->  | AB149: =AB148+1 -> 100 | AE149: =IF(N(AD149),RANK(AD149,$AD$50:$AD$149,1)+COUNTIF($AD$50:OFFSET(AD149,0,0),AD149)-1,"") -> 
I150: =IF(O150="","",IF(COUNTIF(O$48:O149,O150)=0,ROW(),"")) ->  | K150: 102 | L150: =IF(M150="",IF(COUNTIF(M$49:M$5076,K150)>0,MAX(M$49:M$5076,L$48:L149,K$49:K$5076)+1,K150),M150) -> 102 | AA150: =IF(OR(Summary!H$8="",Q150=""),"",DATEDIF(Q150,Summary!H$8,"y")) -> 
I151: =IF(O151="","",IF(COUNTIF(O$48:O150,O151)=0,ROW(),"")) ->  | K151: 103 | L151: =IF(M151="",IF(COUNTIF(M$49:M$5076,K151)>0,MAX(M$49:M$5076,L$48:L150,K$49:K$5076)+1,K151),M151) -> 103 | AA151: =IF(OR(Summary!H$8="",Q151=""),"",DATEDIF(Q151,Summary!H$8,"y")) -> 
I152: =IF(O152="","",IF(COUNTIF(O$48:O151,O152)=0,ROW(),"")) ->  | K152: 104 | L152: =IF(M152="",IF(COUNTIF(M$49:M$5076,K152)>0,MAX(M$49:M$5076,L$48:L151,K$49:K$5076)+1,K152),M152) -> 104 | AA152: =IF(OR(Summary!H$8="",Q152=""),"",DATEDIF(Q152,Summary!H$8,"y")) -> 
I153: =IF(O153="","",IF(COUNTIF(O$48:O152,O153)=0,ROW(),"")) ->  | K153: 105 | L153: =IF(M153="",IF(COUNTIF(M$49:M$5076,K153)>0,MAX(M$49:M$5076,L$48:L152,K$49:K$5076)+1,K153),M153) -> 105 | AA153: =IF(OR(Summary!H$8="",Q153=""),"",DATEDIF(Q153,Summary!H$8,"y")) -> 
I154: =IF(O154="","",IF(COUNTIF(O$48:O153,O154)=0,ROW(),"")) ->  | K154: 106 | L154: =IF(M154="",IF(COUNTIF(M$49:M$5076,K154)>0,MAX(M$49:M$5076,L$48:L153,K$49:K$5076)+1,K154),M154) -> 106 | AA154: =IF(OR(Summary!H$8="",Q154=""),"",DATEDIF(Q154,Summary!H$8,"y")) -> 
I155: =IF(O155="","",IF(COUNTIF(O$48:O154,O155)=0,ROW(),"")) ->  | K155: 107 | L155: =IF(M155="",IF(COUNTIF(M$49:M$5076,K155)>0,MAX(M$49:M$5076,L$48:L154,K$49:K$5076)+1,K155),M155) -> 107 | AA155: =IF(OR(Summary!H$8="",Q155=""),"",DATEDIF(Q155,Summary!H$8,"y")) -> 
I156: =IF(O156="","",IF(COUNTIF(O$48:O155,O156)=0,ROW(),"")) ->  | K156: 108 | L156: =IF(M156="",IF(COUNTIF(M$49:M$5076,K156)>0,MAX(M$49:M$5076,L$48:L155,K$49:K$5076)+1,K156),M156) -> 108 | AA156: =IF(OR(Summary!H$8="",Q156=""),"",DATEDIF(Q156,Summary!H$8,"y")) -> 
I157: =IF(O157="","",IF(COUNTIF(O$48:O156,O157)=0,ROW(),"")) ->  | K157: 109 | L157: =IF(M157="",IF(COUNTIF(M$49:M$5076,K157)>0,MAX(M$49:M$5076,L$48:L156,K$49:K$5076)+1,K157),M157) -> 109 | AA157: =IF(OR(Summary!H$8="",Q157=""),"",DATEDIF(Q157,Summary!H$8,"y")) -> 
I158: =IF(O158="","",IF(COUNTIF(O$48:O157,O158)=0,ROW(),"")) ->  | K158: 110 | L158: =IF(M158="",IF(COUNTIF(M$49:M$5076,K158)>0,MAX(M$49:M$5076,L$48:L157,K$49:K$5076)+1,K158),M158) -> 110 | AA158: =IF(OR(Summary!H$8="",Q158=""),"",DATEDIF(Q158,Summary!H$8,"y")) -> 
I159: =IF(O159="","",IF(COUNTIF(O$48:O158,O159)=0,ROW(),"")) ->  | K159: 111 | L159: =IF(M159="",IF(COUNTIF(M$49:M$5076,K159)>0,MAX(M$49:M$5076,L$48:L158,K$49:K$5076)+1,K159),M159) -> 111 | AA159: =IF(OR(Summary!H$8="",Q159=""),"",DATEDIF(Q159,Summary!H$8,"y")) -> 
I160: =IF(O160="","",IF(COUNTIF(O$48:O159,O160)=0,ROW(),"")) ->  | K160: 112 | L160: =IF(M160="",IF(COUNTIF(M$49:M$5076,K160)>0,MAX(M$49:M$5076,L$48:L159,K$49:K$5076)+1,K160),M160) -> 112 | AA160: =IF(OR(Summary!H$8="",Q160=""),"",DATEDIF(Q160,Summary!H$8,"y")) -> 
I161: =IF(O161="","",IF(COUNTIF(O$48:O160,O161)=0,ROW(),"")) ->  | K161: 113 | L161: =IF(M161="",IF(COUNTIF(M$49:M$5076,K161)>0,MAX(M$49:M$5076,L$48:L160,K$49:K$5076)+1,K161),M161) -> 113 | AA161: =IF(OR(Summary!H$8="",Q161=""),"",DATEDIF(Q161,Summary!H$8,"y")) -> 
I162: =IF(O162="","",IF(COUNTIF(O$48:O161,O162)=0,ROW(),"")) ->  | K162: 114 | L162: =IF(M162="",IF(COUNTIF(M$49:M$5076,K162)>0,MAX(M$49:M$5076,L$48:L161,K$49:K$5076)+1,K162),M162) -> 114 | AA162: =IF(OR(Summary!H$8="",Q162=""),"",DATEDIF(Q162,Summary!H$8,"y")) -> 
I163: =IF(O163="","",IF(COUNTIF(O$48:O162,O163)=0,ROW(),"")) ->  | K163: 115 | L163: =IF(M163="",IF(COUNTIF(M$49:M$5076,K163)>0,MAX(M$49:M$5076,L$48:L162,K$49:K$5076)+1,K163),M163) -> 115 | AA163: =IF(OR(Summary!H$8="",Q163=""),"",DATEDIF(Q163,Summary!H$8,"y")) -> 
I164: =IF(O164="","",IF(COUNTIF(O$48:O163,O164)=0,ROW(),"")) ->  | K164: 116 | L164: =IF(M164="",IF(COUNTIF(M$49:M$5076,K164)>0,MAX(M$49:M$5076,L$48:L163,K$49:K$5076)+1,K164),M164) -> 116 | AA164: =IF(OR(Summary!H$8="",Q164=""),"",DATEDIF(Q164,Summary!H$8,"y")) -> 
I165: =IF(O165="","",IF(COUNTIF(O$48:O164,O165)=0,ROW(),"")) ->  | K165: 117 | L165: =IF(M165="",IF(COUNTIF(M$49:M$5076,K165)>0,MAX(M$49:M$5076,L$48:L164,K$49:K$5076)+1,K165),M165) -> 117 | AA165: =IF(OR(Summary!H$8="",Q165=""),"",DATEDIF(Q165,Summary!H$8,"y")) -> 
I166: =IF(O166="","",IF(COUNTIF(O$48:O165,O166)=0,ROW(),"")) ->  | K166: 118 | L166: =IF(M166="",IF(COUNTIF(M$49:M$5076,K166)>0,MAX(M$49:M$5076,L$48:L165,K$49:K$5076)+1,K166),M166) -> 118 | AA166: =IF(OR(Summary!H$8="",Q166=""),"",DATEDIF(Q166,Summary!H$8,"y")) -> 
I167: =IF(O167="","",IF(COUNTIF(O$48:O166,O167)=0,ROW(),"")) ->  | K167: 119 | L167: =IF(M167="",IF(COUNTIF(M$49:M$5076,K167)>0,MAX(M$49:M$5076,L$48:L166,K$49:K$5076)+1,K167),M167) -> 119 | AA167: =IF(OR(Summary!H$8="",Q167=""),"",DATEDIF(Q167,Summary!H$8,"y")) -> 
I168: =IF(O168="","",IF(COUNTIF(O$48:O167,O168)=0,ROW(),"")) ->  | K168: 120 | L168: =IF(M168="",IF(COUNTIF(M$49:M$5076,K168)>0,MAX(M$49:M$5076,L$48:L167,K$49:K$5076)+1,K168),M168) -> 120 | AA168: =IF(OR(Summary!H$8="",Q168=""),"",DATEDIF(Q168,Summary!H$8,"y")) -> 
I169: =IF(O169="","",IF(COUNTIF(O$48:O168,O169)=0,ROW(),"")) ->  | K169: 121 | L169: =IF(M169="",IF(COUNTIF(M$49:M$5076,K169)>0,MAX(M$49:M$5076,L$48:L168,K$49:K$5076)+1,K169),M169) -> 121 | AA169: =IF(OR(Summary!H$8="",Q169=""),"",DATEDIF(Q169,Summary!H$8,"y")) -> 
I170: =IF(O170="","",IF(COUNTIF(O$48:O169,O170)=0,ROW(),"")) ->  | K170: 122 | L170: =IF(M170="",IF(COUNTIF(M$49:M$5076,K170)>0,MAX(M$49:M$5076,L$48:L169,K$49:K$5076)+1,K170),M170) -> 122 | AA170: =IF(OR(Summary!H$8="",Q170=""),"",DATEDIF(Q170,Summary!H$8,"y")) -> 
I171: =IF(O171="","",IF(COUNTIF(O$48:O170,O171)=0,ROW(),"")) ->  | K171: 123 | L171: =IF(M171="",IF(COUNTIF(M$49:M$5076,K171)>0,MAX(M$49:M$5076,L$48:L170,K$49:K$5076)+1,K171),M171) -> 123 | AA171: =IF(OR(Summary!H$8="",Q171=""),"",DATEDIF(Q171,Summary!H$8,"y")) -> 
I172: =IF(O172="","",IF(COUNTIF(O$48:O171,O172)=0,ROW(),"")) ->  | K172: 124 | L172: =IF(M172="",IF(COUNTIF(M$49:M$5076,K172)>0,MAX(M$49:M$5076,L$48:L171,K$49:K$5076)+1,K172),M172) -> 124 | AA172: =IF(OR(Summary!H$8="",Q172=""),"",DATEDIF(Q172,Summary!H$8,"y")) -> 
I173: =IF(O173="","",IF(COUNTIF(O$48:O172,O173)=0,ROW(),"")) ->  | K173: 125 | L173: =IF(M173="",IF(COUNTIF(M$49:M$5076,K173)>0,MAX(M$49:M$5076,L$48:L172,K$49:K$5076)+1,K173),M173) -> 125 | AA173: =IF(OR(Summary!H$8="",Q173=""),"",DATEDIF(Q173,Summary!H$8,"y")) -> 
I174: =IF(O174="","",IF(COUNTIF(O$48:O173,O174)=0,ROW(),"")) ->  | K174: 126 | L174: =IF(M174="",IF(COUNTIF(M$49:M$5076,K174)>0,MAX(M$49:M$5076,L$48:L173,K$49:K$5076)+1,K174),M174) -> 126 | AA174: =IF(OR(Summary!H$8="",Q174=""),"",DATEDIF(Q174,Summary!H$8,"y")) -> 
I175: =IF(O175="","",IF(COUNTIF(O$48:O174,O175)=0,ROW(),"")) ->  | K175: 127 | L175: =IF(M175="",IF(COUNTIF(M$49:M$5076,K175)>0,MAX(M$49:M$5076,L$48:L174,K$49:K$5076)+1,K175),M175) -> 127 | AA175: =IF(OR(Summary!H$8="",Q175=""),"",DATEDIF(Q175,Summary!H$8,"y")) -> 
I176: =IF(O176="","",IF(COUNTIF(O$48:O175,O176)=0,ROW(),"")) ->  | K176: 128 | L176: =IF(M176="",IF(COUNTIF(M$49:M$5076,K176)>0,MAX(M$49:M$5076,L$48:L175,K$49:K$5076)+1,K176),M176) -> 128 | AA176: =IF(OR(Summary!H$8="",Q176=""),"",DATEDIF(Q176,Summary!H$8,"y")) -> 
I177: =IF(O177="","",IF(COUNTIF(O$48:O176,O177)=0,ROW(),"")) ->  | J177: =IF(AND(N177<>"",U177=""),L177,"") ->  | K177: 129 | L177: =IF(M177="",IF(COUNTIF(M$49:M$5076,K177)>0,MAX(M$49:M$5076,L$48:L176,K$49:K$5076)+1,K177),M177) -> 129 | AA177: =IF(OR(Summary!H$8="",Q177=""),"",DATEDIF(Q177,Summary!H$8,"y")) -> 
I178: =IF(O178="","",IF(COUNTIF(O$48:O177,O178)=0,ROW(),"")) ->  | K178: 130 | L178: =IF(M178="",IF(COUNTIF(M$49:M$5076,K178)>0,MAX(M$49:M$5076,L$48:L177,K$49:K$5076)+1,K178),M178) -> 130 | AA178: =IF(OR(Summary!H$8="",Q178=""),"",DATEDIF(Q178,Summary!H$8,"y")) -> 
I179: =IF(O179="","",IF(COUNTIF(O$48:O178,O179)=0,ROW(),"")) ->  | K179: 131 | L179: =IF(M179="",IF(COUNTIF(M$49:M$5076,K179)>0,MAX(M$49:M$5076,L$48:L178,K$49:K$5076)+1,K179),M179) -> 131 | AA179: =IF(OR(Summary!H$8="",Q179=""),"",DATEDIF(Q179,Summary!H$8,"y")) -> 
I180: =IF(O180="","",IF(COUNTIF(O$48:O179,O180)=0,ROW(),"")) ->  | K180: 132 | L180: =IF(M180="",IF(COUNTIF(M$49:M$5076,K180)>0,MAX(M$49:M$5076,L$48:L179,K$49:K$5076)+1,K180),M180) -> 132 | AA180: =IF(OR(Summary!H$8="",Q180=""),"",DATEDIF(Q180,Summary!H$8,"y")) -> 
I181: =IF(O181="","",IF(COUNTIF(O$48:O180,O181)=0,ROW(),"")) ->  | K181: 133 | L181: =IF(M181="",IF(COUNTIF(M$49:M$5076,K181)>0,MAX(M$49:M$5076,L$48:L180,K$49:K$5076)+1,K181),M181) -> 133 | AA181: =IF(OR(Summary!H$8="",Q181=""),"",DATEDIF(Q181,Summary!H$8,"y")) -> 
I182: =IF(O182="","",IF(COUNTIF(O$48:O181,O182)=0,ROW(),"")) ->  | K182: 134 | L182: =IF(M182="",IF(COUNTIF(M$49:M$5076,K182)>0,MAX(M$49:M$5076,L$48:L181,K$49:K$5076)+1,K182),M182) -> 134 | AA182: =IF(OR(Summary!H$8="",Q182=""),"",DATEDIF(Q182,Summary!H$8,"y")) -> 
I183: =IF(O183="","",IF(COUNTIF(O$48:O182,O183)=0,ROW(),"")) ->  | K183: 135 | L183: =IF(M183="",IF(COUNTIF(M$49:M$5076,K183)>0,MAX(M$49:M$5076,L$48:L182,K$49:K$5076)+1,K183),M183) -> 135 | AA183: =IF(OR(Summary!H$8="",Q183=""),"",DATEDIF(Q183,Summary!H$8,"y")) -> 
I184: =IF(O184="","",IF(COUNTIF(O$48:O183,O184)=0,ROW(),"")) ->  | K184: =K183+1 -> 136 | L184: =IF(M184="",IF(COUNTIF(M$49:M$5076,K184)>0,MAX(M$49:M$5076,L$48:L183,K$49:K$5076)+1,K184),M184) -> 136 | AA184: =IF(OR(Summary!H$8="",Q184=""),"",DATEDIF(Q184,Summary!H$8,"y")) -> 
I185: =IF(O185="","",IF(COUNTIF(O$48:O184,O185)=0,ROW(),"")) ->  | K185: 137 | L185: =IF(M185="",IF(COUNTIF(M$49:M$5076,K185)>0,MAX(M$49:M$5076,L$48:L184,K$49:K$5076)+1,K185),M185) -> 137 | AA185: =IF(OR(Summary!H$8="",Q185=""),"",DATEDIF(Q185,Summary!H$8,"y")) -> 
I186: =IF(O186="","",IF(COUNTIF(O$48:O185,O186)=0,ROW(),"")) ->  | K186: 138 | L186: =IF(M186="",IF(COUNTIF(M$49:M$5076,K186)>0,MAX(M$49:M$5076,L$48:L185,K$49:K$5076)+1,K186),M186) -> 138 | AA186: =IF(OR(Summary!H$8="",Q186=""),"",DATEDIF(Q186,Summary!H$8,"y")) -> 
I187: =IF(O187="","",IF(COUNTIF(O$48:O186,O187)=0,ROW(),"")) ->  | K187: 139 | L187: =IF(M187="",IF(COUNTIF(M$49:M$5076,K187)>0,MAX(M$49:M$5076,L$48:L186,K$49:K$5076)+1,K187),M187) -> 139 | AA187: =IF(OR(Summary!H$8="",Q187=""),"",DATEDIF(Q187,Summary!H$8,"y")) -> 
I188: =IF(O188="","",IF(COUNTIF(O$48:O187,O188)=0,ROW(),"")) ->  | K188: 140 | L188: =IF(M188="",IF(COUNTIF(M$49:M$5076,K188)>0,MAX(M$49:M$5076,L$48:L187,K$49:K$5076)+1,K188),M188) -> 140 | AA188: =IF(OR(Summary!H$8="",Q188=""),"",DATEDIF(Q188,Summary!H$8,"y")) -> 
I189: =IF(O189="","",IF(COUNTIF(O$48:O188,O189)=0,ROW(),"")) ->  | K189: 141 | L189: =IF(M189="",IF(COUNTIF(M$49:M$5076,K189)>0,MAX(M$49:M$5076,L$48:L188,K$49:K$5076)+1,K189),M189) -> 141 | AA189: =IF(OR(Summary!H$8="",Q189=""),"",DATEDIF(Q189,Summary!H$8,"y")) -> 
I190: =IF(O190="","",IF(COUNTIF(O$48:O189,O190)=0,ROW(),"")) ->  | K190: 142 | L190: =IF(M190="",IF(COUNTIF(M$49:M$5076,K190)>0,MAX(M$49:M$5076,L$48:L189,K$49:K$5076)+1,K190),M190) -> 142 | AA190: =IF(OR(Summary!H$8="",Q190=""),"",DATEDIF(Q190,Summary!H$8,"y")) -> 
I191: =IF(O191="","",IF(COUNTIF(O$48:O190,O191)=0,ROW(),"")) ->  | K191: 143 | L191: =IF(M191="",IF(COUNTIF(M$49:M$5076,K191)>0,MAX(M$49:M$5076,L$48:L190,K$49:K$5076)+1,K191),M191) -> 143 | AA191: =IF(OR(Summary!H$8="",Q191=""),"",DATEDIF(Q191,Summary!H$8,"y")) -> 
I192: =IF(O192="","",IF(COUNTIF(O$48:O191,O192)=0,ROW(),"")) ->  | K192: 144 | L192: =IF(M192="",IF(COUNTIF(M$49:M$5076,K192)>0,MAX(M$49:M$5076,L$48:L191,K$49:K$5076)+1,K192),M192) -> 144 | AA192: =IF(OR(Summary!H$8="",Q192=""),"",DATEDIF(Q192,Summary!H$8,"y")) -> 
I193: =IF(O193="","",IF(COUNTIF(O$48:O192,O193)=0,ROW(),"")) ->  | K193: 145 | L193: =IF(M193="",IF(COUNTIF(M$49:M$5076,K193)>0,MAX(M$49:M$5076,L$48:L192,K$49:K$5076)+1,K193),M193) -> 145 | AA193: =IF(OR(Summary!H$8="",Q193=""),"",DATEDIF(Q193,Summary!H$8,"y")) -> 
I194: =IF(O194="","",IF(COUNTIF(O$48:O193,O194)=0,ROW(),"")) ->  | K194: 146 | L194: =IF(M194="",IF(COUNTIF(M$49:M$5076,K194)>0,MAX(M$49:M$5076,L$48:L193,K$49:K$5076)+1,K194),M194) -> 146 | AA194: =IF(OR(Summary!H$8="",Q194=""),"",DATEDIF(Q194,Summary!H$8,"y")) -> 
I195: =IF(O195="","",IF(COUNTIF(O$48:O194,O195)=0,ROW(),"")) ->  | K195: 147 | L195: =IF(M195="",IF(COUNTIF(M$49:M$5076,K195)>0,MAX(M$49:M$5076,L$48:L194,K$49:K$5076)+1,K195),M195) -> 147 | AA195: =IF(OR(Summary!H$8="",Q195=""),"",DATEDIF(Q195,Summary!H$8,"y")) -> 
I196: =IF(O196="","",IF(COUNTIF(O$48:O195,O196)=0,ROW(),"")) ->  | K196: 148 | L196: =IF(M196="",IF(COUNTIF(M$49:M$5076,K196)>0,MAX(M$49:M$5076,L$48:L195,K$49:K$5076)+1,K196),M196) -> 148 | AA196: =IF(OR(Summary!H$8="",Q196=""),"",DATEDIF(Q196,Summary!H$8,"y")) -> 
I197: =IF(O197="","",IF(COUNTIF(O$48:O196,O197)=0,ROW(),"")) ->  | K197: 149 | L197: =IF(M197="",IF(COUNTIF(M$49:M$5076,K197)>0,MAX(M$49:M$5076,L$48:L196,K$49:K$5076)+1,K197),M197) -> 149 | AA197: =IF(OR(Summary!H$8="",Q197=""),"",DATEDIF(Q197,Summary!H$8,"y")) -> 
I198: =IF(O198="","",IF(COUNTIF(O$48:O197,O198)=0,ROW(),"")) ->  | K198: 150 | L198: =IF(M198="",IF(COUNTIF(M$49:M$5076,K198)>0,MAX(M$49:M$5076,L$48:L197,K$49:K$5076)+1,K198),M198) -> 150 | AA198: =IF(OR(Summary!H$8="",Q198=""),"",DATEDIF(Q198,Summary!H$8,"y")) -> 
I199: =IF(O199="","",IF(COUNTIF(O$48:O198,O199)=0,ROW(),"")) ->  | K199: 151 | L199: =IF(M199="",IF(COUNTIF(M$49:M$5076,K199)>0,MAX(M$49:M$5076,L$48:L198,K$49:K$5076)+1,K199),M199) -> 151 | AA199: =IF(OR(Summary!H$8="",Q199=""),"",DATEDIF(Q199,Summary!H$8,"y")) -> 
I200: =IF(O200="","",IF(COUNTIF(O$48:O199,O200)=0,ROW(),"")) ->  | K200: 152 | L200: =IF(M200="",IF(COUNTIF(M$49:M$5076,K200)>0,MAX(M$49:M$5076,L$48:L199,K$49:K$5076)+1,K200),M200) -> 152 | AA200: =IF(OR(Summary!H$8="",Q200=""),"",DATEDIF(Q200,Summary!H$8,"y")) -> 
... 2050 more rows

Sheet Results
BL1: =RANK(BM1,BM$1:BM$8,1) ->  | BM1: =IF(BB13=0,"",SUM(INDIRECT("BS1:BS"&BB$14))+INDIRECT("BS"&BB$14)/10000) ->  | BO1: 1 | BP1: =IF(BB13=0,"",SMALL(BB$15:BB$5014,BO1)) ->  | BQ1: =IF(BP1="","-",INDIRECT("results!o"&BP1)) -> - | BR1: =MATCH($BQ1,$AX$15:$AX$5014,0) ->  | BS1: =14+BR1 ->  | BT1: =MATCH($BQ2,$AX$15:$AX$5014,0) ->  | BU1: =14+BT1 ->  | BV1: =MATCH($BQ3,$AX$15:$AX$5014,0) ->  | BW1: =14+BV1 ->  | BX1: =MATCH($BQ4,$AX$15:$AX$5014,0) ->  | BY1: =14+BX1 ->  | BZ1: =MATCH($BQ5,$AX$15:$AX$5014,0) ->  | CA1: =14+BZ1 ->  | CB1: =MATCH($BQ6,$AX$15:$AX$5014,0) ->  | CC1: =14+CB1 ->  | CD1: =MATCH($BQ7,$AX$15:$AX$5014,0) ->  | CE1: =14+CD1 ->  | CF1: =MATCH($BQ8,$AX$15:$AX$5014,0) ->  | CG1: =14+CF1 -> 
BL2: =RANK(BM2,BM$1:BM$8,1) ->  | BM2: =IF(BP2="","",SUM(INDIRECT("BU1:BU"&BB$14))+INDIRECT("BU"&BB$14)/10000) ->  | BO2: 2 | BP2: =IF(BB$13<BO2,"",SMALL(BB$15:BB$5014,BO2)) ->  | BQ2: =IF(BP2="","-",INDIRECT("results!o"&BP2)) -> - | BR2: =MATCH(BQ$1,INDIRECT("AX"&BS1+1&":AX5014"),0) ->  | BS2: =BS1+BR2 ->  | BT2: =MATCH($BQ$2,INDIRECT("AX"&BU1+1&":AX5014"),0) ->  | BV2: =MATCH($BQ$3,INDIRECT("AX"&BW1+1&":AX5014"),0) ->  | BX2: =MATCH($BQ$4,INDIRECT("AX"&BY1+1&":AX5014"),0) ->  | BZ2: =MATCH($BQ$5,INDIRECT("AX"&CA1+1&":AX5014"),0) ->  | CB2: =MATCH($BQ$6,INDIRECT("AX"&CC1+1&":AX5014"),0) ->  | CD2: =MATCH($BQ$7,INDIRECT("AX"&CE1+1&":AX5014"),0) ->  | CF2: =MATCH($BQ$8,INDIRECT("AX"&CG1+1&":AX5014"),0) -> 
BM3: =IF(BP3="","",SUM(INDIRECT("BW1:BW"&BB$14))+INDIRECT("BW"&BB$14)/10000) ->  | BO3: 3 | BQ3: - | BS3: =BS2+BR3 -> 
BM4: =IF(BP4="","",SUM(INDIRECT("BY1:BY"&BB$14))+INDIRECT("BY"&BB$14)/10000) ->  | BO4: 4 | BQ4: - | BS4: =BS3+BR4 -> 
BM5: =IF(BP5="","",SUM(INDIRECT("CA1:CA"&BB$14))+INDIRECT("CA"&BB$14)/10000) ->  | BO5: 5 | BQ5: =IF(BP5="","-",INDIRECT("results!o"&BP5)) -> -
BM6: =IF(BP6="","",SUM(INDIRECT("CC1:CC"&BB$14))+INDIRECT("CC"&BB$14)/10000) ->  | BO6: 6 | BQ6: -
BM7: =IF(BP7="","",SUM(INDIRECT("CE1:CE"&BB$14))+INDIRECT("CE"&BB$14)/10000) ->  | BO7: 7 | BQ7: -
BM8: =IF(BP8="","",SUM(INDIRECT("CG1:CG"&BB$14))+INDIRECT("CG"&BB$14)/10000) ->  | BO8: 8 | BQ8: -
AU10: =IF(AU13=0,"",VLOOKUP(1,BL21:BP28,5,FALSE)) ->  | AW10: =IF(AW13=0,"",VLOOKUP(1,BL31:BP38,5,FALSE)) ->  | BB10: =IF(BB13=0,"",VLOOKUP(1,BL1:BP8,5,FALSE)) ->  | BD10: =IF(BD13=0,"",VLOOKUP(1,BL11:BP18,5,FALSE)) ->  | BL10: Vet Men | CT10: =IF(CT13=0,"",VLOOKUP(1,BL61:BP68,5,FALSE)) ->  | CV10: =IF(CV13=0,"",VLOOKUP(1,BL71:BP78,5,FALSE)) ->  | DA10: =IF(DA13=0,"",VLOOKUP(1,BL41:BP48,5,FALSE)) ->  | DC10: =IF(DC13=0,"",VLOOKUP(1,BL51:BP58,5,FALSE)) -> 
AU11: =IF(AU13<2,"",VLOOKUP(2,BL21:BP28,5,FALSE)) ->  | AW11: =IF(AW13<2,"",VLOOKUP(2,BL31:BP38,5,FALSE)) ->  | BB11: =IF(BB13<2,"",VLOOKUP(2,BL1:BP8,5,FALSE)) ->  | BD11: =IF(BD13<2,"",VLOOKUP(2,BL11:BP18,5,FALSE)) ->  | BL11: =RANK(BM11,BM$11:BM$18,1) ->  | BM11: =IF(BD13=0,"",SUM(INDIRECT("BS11:BS"&BD$14+10))+INDIRECT("BS"&BD$14+10)/10000) ->  | BO11: 1 | BP11: =IF(BD13=0,"",SMALL(BD$15:BD$5014,BO11)) ->  | BQ11: =IF(BP11="","-",INDIRECT("results!o"&BP11)) -> - | BR11: =MATCH($BQ11,$AY$15:$AY$5014,0) ->  | BS11: =14+BR11 ->  | BT11: =MATCH($BQ12,$AY$15:$AY$5014,0) ->  | BU11: =14+BT11 ->  | BV11: =MATCH($BQ13,$AY$15:$AY$5014,0) ->  | BW11: =14+BV11 ->  | BX11: =MATCH($BQ14,$AY$15:$AY$5014,0) ->  | BY11: =14+BX11 ->  | BZ11: =MATCH($BQ15,$AY$15:$AY$5014,0) ->  | CA11: =14+BZ11 ->  | CB11: =MATCH($BQ16,$AY$15:$AY$5014,0) ->  | CC11: =14+CB11 ->  | CD11: =MATCH($BQ17,$AY$15:$AY$5014,0) ->  | CE11: =14+CD11 ->  | CF11: =MATCH($BQ18,$AY$15:$AY$5014,0) ->  | CG11: =14+CF11 ->  | CT11: =IF(CT13<2,"",VLOOKUP(2,BL61:BP68,5,FALSE)) ->  | CV11: =IF(CV13<2,"",VLOOKUP(2,BL71:BP78,5,FALSE)) ->  | DA11: =IF(DA13<2,"",VLOOKUP(2,BL41:BP48,5,FALSE)) ->  | DC11: =IF(DC13<2,"",VLOOKUP(2,BL51:BP58,5,FALSE)) -> 
T12: sub-> | AN12: sub comp | AU12: =IF(AU13<3,"",VLOOKUP(3,BL21:BP28,5,FALSE)) ->  | AW12: =IF(AW13<3,"",VLOOKUP(3,BL31:BP38,5,FALSE)) ->  | BB12: =IF(BB13<3,"",VLOOKUP(3,BL1:BP8,5,FALSE)) ->  | BD12: =IF(BD13<3,"",VLOOKUP(3,BL11:BP18,5,FALSE)) ->  | BL12: =RANK(BM12,BM$11:BM$18,1) ->  | BM12: =IF(BP12="","",SUM(INDIRECT("BU11:BU"&BD$14+10))+INDIRECT("BU"&BD$14+10)/10000) ->  | BO12: 2 | BP12: =IF(BD$13<BO12,"",SMALL(BD$15:BD$5014,BO12)) ->  | BQ12: - | BR12: =MATCH(BQ$11,INDIRECT("AY"&BS11+1&":AY5014"),0) ->  | BS12: =BS11+BR12 ->  | BT12: =MATCH($BQ$12,INDIRECT("AY"&BU11+1&":AY5014"),0) ->  | BU12: =BU11+BT12 ->  | BV12: =MATCH($BQ$13,INDIRECT("AY"&BW11+1&":AY5014"),0) ->  | BW12: =BW11+BV12 ->  | BX12: =MATCH($BQ$14,INDIRECT("AY"&BY11+1&":AY5014"),0) ->  | BY12: =BY11+BX12 ->  | BZ12: =MATCH($BQ$15,INDIRECT("AY"&CA11+1&":AY5014"),0) ->  | CA12: =CA11+BZ12 ->  | CB12: =MATCH($BQ$16,INDIRECT("AY"&CC11+1&":AY5014"),0) ->  | CC12: =CC11+CB12 ->  | CD12: =MATCH($BQ$17,INDIRECT("AY"&CE11+1&":AY5014"),0) ->  | CE12: =CE11+CD12 ->  | CF12: =MATCH($BQ$18,INDIRECT("AY"&CG11+1&":AY5014"),0) ->  | CG12: =CG11+CF12 ->  | CT12: =IF(CT13<3,"",VLOOKUP(3,BL61:BP68,5,FALSE)) ->  | CV12: =IF(CV13<3,"",VLOOKUP(3,BL71:BP78,5,FALSE)) ->  | DA12: =IF(DA13<3,"",VLOOKUP(3,BL41:BP48,5,FALSE)) ->  | DC12: =IF(DC13<3,"",VLOOKUP(3,BL51:BP58,5,FALSE)) -> 
A13: start time | B13: 81712.64844 | C13: hour | D13: min | G13: =Translations!I30 -> Finish | N13: =Summary!A4 -> - | U13: =IF(Summary!H9="","",Summary!H9) ->  | V13: =IF(COUNTA(Dec!S49:T5048)>0,Translations!I27,"") ->  | W13: =Translations!I29&" "&Translations!I9 -> Run Time | Z13: =Translations!I26 -> Age Graded | AB13: handicap | AU13: =COUNTIF(AU15:AU5014,">0") -> 0 | AW13: =COUNTIF(AW15:AW5014,">0") -> 0 | BB13: =COUNTIF(BB15:BB5014,">0") -> 0 | BD13: =COUNTIF(BD15:BD5014,">0") -> 0 | BL13: =RANK(BM13,BM$11:BM$18,1) ->  | BM13: =IF(BP13="","",SUM(INDIRECT("BW11:BW"&BD$14+10))+INDIRECT("BW"&BD$14+10)/10000) ->  | BO13: 3 | BQ13: - | CT13: =COUNTIF(CT15:CT5014,">0") -> 0 | CV13: =COUNTIF(CV15:CV5014,">0") -> 0 | DA13: =COUNTIF(DA15:DA5014,">0") -> 0 | DC13: =COUNTIF(DC15:DC5014,">0") -> 0
A14: ST | B14: =IF(FLOOR(B13/3600,1)<10,"0","")&FLOOR(B13/3600,1)&":"& IF(FLOOR((B13-FLOOR(B13/3600,1)*3600)/60,1)<10,"0","")&FLOOR((B13-FLOOR(B13/3600,1)*3600)/60,1) &":"&IF(FLOOR(B13-FLOOR(B13/3600,1)*3600-FLOOR((B13-FLOOR(B13/3600,1)*3600)/60,1)*60,1)<10,"0","")&FLOOR(B13-FLOOR(B13/3600,1)*3600-FLOOR((B13-FLOOR(B13/3600,1)*3600)/60,1)*60,1) -> 22:41:52 | C14: 0 | D14: 0 | E14: sec | F14: row | G14: =Translations!I16 -> Pos. | H14: =IF(Translations!H17="","Number",Translations!I17) -> Number | I14: Hour | J14: Min | K14: Sec | L14: Pos. | M14: =Translations!I17 -> No. | N14: =Translations!I7 -> Name | O14: =Translations!I8 -> Club | P14: =Translations!I18 -> Category | Q14: =IF(Summary!O12="",Translations!I13,Summary!O12)&" "&Translations!I16 -> W Pos. | R14: =Translations!I11&" "&Translations!I21&" "&Translations!I16 -> M Masters Pos. | S14: =IF(Summary!O12="",Translations!I13,Summary!O12)&" "&Translations!I21&" "&Translations!I16 -> W Masters Pos. | T14: =Translations!I19&" "&Translations!I16 -> Cat Pos. | V14: =Translations!I9 -> Time | W14: =Translations!I9 -> Time | X14: =Translations!I16 -> Pos. | Y14: =Translations!I28 -> Handicap | Z14: =Translations!I9 -> Time | AA14: =Translations!I16 -> Pos. | AB14: M | AC14: Sec | AD14: time in sec | AE14: Run time in sec | AF14: h | AG14: min | AH14: sec | AI14: AF | AJ14: AG time in Sec | AK14: AG h | AL14: AG min | AM14: AG sec | AN14: in sub comp? | AO14: m pos | AQ14: L Team | AR14: VL team | AT14: L team count | AU14: =Summary!H13 -> 4 | AV14: vl tam count | AW14: =Summary!J13 -> 4 | AX14: m team | AY14: vm team | BA14: m team count | BB14: =Summary!H12 -> 4 | BC14: vm team count | BD14: =Summary!J12 -> 4 | BI14: sub comp | BM14: =IF(BP14="","",SUM(INDIRECT("BY11:BY"&BD$14+10))+INDIRECT("BY"&BD$14+10)/10000) ->  | BO14: 4 | BQ14: - | CH14: m pos | CI14: =IF(Summary!O12="L","L Pos.",IF(Summary!O12="f","F Pos.","W Pos.")) -> W Pos. | CJ14: MV Pos. | CK14: ="M"&IF(Summary!O12="L","L Pos.",IF(Summary!O12="f","F Pos.","W Pos.")) -> MW Pos. | CL14: Cat pos | CP14: L Team | CQ14: VL team | CS14: L team count | CT14: =Summary!K13 -> 4 | CU14: vl tam count | CV14: =Summary!L13 -> 4 | CW14: m team | CX14: vm team | CZ14: m team count | DA14: =Summary!K12 -> 4 | DB14: vm team count | DC14: =Summary!L12 -> 4
C15: =IF(AND(I15="",MAX(C$14:C14)=0),"",IF(AND(I15="",MAX(C$14:C14)>0),C14,I15)) ->  | D15: =IF(C15=C14,IF(AND(LEN(J15)=1,ISNUMBER(C15)),"0"&IF(J15="",D14,J15),IF(J15="",D14,J15)),IF(J15="","00",IF(LEN(J15)=1,"0"&J15,J15))) -> 00 | E15: =IF(K15="","00",IF(LEN(K15)=1,"0"&K15,K15)) -> 00 | F15: =MATCH(H15,Dec!L:L,0) ->  | G15: 1 | L15: =G15 -> 1 | M15: =IF(H15="","",H15) ->  | N15: =IF(H15="","",PROPER(INDIRECT("DEC!N"&F15))) ->  | O15: =IF(H15="","",IF(INDIRECT("DEC!o"&F15)="","",INDIRECT("DEC!o"&F15))) ->  | P15: =IF(H15="","",INDIRECT("DEC!p"&F15)) ->  | Q15: =IF(AP15=Dec!P$22,COUNTIF(AP$14:AP15,Dec!P$22),"") ->  | R15: =IF(CM15="MV",COUNTIF(CM$14:CM15,"MV"),"") ->  | S15: =IF(CM15=Dec!P$22&"V",COUNTIF(CM$14:CM15,Dec!P$22&"V"),"") ->  | T15: =IF(H15="","",COUNTIF(P$14:P15,P15)) ->  | U15: =IF(AN15="y",COUNTIF(AN$14:AN15,"y"),"") ->  | V15: =IF(H15="","",IF(C15="","",C15&":")&(D15&":"&E15)) ->  | W15: =IF(H15="","",IF(AF15=0,"",AF15&":")&IF(AG15<10,"0","")&AG15&":"&IF(AH15<10,"0","")&AH15) ->  | X15: =IF(H15="","",RANK(AE15,AE$15:AE$2014,1)) ->  | Y15: =IF(OR(H15=""),"",IF(AND(AB15=0,AC15="00"),"-",AB15&":"&AC15)) ->  | Z15: =IF(H15="","",IF(AK15=0,"",AK15&":")&IF(AL15<10,"0","")&AL15&":"&IF(AM15<10,"0","")&AM15) ->  | AA15: =IF(H15="","",RANK(AJ15,AJ$15:AJ$2014,1)) ->  | AB15: =INDIRECT("DEC!s"&F15) ->  | AC15: =IF(OR(INDIRECT("DEC!t"&F15)=0,INDIRECT("DEC!t"&F15)=""),"00",INDIRECT("DEC!t"&F15)) ->  | AD15: =IF(C15="",0,C15)*3600+(D15*60)+E15 -> 0 | AE15: =IF(H15="","",AD15-(AB15*60)-AC15) ->  | AF15: =ROUNDDOWN(AE15/3600,0) ->  | AG15: =ROUNDDOWN(((AE15-3600*ROUNDDOWN(AE15/3600,0))/60),0) ->  | AH15: =(AE15-60*ROUNDDOWN(AE15/60,0)) ->  | AI15: =IF(P15=0,1,INDIRECT("AgeFactors!"&Summary!$E$20&2+MATCH(P15,AgeFactors!A$3:A$52,0))) ->  | AJ15: =IF(H15="","",CEILING(AE15*IF(AI15="",1,AI15),1)) ->  | AK15: =ROUNDDOWN(AJ15/3600,0) ->  | AL15: =ROUNDDOWN(((AJ15-3600*ROUNDDOWN(AJ15/3600,0))/60),0) ->  | AM15: =(AJ15-60*ROUNDDOWN(AJ15/60,0)) ->  | AN15: =IF(H15="","",IF(INDIRECT("DEC!R"&F15)<>"Y","","Y")) ->  | AO15: =IF(AP15="M",COUNTIF(AP$14:AP15,"M"),"") ->  | AP15: =LEFT(P15,1) ->  | AQ15: =IF(Q15="","",O15) ->  | AR15: =IF(S15="","",O15) ->  | AT15: =IF(OR(AQ15="",H15="",AQ15="UA",AQ15="U/A",AQ15="Unattached"),"",IF(Q15>0,COUNTIF(AQ$14:AQ15,O15))) ->  | AU15: =IF(AT15=AU$14,ROW(),"") ->  | AV15: =IF(OR(AR15="",H15="",AR15="UA",AR15="U/A",AR15="Unattached"),"",IF(S15>0,COUNTIF(AR$14:AR15,O15))) ->  | AW15: =IF(AV15=AW$14,ROW(),"") ->  | AX15: =IF(AO15="","",O15) ->  | AY15: =IF(R15="","",O15) ->  | BA15: =IF(OR(AX15="",H15="",AX15="UA",AX15="U/A",AX15="Unattached"),"",IF(AO15>0,COUNTIF(AX$14:AX15,O15))) ->  | BB15: =IF(BA15=BB$14,ROW(),"") ->  | BC15: =IF(OR(AY15="",H15="",AY15="UA",AY15="U/A",AY15="Unattached"),"",IF(R15>0,COUNTIF(AY$14:AY15,O15))) ->  | BD15: =IF(BC15=BD$14,ROW(),"") ->  | BE15: men | BM15: =IF(BP15="","",SUM(INDIRECT("CA11:CA"&BD$14+10))+INDIRECT("CA"&BD$14+10)/10000) ->  | BO15: 5 | BQ15: - | CH15: =IF(OR(AP15<>"M",AN15=""),"",SUMPRODUCT(--(AN$14:AN15="y"),--(AP$14:AP15="M"))) ->  | CI15: =IF(OR(AP15<>Dec!P$22,AN15=""),"",SUMPRODUCT(--(AN$14:AN15="y"),--(AP$14:AP15=Dec!P$22))) ->  | CJ15: =IF(OR(CM15<>"MV",AN15=""),"",SUMPRODUCT(--(AN$14:AN15="y"),--(CM$14:CM15="MV"))) ->  | CK15: =IF(OR(CM15<>Dec!P$22&"V",AN15=""),"",SUMPRODUCT(--(AN$14:AN15="y"),--(CM$14:CM15=Dec!P$22&"V"))) ->  | CL15: =IF(OR(AN15="",H15=""),"",SUMPRODUCT(--(AN$14:AN15="y"),--(P$14:P15=P15))) ->  | CM15: =LEFT(P15,1)&IF(LEN(P15)=3,"V","") ->  | CN15: =IF(AN15="y",P15,"") ->  | CP15: =IF(CI15="","",O15) ->  | CQ15: =IF(CK15="","",O15) ->  | CS15: =IF(OR(CP15="",H15="",CP15="UA",CP15="U/A",CP15="Unattached"),"",IF(CI15>0,COUNTIF(CP$14:CP15,O15))) ->  | CT15: =IF(CS15=CT$14,ROW(),"") ->  | CU15: =IF(OR(CQ15="",H15="",CQ15="UA",CQ15="U/A",CQ15="Unattached"),"",IF(CK15>0,COUNTIF(CQ$14:CQ15,O15))) ->  | CV15: =IF(CU15=CV$14,ROW(),"") ->  | CW15: =IF(CH15="","",O15) ->  | CX15: =IF(CJ15="","",O15) ->  | CZ15: =IF(OR(CW15="",H15="",CW15="UA",CW15="U/A",CW15="Unattached"),"",IF(CH15>0,COUNTIF(CW$14:CW15,O15))) ->  | DA15: =IF(CZ15=DA$14,ROW(),"") ->  | DB15: =IF(OR(CX15="",H15="",CX15="UA",CX15="U/A",CX15="Unattached"),"",IF(CJ15>0,COUNTIF(CX$14:CX15,O15))) ->  | DC15: =IF(DB15=DC$14,ROW(),"") -> 
C16: =IF(AND(I16="",MAX(C$14:C15)=0),"",IF(AND(I16="",MAX(C$14:C15)>0),C15,I16)) ->  | D16: =IF(C16=C15,IF(AND(LEN(J16)=1,ISNUMBER(C16)),"0"&IF(J16="",D15,J16),IF(J16="",D15,J16)),IF(J16="","00",IF(LEN(J16)=1,"0"&J16,J16))) -> 00 | E16: =IF(K16="","00",IF(LEN(K16)=1,"0"&K16,K16)) -> 00 | F16: =MATCH(H16,Dec!L:L,0) ->  | G16: =G15+1 -> 2 | L16: =G16 -> 2 | M16: =IF(H16="","",H16) ->  | N16: =IF(H16="","",PROPER(INDIRECT("DEC!N"&F16))) ->  | O16: =IF(H16="","",IF(INDIRECT("DEC!o"&F16)="","",INDIRECT("DEC!o"&F16))) ->  | P16: =IF(H16="","",INDIRECT("DEC!p"&F16)) ->  | Q16: =IF(AP16=Dec!P$22,COUNTIF(AP$14:AP16,Dec!P$22),"") ->  | R16: =IF(CM16="MV",COUNTIF(CM$14:CM16,"MV"),"") ->  | S16: =IF(CM16=Dec!P$22&"V",COUNTIF(CM$14:CM16,Dec!P$22&"V"),"") ->  | T16: =IF(H16="","",COUNTIF(P$14:P16,P16)) ->  | U16: =IF(AN16="y",COUNTIF(AN$14:AN16,"y"),"") ->  | V16: =IF(H16="","",IF(C16="","",C16&":")&(D16&":"&E16)) ->  | AD16: =IF(C16="",0,C16)*3600+(D16*60)+E16 -> 0 | AE16: =IF(H16="","",AD16-(AB16*60)-AC16) ->  | AF16: =ROUNDDOWN(AE16/3600,0) ->  | AG16: =ROUNDDOWN(((AE16-3600*ROUNDDOWN(AE16/3600,0))/60),0) ->  | AH16: =(AE16-60*ROUNDDOWN(AE16/60,0)) ->  | AI16: =IF(P16=0,1,INDIRECT("AgeFactors!"&Summary!$E$20&2+MATCH(P16,AgeFactors!A$3:A$52,0))) ->  | AJ16: =IF(H16="","",CEILING(AE16*IF(AI16="",1,AI16),1)) ->  | AK16: =ROUNDDOWN(AJ16/3600,0) ->  | AL16: =ROUNDDOWN(((AJ16-3600*ROUNDDOWN(AJ16/3600,0))/60),0) ->  | AM16: =(AJ16-60*ROUNDDOWN(AJ16/60,0)) ->  | AO16: =IF(AP16="M",COUNTIF(AP$14:AP16,"M"),"") ->  | AT16: =IF(OR(AQ16="",H16="",AQ16="UA",AQ16="U/A",AQ16="Unattached"),"",IF(Q16>0,COUNTIF(AQ$14:AQ16,O16))) ->  | AU16: =IF(AT16=AU$14,ROW(),"") ->  | AV16: =IF(OR(AR16="",H16="",AR16="UA",AR16="U/A",AR16="Unattached"),"",IF(S16>0,COUNTIF(AR$14:AR16,O16))) ->  | AW16: =IF(AV16=AW$14,ROW(),"") ->  | BA16: =IF(OR(AX16="",H16="",AX16="UA",AX16="U/A",AX16="Unattached"),"",IF(AO16>0,COUNTIF(AX$14:AX16,O16))) ->  | BB16: =IF(BA16=BB$14,ROW(),"") ->  | BC16: =IF(OR(AY16="",H16="",AY16="UA",AY16="U/A",AY16="Unattached"),"",IF(R16>0,COUNTIF(AY$14:AY16,O16))) ->  | BD16: =IF(BC16=BD$14,ROW(),"") ->  | BE16: 1 | BF16: =Winners!F111 -> - | BG16: =MATCH(BF16,AX$15:AX$5014,0) ->  | BH16: =14+BG16 ->  | BI16: =SCWinners!F111 -> - | BJ16: =MATCH(BI16,CW$15:CW$5014,0) ->  | BK16: =14+BJ16 ->  | BM16: =IF(BP16="","",SUM(INDIRECT("CC11:CC"&BD$14+10))+INDIRECT("CC"&BD$14+10)/10000) ->  | BO16: 6 | BQ16: - | CH16: =IF(OR(AP16<>"M",AN16=""),"",SUMPRODUCT(--(AN$14:AN16="y"),--(AP$14:AP16="M"))) ->  | CI16: =IF(OR(AP16<>Dec!P$22,AN16=""),"",SUMPRODUCT(--(AN$14:AN16="y"),--(AP$14:AP16=Dec!P$22))) ->  | CJ16: =IF(OR(CM16<>"MV",AN16=""),"",SUMPRODUCT(--(AN$14:AN16="y"),--(CM$14:CM16="MV"))) ->  | CK16: =IF(OR(CM16<>Dec!P$22&"V",AN16=""),"",SUMPRODUCT(--(AN$14:AN16="y"),--(CM$14:CM16=Dec!P$22&"V"))) ->  | CL16: =IF(OR(AN16="",H16=""),"",SUMPRODUCT(--(AN$14:AN16="y"),--(P$14:P16=P16))) ->  | CS16: =IF(OR(CP16="",H16="",CP16="UA",CP16="U/A",CP16="Unattached"),"",IF(CI16>0,COUNTIF(CP$14:CP16,O16))) ->  | CT16: =IF(CS16=CT$14,ROW(),"") ->  | CU16: =IF(OR(CQ16="",H16="",CQ16="UA",CQ16="U/A",CQ16="Unattached"),"",IF(CK16>0,COUNTIF(CQ$14:CQ16,O16))) ->  | CV16: =IF(CU16=CV$14,ROW(),"") ->  | CZ16: =IF(OR(CW16="",H16="",CW16="UA",CW16="U/A",CW16="Unattached"),"",IF(CH16>0,COUNTIF(CW$14:CW16,O16))) ->  | DA16: =IF(CZ16=DA$14,ROW(),"") ->  | DB16: =IF(OR(CX16="",H16="",CX16="UA",CX16="U/A",CX16="Unattached"),"",IF(CJ16>0,COUNTIF(CX$14:CX16,O16))) ->  | DC16: =IF(DB16=DC$14,ROW(),"") -> 
C17: =IF(AND(I17="",MAX(C$14:C16)=0),"",IF(AND(I17="",MAX(C$14:C16)>0),C16,I17)) ->  | D17: 00 | E17: 00 | F17: =MATCH(H17,Dec!L:L,0) ->  | G17: =G16+1 -> 3 | L17: =G17 -> 3 | M17: =IF(H17="","",H17) ->  | O17: =IF(H17="","",IF(INDIRECT("DEC!o"&F17)="","",INDIRECT("DEC!o"&F17))) ->  | Q17: =IF(AP17=Dec!P$22,COUNTIF(AP$14:AP17,Dec!P$22),"") ->  | R17: =IF(CM17="MV",COUNTIF(CM$14:CM17,"MV"),"") ->  | S17: =IF(CM17=Dec!P$22&"V",COUNTIF(CM$14:CM17,Dec!P$22&"V"),"") ->  | T17: =IF(H17="","",COUNTIF(P$14:P17,P17)) ->  | U17: =IF(AN17="y",COUNTIF(AN$14:AN17,"y"),"") ->  | V17: =IF(H17="","",IF(C17="","",C17&":")&(D17&":"&E17)) ->  | AD17: 0 | AE17: =IF(H17="","",AD17-(AB17*60)-AC17) ->  | AI17: =IF(P17=0,1,INDIRECT("AgeFactors!"&Summary!$E$20&2+MATCH(P17,AgeFactors!A$3:A$52,0))) ->  | AO17: =IF(AP17="M",COUNTIF(AP$14:AP17,"M"),"") ->  | AT17: =IF(OR(AQ17="",H17="",AQ17="UA",AQ17="U/A",AQ17="Unattached"),"",IF(Q17>0,COUNTIF(AQ$14:AQ17,O17))) ->  | AV17: =IF(OR(AR17="",H17="",AR17="UA",AR17="U/A",AR17="Unattached"),"",IF(S17>0,COUNTIF(AR$14:AR17,O17))) ->  | BA17: =IF(OR(AX17="",H17="",AX17="UA",AX17="U/A",AX17="Unattached"),"",IF(AO17>0,COUNTIF(AX$14:AX17,O17))) ->  | BC17: =IF(OR(AY17="",H17="",AY17="UA",AY17="U/A",AY17="Unattached"),"",IF(R17>0,COUNTIF(AY$14:AY17,O17))) ->  | BG17: =MATCH(BF$16,INDIRECT("AX"&BH16+1&":AX5014"),0) ->  | BH17: =BH16+BG17 ->  | BJ17: =MATCH(BI$16,INDIRECT("CW"&BK16+1&":CW5014"),0) ->  | BK17: =BK16+BJ17 ->  | BM17: =IF(BP17="","",SUM(INDIRECT("CE11:CE"&BD$14+10))+INDIRECT("CE"&BD$14+10)/10000) ->  | BO17: 7 | BQ17: - | CH17: =IF(OR(AP17<>"M",AN17=""),"",SUMPRODUCT(--(AN$14:AN17="y"),--(AP$14:AP17="M"))) ->  | CI17: =IF(OR(AP17<>Dec!P$22,AN17=""),"",SUMPRODUCT(--(AN$14:AN17="y"),--(AP$14:AP17=Dec!P$22))) ->  | CJ17: =IF(OR(CM17<>"MV",AN17=""),"",SUMPRODUCT(--(AN$14:AN17="y"),--(CM$14:CM17="MV"))) ->  | CK17: =IF(OR(CM17<>Dec!P$22&"V",AN17=""),"",SUMPRODUCT(--(AN$14:AN17="y"),--(CM$14:CM17=Dec!P$22&"V"))) ->  | CL17: =IF(OR(AN17="",H17=""),"",SUMPRODUCT(--(AN$14:AN17="y"),--(P$14:P17=P17))) ->  | CS17: =IF(OR(CP17="",H17="",CP17="UA",CP17="U/A",CP17="Unattached"),"",IF(CI17>0,COUNTIF(CP$14:CP17,O17))) ->  | CU17: =IF(OR(CQ17="",H17="",CQ17="UA",CQ17="U/A",CQ17="Unattached"),"",IF(CK17>0,COUNTIF(CQ$14:CQ17,O17))) ->  | CZ17: =IF(OR(CW17="",H17="",CW17="UA",CW17="U/A",CW17="Unattached"),"",IF(CH17>0,COUNTIF(CW$14:CW17,O17))) ->  | DB17: =IF(OR(CX17="",H17="",CX17="UA",CX17="U/A",CX17="Unattached"),"",IF(CJ17>0,COUNTIF(CX$14:CX17,O17))) -> 
C18: =IF(AND(I18="",MAX(C$14:C17)=0),"",IF(AND(I18="",MAX(C$14:C17)>0),C17,I18)) ->  | D18: 00 | E18: 00 | F18: =MATCH(H18,Dec!L:L,0) ->  | G18: 4 | L18: 4 | Q18: =IF(AP18=Dec!P$22,COUNTIF(AP$14:AP18,Dec!P$22),"") ->  | R18: =IF(CM18="MV",COUNTIF(CM$14:CM18,"MV"),"") ->  | S18: =IF(CM18=Dec!P$22&"V",COUNTIF(CM$14:CM18,Dec!P$22&"V"),"") ->  | T18: =IF(H18="","",COUNTIF(P$14:P18,P18)) ->  | U18: =IF(AN18="y",COUNTIF(AN$14:AN18,"y"),"") ->  | V18: =IF(H18="","",IF(C18="","",C18&":")&(D18&":"&E18)) ->  | AD18: 0 | AI18: =IF(P18=0,1,INDIRECT("AgeFactors!"&Summary!$E$20&2+MATCH(P18,AgeFactors!A$3:A$52,0))) ->  | AO18: =IF(AP18="M",COUNTIF(AP$14:AP18,"M"),"") ->  | AT18: =IF(OR(AQ18="",H18="",AQ18="UA",AQ18="U/A",AQ18="Unattached"),"",IF(Q18>0,COUNTIF(AQ$14:AQ18,O18))) ->  | AV18: =IF(OR(AR18="",H18="",AR18="UA",AR18="U/A",AR18="Unattached"),"",IF(S18>0,COUNTIF(AR$14:AR18,O18))) ->  | BA18: =IF(OR(AX18="",H18="",AX18="UA",AX18="U/A",AX18="Unattached"),"",IF(AO18>0,COUNTIF(AX$14:AX18,O18))) ->  | BC18: =IF(OR(AY18="",H18="",AY18="UA",AY18="U/A",AY18="Unattached"),"",IF(R18>0,COUNTIF(AY$14:AY18,O18))) ->  | BM18: =IF(BP18="","",SUM(INDIRECT("CG11:CG"&BD$14+10))+INDIRECT("CG"&BD$14+10)/10000) ->  | BO18: 8 | BQ18: - | CH18: =IF(OR(AP18<>"M",AN18=""),"",SUMPRODUCT(--(AN$14:AN18="y"),--(AP$14:AP18="M"))) ->  | CI18: =IF(OR(AP18<>Dec!P$22,AN18=""),"",SUMPRODUCT(--(AN$14:AN18="y"),--(AP$14:AP18=Dec!P$22))) ->  | CJ18: =IF(OR(CM18<>"MV",AN18=""),"",SUMPRODUCT(--(AN$14:AN18="y"),--(CM$14:CM18="MV"))) ->  | CK18: =IF(OR(CM18<>Dec!P$22&"V",AN18=""),"",SUMPRODUCT(--(AN$14:AN18="y"),--(CM$14:CM18=Dec!P$22&"V"))) ->  | CL18: =IF(OR(AN18="",H18=""),"",SUMPRODUCT(--(AN$14:AN18="y"),--(P$14:P18=P18))) ->  | CS18: =IF(OR(CP18="",H18="",CP18="UA",CP18="U/A",CP18="Unattached"),"",IF(CI18>0,COUNTIF(CP$14:CP18,O18))) ->  | CU18: =IF(OR(CQ18="",H18="",CQ18="UA",CQ18="U/A",CQ18="Unattached"),"",IF(CK18>0,COUNTIF(CQ$14:CQ18,O18))) ->  | CZ18: =IF(OR(CW18="",H18="",CW18="UA",CW18="U/A",CW18="Unattached"),"",IF(CH18>0,COUNTIF(CW$14:CW18,O18))) ->  | DB18: =IF(OR(CX18="",H18="",CX18="UA",CX18="U/A",CX18="Unattached"),"",IF(CJ18>0,COUNTIF(CX$14:CX18,O18))) -> 
C19: =IF(AND(I19="",MAX(C$14:C18)=0),"",IF(AND(I19="",MAX(C$14:C18)>0),C18,I19)) ->  | D19: 00 | E19: 00 | F19: =MATCH(H19,Dec!L:L,0) ->  | G19: 5 | L19: 5 | Q19: =IF(AP19=Dec!P$22,COUNTIF(AP$14:AP19,Dec!P$22),"") ->  | R19: =IF(CM19="MV",COUNTIF(CM$14:CM19,"MV"),"") ->  | S19: =IF(CM19=Dec!P$22&"V",COUNTIF(CM$14:CM19,Dec!P$22&"V"),"") ->  | T19: =IF(H19="","",COUNTIF(P$14:P19,P19)) ->  | U19: =IF(AN19="y",COUNTIF(AN$14:AN19,"y"),"") ->  | V19: =IF(H19="","",IF(C19="","",C19&":")&(D19&":"&E19)) ->  | AD19: 0 | AI19: =IF(P19=0,1,INDIRECT("AgeFactors!"&Summary!$E$20&2+MATCH(P19,AgeFactors!A$3:A$52,0))) ->  | AO19: =IF(AP19="M",COUNTIF(AP$14:AP19,"M"),"") ->  | AT19: =IF(OR(AQ19="",H19="",AQ19="UA",AQ19="U/A",AQ19="Unattached"),"",IF(Q19>0,COUNTIF(AQ$14:AQ19,O19))) ->  | AV19: =IF(OR(AR19="",H19="",AR19="UA",AR19="U/A",AR19="Unattached"),"",IF(S19>0,COUNTIF(AR$14:AR19,O19))) ->  | BA19: =IF(OR(AX19="",H19="",AX19="UA",AX19="U/A",AX19="Unattached"),"",IF(AO19>0,COUNTIF(AX$14:AX19,O19))) ->  | BC19: =IF(OR(AY19="",H19="",AY19="UA",AY19="U/A",AY19="Unattached"),"",IF(R19>0,COUNTIF(AY$14:AY19,O19))) ->  | CH19: =IF(OR(AP19<>"M",AN19=""),"",SUMPRODUCT(--(AN$14:AN19="y"),--(AP$14:AP19="M"))) ->  | CI19: =IF(OR(AP19<>Dec!P$22,AN19=""),"",SUMPRODUCT(--(AN$14:AN19="y"),--(AP$14:AP19=Dec!P$22))) ->  | CJ19: =IF(OR(CM19<>"MV",AN19=""),"",SUMPRODUCT(--(AN$14:AN19="y"),--(CM$14:CM19="MV"))) ->  | CK19: =IF(OR(CM19<>Dec!P$22&"V",AN19=""),"",SUMPRODUCT(--(AN$14:AN19="y"),--(CM$14:CM19=Dec!P$22&"V"))) ->  | CL19: =IF(OR(AN19="",H19=""),"",SUMPRODUCT(--(AN$14:AN19="y"),--(P$14:P19=P19))) ->  | CS19: =IF(OR(CP19="",H19="",CP19="UA",CP19="U/A",CP19="Unattached"),"",IF(CI19>0,COUNTIF(CP$14:CP19,O19))) ->  | CU19: =IF(OR(CQ19="",H19="",CQ19="UA",CQ19="U/A",CQ19="Unattached"),"",IF(CK19>0,COUNTIF(CQ$14:CQ19,O19))) ->  | CZ19: =IF(OR(CW19="",H19="",CW19="UA",CW19="U/A",CW19="Unattached"),"",IF(CH19>0,COUNTIF(CW$14:CW19,O19))) ->  | DB19: =IF(OR(CX19="",H19="",CX19="UA",CX19="U/A",CX19="Unattached"),"",IF(CJ19>0,COUNTIF(CX$14:CX19,O19))) -> 
C20: =IF(AND(I20="",MAX(C$14:C19)=0),"",IF(AND(I20="",MAX(C$14:C19)>0),C19,I20)) ->  | D20: 00 | E20: 00 | F20: =MATCH(H20,Dec!L:L,0) ->  | G20: 6 | L20: 6 | Q20: =IF(AP20=Dec!P$22,COUNTIF(AP$14:AP20,Dec!P$22),"") ->  | R20: =IF(CM20="MV",COUNTIF(CM$14:CM20,"MV"),"") ->  | S20: =IF(CM20=Dec!P$22&"V",COUNTIF(CM$14:CM20,Dec!P$22&"V"),"") ->  | T20: =IF(H20="","",COUNTIF(P$14:P20,P20)) ->  | U20: =IF(AN20="y",COUNTIF(AN$14:AN20,"y"),"") ->  | AD20: 0 | AI20: =IF(P20=0,1,INDIRECT("AgeFactors!"&Summary!$E$20&2+MATCH(P20,AgeFactors!A$3:A$52,0))) ->  | AO20: =IF(AP20="M",COUNTIF(AP$14:AP20,"M"),"") ->  | AT20: =IF(OR(AQ20="",H20="",AQ20="UA",AQ20="U/A",AQ20="Unattached"),"",IF(Q20>0,COUNTIF(AQ$14:AQ20,O20))) ->  | AV20: =IF(OR(AR20="",H20="",AR20="UA",AR20="U/A",AR20="Unattached"),"",IF(S20>0,COUNTIF(AR$14:AR20,O20))) ->  | BA20: =IF(OR(AX20="",H20="",AX20="UA",AX20="U/A",AX20="Unattached"),"",IF(AO20>0,COUNTIF(AX$14:AX20,O20))) ->  | BC20: =IF(OR(AY20="",H20="",AY20="UA",AY20="U/A",AY20="Unattached"),"",IF(R20>0,COUNTIF(AY$14:AY20,O20))) ->  | BL20: Women | CH20: =IF(OR(AP20<>"M",AN20=""),"",SUMPRODUCT(--(AN$14:AN20="y"),--(AP$14:AP20="M"))) ->  | CI20: =IF(OR(AP20<>Dec!P$22,AN20=""),"",SUMPRODUCT(--(AN$14:AN20="y"),--(AP$14:AP20=Dec!P$22))) ->  | CJ20: =IF(OR(CM20<>"MV",AN20=""),"",SUMPRODUCT(--(AN$14:AN20="y"),--(CM$14:CM20="MV"))) ->  | CK20: =IF(OR(CM20<>Dec!P$22&"V",AN20=""),"",SUMPRODUCT(--(AN$14:AN20="y"),--(CM$14:CM20=Dec!P$22&"V"))) ->  | CL20: =IF(OR(AN20="",H20=""),"",SUMPRODUCT(--(AN$14:AN20="y"),--(P$14:P20=P20))) ->  | CS20: =IF(OR(CP20="",H20="",CP20="UA",CP20="U/A",CP20="Unattached"),"",IF(CI20>0,COUNTIF(CP$14:CP20,O20))) ->  | CU20: =IF(OR(CQ20="",H20="",CQ20="UA",CQ20="U/A",CQ20="Unattached"),"",IF(CK20>0,COUNTIF(CQ$14:CQ20,O20))) ->  | CZ20: =IF(OR(CW20="",H20="",CW20="UA",CW20="U/A",CW20="Unattached"),"",IF(CH20>0,COUNTIF(CW$14:CW20,O20))) ->  | DB20: =IF(OR(CX20="",H20="",CX20="UA",CX20="U/A",CX20="Unattached"),"",IF(CJ20>0,COUNTIF(CX$14:CX20,O20))) -> 
C21: =IF(AND(I21="",MAX(C$14:C20)=0),"",IF(AND(I21="",MAX(C$14:C20)>0),C20,I21)) ->  | D21: 00 | E21: 00 | F21: =MATCH(H21,Dec!L:L,0) ->  | G21: 7 | L21: 7 | Q21: =IF(AP21=Dec!P$22,COUNTIF(AP$14:AP21,Dec!P$22),"") ->  | R21: =IF(CM21="MV",COUNTIF(CM$14:CM21,"MV"),"") ->  | S21: =IF(CM21=Dec!P$22&"V",COUNTIF(CM$14:CM21,Dec!P$22&"V"),"") ->  | T21: =IF(H21="","",COUNTIF(P$14:P21,P21)) ->  | U21: =IF(AN21="y",COUNTIF(AN$14:AN21,"y"),"") ->  | V21: =IF(H21="","",IF(C21="","",C21&":")&(D21&":"&E21)) ->  | AD21: 0 | AI21: =IF(P21=0,1,INDIRECT("AgeFactors!"&Summary!$E$20&2+MATCH(P21,AgeFactors!A$3:A$52,0))) ->  | AO21: =IF(AP21="M",COUNTIF(AP$14:AP21,"M"),"") ->  | AT21: =IF(OR(AQ21="",H21="",AQ21="UA",AQ21="U/A",AQ21="Unattached"),"",IF(Q21>0,COUNTIF(AQ$14:AQ21,O21))) ->  | AV21: =IF(OR(AR21="",H21="",AR21="UA",AR21="U/A",AR21="Unattached"),"",IF(S21>0,COUNTIF(AR$14:AR21,O21))) ->  | BA21: =IF(OR(AX21="",H21="",AX21="UA",AX21="U/A",AX21="Unattached"),"",IF(AO21>0,COUNTIF(AX$14:AX21,O21))) ->  | BC21: =IF(OR(AY21="",H21="",AY21="UA",AY21="U/A",AY21="Unattached"),"",IF(R21>0,COUNTIF(AY$14:AY21,O21))) ->  | BL21: =RANK(BM21,BM$21:BM$28,1) ->  | BM21: =IF(AU13=0,"",SUM(INDIRECT("BS21:BS"&AU$14+20))+INDIRECT("BS"&AU$14+20)/10000) ->  | BO21: 1 | BP21: =IF(AU13=0,"",SMALL(AU$15:AU$5014,BO21)) ->  | BQ21: =IF(BP21="","-",INDIRECT("results!o"&BP21)) -> - | BR21: =MATCH($BQ21,$AQ$15:$AQ$5014,0) ->  | BS21: =14+BR21 ->  | BT21: =MATCH($BQ22,$AQ$15:$AQ$5014,0) ->  | BU21: =14+BT21 ->  | BV21: =MATCH($BQ23,$AQ$15:$AQ$5014,0) ->  | BW21: =14+BV21 ->  | BX21: =MATCH($BQ24,$AQ$15:$AQ$5014,0) ->  | BY21: =14+BX21 ->  | BZ21: =MATCH($BQ25,$AQ$15:$AQ$5014,0) ->  | CA21: =14+BZ21 ->  | CB21: =MATCH($BQ26,$AQ$15:$AQ$5014,0) ->  | CC21: =14+CB21 ->  | CD21: =MATCH($BQ27,$AQ$15:$AQ$5014,0) ->  | CE21: =14+CD21 ->  | CF21: =MATCH($BQ28,$AQ$15:$AQ$5014,0) ->  | CG21: =14+CF21 ->  | CH21: =IF(OR(AP21<>"M",AN21=""),"",SUMPRODUCT(--(AN$14:AN21="y"),--(AP$14:AP21="M"))) ->  | CI21: =IF(OR(AP21<>Dec!P$22,AN21=""),"",SUMPRODUCT(--(AN$14:AN21="y"),--(AP$14:AP21=Dec!P$22))) ->  | CJ21: =IF(OR(CM21<>"MV",AN21=""),"",SUMPRODUCT(--(AN$14:AN21="y"),--(CM$14:CM21="MV"))) ->  | CK21: =IF(OR(CM21<>Dec!P$22&"V",AN21=""),"",SUMPRODUCT(--(AN$14:AN21="y"),--(CM$14:CM21=Dec!P$22&"V"))) ->  | CL21: =IF(OR(AN21="",H21=""),"",SUMPRODUCT(--(AN$14:AN21="y"),--(P$14:P21=P21))) ->  | CS21: =IF(OR(CP21="",H21="",CP21="UA",CP21="U/A",CP21="Unattached"),"",IF(CI21>0,COUNTIF(CP$14:CP21,O21))) ->  | CU21: =IF(OR(CQ21="",H21="",CQ21="UA",CQ21="U/A",CQ21="Unattached"),"",IF(CK21>0,COUNTIF(CQ$14:CQ21,O21))) ->  | CZ21: =IF(OR(CW21="",H21="",CW21="UA",CW21="U/A",CW21="Unattached"),"",IF(CH21>0,COUNTIF(CW$14:CW21,O21))) ->  | DB21: =IF(OR(CX21="",H21="",CX21="UA",CX21="U/A",CX21="Unattached"),"",IF(CJ21>0,COUNTIF(CX$14:CX21,O21))) -> 
C22: =IF(AND(I22="",MAX(C$14:C21)=0),"",IF(AND(I22="",MAX(C$14:C21)>0),C21,I22)) ->  | D22: 00 | E22: 00 | F22: =MATCH(H22,Dec!L:L,0) ->  | G22: 8 | L22: 8 | Q22: =IF(AP22=Dec!P$22,COUNTIF(AP$14:AP22,Dec!P$22),"") ->  | R22: =IF(CM22="MV",COUNTIF(CM$14:CM22,"MV"),"") ->  | S22: =IF(CM22=Dec!P$22&"V",COUNTIF(CM$14:CM22,Dec!P$22&"V"),"") ->  | T22: =IF(H22="","",COUNTIF(P$14:P22,P22)) ->  | U22: =IF(AN22="y",COUNTIF(AN$14:AN22,"y"),"") ->  | V22: =IF(H22="","",IF(C22="","",C22&":")&(D22&":"&E22)) ->  | AD22: 0 | AI22: =IF(P22=0,1,INDIRECT("AgeFactors!"&Summary!$E$20&2+MATCH(P22,AgeFactors!A$3:A$52,0))) ->  | AO22: =IF(AP22="M",COUNTIF(AP$14:AP22,"M"),"") ->  | AT22: =IF(OR(AQ22="",H22="",AQ22="UA",AQ22="U/A",AQ22="Unattached"),"",IF(Q22>0,COUNTIF(AQ$14:AQ22,O22))) ->  | AV22: =IF(OR(AR22="",H22="",AR22="UA",AR22="U/A",AR22="Unattached"),"",IF(S22>0,COUNTIF(AR$14:AR22,O22))) ->  | BA22: =IF(OR(AX22="",H22="",AX22="UA",AX22="U/A",AX22="Unattached"),"",IF(AO22>0,COUNTIF(AX$14:AX22,O22))) ->  | BC22: =IF(OR(AY22="",H22="",AY22="UA",AY22="U/A",AY22="Unattached"),"",IF(R22>0,COUNTIF(AY$14:AY22,O22))) ->  | BL22: =RANK(BM22,BM$21:BM$28,1) ->  | BM22: =IF(BP22="","",SUM(INDIRECT("BU21:BU"&AU$14+20))+INDIRECT("BU"&AU$14+20)/10000) ->  | BO22: 2 | BP22: =IF(AU$13<BO22,"",SMALL(AU$15:AU$5014,BO22)) ->  | BQ22: =IF(BP22="","-",INDIRECT("results!o"&BP22)) -> - | BR22: =MATCH(BQ$21,INDIRECT("AQ"&BS21+1&":AQ5014"),0) ->  | BS22: =BS21+BR22 ->  | BT22: =MATCH($BQ$22,INDIRECT("AQ"&BU21+1&":AQ5014"),0) ->  | BV22: =MATCH($BQ$23,INDIRECT("AQ"&BW21+1&":AQ5014"),0) ->  | BX22: =MATCH($BQ$24,INDIRECT("AQ"&BY21+1&":AQ5014"),0) ->  | BZ22: =MATCH($BQ$25,INDIRECT("AQ"&CA21+1&":AQ5014"),0) ->  | CB22: =MATCH($BQ$26,INDIRECT("AQ"&CC21+1&":AQ5014"),0) ->  | CD22: =MATCH($BQ$27,INDIRECT("AQ"&CE21+1&":AQ5014"),0) ->  | CF22: =MATCH($BQ$28,INDIRECT("AQ"&CG21+1&":AQ5014"),0) ->  | CH22: =IF(OR(AP22<>"M",AN22=""),"",SUMPRODUCT(--(AN$14:AN22="y"),--(AP$14:AP22="M"))) ->  | CI22: =IF(OR(AP22<>Dec!P$22,AN22=""),"",SUMPRODUCT(--(AN$14:AN22="y"),--(AP$14:AP22=Dec!P$22))) ->  | CJ22: =IF(OR(CM22<>"MV",AN22=""),"",SUMPRODUCT(--(AN$14:AN22="y"),--(CM$14:CM22="MV"))) ->  | CK22: =IF(OR(CM22<>Dec!P$22&"V",AN22=""),"",SUMPRODUCT(--(AN$14:AN22="y"),--(CM$14:CM22=Dec!P$22&"V"))) ->  | CL22: =IF(OR(AN22="",H22=""),"",SUMPRODUCT(--(AN$14:AN22="y"),--(P$14:P22=P22))) ->  | CS22: =IF(OR(CP22="",H22="",CP22="UA",CP22="U/A",CP22="Unattached"),"",IF(CI22>0,COUNTIF(CP$14:CP22,O22))) ->  | CU22: =IF(OR(CQ22="",H22="",CQ22="UA",CQ22="U/A",CQ22="Unattached"),"",IF(CK22>0,COUNTIF(CQ$14:CQ22,O22))) ->  | CZ22: =IF(OR(CW22="",H22="",CW22="UA",CW22="U/A",CW22="Unattached"),"",IF(CH22>0,COUNTIF(CW$14:CW22,O22))) ->  | DB22: =IF(OR(CX22="",H22="",CX22="UA",CX22="U/A",CX22="Unattached"),"",IF(CJ22>0,COUNTIF(CX$14:CX22,O22))) -> 
C23: =IF(AND(I23="",MAX(C$14:C22)=0),"",IF(AND(I23="",MAX(C$14:C22)>0),C22,I23)) ->  | D23: 00 | E23: 00 | F23: =MATCH(H23,Dec!L:L,0) ->  | G23: 9 | L23: 9 | Q23: =IF(AP23=Dec!P$22,COUNTIF(AP$14:AP23,Dec!P$22),"") ->  | R23: =IF(CM23="MV",COUNTIF(CM$14:CM23,"MV"),"") ->  | S23: =IF(CM23=Dec!P$22&"V",COUNTIF(CM$14:CM23,Dec!P$22&"V"),"") ->  | T23: =IF(H23="","",COUNTIF(P$14:P23,P23)) ->  | U23: =IF(AN23="y",COUNTIF(AN$14:AN23,"y"),"") ->  | AD23: 0 | AI23: =IF(P23=0,1,INDIRECT("AgeFactors!"&Summary!$E$20&2+MATCH(P23,AgeFactors!A$3:A$52,0))) ->  | AO23: =IF(AP23="M",COUNTIF(AP$14:AP23,"M"),"") ->  | AT23: =IF(OR(AQ23="",H23="",AQ23="UA",AQ23="U/A",AQ23="Unattached"),"",IF(Q23>0,COUNTIF(AQ$14:AQ23,O23))) ->  | AV23: =IF(OR(AR23="",H23="",AR23="UA",AR23="U/A",AR23="Unattached"),"",IF(S23>0,COUNTIF(AR$14:AR23,O23))) ->  | BA23: =IF(OR(AX23="",H23="",AX23="UA",AX23="U/A",AX23="Unattached"),"",IF(AO23>0,COUNTIF(AX$14:AX23,O23))) ->  | BC23: =IF(OR(AY23="",H23="",AY23="UA",AY23="U/A",AY23="Unattached"),"",IF(R23>0,COUNTIF(AY$14:AY23,O23))) ->  | BM23: =IF(BP23="","",SUM(INDIRECT("BW21:BW"&AU$14+20))+INDIRECT("BW"&AU$14+20)/10000) ->  | BO23: 3 | BQ23: - | BS23: =BS22+BR23 ->  | CH23: =IF(OR(AP23<>"M",AN23=""),"",SUMPRODUCT(--(AN$14:AN23="y"),--(AP$14:AP23="M"))) ->  | CI23: =IF(OR(AP23<>Dec!P$22,AN23=""),"",SUMPRODUCT(--(AN$14:AN23="y"),--(AP$14:AP23=Dec!P$22))) ->  | CJ23: =IF(OR(CM23<>"MV",AN23=""),"",SUMPRODUCT(--(AN$14:AN23="y"),--(CM$14:CM23="MV"))) ->  | CK23: =IF(OR(CM23<>Dec!P$22&"V",AN23=""),"",SUMPRODUCT(--(AN$14:AN23="y"),--(CM$14:CM23=Dec!P$22&"V"))) ->  | CL23: =IF(OR(AN23="",H23=""),"",SUMPRODUCT(--(AN$14:AN23="y"),--(P$14:P23=P23))) ->  | CS23: =IF(OR(CP23="",H23="",CP23="UA",CP23="U/A",CP23="Unattached"),"",IF(CI23>0,COUNTIF(CP$14:CP23,O23))) ->  | CU23: =IF(OR(CQ23="",H23="",CQ23="UA",CQ23="U/A",CQ23="Unattached"),"",IF(CK23>0,COUNTIF(CQ$14:CQ23,O23))) ->  | CZ23: =IF(OR(CW23="",H23="",CW23="UA",CW23="U/A",CW23="Unattached"),"",IF(CH23>0,COUNTIF(CW$14:CW23,O23))) ->  | DB23: =IF(OR(CX23="",H23="",CX23="UA",CX23="U/A",CX23="Unattached"),"",IF(CJ23>0,COUNTIF(CX$14:CX23,O23))) -> 
C24: =IF(AND(I24="",MAX(C$14:C23)=0),"",IF(AND(I24="",MAX(C$14:C23)>0),C23,I24)) ->  | D24: 00 | E24: 00 | F24: =MATCH(H24,Dec!L:L,0) ->  | G24: 10 | L24: 10 | Q24: =IF(AP24=Dec!P$22,COUNTIF(AP$14:AP24,Dec!P$22),"") ->  | R24: =IF(CM24="MV",COUNTIF(CM$14:CM24,"MV"),"") ->  | S24: =IF(CM24=Dec!P$22&"V",COUNTIF(CM$14:CM24,Dec!P$22&"V"),"") ->  | T24: =IF(H24="","",COUNTIF(P$14:P24,P24)) ->  | U24: =IF(AN24="y",COUNTIF(AN$14:AN24,"y"),"") ->  | AD24: 0 | AI24: =IF(P24=0,1,INDIRECT("AgeFactors!"&Summary!$E$20&2+MATCH(P24,AgeFactors!A$3:A$52,0))) ->  | AO24: =IF(AP24="M",COUNTIF(AP$14:AP24,"M"),"") ->  | AT24: =IF(OR(AQ24="",H24="",AQ24="UA",AQ24="U/A",AQ24="Unattached"),"",IF(Q24>0,COUNTIF(AQ$14:AQ24,O24))) ->  | AV24: =IF(OR(AR24="",H24="",AR24="UA",AR24="U/A",AR24="Unattached"),"",IF(S24>0,COUNTIF(AR$14:AR24,O24))) ->  | BA24: =IF(OR(AX24="",H24="",AX24="UA",AX24="U/A",AX24="Unattached"),"",IF(AO24>0,COUNTIF(AX$14:AX24,O24))) ->  | BC24: =IF(OR(AY24="",H24="",AY24="UA",AY24="U/A",AY24="Unattached"),"",IF(R24>0,COUNTIF(AY$14:AY24,O24))) ->  | BE24: 2 | BF24: =Winners!F119 -> - | BG24: =MATCH(BF24,AX$15:AX$5014,0) ->  | BH24: =14+BG24 ->  | BI24: =SCWinners!F119 -> - | BJ24: =MATCH(BI24,CW$15:CW$5014,0) ->  | BK24: =14+BJ24 ->  | BM24: =IF(BP24="","",SUM(INDIRECT("BY21:BY"&AU$14+20))+INDIRECT("BY"&AU$14+20)/10000) ->  | BO24: 4 | BQ24: - | BS24: =BS23+BR24 ->  | CH24: =IF(OR(AP24<>"M",AN24=""),"",SUMPRODUCT(--(AN$14:AN24="y"),--(AP$14:AP24="M"))) ->  | CI24: =IF(OR(AP24<>Dec!P$22,AN24=""),"",SUMPRODUCT(--(AN$14:AN24="y"),--(AP$14:AP24=Dec!P$22))) ->  | CJ24: =IF(OR(CM24<>"MV",AN24=""),"",SUMPRODUCT(--(AN$14:AN24="y"),--(CM$14:CM24="MV"))) ->  | CK24: =IF(OR(CM24<>Dec!P$22&"V",AN24=""),"",SUMPRODUCT(--(AN$14:AN24="y"),--(CM$14:CM24=Dec!P$22&"V"))) ->  | CL24: =IF(OR(AN24="",H24=""),"",SUMPRODUCT(--(AN$14:AN24="y"),--(P$14:P24=P24))) ->  | CS24: =IF(OR(CP24="",H24="",CP24="UA",CP24="U/A",CP24="Unattached"),"",IF(CI24>0,COUNTIF(CP$14:CP24,O24))) ->  | CU24: =IF(OR(CQ24="",H24="",CQ24="UA",CQ24="U/A",CQ24="Unattached"),"",IF(CK24>0,COUNTIF(CQ$14:CQ24,O24))) ->  | CZ24: =IF(OR(CW24="",H24="",CW24="UA",CW24="U/A",CW24="Unattached"),"",IF(CH24>0,COUNTIF(CW$14:CW24,O24))) ->  | DB24: =IF(OR(CX24="",H24="",CX24="UA",CX24="U/A",CX24="Unattached"),"",IF(CJ24>0,COUNTIF(CX$14:CX24,O24))) -> 
C25: =IF(AND(I25="",MAX(C$14:C24)=0),"",IF(AND(I25="",MAX(C$14:C24)>0),C24,I25)) ->  | D25: 00 | E25: 00 | F25: =MATCH(H25,Dec!L:L,0) ->  | G25: 11 | L25: 11 | Q25: =IF(AP25=Dec!P$22,COUNTIF(AP$14:AP25,Dec!P$22),"") ->  | R25: =IF(CM25="MV",COUNTIF(CM$14:CM25,"MV"),"") ->  | S25: =IF(CM25=Dec!P$22&"V",COUNTIF(CM$14:CM25,Dec!P$22&"V"),"") ->  | T25: =IF(H25="","",COUNTIF(P$14:P25,P25)) ->  | U25: =IF(AN25="y",COUNTIF(AN$14:AN25,"y"),"") ->  | AD25: 0 | AI25: =IF(P25=0,1,INDIRECT("AgeFactors!"&Summary!$E$20&2+MATCH(P25,AgeFactors!A$3:A$52,0))) ->  | AK25: =ROUNDDOWN(AJ25/3600,0) ->  | AO25: =IF(AP25="M",COUNTIF(AP$14:AP25,"M"),"") ->  | AT25: =IF(OR(AQ25="",H25="",AQ25="UA",AQ25="U/A",AQ25="Unattached"),"",IF(Q25>0,COUNTIF(AQ$14:AQ25,O25))) ->  | AV25: =IF(OR(AR25="",H25="",AR25="UA",AR25="U/A",AR25="Unattached"),"",IF(S25>0,COUNTIF(AR$14:AR25,O25))) ->  | BA25: =IF(OR(AX25="",H25="",AX25="UA",AX25="U/A",AX25="Unattached"),"",IF(AO25>0,COUNTIF(AX$14:AX25,O25))) ->  | BC25: =IF(OR(AY25="",H25="",AY25="UA",AY25="U/A",AY25="Unattached"),"",IF(R25>0,COUNTIF(AY$14:AY25,O25))) ->  | BG25: =MATCH(BF$24,INDIRECT("AX"&BH24+1&":AX5014"),0) ->  | BH25: =BH24+BG25 ->  | BJ25: =MATCH(BI$24,INDIRECT("CW"&BK24+1&":CW5014"),0) ->  | BK25: =BK24+BJ25 ->  | BM25: =IF(BP25="","",SUM(INDIRECT("CA21:CA"&AU$14+20))+INDIRECT("CA"&AU$14+20)/10000) ->  | BO25: 5 | BQ25: - | CH25: =IF(OR(AP25<>"M",AN25=""),"",SUMPRODUCT(--(AN$14:AN25="y"),--(AP$14:AP25="M"))) ->  | CI25: =IF(OR(AP25<>Dec!P$22,AN25=""),"",SUMPRODUCT(--(AN$14:AN25="y"),--(AP$14:AP25=Dec!P$22))) ->  | CJ25: =IF(OR(CM25<>"MV",AN25=""),"",SUMPRODUCT(--(AN$14:AN25="y"),--(CM$14:CM25="MV"))) ->  | CK25: =IF(OR(CM25<>Dec!P$22&"V",AN25=""),"",SUMPRODUCT(--(AN$14:AN25="y"),--(CM$14:CM25=Dec!P$22&"V"))) ->  | CL25: =IF(OR(AN25="",H25=""),"",SUMPRODUCT(--(AN$14:AN25="y"),--(P$14:P25=P25))) ->  | CS25: =IF(OR(CP25="",H25="",CP25="UA",CP25="U/A",CP25="Unattached"),"",IF(CI25>0,COUNTIF(CP$14:CP25,O25))) ->  | CU25: =IF(OR(CQ25="",H25="",CQ25="UA",CQ25="U/A",CQ25="Unattached"),"",IF(CK25>0,COUNTIF(CQ$14:CQ25,O25))) ->  | CZ25: =IF(OR(CW25="",H25="",CW25="UA",CW25="U/A",CW25="Unattached"),"",IF(CH25>0,COUNTIF(CW$14:CW25,O25))) ->  | DB25: =IF(OR(CX25="",H25="",CX25="UA",CX25="U/A",CX25="Unattached"),"",IF(CJ25>0,COUNTIF(CX$14:CX25,O25))) -> 
C26: =IF(AND(I26="",MAX(C$14:C25)=0),"",IF(AND(I26="",MAX(C$14:C25)>0),C25,I26)) ->  | D26: 00 | E26: 00 | F26: =MATCH(H26,Dec!L:L,0) ->  | G26: 12 | L26: 12 | Q26: =IF(AP26=Dec!P$22,COUNTIF(AP$14:AP26,Dec!P$22),"") ->  | R26: =IF(CM26="MV",COUNTIF(CM$14:CM26,"MV"),"") ->  | S26: =IF(CM26=Dec!P$22&"V",COUNTIF(CM$14:CM26,Dec!P$22&"V"),"") ->  | T26: =IF(H26="","",COUNTIF(P$14:P26,P26)) ->  | U26: =IF(AN26="y",COUNTIF(AN$14:AN26,"y"),"") ->  | AD26: 0 | AI26: =IF(P26=0,1,INDIRECT("AgeFactors!"&Summary!$E$20&2+MATCH(P26,AgeFactors!A$3:A$52,0))) ->  | AO26: =IF(AP26="M",COUNTIF(AP$14:AP26,"M"),"") ->  | AT26: =IF(OR(AQ26="",H26="",AQ26="UA",AQ26="U/A",AQ26="Unattached"),"",IF(Q26>0,COUNTIF(AQ$14:AQ26,O26))) ->  | AV26: =IF(OR(AR26="",H26="",AR26="UA",AR26="U/A",AR26="Unattached"),"",IF(S26>0,COUNTIF(AR$14:AR26,O26))) ->  | BA26: =IF(OR(AX26="",H26="",AX26="UA",AX26="U/A",AX26="Unattached"),"",IF(AO26>0,COUNTIF(AX$14:AX26,O26))) ->  | BC26: =IF(OR(AY26="",H26="",AY26="UA",AY26="U/A",AY26="Unattached"),"",IF(R26>0,COUNTIF(AY$14:AY26,O26))) ->  | BH26: =BH25+BG26 ->  | BK26: =BK25+BJ26 ->  | BM26: =IF(BP26="","",SUM(INDIRECT("CC21:CC"&AU$14+20))+INDIRECT("CC"&AU$14+20)/10000) ->  | BO26: 6 | BQ26: - | CH26: =IF(OR(AP26<>"M",AN26=""),"",SUMPRODUCT(--(AN$14:AN26="y"),--(AP$14:AP26="M"))) ->  | CI26: =IF(OR(AP26<>Dec!P$22,AN26=""),"",SUMPRODUCT(--(AN$14:AN26="y"),--(AP$14:AP26=Dec!P$22))) ->  | CJ26: =IF(OR(CM26<>"MV",AN26=""),"",SUMPRODUCT(--(AN$14:AN26="y"),--(CM$14:CM26="MV"))) ->  | CK26: =IF(OR(CM26<>Dec!P$22&"V",AN26=""),"",SUMPRODUCT(--(AN$14:AN26="y"),--(CM$14:CM26=Dec!P$22&"V"))) ->  | CL26: =IF(OR(AN26="",H26=""),"",SUMPRODUCT(--(AN$14:AN26="y"),--(P$14:P26=P26))) ->  | CS26: =IF(OR(CP26="",H26="",CP26="UA",CP26="U/A",CP26="Unattached"),"",IF(CI26>0,COUNTIF(CP$14:CP26,O26))) ->  | CU26: =IF(OR(CQ26="",H26="",CQ26="UA",CQ26="U/A",CQ26="Unattached"),"",IF(CK26>0,COUNTIF(CQ$14:CQ26,O26))) ->  | CZ26: =IF(OR(CW26="",H26="",CW26="UA",CW26="U/A",CW26="Unattached"),"",IF(CH26>0,COUNTIF(CW$14:CW26,O26))) ->  | DB26: =IF(OR(CX26="",H26="",CX26="UA",CX26="U/A",CX26="Unattached"),"",IF(CJ26>0,COUNTIF(CX$14:CX26,O26))) -> 
C27: =IF(AND(I27="",MAX(C$14:C26)=0),"",IF(AND(I27="",MAX(C$14:C26)>0),C26,I27)) ->  | D27: 00 | E27: 00 | F27: =MATCH(H27,Dec!L:L,0) ->  | G27: 13 | L27: 13 | Q27: =IF(AP27=Dec!P$22,COUNTIF(AP$14:AP27,Dec!P$22),"") ->  | R27: =IF(CM27="MV",COUNTIF(CM$14:CM27,"MV"),"") ->  | S27: =IF(CM27=Dec!P$22&"V",COUNTIF(CM$14:CM27,Dec!P$22&"V"),"") ->  | T27: =IF(H27="","",COUNTIF(P$14:P27,P27)) ->  | U27: =IF(AN27="y",COUNTIF(AN$14:AN27,"y"),"") ->  | AD27: 0 | AI27: =IF(P27=0,1,INDIRECT("AgeFactors!"&Summary!$E$20&2+MATCH(P27,AgeFactors!A$3:A$52,0))) ->  | AO27: =IF(AP27="M",COUNTIF(AP$14:AP27,"M"),"") ->  | AT27: =IF(OR(AQ27="",H27="",AQ27="UA",AQ27="U/A",AQ27="Unattached"),"",IF(Q27>0,COUNTIF(AQ$14:AQ27,O27))) ->  | AV27: =IF(OR(AR27="",H27="",AR27="UA",AR27="U/A",AR27="Unattached"),"",IF(S27>0,COUNTIF(AR$14:AR27,O27))) ->  | BA27: =IF(OR(AX27="",H27="",AX27="UA",AX27="U/A",AX27="Unattached"),"",IF(AO27>0,COUNTIF(AX$14:AX27,O27))) ->  | BC27: =IF(OR(AY27="",H27="",AY27="UA",AY27="U/A",AY27="Unattached"),"",IF(R27>0,COUNTIF(AY$14:AY27,O27))) ->  | BM27: =IF(BP27="","",SUM(INDIRECT("CE21:CE"&AU$14+20))+INDIRECT("CE"&AU$14+20)/10000) ->  | BO27: 7 | BQ27: - | CH27: =IF(OR(AP27<>"M",AN27=""),"",SUMPRODUCT(--(AN$14:AN27="y"),--(AP$14:AP27="M"))) ->  | CI27: =IF(OR(AP27<>Dec!P$22,AN27=""),"",SUMPRODUCT(--(AN$14:AN27="y"),--(AP$14:AP27=Dec!P$22))) ->  | CJ27: =IF(OR(CM27<>"MV",AN27=""),"",SUMPRODUCT(--(AN$14:AN27="y"),--(CM$14:CM27="MV"))) ->  | CK27: =IF(OR(CM27<>Dec!P$22&"V",AN27=""),"",SUMPRODUCT(--(AN$14:AN27="y"),--(CM$14:CM27=Dec!P$22&"V"))) ->  | CL27: =IF(OR(AN27="",H27=""),"",SUMPRODUCT(--(AN$14:AN27="y"),--(P$14:P27=P27))) ->  | CS27: =IF(OR(CP27="",H27="",CP27="UA",CP27="U/A",CP27="Unattached"),"",IF(CI27>0,COUNTIF(CP$14:CP27,O27))) ->  | CU27: =IF(OR(CQ27="",H27="",CQ27="UA",CQ27="U/A",CQ27="Unattached"),"",IF(CK27>0,COUNTIF(CQ$14:CQ27,O27))) ->  | CZ27: =IF(OR(CW27="",H27="",CW27="UA",CW27="U/A",CW27="Unattached"),"",IF(CH27>0,COUNTIF(CW$14:CW27,O27))) ->  | DB27: =IF(OR(CX27="",H27="",CX27="UA",CX27="U/A",CX27="Unattached"),"",IF(CJ27>0,COUNTIF(CX$14:CX27,O27))) -> 
C28: =IF(AND(I28="",MAX(C$14:C27)=0),"",IF(AND(I28="",MAX(C$14:C27)>0),C27,I28)) ->  | D28: 00 | E28: 00 | F28: =MATCH(H28,Dec!L:L,0) ->  | G28: 14 | L28: 14 | Q28: =IF(AP28=Dec!P$22,COUNTIF(AP$14:AP28,Dec!P$22),"") ->  | R28: =IF(CM28="MV",COUNTIF(CM$14:CM28,"MV"),"") ->  | S28: =IF(CM28=Dec!P$22&"V",COUNTIF(CM$14:CM28,Dec!P$22&"V"),"") ->  | T28: =IF(H28="","",COUNTIF(P$14:P28,P28)) ->  | U28: =IF(AN28="y",COUNTIF(AN$14:AN28,"y"),"") ->  | AD28: 0 | AI28: =IF(P28=0,1,INDIRECT("AgeFactors!"&Summary!$E$20&2+MATCH(P28,AgeFactors!A$3:A$52,0))) ->  | AO28: =IF(AP28="M",COUNTIF(AP$14:AP28,"M"),"") ->  | AT28: =IF(OR(AQ28="",H28="",AQ28="UA",AQ28="U/A",AQ28="Unattached"),"",IF(Q28>0,COUNTIF(AQ$14:AQ28,O28))) ->  | AV28: =IF(OR(AR28="",H28="",AR28="UA",AR28="U/A",AR28="Unattached"),"",IF(S28>0,COUNTIF(AR$14:AR28,O28))) ->  | BA28: =IF(OR(AX28="",H28="",AX28="UA",AX28="U/A",AX28="Unattached"),"",IF(AO28>0,COUNTIF(AX$14:AX28,O28))) ->  | BC28: =IF(OR(AY28="",H28="",AY28="UA",AY28="U/A",AY28="Unattached"),"",IF(R28>0,COUNTIF(AY$14:AY28,O28))) ->  | BM28: =IF(BP28="","",SUM(INDIRECT("CG21:CG"&AU$14+20))+INDIRECT("CG"&AU$14+20)/10000) ->  | BO28: 8 | BQ28: - | CH28: =IF(OR(AP28<>"M",AN28=""),"",SUMPRODUCT(--(AN$14:AN28="y"),--(AP$14:AP28="M"))) ->  | CI28: =IF(OR(AP28<>Dec!P$22,AN28=""),"",SUMPRODUCT(--(AN$14:AN28="y"),--(AP$14:AP28=Dec!P$22))) ->  | CJ28: =IF(OR(CM28<>"MV",AN28=""),"",SUMPRODUCT(--(AN$14:AN28="y"),--(CM$14:CM28="MV"))) ->  | CK28: =IF(OR(CM28<>Dec!P$22&"V",AN28=""),"",SUMPRODUCT(--(AN$14:AN28="y"),--(CM$14:CM28=Dec!P$22&"V"))) ->  | CL28: =IF(OR(AN28="",H28=""),"",SUMPRODUCT(--(AN$14:AN28="y"),--(P$14:P28=P28))) ->  | CS28: =IF(OR(CP28="",H28="",CP28="UA",CP28="U/A",CP28="Unattached"),"",IF(CI28>0,COUNTIF(CP$14:CP28,O28))) ->  | CU28: =IF(OR(CQ28="",H28="",CQ28="UA",CQ28="U/A",CQ28="Unattached"),"",IF(CK28>0,COUNTIF(CQ$14:CQ28,O28))) ->  | CZ28: =IF(OR(CW28="",H28="",CW28="UA",CW28="U/A",CW28="Unattached"),"",IF(CH28>0,COUNTIF(CW$14:CW28,O28))) ->  | DB28: =IF(OR(CX28="",H28="",CX28="UA",CX28="U/A",CX28="Unattached"),"",IF(CJ28>0,COUNTIF(CX$14:CX28,O28))) -> 
C29: =IF(AND(I29="",MAX(C$14:C28)=0),"",IF(AND(I29="",MAX(C$14:C28)>0),C28,I29)) ->  | D29: 00 | E29: 00 | F29: =MATCH(H29,Dec!L:L,0) ->  | G29: 15 | L29: 15 | Q29: =IF(AP29=Dec!P$22,COUNTIF(AP$14:AP29,Dec!P$22),"") ->  | R29: =IF(CM29="MV",COUNTIF(CM$14:CM29,"MV"),"") ->  | S29: =IF(CM29=Dec!P$22&"V",COUNTIF(CM$14:CM29,Dec!P$22&"V"),"") ->  | T29: =IF(H29="","",COUNTIF(P$14:P29,P29)) ->  | U29: =IF(AN29="y",COUNTIF(AN$14:AN29,"y"),"") ->  | AD29: 0 | AI29: =IF(P29=0,1,INDIRECT("AgeFactors!"&Summary!$E$20&2+MATCH(P29,AgeFactors!A$3:A$52,0))) ->  | AO29: =IF(AP29="M",COUNTIF(AP$14:AP29,"M"),"") ->  | AT29: =IF(OR(AQ29="",H29="",AQ29="UA",AQ29="U/A",AQ29="Unattached"),"",IF(Q29>0,COUNTIF(AQ$14:AQ29,O29))) ->  | AV29: =IF(OR(AR29="",H29="",AR29="UA",AR29="U/A",AR29="Unattached"),"",IF(S29>0,COUNTIF(AR$14:AR29,O29))) ->  | BA29: =IF(OR(AX29="",H29="",AX29="UA",AX29="U/A",AX29="Unattached"),"",IF(AO29>0,COUNTIF(AX$14:AX29,O29))) ->  | BC29: =IF(OR(AY29="",H29="",AY29="UA",AY29="U/A",AY29="Unattached"),"",IF(R29>0,COUNTIF(AY$14:AY29,O29))) ->  | CH29: =IF(OR(AP29<>"M",AN29=""),"",SUMPRODUCT(--(AN$14:AN29="y"),--(AP$14:AP29="M"))) ->  | CI29: =IF(OR(AP29<>Dec!P$22,AN29=""),"",SUMPRODUCT(--(AN$14:AN29="y"),--(AP$14:AP29=Dec!P$22))) ->  | CJ29: =IF(OR(CM29<>"MV",AN29=""),"",SUMPRODUCT(--(AN$14:AN29="y"),--(CM$14:CM29="MV"))) ->  | CK29: =IF(OR(CM29<>Dec!P$22&"V",AN29=""),"",SUMPRODUCT(--(AN$14:AN29="y"),--(CM$14:CM29=Dec!P$22&"V"))) ->  | CL29: =IF(OR(AN29="",H29=""),"",SUMPRODUCT(--(AN$14:AN29="y"),--(P$14:P29=P29))) ->  | CS29: =IF(OR(CP29="",H29="",CP29="UA",CP29="U/A",CP29="Unattached"),"",IF(CI29>0,COUNTIF(CP$14:CP29,O29))) ->  | CU29: =IF(OR(CQ29="",H29="",CQ29="UA",CQ29="U/A",CQ29="Unattached"),"",IF(CK29>0,COUNTIF(CQ$14:CQ29,O29))) ->  | CZ29: =IF(OR(CW29="",H29="",CW29="UA",CW29="U/A",CW29="Unattached"),"",IF(CH29>0,COUNTIF(CW$14:CW29,O29))) ->  | DB29: =IF(OR(CX29="",H29="",CX29="UA",CX29="U/A",CX29="Unattached"),"",IF(CJ29>0,COUNTIF(CX$14:CX29,O29))) -> 
C30: =IF(AND(I30="",MAX(C$14:C29)=0),"",IF(AND(I30="",MAX(C$14:C29)>0),C29,I30)) ->  | D30: 00 | E30: 00 | F30: =MATCH(H30,Dec!L:L,0) ->  | G30: 16 | L30: 16 | Q30: =IF(AP30=Dec!P$22,COUNTIF(AP$14:AP30,Dec!P$22),"") ->  | R30: =IF(CM30="MV",COUNTIF(CM$14:CM30,"MV"),"") ->  | S30: =IF(CM30=Dec!P$22&"V",COUNTIF(CM$14:CM30,Dec!P$22&"V"),"") ->  | T30: =IF(H30="","",COUNTIF(P$14:P30,P30)) ->  | U30: =IF(AN30="y",COUNTIF(AN$14:AN30,"y"),"") ->  | AD30: 0 | AI30: =IF(P30=0,1,INDIRECT("AgeFactors!"&Summary!$E$20&2+MATCH(P30,AgeFactors!A$3:A$52,0))) ->  | AO30: =IF(AP30="M",COUNTIF(AP$14:AP30,"M"),"") ->  | AT30: =IF(OR(AQ30="",H30="",AQ30="UA",AQ30="U/A",AQ30="Unattached"),"",IF(Q30>0,COUNTIF(AQ$14:AQ30,O30))) ->  | AV30: =IF(OR(AR30="",H30="",AR30="UA",AR30="U/A",AR30="Unattached"),"",IF(S30>0,COUNTIF(AR$14:AR30,O30))) ->  | BA30: =IF(OR(AX30="",H30="",AX30="UA",AX30="U/A",AX30="Unattached"),"",IF(AO30>0,COUNTIF(AX$14:AX30,O30))) ->  | BC30: =IF(OR(AY30="",H30="",AY30="UA",AY30="U/A",AY30="Unattached"),"",IF(R30>0,COUNTIF(AY$14:AY30,O30))) ->  | BL30: Vet women | CH30: =IF(OR(AP30<>"M",AN30=""),"",SUMPRODUCT(--(AN$14:AN30="y"),--(AP$14:AP30="M"))) ->  | CI30: =IF(OR(AP30<>Dec!P$22,AN30=""),"",SUMPRODUCT(--(AN$14:AN30="y"),--(AP$14:AP30=Dec!P$22))) ->  | CJ30: =IF(OR(CM30<>"MV",AN30=""),"",SUMPRODUCT(--(AN$14:AN30="y"),--(CM$14:CM30="MV"))) ->  | CK30: =IF(OR(CM30<>Dec!P$22&"V",AN30=""),"",SUMPRODUCT(--(AN$14:AN30="y"),--(CM$14:CM30=Dec!P$22&"V"))) ->  | CL30: =IF(OR(AN30="",H30=""),"",SUMPRODUCT(--(AN$14:AN30="y"),--(P$14:P30=P30))) ->  | CS30: =IF(OR(CP30="",H30="",CP30="UA",CP30="U/A",CP30="Unattached"),"",IF(CI30>0,COUNTIF(CP$14:CP30,O30))) ->  | CU30: =IF(OR(CQ30="",H30="",CQ30="UA",CQ30="U/A",CQ30="Unattached"),"",IF(CK30>0,COUNTIF(CQ$14:CQ30,O30))) ->  | CZ30: =IF(OR(CW30="",H30="",CW30="UA",CW30="U/A",CW30="Unattached"),"",IF(CH30>0,COUNTIF(CW$14:CW30,O30))) ->  | DB30: =IF(OR(CX30="",H30="",CX30="UA",CX30="U/A",CX30="Unattached"),"",IF(CJ30>0,COUNTIF(CX$14:CX30,O30))) -> 
C31: =IF(AND(I31="",MAX(C$14:C30)=0),"",IF(AND(I31="",MAX(C$14:C30)>0),C30,I31)) ->  | D31: 00 | E31: 00 | F31: =MATCH(H31,Dec!L:L,0) ->  | G31: 17 | L31: 17 | Q31: =IF(AP31=Dec!P$22,COUNTIF(AP$14:AP31,Dec!P$22),"") ->  | R31: =IF(CM31="MV",COUNTIF(CM$14:CM31,"MV"),"") ->  | S31: =IF(CM31=Dec!P$22&"V",COUNTIF(CM$14:CM31,Dec!P$22&"V"),"") ->  | T31: =IF(H31="","",COUNTIF(P$14:P31,P31)) ->  | U31: =IF(AN31="y",COUNTIF(AN$14:AN31,"y"),"") ->  | AD31: 0 | AI31: =IF(P31=0,1,INDIRECT("AgeFactors!"&Summary!$E$20&2+MATCH(P31,AgeFactors!A$3:A$52,0))) ->  | AO31: =IF(AP31="M",COUNTIF(AP$14:AP31,"M"),"") ->  | AT31: =IF(OR(AQ31="",H31="",AQ31="UA",AQ31="U/A",AQ31="Unattached"),"",IF(Q31>0,COUNTIF(AQ$14:AQ31,O31))) ->  | AV31: =IF(OR(AR31="",H31="",AR31="UA",AR31="U/A",AR31="Unattached"),"",IF(S31>0,COUNTIF(AR$14:AR31,O31))) ->  | BA31: =IF(OR(AX31="",H31="",AX31="UA",AX31="U/A",AX31="Unattached"),"",IF(AO31>0,COUNTIF(AX$14:AX31,O31))) ->  | BC31: =IF(OR(AY31="",H31="",AY31="UA",AY31="U/A",AY31="Unattached"),"",IF(R31>0,COUNTIF(AY$14:AY31,O31))) ->  | BL31: =RANK(BM31,BM$31:BM$38,1) ->  | BM31: =IF(AW13=0,"",SUM(INDIRECT("BS31:BS"&AW$14+30))+INDIRECT("BS"&AW$14+30)/10000) ->  | BO31: 1 | BP31: =IF(AW13=0,"",SMALL(AW$15:AW$5014,BO31)) ->  | BQ31: =IF(BP31="","-",INDIRECT("results!o"&BP31)) -> - | BR31: =MATCH($BQ31,$AR$15:$AR$5014,0) ->  | BS31: =14+BR31 ->  | BT31: =MATCH($BQ32,$AR$15:$AR$5014,0) ->  | BU31: =14+BT31 ->  | BV31: =MATCH($BQ33,$AR$15:$AR$5014,0) ->  | BW31: =14+BV31 ->  | BX31: =MATCH($BQ34,$AR$15:$AR$5014,0) ->  | BY31: =14+BX31 ->  | BZ31: =MATCH($BQ35,$AR$15:$AR$5014,0) ->  | CA31: =14+BZ31 ->  | CB31: =MATCH($BQ36,$AR$15:$AR$5014,0) ->  | CC31: =14+CB31 ->  | CD31: =MATCH($BQ37,$AR$15:$AR$5014,0) ->  | CE31: =14+CD31 ->  | CF31: =MATCH($BQ38,$AR$15:$AR$5014,0) ->  | CG31: =14+CF31 ->  | CH31: =IF(OR(AP31<>"M",AN31=""),"",SUMPRODUCT(--(AN$14:AN31="y"),--(AP$14:AP31="M"))) ->  | CI31: =IF(OR(AP31<>Dec!P$22,AN31=""),"",SUMPRODUCT(--(AN$14:AN31="y"),--(AP$14:AP31=Dec!P$22))) ->  | CJ31: =IF(OR(CM31<>"MV",AN31=""),"",SUMPRODUCT(--(AN$14:AN31="y"),--(CM$14:CM31="MV"))) ->  | CK31: =IF(OR(CM31<>Dec!P$22&"V",AN31=""),"",SUMPRODUCT(--(AN$14:AN31="y"),--(CM$14:CM31=Dec!P$22&"V"))) ->  | CL31: =IF(OR(AN31="",H31=""),"",SUMPRODUCT(--(AN$14:AN31="y"),--(P$14:P31=P31))) ->  | CS31: =IF(OR(CP31="",H31="",CP31="UA",CP31="U/A",CP31="Unattached"),"",IF(CI31>0,COUNTIF(CP$14:CP31,O31))) ->  | CU31: =IF(OR(CQ31="",H31="",CQ31="UA",CQ31="U/A",CQ31="Unattached"),"",IF(CK31>0,COUNTIF(CQ$14:CQ31,O31))) ->  | CZ31: =IF(OR(CW31="",H31="",CW31="UA",CW31="U/A",CW31="Unattached"),"",IF(CH31>0,COUNTIF(CW$14:CW31,O31))) ->  | DB31: =IF(OR(CX31="",H31="",CX31="UA",CX31="U/A",CX31="Unattached"),"",IF(CJ31>0,COUNTIF(CX$14:CX31,O31))) -> 
C32: =IF(AND(I32="",MAX(C$14:C31)=0),"",IF(AND(I32="",MAX(C$14:C31)>0),C31,I32)) ->  | D32: 00 | E32: 00 | F32: =MATCH(H32,Dec!L:L,0) ->  | G32: 18 | L32: 18 | Q32: =IF(AP32=Dec!P$22,COUNTIF(AP$14:AP32,Dec!P$22),"") ->  | R32: =IF(CM32="MV",COUNTIF(CM$14:CM32,"MV"),"") ->  | S32: =IF(CM32=Dec!P$22&"V",COUNTIF(CM$14:CM32,Dec!P$22&"V"),"") ->  | T32: =IF(H32="","",COUNTIF(P$14:P32,P32)) ->  | U32: =IF(AN32="y",COUNTIF(AN$14:AN32,"y"),"") ->  | AD32: 0 | AI32: =IF(P32=0,1,INDIRECT("AgeFactors!"&Summary!$E$20&2+MATCH(P32,AgeFactors!A$3:A$52,0))) ->  | AO32: =IF(AP32="M",COUNTIF(AP$14:AP32,"M"),"") ->  | AT32: =IF(OR(AQ32="",H32="",AQ32="UA",AQ32="U/A",AQ32="Unattached"),"",IF(Q32>0,COUNTIF(AQ$14:AQ32,O32))) ->  | AV32: =IF(OR(AR32="",H32="",AR32="UA",AR32="U/A",AR32="Unattached"),"",IF(S32>0,COUNTIF(AR$14:AR32,O32))) ->  | BA32: =IF(OR(AX32="",H32="",AX32="UA",AX32="U/A",AX32="Unattached"),"",IF(AO32>0,COUNTIF(AX$14:AX32,O32))) ->  | BC32: =IF(OR(AY32="",H32="",AY32="UA",AY32="U/A",AY32="Unattached"),"",IF(R32>0,COUNTIF(AY$14:AY32,O32))) ->  | BE32: 3 | BF32: =Winners!F127 -> - | BG32: =MATCH(BF32,AX$15:AX$5014,0) ->  | BH32: =14+BG32 ->  | BI32: =SCWinners!F127 -> - | BJ32: =MATCH(BI32,CW$15:CW$5014,0) ->  | BK32: =14+BJ32 ->  | BM32: =IF(BP32="","",SUM(INDIRECT("BU31:BU"&AW$14+30))+INDIRECT("BU"&AW$14+30)/10000) ->  | BO32: 2 | BP32: =IF(AW$13<BO32,"",SMALL(AW$15:AW$5014,BO32)) ->  | BQ32: - | BR32: =MATCH(BQ$31,INDIRECT("AR"&BS31+1&":AR5014"),0) ->  | BS32: =BS31+BR32 ->  | BT32: =MATCH($BQ$32,INDIRECT("AR"&BU31+1&":AR5014"),0) ->  | BU32: =BU31+BT32 ->  | BV32: =MATCH($BQ$33,INDIRECT("AR"&BW31+1&":AR5014"),0) ->  | BW32: =BW31+BV32 ->  | BX32: =MATCH($BQ$34,INDIRECT("AR"&BY31+1&":AR5014"),0) ->  | BY32: =BY31+BX32 ->  | BZ32: =MATCH($BQ$35,INDIRECT("AR"&CA31+1&":AR5014"),0) ->  | CA32: =CA31+BZ32 ->  | CB32: =MATCH($BQ$36,INDIRECT("AR"&CC31+1&":AR5014"),0) ->  | CC32: =CC31+CB32 ->  | CD32: =MATCH($BQ$37,INDIRECT("AR"&CE31+1&":AR5014"),0) ->  | CE32: =CE31+CD32 ->  | CF32: =MATCH($BQ$38,INDIRECT("AR"&CG31+1&":AR5014"),0) ->  | CG32: =CG31+CF32 ->  | CH32: =IF(OR(AP32<>"M",AN32=""),"",SUMPRODUCT(--(AN$14:AN32="y"),--(AP$14:AP32="M"))) ->  | CI32: =IF(OR(AP32<>Dec!P$22,AN32=""),"",SUMPRODUCT(--(AN$14:AN32="y"),--(AP$14:AP32=Dec!P$22))) ->  | CJ32: =IF(OR(CM32<>"MV",AN32=""),"",SUMPRODUCT(--(AN$14:AN32="y"),--(CM$14:CM32="MV"))) ->  | CK32: =IF(OR(CM32<>Dec!P$22&"V",AN32=""),"",SUMPRODUCT(--(AN$14:AN32="y"),--(CM$14:CM32=Dec!P$22&"V"))) ->  | CL32: =IF(OR(AN32="",H32=""),"",SUMPRODUCT(--(AN$14:AN32="y"),--(P$14:P32=P32))) ->  | CS32: =IF(OR(CP32="",H32="",CP32="UA",CP32="U/A",CP32="Unattached"),"",IF(CI32>0,COUNTIF(CP$14:CP32,O32))) ->  | CU32: =IF(OR(CQ32="",H32="",CQ32="UA",CQ32="U/A",CQ32="Unattached"),"",IF(CK32>0,COUNTIF(CQ$14:CQ32,O32))) ->  | CZ32: =IF(OR(CW32="",H32="",CW32="UA",CW32="U/A",CW32="Unattached"),"",IF(CH32>0,COUNTIF(CW$14:CW32,O32))) ->  | DB32: =IF(OR(CX32="",H32="",CX32="UA",CX32="U/A",CX32="Unattached"),"",IF(CJ32>0,COUNTIF(CX$14:CX32,O32))) -> 
C33: =IF(AND(I33="",MAX(C$14:C32)=0),"",IF(AND(I33="",MAX(C$14:C32)>0),C32,I33)) ->  | D33: 00 | E33: 00 | F33: =MATCH(H33,Dec!L:L,0) ->  | G33: 19 | L33: 19 | Q33: =IF(AP33=Dec!P$22,COUNTIF(AP$14:AP33,Dec!P$22),"") ->  | R33: =IF(CM33="MV",COUNTIF(CM$14:CM33,"MV"),"") ->  | S33: =IF(CM33=Dec!P$22&"V",COUNTIF(CM$14:CM33,Dec!P$22&"V"),"") ->  | T33: =IF(H33="","",COUNTIF(P$14:P33,P33)) ->  | U33: =IF(AN33="y",COUNTIF(AN$14:AN33,"y"),"") ->  | AD33: 0 | AI33: =IF(P33=0,1,INDIRECT("AgeFactors!"&Summary!$E$20&2+MATCH(P33,AgeFactors!A$3:A$52,0))) ->  | AO33: =IF(AP33="M",COUNTIF(AP$14:AP33,"M"),"") ->  | AT33: =IF(OR(AQ33="",H33="",AQ33="UA",AQ33="U/A",AQ33="Unattached"),"",IF(Q33>0,COUNTIF(AQ$14:AQ33,O33))) ->  | AV33: =IF(OR(AR33="",H33="",AR33="UA",AR33="U/A",AR33="Unattached"),"",IF(S33>0,COUNTIF(AR$14:AR33,O33))) ->  | BA33: =IF(OR(AX33="",H33="",AX33="UA",AX33="U/A",AX33="Unattached"),"",IF(AO33>0,COUNTIF(AX$14:AX33,O33))) ->  | BC33: =IF(OR(AY33="",H33="",AY33="UA",AY33="U/A",AY33="Unattached"),"",IF(R33>0,COUNTIF(AY$14:AY33,O33))) ->  | BG33: =MATCH(BF$32,INDIRECT("AX"&BH32+1&":AX5014"),0) ->  | BH33: =BH32+BG33 ->  | BJ33: =MATCH(BI$32,INDIRECT("CW"&BK32+1&":CW5014"),0) ->  | BK33: =BK32+BJ33 ->  | BM33: =IF(BP33="","",SUM(INDIRECT("BW31:BW"&AW$14+30))+INDIRECT("BW"&AW$14+30)/10000) ->  | BO33: 3 | BQ33: - | CH33: =IF(OR(AP33<>"M",AN33=""),"",SUMPRODUCT(--(AN$14:AN33="y"),--(AP$14:AP33="M"))) ->  | CI33: =IF(OR(AP33<>Dec!P$22,AN33=""),"",SUMPRODUCT(--(AN$14:AN33="y"),--(AP$14:AP33=Dec!P$22))) ->  | CJ33: =IF(OR(CM33<>"MV",AN33=""),"",SUMPRODUCT(--(AN$14:AN33="y"),--(CM$14:CM33="MV"))) ->  | CK33: =IF(OR(CM33<>Dec!P$22&"V",AN33=""),"",SUMPRODUCT(--(AN$14:AN33="y"),--(CM$14:CM33=Dec!P$22&"V"))) ->  | CL33: =IF(OR(AN33="",H33=""),"",SUMPRODUCT(--(AN$14:AN33="y"),--(P$14:P33=P33))) ->  | CS33: =IF(OR(CP33="",H33="",CP33="UA",CP33="U/A",CP33="Unattached"),"",IF(CI33>0,COUNTIF(CP$14:CP33,O33))) ->  | CU33: =IF(OR(CQ33="",H33="",CQ33="UA",CQ33="U/A",CQ33="Unattached"),"",IF(CK33>0,COUNTIF(CQ$14:CQ33,O33))) ->  | CZ33: =IF(OR(CW33="",H33="",CW33="UA",CW33="U/A",CW33="Unattached"),"",IF(CH33>0,COUNTIF(CW$14:CW33,O33))) ->  | DB33: =IF(OR(CX33="",H33="",CX33="UA",CX33="U/A",CX33="Unattached"),"",IF(CJ33>0,COUNTIF(CX$14:CX33,O33))) -> 
C34: =IF(AND(I34="",MAX(C$14:C33)=0),"",IF(AND(I34="",MAX(C$14:C33)>0),C33,I34)) ->  | D34: 00 | E34: 00 | F34: =MATCH(H34,Dec!L:L,0) ->  | G34: 20 | L34: 20 | Q34: =IF(AP34=Dec!P$22,COUNTIF(AP$14:AP34,Dec!P$22),"") ->  | R34: =IF(CM34="MV",COUNTIF(CM$14:CM34,"MV"),"") ->  | S34: =IF(CM34=Dec!P$22&"V",COUNTIF(CM$14:CM34,Dec!P$22&"V"),"") ->  | T34: =IF(H34="","",COUNTIF(P$14:P34,P34)) ->  | U34: =IF(AN34="y",COUNTIF(AN$14:AN34,"y"),"") ->  | AD34: 0 | AI34: =IF(P34=0,1,INDIRECT("AgeFactors!"&Summary!$E$20&2+MATCH(P34,AgeFactors!A$3:A$52,0))) ->  | AO34: =IF(AP34="M",COUNTIF(AP$14:AP34,"M"),"") ->  | AT34: =IF(OR(AQ34="",H34="",AQ34="UA",AQ34="U/A",AQ34="Unattached"),"",IF(Q34>0,COUNTIF(AQ$14:AQ34,O34))) ->  | AV34: =IF(OR(AR34="",H34="",AR34="UA",AR34="U/A",AR34="Unattached"),"",IF(S34>0,COUNTIF(AR$14:AR34,O34))) ->  | BA34: =IF(OR(AX34="",H34="",AX34="UA",AX34="U/A",AX34="Unattached"),"",IF(AO34>0,COUNTIF(AX$14:AX34,O34))) ->  | BC34: =IF(OR(AY34="",H34="",AY34="UA",AY34="U/A",AY34="Unattached"),"",IF(R34>0,COUNTIF(AY$14:AY34,O34))) ->  | BH34: =BH33+BG34 ->  | BK34: =BK33+BJ34 ->  | BM34: =IF(BP34="","",SUM(INDIRECT("BY31:BY"&AW$14+30))+INDIRECT("BY"&AW$14+30)/10000) ->  | BO34: 4 | BQ34: - | CH34: =IF(OR(AP34<>"M",AN34=""),"",SUMPRODUCT(--(AN$14:AN34="y"),--(AP$14:AP34="M"))) ->  | CI34: =IF(OR(AP34<>Dec!P$22,AN34=""),"",SUMPRODUCT(--(AN$14:AN34="y"),--(AP$14:AP34=Dec!P$22))) ->  | CJ34: =IF(OR(CM34<>"MV",AN34=""),"",SUMPRODUCT(--(AN$14:AN34="y"),--(CM$14:CM34="MV"))) ->  | CK34: =IF(OR(CM34<>Dec!P$22&"V",AN34=""),"",SUMPRODUCT(--(AN$14:AN34="y"),--(CM$14:CM34=Dec!P$22&"V"))) ->  | CL34: =IF(OR(AN34="",H34=""),"",SUMPRODUCT(--(AN$14:AN34="y"),--(P$14:P34=P34))) ->  | CS34: =IF(OR(CP34="",H34="",CP34="UA",CP34="U/A",CP34="Unattached"),"",IF(CI34>0,COUNTIF(CP$14:CP34,O34))) ->  | CU34: =IF(OR(CQ34="",H34="",CQ34="UA",CQ34="U/A",CQ34="Unattached"),"",IF(CK34>0,COUNTIF(CQ$14:CQ34,O34))) ->  | CZ34: =IF(OR(CW34="",H34="",CW34="UA",CW34="U/A",CW34="Unattached"),"",IF(CH34>0,COUNTIF(CW$14:CW34,O34))) ->  | DB34: =IF(OR(CX34="",H34="",CX34="UA",CX34="U/A",CX34="Unattached"),"",IF(CJ34>0,COUNTIF(CX$14:CX34,O34))) -> 
C35: =IF(AND(I35="",MAX(C$14:C34)=0),"",IF(AND(I35="",MAX(C$14:C34)>0),C34,I35)) ->  | D35: 00 | E35: 00 | F35: =MATCH(H35,Dec!L:L,0) ->  | G35: 21 | L35: 21 | Q35: =IF(AP35=Dec!P$22,COUNTIF(AP$14:AP35,Dec!P$22),"") ->  | R35: =IF(CM35="MV",COUNTIF(CM$14:CM35,"MV"),"") ->  | S35: =IF(CM35=Dec!P$22&"V",COUNTIF(CM$14:CM35,Dec!P$22&"V"),"") ->  | T35: =IF(H35="","",COUNTIF(P$14:P35,P35)) ->  | U35: =IF(AN35="y",COUNTIF(AN$14:AN35,"y"),"") ->  | AD35: 0 | AI35: =IF(P35=0,1,INDIRECT("AgeFactors!"&Summary!$E$20&2+MATCH(P35,AgeFactors!A$3:A$52,0))) ->  | AO35: =IF(AP35="M",COUNTIF(AP$14:AP35,"M"),"") ->  | AT35: =IF(OR(AQ35="",H35="",AQ35="UA",AQ35="U/A",AQ35="Unattached"),"",IF(Q35>0,COUNTIF(AQ$14:AQ35,O35))) ->  | AV35: =IF(OR(AR35="",H35="",AR35="UA",AR35="U/A",AR35="Unattached"),"",IF(S35>0,COUNTIF(AR$14:AR35,O35))) ->  | BA35: =IF(OR(AX35="",H35="",AX35="UA",AX35="U/A",AX35="Unattached"),"",IF(AO35>0,COUNTIF(AX$14:AX35,O35))) ->  | BC35: =IF(OR(AY35="",H35="",AY35="UA",AY35="U/A",AY35="Unattached"),"",IF(R35>0,COUNTIF(AY$14:AY35,O35))) ->  | BM35: =IF(BP35="","",SUM(INDIRECT("CA31:CA"&AW$14+30))+INDIRECT("CA"&AW$14+30)/10000) ->  | BO35: 5 | BQ35: - | CH35: =IF(OR(AP35<>"M",AN35=""),"",SUMPRODUCT(--(AN$14:AN35="y"),--(AP$14:AP35="M"))) ->  | CI35: =IF(OR(AP35<>Dec!P$22,AN35=""),"",SUMPRODUCT(--(AN$14:AN35="y"),--(AP$14:AP35=Dec!P$22))) ->  | CJ35: =IF(OR(CM35<>"MV",AN35=""),"",SUMPRODUCT(--(AN$14:AN35="y"),--(CM$14:CM35="MV"))) ->  | CK35: =IF(OR(CM35<>Dec!P$22&"V",AN35=""),"",SUMPRODUCT(--(AN$14:AN35="y"),--(CM$14:CM35=Dec!P$22&"V"))) ->  | CL35: =IF(OR(AN35="",H35=""),"",SUMPRODUCT(--(AN$14:AN35="y"),--(P$14:P35=P35))) ->  | CS35: =IF(OR(CP35="",H35="",CP35="UA",CP35="U/A",CP35="Unattached"),"",IF(CI35>0,COUNTIF(CP$14:CP35,O35))) ->  | CU35: =IF(OR(CQ35="",H35="",CQ35="UA",CQ35="U/A",CQ35="Unattached"),"",IF(CK35>0,COUNTIF(CQ$14:CQ35,O35))) ->  | CZ35: =IF(OR(CW35="",H35="",CW35="UA",CW35="U/A",CW35="Unattached"),"",IF(CH35>0,COUNTIF(CW$14:CW35,O35))) ->  | DB35: =IF(OR(CX35="",H35="",CX35="UA",CX35="U/A",CX35="Unattached"),"",IF(CJ35>0,COUNTIF(CX$14:CX35,O35))) -> 
C36: =IF(AND(I36="",MAX(C$14:C35)=0),"",IF(AND(I36="",MAX(C$14:C35)>0),C35,I36)) ->  | D36: 00 | E36: 00 | F36: =MATCH(H36,Dec!L:L,0) ->  | G36: 22 | L36: 22 | Q36: =IF(AP36=Dec!P$22,COUNTIF(AP$14:AP36,Dec!P$22),"") ->  | R36: =IF(CM36="MV",COUNTIF(CM$14:CM36,"MV"),"") ->  | S36: =IF(CM36=Dec!P$22&"V",COUNTIF(CM$14:CM36,Dec!P$22&"V"),"") ->  | T36: =IF(H36="","",COUNTIF(P$14:P36,P36)) ->  | U36: =IF(AN36="y",COUNTIF(AN$14:AN36,"y"),"") ->  | AD36: 0 | AI36: =IF(P36=0,1,INDIRECT("AgeFactors!"&Summary!$E$20&2+MATCH(P36,AgeFactors!A$3:A$52,0))) ->  | AO36: =IF(AP36="M",COUNTIF(AP$14:AP36,"M"),"") ->  | AT36: =IF(OR(AQ36="",H36="",AQ36="UA",AQ36="U/A",AQ36="Unattached"),"",IF(Q36>0,COUNTIF(AQ$14:AQ36,O36))) ->  | AV36: =IF(OR(AR36="",H36="",AR36="UA",AR36="U/A",AR36="Unattached"),"",IF(S36>0,COUNTIF(AR$14:AR36,O36))) ->  | BA36: =IF(OR(AX36="",H36="",AX36="UA",AX36="U/A",AX36="Unattached"),"",IF(AO36>0,COUNTIF(AX$14:AX36,O36))) ->  | BC36: =IF(OR(AY36="",H36="",AY36="UA",AY36="U/A",AY36="Unattached"),"",IF(R36>0,COUNTIF(AY$14:AY36,O36))) ->  | BM36: =IF(BP36="","",SUM(INDIRECT("CC31:CC"&AW$14+30))+INDIRECT("CC"&AW$14+30)/10000) ->  | BO36: 6 | BQ36: - | CH36: =IF(OR(AP36<>"M",AN36=""),"",SUMPRODUCT(--(AN$14:AN36="y"),--(AP$14:AP36="M"))) ->  | CI36: =IF(OR(AP36<>Dec!P$22,AN36=""),"",SUMPRODUCT(--(AN$14:AN36="y"),--(AP$14:AP36=Dec!P$22))) ->  | CJ36: =IF(OR(CM36<>"MV",AN36=""),"",SUMPRODUCT(--(AN$14:AN36="y"),--(CM$14:CM36="MV"))) ->  | CK36: =IF(OR(CM36<>Dec!P$22&"V",AN36=""),"",SUMPRODUCT(--(AN$14:AN36="y"),--(CM$14:CM36=Dec!P$22&"V"))) ->  | CL36: =IF(OR(AN36="",H36=""),"",SUMPRODUCT(--(AN$14:AN36="y"),--(P$14:P36=P36))) ->  | CS36: =IF(OR(CP36="",H36="",CP36="UA",CP36="U/A",CP36="Unattached"),"",IF(CI36>0,COUNTIF(CP$14:CP36,O36))) ->  | CU36: =IF(OR(CQ36="",H36="",CQ36="UA",CQ36="U/A",CQ36="Unattached"),"",IF(CK36>0,COUNTIF(CQ$14:CQ36,O36))) ->  | CZ36: =IF(OR(CW36="",H36="",CW36="UA",CW36="U/A",CW36="Unattached"),"",IF(CH36>0,COUNTIF(CW$14:CW36,O36))) ->  | DB36: =IF(OR(CX36="",H36="",CX36="UA",CX36="U/A",CX36="Unattached"),"",IF(CJ36>0,COUNTIF(CX$14:CX36,O36))) -> 
C37: =IF(AND(I37="",MAX(C$14:C36)=0),"",IF(AND(I37="",MAX(C$14:C36)>0),C36,I37)) ->  | D37: 00 | E37: 00 | F37: =MATCH(H37,Dec!L:L,0) ->  | G37: 23 | L37: 23 | Q37: =IF(AP37=Dec!P$22,COUNTIF(AP$14:AP37,Dec!P$22),"") ->  | R37: =IF(CM37="MV",COUNTIF(CM$14:CM37,"MV"),"") ->  | S37: =IF(CM37=Dec!P$22&"V",COUNTIF(CM$14:CM37,Dec!P$22&"V"),"") ->  | T37: =IF(H37="","",COUNTIF(P$14:P37,P37)) ->  | U37: =IF(AN37="y",COUNTIF(AN$14:AN37,"y"),"") ->  | AD37: 0 | AI37: =IF(P37=0,1,INDIRECT("AgeFactors!"&Summary!$E$20&2+MATCH(P37,AgeFactors!A$3:A$52,0))) ->  | AO37: =IF(AP37="M",COUNTIF(AP$14:AP37,"M"),"") ->  | AT37: =IF(OR(AQ37="",H37="",AQ37="UA",AQ37="U/A",AQ37="Unattached"),"",IF(Q37>0,COUNTIF(AQ$14:AQ37,O37))) ->  | AV37: =IF(OR(AR37="",H37="",AR37="UA",AR37="U/A",AR37="Unattached"),"",IF(S37>0,COUNTIF(AR$14:AR37,O37))) ->  | BA37: =IF(OR(AX37="",H37="",AX37="UA",AX37="U/A",AX37="Unattached"),"",IF(AO37>0,COUNTIF(AX$14:AX37,O37))) ->  | BC37: =IF(OR(AY37="",H37="",AY37="UA",AY37="U/A",AY37="Unattached"),"",IF(R37>0,COUNTIF(AY$14:AY37,O37))) ->  | BM37: =IF(BP37="","",SUM(INDIRECT("CE31:CE"&AW$14+30))+INDIRECT("CE"&AW$14+30)/10000) ->  | BO37: 7 | BQ37: - | CH37: =IF(OR(AP37<>"M",AN37=""),"",SUMPRODUCT(--(AN$14:AN37="y"),--(AP$14:AP37="M"))) ->  | CI37: =IF(OR(AP37<>Dec!P$22,AN37=""),"",SUMPRODUCT(--(AN$14:AN37="y"),--(AP$14:AP37=Dec!P$22))) ->  | CJ37: =IF(OR(CM37<>"MV",AN37=""),"",SUMPRODUCT(--(AN$14:AN37="y"),--(CM$14:CM37="MV"))) ->  | CK37: =IF(OR(CM37<>Dec!P$22&"V",AN37=""),"",SUMPRODUCT(--(AN$14:AN37="y"),--(CM$14:CM37=Dec!P$22&"V"))) ->  | CL37: =IF(OR(AN37="",H37=""),"",SUMPRODUCT(--(AN$14:AN37="y"),--(P$14:P37=P37))) ->  | CS37: =IF(OR(CP37="",H37="",CP37="UA",CP37="U/A",CP37="Unattached"),"",IF(CI37>0,COUNTIF(CP$14:CP37,O37))) ->  | CU37: =IF(OR(CQ37="",H37="",CQ37="UA",CQ37="U/A",CQ37="Unattached"),"",IF(CK37>0,COUNTIF(CQ$14:CQ37,O37))) ->  | CZ37: =IF(OR(CW37="",H37="",CW37="UA",CW37="U/A",CW37="Unattached"),"",IF(CH37>0,COUNTIF(CW$14:CW37,O37))) ->  | DB37: =IF(OR(CX37="",H37="",CX37="UA",CX37="U/A",CX37="Unattached"),"",IF(CJ37>0,COUNTIF(CX$14:CX37,O37))) -> 
C38: =IF(AND(I38="",MAX(C$14:C37)=0),"",IF(AND(I38="",MAX(C$14:C37)>0),C37,I38)) ->  | D38: 00 | E38: 00 | F38: =MATCH(H38,Dec!L:L,0) ->  | G38: 24 | L38: 24 | Q38: =IF(AP38=Dec!P$22,COUNTIF(AP$14:AP38,Dec!P$22),"") ->  | R38: =IF(CM38="MV",COUNTIF(CM$14:CM38,"MV"),"") ->  | S38: =IF(CM38=Dec!P$22&"V",COUNTIF(CM$14:CM38,Dec!P$22&"V"),"") ->  | T38: =IF(H38="","",COUNTIF(P$14:P38,P38)) ->  | U38: =IF(AN38="y",COUNTIF(AN$14:AN38,"y"),"") ->  | AD38: 0 | AI38: =IF(P38=0,1,INDIRECT("AgeFactors!"&Summary!$E$20&2+MATCH(P38,AgeFactors!A$3:A$52,0))) ->  | AO38: =IF(AP38="M",COUNTIF(AP$14:AP38,"M"),"") ->  | AT38: =IF(OR(AQ38="",H38="",AQ38="UA",AQ38="U/A",AQ38="Unattached"),"",IF(Q38>0,COUNTIF(AQ$14:AQ38,O38))) ->  | AV38: =IF(OR(AR38="",H38="",AR38="UA",AR38="U/A",AR38="Unattached"),"",IF(S38>0,COUNTIF(AR$14:AR38,O38))) ->  | BA38: =IF(OR(AX38="",H38="",AX38="UA",AX38="U/A",AX38="Unattached"),"",IF(AO38>0,COUNTIF(AX$14:AX38,O38))) ->  | BC38: =IF(OR(AY38="",H38="",AY38="UA",AY38="U/A",AY38="Unattached"),"",IF(R38>0,COUNTIF(AY$14:AY38,O38))) ->  | BM38: =IF(BP38="","",SUM(INDIRECT("CG31:CG"&AW$14+30))+INDIRECT("CG"&AW$14+30)/10000) ->  | BO38: 8 | BQ38: - | CH38: =IF(OR(AP38<>"M",AN38=""),"",SUMPRODUCT(--(AN$14:AN38="y"),--(AP$14:AP38="M"))) ->  | CI38: =IF(OR(AP38<>Dec!P$22,AN38=""),"",SUMPRODUCT(--(AN$14:AN38="y"),--(AP$14:AP38=Dec!P$22))) ->  | CJ38: =IF(OR(CM38<>"MV",AN38=""),"",SUMPRODUCT(--(AN$14:AN38="y"),--(CM$14:CM38="MV"))) ->  | CK38: =IF(OR(CM38<>Dec!P$22&"V",AN38=""),"",SUMPRODUCT(--(AN$14:AN38="y"),--(CM$14:CM38=Dec!P$22&"V"))) ->  | CL38: =IF(OR(AN38="",H38=""),"",SUMPRODUCT(--(AN$14:AN38="y"),--(P$14:P38=P38))) ->  | CS38: =IF(OR(CP38="",H38="",CP38="UA",CP38="U/A",CP38="Unattached"),"",IF(CI38>0,COUNTIF(CP$14:CP38,O38))) ->  | CU38: =IF(OR(CQ38="",H38="",CQ38="UA",CQ38="U/A",CQ38="Unattached"),"",IF(CK38>0,COUNTIF(CQ$14:CQ38,O38))) ->  | CZ38: =IF(OR(CW38="",H38="",CW38="UA",CW38="U/A",CW38="Unattached"),"",IF(CH38>0,COUNTIF(CW$14:CW38,O38))) ->  | DB38: =IF(OR(CX38="",H38="",CX38="UA",CX38="U/A",CX38="Unattached"),"",IF(CJ38>0,COUNTIF(CX$14:CX38,O38))) -> 
C39: =IF(AND(I39="",MAX(C$14:C38)=0),"",IF(AND(I39="",MAX(C$14:C38)>0),C38,I39)) ->  | D39: 00 | E39: 00 | F39: =MATCH(H39,Dec!L:L,0) ->  | G39: 25 | L39: 25 | Q39: =IF(AP39=Dec!P$22,COUNTIF(AP$14:AP39,Dec!P$22),"") ->  | R39: =IF(CM39="MV",COUNTIF(CM$14:CM39,"MV"),"") ->  | S39: =IF(CM39=Dec!P$22&"V",COUNTIF(CM$14:CM39,Dec!P$22&"V"),"") ->  | T39: =IF(H39="","",COUNTIF(P$14:P39,P39)) ->  | U39: =IF(AN39="y",COUNTIF(AN$14:AN39,"y"),"") ->  | AD39: 0 | AG39: =ROUNDDOWN(((AE39-3600*ROUNDDOWN(AE39/3600,0))/60),0) ->  | AH39: =(AE39-60*ROUNDDOWN(AE39/60,0)) ->  | AI39: =IF(P39=0,1,INDIRECT("AgeFactors!"&Summary!$E$20&2+MATCH(P39,AgeFactors!A$3:A$52,0))) ->  | AO39: =IF(AP39="M",COUNTIF(AP$14:AP39,"M"),"") ->  | AT39: =IF(OR(AQ39="",H39="",AQ39="UA",AQ39="U/A",AQ39="Unattached"),"",IF(Q39>0,COUNTIF(AQ$14:AQ39,O39))) ->  | AV39: =IF(OR(AR39="",H39="",AR39="UA",AR39="U/A",AR39="Unattached"),"",IF(S39>0,COUNTIF(AR$14:AR39,O39))) ->  | BA39: =IF(OR(AX39="",H39="",AX39="UA",AX39="U/A",AX39="Unattached"),"",IF(AO39>0,COUNTIF(AX$14:AX39,O39))) ->  | BC39: =IF(OR(AY39="",H39="",AY39="UA",AY39="U/A",AY39="Unattached"),"",IF(R39>0,COUNTIF(AY$14:AY39,O39))) ->  | CH39: =IF(OR(AP39<>"M",AN39=""),"",SUMPRODUCT(--(AN$14:AN39="y"),--(AP$14:AP39="M"))) ->  | CI39: =IF(OR(AP39<>Dec!P$22,AN39=""),"",SUMPRODUCT(--(AN$14:AN39="y"),--(AP$14:AP39=Dec!P$22))) ->  | CJ39: =IF(OR(CM39<>"MV",AN39=""),"",SUMPRODUCT(--(AN$14:AN39="y"),--(CM$14:CM39="MV"))) ->  | CK39: =IF(OR(CM39<>Dec!P$22&"V",AN39=""),"",SUMPRODUCT(--(AN$14:AN39="y"),--(CM$14:CM39=Dec!P$22&"V"))) ->  | CL39: =IF(OR(AN39="",H39=""),"",SUMPRODUCT(--(AN$14:AN39="y"),--(P$14:P39=P39))) ->  | CS39: =IF(OR(CP39="",H39="",CP39="UA",CP39="U/A",CP39="Unattached"),"",IF(CI39>0,COUNTIF(CP$14:CP39,O39))) ->  | CU39: =IF(OR(CQ39="",H39="",CQ39="UA",CQ39="U/A",CQ39="Unattached"),"",IF(CK39>0,COUNTIF(CQ$14:CQ39,O39))) ->  | CZ39: =IF(OR(CW39="",H39="",CW39="UA",CW39="U/A",CW39="Unattached"),"",IF(CH39>0,COUNTIF(CW$14:CW39,O39))) ->  | DB39: =IF(OR(CX39="",H39="",CX39="UA",CX39="U/A",CX39="Unattached"),"",IF(CJ39>0,COUNTIF(CX$14:CX39,O39))) -> 
C40: =IF(AND(I40="",MAX(C$14:C39)=0),"",IF(AND(I40="",MAX(C$14:C39)>0),C39,I40)) ->  | D40: 00 | E40: 00 | F40: =MATCH(H40,Dec!L:L,0) ->  | G40: 26 | L40: 26 | Q40: =IF(AP40=Dec!P$22,COUNTIF(AP$14:AP40,Dec!P$22),"") ->  | R40: =IF(CM40="MV",COUNTIF(CM$14:CM40,"MV"),"") ->  | S40: =IF(CM40=Dec!P$22&"V",COUNTIF(CM$14:CM40,Dec!P$22&"V"),"") ->  | T40: =IF(H40="","",COUNTIF(P$14:P40,P40)) ->  | U40: =IF(AN40="y",COUNTIF(AN$14:AN40,"y"),"") ->  | AD40: 0 | AI40: =IF(P40=0,1,INDIRECT("AgeFactors!"&Summary!$E$20&2+MATCH(P40,AgeFactors!A$3:A$52,0))) ->  | AO40: =IF(AP40="M",COUNTIF(AP$14:AP40,"M"),"") ->  | AT40: =IF(OR(AQ40="",H40="",AQ40="UA",AQ40="U/A",AQ40="Unattached"),"",IF(Q40>0,COUNTIF(AQ$14:AQ40,O40))) ->  | AV40: =IF(OR(AR40="",H40="",AR40="UA",AR40="U/A",AR40="Unattached"),"",IF(S40>0,COUNTIF(AR$14:AR40,O40))) ->  | BA40: =IF(OR(AX40="",H40="",AX40="UA",AX40="U/A",AX40="Unattached"),"",IF(AO40>0,COUNTIF(AX$14:AX40,O40))) ->  | BC40: =IF(OR(AY40="",H40="",AY40="UA",AY40="U/A",AY40="Unattached"),"",IF(R40>0,COUNTIF(AY$14:AY40,O40))) ->  | BL40: sub comp men | CH40: =IF(OR(AP40<>"M",AN40=""),"",SUMPRODUCT(--(AN$14:AN40="y"),--(AP$14:AP40="M"))) ->  | CI40: =IF(OR(AP40<>Dec!P$22,AN40=""),"",SUMPRODUCT(--(AN$14:AN40="y"),--(AP$14:AP40=Dec!P$22))) ->  | CJ40: =IF(OR(CM40<>"MV",AN40=""),"",SUMPRODUCT(--(AN$14:AN40="y"),--(CM$14:CM40="MV"))) ->  | CK40: =IF(OR(CM40<>Dec!P$22&"V",AN40=""),"",SUMPRODUCT(--(AN$14:AN40="y"),--(CM$14:CM40=Dec!P$22&"V"))) ->  | CL40: =IF(OR(AN40="",H40=""),"",SUMPRODUCT(--(AN$14:AN40="y"),--(P$14:P40=P40))) ->  | CS40: =IF(OR(CP40="",H40="",CP40="UA",CP40="U/A",CP40="Unattached"),"",IF(CI40>0,COUNTIF(CP$14:CP40,O40))) ->  | CU40: =IF(OR(CQ40="",H40="",CQ40="UA",CQ40="U/A",CQ40="Unattached"),"",IF(CK40>0,COUNTIF(CQ$14:CQ40,O40))) ->  | CZ40: =IF(OR(CW40="",H40="",CW40="UA",CW40="U/A",CW40="Unattached"),"",IF(CH40>0,COUNTIF(CW$14:CW40,O40))) ->  | DB40: =IF(OR(CX40="",H40="",CX40="UA",CX40="U/A",CX40="Unattached"),"",IF(CJ40>0,COUNTIF(CX$14:CX40,O40))) -> 
C41: =IF(AND(I41="",MAX(C$14:C40)=0),"",IF(AND(I41="",MAX(C$14:C40)>0),C40,I41)) ->  | D41: 00 | E41: 00 | F41: =MATCH(H41,Dec!L:L,0) ->  | G41: 27 | L41: 27 | Q41: =IF(AP41=Dec!P$22,COUNTIF(AP$14:AP41,Dec!P$22),"") ->  | R41: =IF(CM41="MV",COUNTIF(CM$14:CM41,"MV"),"") ->  | S41: =IF(CM41=Dec!P$22&"V",COUNTIF(CM$14:CM41,Dec!P$22&"V"),"") ->  | T41: =IF(H41="","",COUNTIF(P$14:P41,P41)) ->  | U41: =IF(AN41="y",COUNTIF(AN$14:AN41,"y"),"") ->  | AD41: 0 | AI41: =IF(P41=0,1,INDIRECT("AgeFactors!"&Summary!$E$20&2+MATCH(P41,AgeFactors!A$3:A$52,0))) ->  | AO41: =IF(AP41="M",COUNTIF(AP$14:AP41,"M"),"") ->  | AT41: =IF(OR(AQ41="",H41="",AQ41="UA",AQ41="U/A",AQ41="Unattached"),"",IF(Q41>0,COUNTIF(AQ$14:AQ41,O41))) ->  | AV41: =IF(OR(AR41="",H41="",AR41="UA",AR41="U/A",AR41="Unattached"),"",IF(S41>0,COUNTIF(AR$14:AR41,O41))) ->  | BA41: =IF(OR(AX41="",H41="",AX41="UA",AX41="U/A",AX41="Unattached"),"",IF(AO41>0,COUNTIF(AX$14:AX41,O41))) ->  | BC41: =IF(OR(AY41="",H41="",AY41="UA",AY41="U/A",AY41="Unattached"),"",IF(R41>0,COUNTIF(AY$14:AY41,O41))) ->  | BE41: Vet men | BL41: =RANK(BM41,BM$41:BM$48,1) ->  | BM41: =IF(DA13=0,"",SUM(INDIRECT("BS41:BS"&DA$14+40))+INDIRECT("BS"&DA$14+40)/10000) ->  | BO41: 1 | BP41: =IF(DA13=0,"",SMALL(DA$15:DA$5014,BO41)) ->  | BQ41: =IF(BP41="","-",INDIRECT("results!o"&BP41)) -> - | BR41: =MATCH($BQ41,$CW$15:$CW$5014,0) ->  | BS41: =14+BR41 ->  | BT41: =MATCH($BQ42,$CW$15:$CW$5014,0) ->  | BU41: =14+BT41 ->  | BV41: =MATCH($BQ43,$CW$15:$CW$5014,0) ->  | BW41: =14+BV41 ->  | BX41: =MATCH($BQ44,$CW$15:$CW$5014,0) ->  | BY41: =14+BX41 ->  | BZ41: =MATCH($BQ45,$CW$15:$CW$5014,0) ->  | CA41: =14+BZ41 ->  | CB41: =MATCH($BQ46,$CW$15:$CW$5014,0) ->  | CC41: =14+CB41 ->  | CD41: =MATCH($BQ47,$CW$15:$CW$5014,0) ->  | CE41: =14+CD41 ->  | CF41: =MATCH($BQ48,$CW$15:$CW$5014,0) ->  | CG41: =14+CF41 ->  | CH41: =IF(OR(AP41<>"M",AN41=""),"",SUMPRODUCT(--(AN$14:AN41="y"),--(AP$14:AP41="M"))) ->  | CI41: =IF(OR(AP41<>Dec!P$22,AN41=""),"",SUMPRODUCT(--(AN$14:AN41="y"),--(AP$14:AP41=Dec!P$22))) ->  | CJ41: =IF(OR(CM41<>"MV",AN41=""),"",SUMPRODUCT(--(AN$14:AN41="y"),--(CM$14:CM41="MV"))) ->  | CK41: =IF(OR(CM41<>Dec!P$22&"V",AN41=""),"",SUMPRODUCT(--(AN$14:AN41="y"),--(CM$14:CM41=Dec!P$22&"V"))) ->  | CL41: =IF(OR(AN41="",H41=""),"",SUMPRODUCT(--(AN$14:AN41="y"),--(P$14:P41=P41))) ->  | CS41: =IF(OR(CP41="",H41="",CP41="UA",CP41="U/A",CP41="Unattached"),"",IF(CI41>0,COUNTIF(CP$14:CP41,O41))) ->  | CU41: =IF(OR(CQ41="",H41="",CQ41="UA",CQ41="U/A",CQ41="Unattached"),"",IF(CK41>0,COUNTIF(CQ$14:CQ41,O41))) ->  | CZ41: =IF(OR(CW41="",H41="",CW41="UA",CW41="U/A",CW41="Unattached"),"",IF(CH41>0,COUNTIF(CW$14:CW41,O41))) ->  | DB41: =IF(OR(CX41="",H41="",CX41="UA",CX41="U/A",CX41="Unattached"),"",IF(CJ41>0,COUNTIF(CX$14:CX41,O41))) -> 
C42: =IF(AND(I42="",MAX(C$14:C41)=0),"",IF(AND(I42="",MAX(C$14:C41)>0),C41,I42)) ->  | D42: 00 | E42: 00 | F42: =MATCH(H42,Dec!L:L,0) ->  | G42: 28 | L42: 28 | Q42: =IF(AP42=Dec!P$22,COUNTIF(AP$14:AP42,Dec!P$22),"") ->  | R42: =IF(CM42="MV",COUNTIF(CM$14:CM42,"MV"),"") ->  | S42: =IF(CM42=Dec!P$22&"V",COUNTIF(CM$14:CM42,Dec!P$22&"V"),"") ->  | T42: =IF(H42="","",COUNTIF(P$14:P42,P42)) ->  | U42: =IF(AN42="y",COUNTIF(AN$14:AN42,"y"),"") ->  | AD42: 0 | AI42: =IF(P42=0,1,INDIRECT("AgeFactors!"&Summary!$E$20&2+MATCH(P42,AgeFactors!A$3:A$52,0))) ->  | AO42: =IF(AP42="M",COUNTIF(AP$14:AP42,"M"),"") ->  | AT42: =IF(OR(AQ42="",H42="",AQ42="UA",AQ42="U/A",AQ42="Unattached"),"",IF(Q42>0,COUNTIF(AQ$14:AQ42,O42))) ->  | AV42: =IF(OR(AR42="",H42="",AR42="UA",AR42="U/A",AR42="Unattached"),"",IF(S42>0,COUNTIF(AR$14:AR42,O42))) ->  | BA42: =IF(OR(AX42="",H42="",AX42="UA",AX42="U/A",AX42="Unattached"),"",IF(AO42>0,COUNTIF(AX$14:AX42,O42))) ->  | BC42: =IF(OR(AY42="",H42="",AY42="UA",AY42="U/A",AY42="Unattached"),"",IF(R42>0,COUNTIF(AY$14:AY42,O42))) ->  | BD42: =IF(BC42=BD$14,ROW(),"") ->  | BE42: 1 | BF42: =Winners!F137 -> - | BG42: =MATCH(BF42,AY$15:AY$5014,0) ->  | BH42: =14+BG42 ->  | BI42: =SCWinners!F137 -> - | BJ42: =MATCH(BI42,CX$15:CX$5014,0) ->  | BK42: =14+BJ42 ->  | BL42: =RANK(BM42,BM$41:BM$48,1) ->  | BM42: =IF(BP42="","",SUM(INDIRECT("BU41:BU"&DA$14+40))+INDIRECT("BU"&DA$14+40)/10000) ->  | BO42: 2 | BP42: =IF(DA$13<BO42,"",SMALL(DA$15:DA$5014,BO42)) ->  | BQ42: - | BR42: =MATCH(BQ$41,INDIRECT("CW"&BS41+1&":CW5014"),0) ->  | BS42: =BS41+BR42 ->  | BT42: =MATCH($BQ$42,INDIRECT("CW"&BU41+1&":CW5014"),0) ->  | BU42: =BU41+BT42 ->  | BV42: =MATCH($BQ$43,INDIRECT("CW"&BW41+1&":CW5014"),0) ->  | BW42: =BW41+BV42 ->  | BX42: =MATCH($BQ$44,INDIRECT("CW"&BY41+1&":CW5014"),0) ->  | BY42: =BY41+BX42 ->  | BZ42: =MATCH($BQ$45,INDIRECT("CW"&CA41+1&":CW5014"),0) ->  | CA42: =CA41+BZ42 ->  | CB42: =MATCH($BQ$46,INDIRECT("CW"&CC41+1&":CW5014"),0) ->  | CC42: =CC41+CB42 ->  | CD42: =MATCH($BQ$47,INDIRECT("CW"&CE41+1&":CW5014"),0) ->  | CE42: =CE41+CD42 ->  | CF42: =MATCH($BQ$48,INDIRECT("CW"&CG41+1&":CW5014"),0) ->  | CG42: =CG41+CF42 ->  | CH42: =IF(OR(AP42<>"M",AN42=""),"",SUMPRODUCT(--(AN$14:AN42="y"),--(AP$14:AP42="M"))) ->  | CI42: =IF(OR(AP42<>Dec!P$22,AN42=""),"",SUMPRODUCT(--(AN$14:AN42="y"),--(AP$14:AP42=Dec!P$22))) ->  | CJ42: =IF(OR(CM42<>"MV",AN42=""),"",SUMPRODUCT(--(AN$14:AN42="y"),--(CM$14:CM42="MV"))) ->  | CK42: =IF(OR(CM42<>Dec!P$22&"V",AN42=""),"",SUMPRODUCT(--(AN$14:AN42="y"),--(CM$14:CM42=Dec!P$22&"V"))) ->  | CL42: =IF(OR(AN42="",H42=""),"",SUMPRODUCT(--(AN$14:AN42="y"),--(P$14:P42=P42))) ->  | CS42: =IF(OR(CP42="",H42="",CP42="UA",CP42="U/A",CP42="Unattached"),"",IF(CI42>0,COUNTIF(CP$14:CP42,O42))) ->  | CU42: =IF(OR(CQ42="",H42="",CQ42="UA",CQ42="U/A",CQ42="Unattached"),"",IF(CK42>0,COUNTIF(CQ$14:CQ42,O42))) ->  | CZ42: =IF(OR(CW42="",H42="",CW42="UA",CW42="U/A",CW42="Unattached"),"",IF(CH42>0,COUNTIF(CW$14:CW42,O42))) ->  | DB42: =IF(OR(CX42="",H42="",CX42="UA",CX42="U/A",CX42="Unattached"),"",IF(CJ42>0,COUNTIF(CX$14:CX42,O42))) -> 
C43: =IF(AND(I43="",MAX(C$14:C42)=0),"",IF(AND(I43="",MAX(C$14:C42)>0),C42,I43)) ->  | D43: 00 | E43: 00 | F43: =MATCH(H43,Dec!L:L,0) ->  | G43: 29 | L43: 29 | Q43: =IF(AP43=Dec!P$22,COUNTIF(AP$14:AP43,Dec!P$22),"") ->  | R43: =IF(CM43="MV",COUNTIF(CM$14:CM43,"MV"),"") ->  | S43: =IF(CM43=Dec!P$22&"V",COUNTIF(CM$14:CM43,Dec!P$22&"V"),"") ->  | T43: =IF(H43="","",COUNTIF(P$14:P43,P43)) ->  | U43: =IF(AN43="y",COUNTIF(AN$14:AN43,"y"),"") ->  | AD43: 0 | AI43: =IF(P43=0,1,INDIRECT("AgeFactors!"&Summary!$E$20&2+MATCH(P43,AgeFactors!A$3:A$52,0))) ->  | AO43: =IF(AP43="M",COUNTIF(AP$14:AP43,"M"),"") ->  | AT43: =IF(OR(AQ43="",H43="",AQ43="UA",AQ43="U/A",AQ43="Unattached"),"",IF(Q43>0,COUNTIF(AQ$14:AQ43,O43))) ->  | AV43: =IF(OR(AR43="",H43="",AR43="UA",AR43="U/A",AR43="Unattached"),"",IF(S43>0,COUNTIF(AR$14:AR43,O43))) ->  | BA43: =IF(OR(AX43="",H43="",AX43="UA",AX43="U/A",AX43="Unattached"),"",IF(AO43>0,COUNTIF(AX$14:AX43,O43))) ->  | BC43: =IF(OR(AY43="",H43="",AY43="UA",AY43="U/A",AY43="Unattached"),"",IF(R43>0,COUNTIF(AY$14:AY43,O43))) ->  | BG43: =MATCH(BF$42,INDIRECT("AY"&BH42+1&":AY5014"),0) ->  | BH43: =BH42+BG43 ->  | BJ43: =MATCH(BI$42,INDIRECT("cg"&BK42+1&":cg5014"),0) ->  | BK43: =BK42+BJ43 ->  | BM43: =IF(BP43="","",SUM(INDIRECT("BW41:BW"&DA$14+40))+INDIRECT("BW"&DA$14+40)/10000) ->  | BO43: 3 | BQ43: - | CH43: =IF(OR(AP43<>"M",AN43=""),"",SUMPRODUCT(--(AN$14:AN43="y"),--(AP$14:AP43="M"))) ->  | CI43: =IF(OR(AP43<>Dec!P$22,AN43=""),"",SUMPRODUCT(--(AN$14:AN43="y"),--(AP$14:AP43=Dec!P$22))) ->  | CJ43: =IF(OR(CM43<>"MV",AN43=""),"",SUMPRODUCT(--(AN$14:AN43="y"),--(CM$14:CM43="MV"))) ->  | CK43: =IF(OR(CM43<>Dec!P$22&"V",AN43=""),"",SUMPRODUCT(--(AN$14:AN43="y"),--(CM$14:CM43=Dec!P$22&"V"))) ->  | CL43: =IF(OR(AN43="",H43=""),"",SUMPRODUCT(--(AN$14:AN43="y"),--(P$14:P43=P43))) ->  | CS43: =IF(OR(CP43="",H43="",CP43="UA",CP43="U/A",CP43="Unattached"),"",IF(CI43>0,COUNTIF(CP$14:CP43,O43))) ->  | CU43: =IF(OR(CQ43="",H43="",CQ43="UA",CQ43="U/A",CQ43="Unattached"),"",IF(CK43>0,COUNTIF(CQ$14:CQ43,O43))) ->  | CZ43: =IF(OR(CW43="",H43="",CW43="UA",CW43="U/A",CW43="Unattached"),"",IF(CH43>0,COUNTIF(CW$14:CW43,O43))) ->  | DB43: =IF(OR(CX43="",H43="",CX43="UA",CX43="U/A",CX43="Unattached"),"",IF(CJ43>0,COUNTIF(CX$14:CX43,O43))) -> 
C44: =IF(AND(I44="",MAX(C$14:C43)=0),"",IF(AND(I44="",MAX(C$14:C43)>0),C43,I44)) ->  | D44: 00 | E44: 00 | F44: =MATCH(H44,Dec!L:L,0) ->  | G44: 30 | L44: 30 | Q44: =IF(AP44=Dec!P$22,COUNTIF(AP$14:AP44,Dec!P$22),"") ->  | R44: =IF(CM44="MV",COUNTIF(CM$14:CM44,"MV"),"") ->  | S44: =IF(CM44=Dec!P$22&"V",COUNTIF(CM$14:CM44,Dec!P$22&"V"),"") ->  | T44: =IF(H44="","",COUNTIF(P$14:P44,P44)) ->  | U44: =IF(AN44="y",COUNTIF(AN$14:AN44,"y"),"") ->  | AD44: 0 | AI44: =IF(P44=0,1,INDIRECT("AgeFactors!"&Summary!$E$20&2+MATCH(P44,AgeFactors!A$3:A$52,0))) ->  | AO44: =IF(AP44="M",COUNTIF(AP$14:AP44,"M"),"") ->  | AT44: =IF(OR(AQ44="",H44="",AQ44="UA",AQ44="U/A",AQ44="Unattached"),"",IF(Q44>0,COUNTIF(AQ$14:AQ44,O44))) ->  | AV44: =IF(OR(AR44="",H44="",AR44="UA",AR44="U/A",AR44="Unattached"),"",IF(S44>0,COUNTIF(AR$14:AR44,O44))) ->  | BA44: =IF(OR(AX44="",H44="",AX44="UA",AX44="U/A",AX44="Unattached"),"",IF(AO44>0,COUNTIF(AX$14:AX44,O44))) ->  | BC44: =IF(OR(AY44="",H44="",AY44="UA",AY44="U/A",AY44="Unattached"),"",IF(R44>0,COUNTIF(AY$14:AY44,O44))) ->  | BH44: =BH43+BG44 ->  | BK44: =BK43+BJ44 ->  | BM44: =IF(BP44="","",SUM(INDIRECT("BY41:BY"&DA$14+40))+INDIRECT("BY"&DA$14+40)/10000) ->  | BO44: 4 | BQ44: - | CH44: =IF(OR(AP44<>"M",AN44=""),"",SUMPRODUCT(--(AN$14:AN44="y"),--(AP$14:AP44="M"))) ->  | CI44: =IF(OR(AP44<>Dec!P$22,AN44=""),"",SUMPRODUCT(--(AN$14:AN44="y"),--(AP$14:AP44=Dec!P$22))) ->  | CJ44: =IF(OR(CM44<>"MV",AN44=""),"",SUMPRODUCT(--(AN$14:AN44="y"),--(CM$14:CM44="MV"))) ->  | CK44: =IF(OR(CM44<>Dec!P$22&"V",AN44=""),"",SUMPRODUCT(--(AN$14:AN44="y"),--(CM$14:CM44=Dec!P$22&"V"))) ->  | CL44: =IF(OR(AN44="",H44=""),"",SUMPRODUCT(--(AN$14:AN44="y"),--(P$14:P44=P44))) ->  | CS44: =IF(OR(CP44="",H44="",CP44="UA",CP44="U/A",CP44="Unattached"),"",IF(CI44>0,COUNTIF(CP$14:CP44,O44))) ->  | CU44: =IF(OR(CQ44="",H44="",CQ44="UA",CQ44="U/A",CQ44="Unattached"),"",IF(CK44>0,COUNTIF(CQ$14:CQ44,O44))) ->  | CZ44: =IF(OR(CW44="",H44="",CW44="UA",CW44="U/A",CW44="Unattached"),"",IF(CH44>0,COUNTIF(CW$14:CW44,O44))) ->  | DB44: =IF(OR(CX44="",H44="",CX44="UA",CX44="U/A",CX44="Unattached"),"",IF(CJ44>0,COUNTIF(CX$14:CX44,O44))) -> 
C45: =IF(AND(I45="",MAX(C$14:C44)=0),"",IF(AND(I45="",MAX(C$14:C44)>0),C44,I45)) ->  | D45: 00 | E45: 00 | F45: =MATCH(H45,Dec!L:L,0) ->  | G45: 31 | L45: 31 | Q45: =IF(AP45=Dec!P$22,COUNTIF(AP$14:AP45,Dec!P$22),"") ->  | R45: =IF(CM45="MV",COUNTIF(CM$14:CM45,"MV"),"") ->  | S45: =IF(CM45=Dec!P$22&"V",COUNTIF(CM$14:CM45,Dec!P$22&"V"),"") ->  | T45: =IF(H45="","",COUNTIF(P$14:P45,P45)) ->  | U45: =IF(AN45="y",COUNTIF(AN$14:AN45,"y"),"") ->  | AD45: 0 | AI45: =IF(P45=0,1,INDIRECT("AgeFactors!"&Summary!$E$20&2+MATCH(P45,AgeFactors!A$3:A$52,0))) ->  | AO45: =IF(AP45="M",COUNTIF(AP$14:AP45,"M"),"") ->  | AT45: =IF(OR(AQ45="",H45="",AQ45="UA",AQ45="U/A",AQ45="Unattached"),"",IF(Q45>0,COUNTIF(AQ$14:AQ45,O45))) ->  | AV45: =IF(OR(AR45="",H45="",AR45="UA",AR45="U/A",AR45="Unattached"),"",IF(S45>0,COUNTIF(AR$14:AR45,O45))) ->  | BA45: =IF(OR(AX45="",H45="",AX45="UA",AX45="U/A",AX45="Unattached"),"",IF(AO45>0,COUNTIF(AX$14:AX45,O45))) ->  | BC45: =IF(OR(AY45="",H45="",AY45="UA",AY45="U/A",AY45="Unattached"),"",IF(R45>0,COUNTIF(AY$14:AY45,O45))) ->  | BM45: =IF(BP45="","",SUM(INDIRECT("CA41:CA"&DA$14+40))+INDIRECT("CA"&DA$14+40)/10000) ->  | BO45: 5 | BQ45: - | CH45: =IF(OR(AP45<>"M",AN45=""),"",SUMPRODUCT(--(AN$14:AN45="y"),--(AP$14:AP45="M"))) ->  | CI45: =IF(OR(AP45<>Dec!P$22,AN45=""),"",SUMPRODUCT(--(AN$14:AN45="y"),--(AP$14:AP45=Dec!P$22))) ->  | CJ45: =IF(OR(CM45<>"MV",AN45=""),"",SUMPRODUCT(--(AN$14:AN45="y"),--(CM$14:CM45="MV"))) ->  | CK45: =IF(OR(CM45<>Dec!P$22&"V",AN45=""),"",SUMPRODUCT(--(AN$14:AN45="y"),--(CM$14:CM45=Dec!P$22&"V"))) ->  | CL45: =IF(OR(AN45="",H45=""),"",SUMPRODUCT(--(AN$14:AN45="y"),--(P$14:P45=P45))) ->  | CS45: =IF(OR(CP45="",H45="",CP45="UA",CP45="U/A",CP45="Unattached"),"",IF(CI45>0,COUNTIF(CP$14:CP45,O45))) ->  | CU45: =IF(OR(CQ45="",H45="",CQ45="UA",CQ45="U/A",CQ45="Unattached"),"",IF(CK45>0,COUNTIF(CQ$14:CQ45,O45))) ->  | CZ45: =IF(OR(CW45="",H45="",CW45="UA",CW45="U/A",CW45="Unattached"),"",IF(CH45>0,COUNTIF(CW$14:CW45,O45))) ->  | DB45: =IF(OR(CX45="",H45="",CX45="UA",CX45="U/A",CX45="Unattached"),"",IF(CJ45>0,COUNTIF(CX$14:CX45,O45))) -> 
C46: =IF(AND(I46="",MAX(C$14:C45)=0),"",IF(AND(I46="",MAX(C$14:C45)>0),C45,I46)) ->  | D46: 00 | E46: 00 | F46: =MATCH(H46,Dec!L:L,0) ->  | G46: 32 | L46: 32 | Q46: =IF(AP46=Dec!P$22,COUNTIF(AP$14:AP46,Dec!P$22),"") ->  | R46: =IF(CM46="MV",COUNTIF(CM$14:CM46,"MV"),"") ->  | S46: =IF(CM46=Dec!P$22&"V",COUNTIF(CM$14:CM46,Dec!P$22&"V"),"") ->  | T46: =IF(H46="","",COUNTIF(P$14:P46,P46)) ->  | U46: =IF(AN46="y",COUNTIF(AN$14:AN46,"y"),"") ->  | AD46: 0 | AI46: =IF(P46=0,1,INDIRECT("AgeFactors!"&Summary!$E$20&2+MATCH(P46,AgeFactors!A$3:A$52,0))) ->  | AO46: =IF(AP46="M",COUNTIF(AP$14:AP46,"M"),"") ->  | AT46: =IF(OR(AQ46="",H46="",AQ46="UA",AQ46="U/A",AQ46="Unattached"),"",IF(Q46>0,COUNTIF(AQ$14:AQ46,O46))) ->  | AV46: =IF(OR(AR46="",H46="",AR46="UA",AR46="U/A",AR46="Unattached"),"",IF(S46>0,COUNTIF(AR$14:AR46,O46))) ->  | BA46: =IF(OR(AX46="",H46="",AX46="UA",AX46="U/A",AX46="Unattached"),"",IF(AO46>0,COUNTIF(AX$14:AX46,O46))) ->  | BC46: =IF(OR(AY46="",H46="",AY46="UA",AY46="U/A",AY46="Unattached"),"",IF(R46>0,COUNTIF(AY$14:AY46,O46))) ->  | BM46: =IF(BP46="","",SUM(INDIRECT("CC41:CC"&DA$14+40))+INDIRECT("CC"&DA$14+40)/10000) ->  | BO46: 6 | BQ46: - | CH46: =IF(OR(AP46<>"M",AN46=""),"",SUMPRODUCT(--(AN$14:AN46="y"),--(AP$14:AP46="M"))) ->  | CI46: =IF(OR(AP46<>Dec!P$22,AN46=""),"",SUMPRODUCT(--(AN$14:AN46="y"),--(AP$14:AP46=Dec!P$22))) ->  | CJ46: =IF(OR(CM46<>"MV",AN46=""),"",SUMPRODUCT(--(AN$14:AN46="y"),--(CM$14:CM46="MV"))) ->  | CK46: =IF(OR(CM46<>Dec!P$22&"V",AN46=""),"",SUMPRODUCT(--(AN$14:AN46="y"),--(CM$14:CM46=Dec!P$22&"V"))) ->  | CL46: =IF(OR(AN46="",H46=""),"",SUMPRODUCT(--(AN$14:AN46="y"),--(P$14:P46=P46))) ->  | CS46: =IF(OR(CP46="",H46="",CP46="UA",CP46="U/A",CP46="Unattached"),"",IF(CI46>0,COUNTIF(CP$14:CP46,O46))) ->  | CU46: =IF(OR(CQ46="",H46="",CQ46="UA",CQ46="U/A",CQ46="Unattached"),"",IF(CK46>0,COUNTIF(CQ$14:CQ46,O46))) ->  | CZ46: =IF(OR(CW46="",H46="",CW46="UA",CW46="U/A",CW46="Unattached"),"",IF(CH46>0,COUNTIF(CW$14:CW46,O46))) ->  | DB46: =IF(OR(CX46="",H46="",CX46="UA",CX46="U/A",CX46="Unattached"),"",IF(CJ46>0,COUNTIF(CX$14:CX46,O46))) -> 
C47: =IF(AND(I47="",MAX(C$14:C46)=0),"",IF(AND(I47="",MAX(C$14:C46)>0),C46,I47)) ->  | D47: 00 | E47: 00 | F47: =MATCH(H47,Dec!L:L,0) ->  | G47: 33 | L47: 33 | Q47: =IF(AP47=Dec!P$22,COUNTIF(AP$14:AP47,Dec!P$22),"") ->  | R47: =IF(CM47="MV",COUNTIF(CM$14:CM47,"MV"),"") ->  | S47: =IF(CM47=Dec!P$22&"V",COUNTIF(CM$14:CM47,Dec!P$22&"V"),"") ->  | T47: =IF(H47="","",COUNTIF(P$14:P47,P47)) ->  | U47: =IF(AN47="y",COUNTIF(AN$14:AN47,"y"),"") ->  | AD47: 0 | AI47: =IF(P47=0,1,INDIRECT("AgeFactors!"&Summary!$E$20&2+MATCH(P47,AgeFactors!A$3:A$52,0))) ->  | AO47: =IF(AP47="M",COUNTIF(AP$14:AP47,"M"),"") ->  | AT47: =IF(OR(AQ47="",H47="",AQ47="UA",AQ47="U/A",AQ47="Unattached"),"",IF(Q47>0,COUNTIF(AQ$14:AQ47,O47))) ->  | AV47: =IF(OR(AR47="",H47="",AR47="UA",AR47="U/A",AR47="Unattached"),"",IF(S47>0,COUNTIF(AR$14:AR47,O47))) ->  | BA47: =IF(OR(AX47="",H47="",AX47="UA",AX47="U/A",AX47="Unattached"),"",IF(AO47>0,COUNTIF(AX$14:AX47,O47))) ->  | BC47: =IF(OR(AY47="",H47="",AY47="UA",AY47="U/A",AY47="Unattached"),"",IF(R47>0,COUNTIF(AY$14:AY47,O47))) ->  | BM47: =IF(BP47="","",SUM(INDIRECT("CE41:CE"&DA$14+40))+INDIRECT("CE"&DA$14+40)/10000) ->  | BO47: 7 | BQ47: - | CH47: =IF(OR(AP47<>"M",AN47=""),"",SUMPRODUCT(--(AN$14:AN47="y"),--(AP$14:AP47="M"))) ->  | CI47: =IF(OR(AP47<>Dec!P$22,AN47=""),"",SUMPRODUCT(--(AN$14:AN47="y"),--(AP$14:AP47=Dec!P$22))) ->  | CJ47: =IF(OR(CM47<>"MV",AN47=""),"",SUMPRODUCT(--(AN$14:AN47="y"),--(CM$14:CM47="MV"))) ->  | CK47: =IF(OR(CM47<>Dec!P$22&"V",AN47=""),"",SUMPRODUCT(--(AN$14:AN47="y"),--(CM$14:CM47=Dec!P$22&"V"))) ->  | CL47: =IF(OR(AN47="",H47=""),"",SUMPRODUCT(--(AN$14:AN47="y"),--(P$14:P47=P47))) ->  | CS47: =IF(OR(CP47="",H47="",CP47="UA",CP47="U/A",CP47="Unattached"),"",IF(CI47>0,COUNTIF(CP$14:CP47,O47))) ->  | CU47: =IF(OR(CQ47="",H47="",CQ47="UA",CQ47="U/A",CQ47="Unattached"),"",IF(CK47>0,COUNTIF(CQ$14:CQ47,O47))) ->  | CZ47: =IF(OR(CW47="",H47="",CW47="UA",CW47="U/A",CW47="Unattached"),"",IF(CH47>0,COUNTIF(CW$14:CW47,O47))) ->  | DB47: =IF(OR(CX47="",H47="",CX47="UA",CX47="U/A",CX47="Unattached"),"",IF(CJ47>0,COUNTIF(CX$14:CX47,O47))) -> 
C48: =IF(AND(I48="",MAX(C$14:C47)=0),"",IF(AND(I48="",MAX(C$14:C47)>0),C47,I48)) ->  | D48: 00 | E48: 00 | F48: =MATCH(H48,Dec!L:L,0) ->  | G48: 34 | L48: 34 | Q48: =IF(AP48=Dec!P$22,COUNTIF(AP$14:AP48,Dec!P$22),"") ->  | R48: =IF(CM48="MV",COUNTIF(CM$14:CM48,"MV"),"") ->  | S48: =IF(CM48=Dec!P$22&"V",COUNTIF(CM$14:CM48,Dec!P$22&"V"),"") ->  | T48: =IF(H48="","",COUNTIF(P$14:P48,P48)) ->  | U48: =IF(AN48="y",COUNTIF(AN$14:AN48,"y"),"") ->  | AD48: 0 | AI48: =IF(P48=0,1,INDIRECT("AgeFactors!"&Summary!$E$20&2+MATCH(P48,AgeFactors!A$3:A$52,0))) ->  | AO48: =IF(AP48="M",COUNTIF(AP$14:AP48,"M"),"") ->  | AT48: =IF(OR(AQ48="",H48="",AQ48="UA",AQ48="U/A",AQ48="Unattached"),"",IF(Q48>0,COUNTIF(AQ$14:AQ48,O48))) ->  | AV48: =IF(OR(AR48="",H48="",AR48="UA",AR48="U/A",AR48="Unattached"),"",IF(S48>0,COUNTIF(AR$14:AR48,O48))) ->  | BA48: =IF(OR(AX48="",H48="",AX48="UA",AX48="U/A",AX48="Unattached"),"",IF(AO48>0,COUNTIF(AX$14:AX48,O48))) ->  | BC48: =IF(OR(AY48="",H48="",AY48="UA",AY48="U/A",AY48="Unattached"),"",IF(R48>0,COUNTIF(AY$14:AY48,O48))) ->  | BM48: =IF(BP48="","",SUM(INDIRECT("CG41:CG"&DA$14+40))+INDIRECT("CG"&DA$14+40)/10000) ->  | BO48: 8 | BQ48: - | CH48: =IF(OR(AP48<>"M",AN48=""),"",SUMPRODUCT(--(AN$14:AN48="y"),--(AP$14:AP48="M"))) ->  | CI48: =IF(OR(AP48<>Dec!P$22,AN48=""),"",SUMPRODUCT(--(AN$14:AN48="y"),--(AP$14:AP48=Dec!P$22))) ->  | CJ48: =IF(OR(CM48<>"MV",AN48=""),"",SUMPRODUCT(--(AN$14:AN48="y"),--(CM$14:CM48="MV"))) ->  | CK48: =IF(OR(CM48<>Dec!P$22&"V",AN48=""),"",SUMPRODUCT(--(AN$14:AN48="y"),--(CM$14:CM48=Dec!P$22&"V"))) ->  | CL48: =IF(OR(AN48="",H48=""),"",SUMPRODUCT(--(AN$14:AN48="y"),--(P$14:P48=P48))) ->  | CS48: =IF(OR(CP48="",H48="",CP48="UA",CP48="U/A",CP48="Unattached"),"",IF(CI48>0,COUNTIF(CP$14:CP48,O48))) ->  | CU48: =IF(OR(CQ48="",H48="",CQ48="UA",CQ48="U/A",CQ48="Unattached"),"",IF(CK48>0,COUNTIF(CQ$14:CQ48,O48))) ->  | CZ48: =IF(OR(CW48="",H48="",CW48="UA",CW48="U/A",CW48="Unattached"),"",IF(CH48>0,COUNTIF(CW$14:CW48,O48))) ->  | DB48: =IF(OR(CX48="",H48="",CX48="UA",CX48="U/A",CX48="Unattached"),"",IF(CJ48>0,COUNTIF(CX$14:CX48,O48))) -> 
C49: =IF(AND(I49="",MAX(C$14:C48)=0),"",IF(AND(I49="",MAX(C$14:C48)>0),C48,I49)) ->  | D49: 00 | E49: 00 | F49: =MATCH(H49,Dec!L:L,0) ->  | G49: 35 | L49: 35 | Q49: =IF(AP49=Dec!P$22,COUNTIF(AP$14:AP49,Dec!P$22),"") ->  | R49: =IF(CM49="MV",COUNTIF(CM$14:CM49,"MV"),"") ->  | S49: =IF(CM49=Dec!P$22&"V",COUNTIF(CM$14:CM49,Dec!P$22&"V"),"") ->  | T49: =IF(H49="","",COUNTIF(P$14:P49,P49)) ->  | U49: =IF(AN49="y",COUNTIF(AN$14:AN49,"y"),"") ->  | AD49: 0 | AI49: =IF(P49=0,1,INDIRECT("AgeFactors!"&Summary!$E$20&2+MATCH(P49,AgeFactors!A$3:A$52,0))) ->  | AO49: =IF(AP49="M",COUNTIF(AP$14:AP49,"M"),"") ->  | AT49: =IF(OR(AQ49="",H49="",AQ49="UA",AQ49="U/A",AQ49="Unattached"),"",IF(Q49>0,COUNTIF(AQ$14:AQ49,O49))) ->  | AV49: =IF(OR(AR49="",H49="",AR49="UA",AR49="U/A",AR49="Unattached"),"",IF(S49>0,COUNTIF(AR$14:AR49,O49))) ->  | BA49: =IF(OR(AX49="",H49="",AX49="UA",AX49="U/A",AX49="Unattached"),"",IF(AO49>0,COUNTIF(AX$14:AX49,O49))) ->  | BC49: =IF(OR(AY49="",H49="",AY49="UA",AY49="U/A",AY49="Unattached"),"",IF(R49>0,COUNTIF(AY$14:AY49,O49))) ->  | CH49: =IF(OR(AP49<>"M",AN49=""),"",SUMPRODUCT(--(AN$14:AN49="y"),--(AP$14:AP49="M"))) ->  | CI49: =IF(OR(AP49<>Dec!P$22,AN49=""),"",SUMPRODUCT(--(AN$14:AN49="y"),--(AP$14:AP49=Dec!P$22))) ->  | CJ49: =IF(OR(CM49<>"MV",AN49=""),"",SUMPRODUCT(--(AN$14:AN49="y"),--(CM$14:CM49="MV"))) ->  | CK49: =IF(OR(CM49<>Dec!P$22&"V",AN49=""),"",SUMPRODUCT(--(AN$14:AN49="y"),--(CM$14:CM49=Dec!P$22&"V"))) ->  | CL49: =IF(OR(AN49="",H49=""),"",SUMPRODUCT(--(AN$14:AN49="y"),--(P$14:P49=P49))) ->  | CS49: =IF(OR(CP49="",H49="",CP49="UA",CP49="U/A",CP49="Unattached"),"",IF(CI49>0,COUNTIF(CP$14:CP49,O49))) ->  | CU49: =IF(OR(CQ49="",H49="",CQ49="UA",CQ49="U/A",CQ49="Unattached"),"",IF(CK49>0,COUNTIF(CQ$14:CQ49,O49))) ->  | CZ49: =IF(OR(CW49="",H49="",CW49="UA",CW49="U/A",CW49="Unattached"),"",IF(CH49>0,COUNTIF(CW$14:CW49,O49))) ->  | DB49: =IF(OR(CX49="",H49="",CX49="UA",CX49="U/A",CX49="Unattached"),"",IF(CJ49>0,COUNTIF(CX$14:CX49,O49))) -> 
C50: =IF(AND(I50="",MAX(C$14:C49)=0),"",IF(AND(I50="",MAX(C$14:C49)>0),C49,I50)) ->  | D50: 00 | E50: 00 | F50: =MATCH(H50,Dec!L:L,0) ->  | G50: 36 | L50: 36 | Q50: =IF(AP50=Dec!P$22,COUNTIF(AP$14:AP50,Dec!P$22),"") ->  | R50: =IF(CM50="MV",COUNTIF(CM$14:CM50,"MV"),"") ->  | S50: =IF(CM50=Dec!P$22&"V",COUNTIF(CM$14:CM50,Dec!P$22&"V"),"") ->  | T50: =IF(H50="","",COUNTIF(P$14:P50,P50)) ->  | U50: =IF(AN50="y",COUNTIF(AN$14:AN50,"y"),"") ->  | AD50: 0 | AI50: =IF(P50=0,1,INDIRECT("AgeFactors!"&Summary!$E$20&2+MATCH(P50,AgeFactors!A$3:A$52,0))) ->  | AO50: =IF(AP50="M",COUNTIF(AP$14:AP50,"M"),"") ->  | AT50: =IF(OR(AQ50="",H50="",AQ50="UA",AQ50="U/A",AQ50="Unattached"),"",IF(Q50>0,COUNTIF(AQ$14:AQ50,O50))) ->  | AV50: =IF(OR(AR50="",H50="",AR50="UA",AR50="U/A",AR50="Unattached"),"",IF(S50>0,COUNTIF(AR$14:AR50,O50))) ->  | BA50: =IF(OR(AX50="",H50="",AX50="UA",AX50="U/A",AX50="Unattached"),"",IF(AO50>0,COUNTIF(AX$14:AX50,O50))) ->  | BC50: =IF(OR(AY50="",H50="",AY50="UA",AY50="U/A",AY50="Unattached"),"",IF(R50>0,COUNTIF(AY$14:AY50,O50))) ->  | BE50: 2 | BF50: =Winners!F145 -> - | BG50: =MATCH(BF50,AY$15:AY$5014,0) ->  | BH50: =14+BG50 ->  | BI50: =SCWinners!F145 -> - | BJ50: =MATCH(BI50,CX$15:CX$5014,0) ->  | BK50: =14+BJ50 ->  | BL50: Vet Men | CH50: =IF(OR(AP50<>"M",AN50=""),"",SUMPRODUCT(--(AN$14:AN50="y"),--(AP$14:AP50="M"))) ->  | CI50: =IF(OR(AP50<>Dec!P$22,AN50=""),"",SUMPRODUCT(--(AN$14:AN50="y"),--(AP$14:AP50=Dec!P$22))) ->  | CJ50: =IF(OR(CM50<>"MV",AN50=""),"",SUMPRODUCT(--(AN$14:AN50="y"),--(CM$14:CM50="MV"))) ->  | CK50: =IF(OR(CM50<>Dec!P$22&"V",AN50=""),"",SUMPRODUCT(--(AN$14:AN50="y"),--(CM$14:CM50=Dec!P$22&"V"))) ->  | CL50: =IF(OR(AN50="",H50=""),"",SUMPRODUCT(--(AN$14:AN50="y"),--(P$14:P50=P50))) ->  | CS50: =IF(OR(CP50="",H50="",CP50="UA",CP50="U/A",CP50="Unattached"),"",IF(CI50>0,COUNTIF(CP$14:CP50,O50))) ->  | CU50: =IF(OR(CQ50="",H50="",CQ50="UA",CQ50="U/A",CQ50="Unattached"),"",IF(CK50>0,COUNTIF(CQ$14:CQ50,O50))) ->  | CZ50: =IF(OR(CW50="",H50="",CW50="UA",CW50="U/A",CW50="Unattached"),"",IF(CH50>0,COUNTIF(CW$14:CW50,O50))) ->  | DB50: =IF(OR(CX50="",H50="",CX50="UA",CX50="U/A",CX50="Unattached"),"",IF(CJ50>0,COUNTIF(CX$14:CX50,O50))) -> 
C51: =IF(AND(I51="",MAX(C$14:C50)=0),"",IF(AND(I51="",MAX(C$14:C50)>0),C50,I51)) ->  | D51: 00 | E51: 00 | F51: =MATCH(H51,Dec!L:L,0) ->  | G51: 37 | L51: 37 | Q51: =IF(AP51=Dec!P$22,COUNTIF(AP$14:AP51,Dec!P$22),"") ->  | R51: =IF(CM51="MV",COUNTIF(CM$14:CM51,"MV"),"") ->  | S51: =IF(CM51=Dec!P$22&"V",COUNTIF(CM$14:CM51,Dec!P$22&"V"),"") ->  | T51: =IF(H51="","",COUNTIF(P$14:P51,P51)) ->  | U51: =IF(AN51="y",COUNTIF(AN$14:AN51,"y"),"") ->  | AD51: 0 | AI51: =IF(P51=0,1,INDIRECT("AgeFactors!"&Summary!$E$20&2+MATCH(P51,AgeFactors!A$3:A$52,0))) ->  | AO51: =IF(AP51="M",COUNTIF(AP$14:AP51,"M"),"") ->  | AT51: =IF(OR(AQ51="",H51="",AQ51="UA",AQ51="U/A",AQ51="Unattached"),"",IF(Q51>0,COUNTIF(AQ$14:AQ51,O51))) ->  | AV51: =IF(OR(AR51="",H51="",AR51="UA",AR51="U/A",AR51="Unattached"),"",IF(S51>0,COUNTIF(AR$14:AR51,O51))) ->  | BA51: =IF(OR(AX51="",H51="",AX51="UA",AX51="U/A",AX51="Unattached"),"",IF(AO51>0,COUNTIF(AX$14:AX51,O51))) ->  | BC51: =IF(OR(AY51="",H51="",AY51="UA",AY51="U/A",AY51="Unattached"),"",IF(R51>0,COUNTIF(AY$14:AY51,O51))) ->  | BG51: =MATCH(BF$50,INDIRECT("AY"&BH50+1&":AY5014"),0) ->  | BH51: =BH50+BG51 ->  | BJ51: =MATCH(BI$50,INDIRECT("cg"&BK50+1&":cg5014"),0) ->  | BK51: =BK50+BJ51 ->  | BL51: =RANK(BM51,BM$51:BM$58,1) ->  | BM51: =IF(DC13=0,"",SUM(INDIRECT("BS51:BS"&DC$14+50))+INDIRECT("BS"&DC$14+50)/10000) ->  | BO51: 1 | BP51: =IF(DC13=0,"",SMALL(DC$15:DC$5014,BO51)) ->  | BQ51: =IF(BP51="","-",INDIRECT("results!o"&BP51)) -> - | BR51: =MATCH($BQ51,$CX$15:$CX$5014,0) ->  | BS51: =14+BR51 ->  | BT51: =MATCH($BQ52,$CX$15:$CX$5014,0) ->  | BU51: =14+BT51 ->  | BV51: =MATCH($BQ53,$CX$15:$CX$5014,0) ->  | BW51: =14+BV51 ->  | BX51: =MATCH($BQ54,$CX$15:$CX$5014,0) ->  | BY51: =14+BX51 ->  | BZ51: =MATCH($BQ55,$CX$15:$CX$5014,0) ->  | CA51: =14+BZ51 ->  | CB51: =MATCH($BQ56,$CX$15:$CX$5014,0) ->  | CC51: =14+CB51 ->  | CD51: =MATCH($BQ57,$CX$15:$CX$5014,0) ->  | CE51: =14+CD51 ->  | CF51: =MATCH($BQ58,$CX$15:$CX$5014,0) ->  | CG51: =14+CF51 ->  | CH51: =IF(OR(AP51<>"M",AN51=""),"",SUMPRODUCT(--(AN$14:AN51="y"),--(AP$14:AP51="M"))) ->  | CI51: =IF(OR(AP51<>Dec!P$22,AN51=""),"",SUMPRODUCT(--(AN$14:AN51="y"),--(AP$14:AP51=Dec!P$22))) ->  | CJ51: =IF(OR(CM51<>"MV",AN51=""),"",SUMPRODUCT(--(AN$14:AN51="y"),--(CM$14:CM51="MV"))) ->  | CK51: =IF(OR(CM51<>Dec!P$22&"V",AN51=""),"",SUMPRODUCT(--(AN$14:AN51="y"),--(CM$14:CM51=Dec!P$22&"V"))) ->  | CL51: =IF(OR(AN51="",H51=""),"",SUMPRODUCT(--(AN$14:AN51="y"),--(P$14:P51=P51))) ->  | CS51: =IF(OR(CP51="",H51="",CP51="UA",CP51="U/A",CP51="Unattached"),"",IF(CI51>0,COUNTIF(CP$14:CP51,O51))) ->  | CU51: =IF(OR(CQ51="",H51="",CQ51="UA",CQ51="U/A",CQ51="Unattached"),"",IF(CK51>0,COUNTIF(CQ$14:CQ51,O51))) ->  | CZ51: =IF(OR(CW51="",H51="",CW51="UA",CW51="U/A",CW51="Unattached"),"",IF(CH51>0,COUNTIF(CW$14:CW51,O51))) ->  | DB51: =IF(OR(CX51="",H51="",CX51="UA",CX51="U/A",CX51="Unattached"),"",IF(CJ51>0,COUNTIF(CX$14:CX51,O51))) -> 
C52: =IF(AND(I52="",MAX(C$14:C51)=0),"",IF(AND(I52="",MAX(C$14:C51)>0),C51,I52)) ->  | D52: 00 | E52: 00 | F52: =MATCH(H52,Dec!L:L,0) ->  | G52: 38 | L52: 38 | Q52: =IF(AP52=Dec!P$22,COUNTIF(AP$14:AP52,Dec!P$22),"") ->  | R52: =IF(CM52="MV",COUNTIF(CM$14:CM52,"MV"),"") ->  | S52: =IF(CM52=Dec!P$22&"V",COUNTIF(CM$14:CM52,Dec!P$22&"V"),"") ->  | T52: =IF(H52="","",COUNTIF(P$14:P52,P52)) ->  | U52: =IF(AN52="y",COUNTIF(AN$14:AN52,"y"),"") ->  | AD52: 0 | AI52: =IF(P52=0,1,INDIRECT("AgeFactors!"&Summary!$E$20&2+MATCH(P52,AgeFactors!A$3:A$52,0))) ->  | AO52: =IF(AP52="M",COUNTIF(AP$14:AP52,"M"),"") ->  | AT52: =IF(OR(AQ52="",H52="",AQ52="UA",AQ52="U/A",AQ52="Unattached"),"",IF(Q52>0,COUNTIF(AQ$14:AQ52,O52))) ->  | AV52: =IF(OR(AR52="",H52="",AR52="UA",AR52="U/A",AR52="Unattached"),"",IF(S52>0,COUNTIF(AR$14:AR52,O52))) ->  | BA52: =IF(OR(AX52="",H52="",AX52="UA",AX52="U/A",AX52="Unattached"),"",IF(AO52>0,COUNTIF(AX$14:AX52,O52))) ->  | BC52: =IF(OR(AY52="",H52="",AY52="UA",AY52="U/A",AY52="Unattached"),"",IF(R52>0,COUNTIF(AY$14:AY52,O52))) ->  | BH52: =BH51+BG52 ->  | BK52: =BK51+BJ52 ->  | BL52: =RANK(BM52,BM$51:BM$58,1) ->  | BM52: =IF(BP52="","",SUM(INDIRECT("BU51:BU"&DC$14+50))+INDIRECT("BU"&DC$14+50)/10000) ->  | BO52: 2 | BP52: =IF(DC$13<BO52,"",SMALL(DC$15:DC$5014,BO52)) ->  | BQ52: - | BR52: =MATCH(BQ$51,INDIRECT("CX"&BS51+1&":CX5014"),0) ->  | BS52: =BS51+BR52 ->  | BT52: =MATCH($BQ$52,INDIRECT("CX"&BU51+1&":CX5014"),0) ->  | BU52: =BU51+BT52 ->  | BV52: =MATCH($BQ$53,INDIRECT("CX"&BW51+1&":CX5014"),0) ->  | BW52: =BW51+BV52 ->  | BX52: =MATCH($BQ$54,INDIRECT("CX"&BY51+1&":CX5014"),0) ->  | BY52: =BY51+BX52 ->  | BZ52: =MATCH($BQ$55,INDIRECT("CX"&CA51+1&":CX5014"),0) ->  | CA52: =CA51+BZ52 ->  | CB52: =MATCH($BQ$56,INDIRECT("CX"&CC51+1&":CX5014"),0) ->  | CC52: =CC51+CB52 ->  | CD52: =MATCH($BQ$57,INDIRECT("CX"&CE51+1&":CX5014"),0) ->  | CE52: =CE51+CD52 ->  | CF52: =MATCH($BQ$58,INDIRECT("CX"&CG51+1&":CX5014"),0) ->  | CG52: =CG51+CF52 ->  | CH52: =IF(OR(AP52<>"M",AN52=""),"",SUMPRODUCT(--(AN$14:AN52="y"),--(AP$14:AP52="M"))) ->  | CI52: =IF(OR(AP52<>Dec!P$22,AN52=""),"",SUMPRODUCT(--(AN$14:AN52="y"),--(AP$14:AP52=Dec!P$22))) ->  | CJ52: =IF(OR(CM52<>"MV",AN52=""),"",SUMPRODUCT(--(AN$14:AN52="y"),--(CM$14:CM52="MV"))) ->  | CK52: =IF(OR(CM52<>Dec!P$22&"V",AN52=""),"",SUMPRODUCT(--(AN$14:AN52="y"),--(CM$14:CM52=Dec!P$22&"V"))) ->  | CL52: =IF(OR(AN52="",H52=""),"",SUMPRODUCT(--(AN$14:AN52="y"),--(P$14:P52=P52))) ->  | CS52: =IF(OR(CP52="",H52="",CP52="UA",CP52="U/A",CP52="Unattached"),"",IF(CI52>0,COUNTIF(CP$14:CP52,O52))) ->  | CU52: =IF(OR(CQ52="",H52="",CQ52="UA",CQ52="U/A",CQ52="Unattached"),"",IF(CK52>0,COUNTIF(CQ$14:CQ52,O52))) ->  | CZ52: =IF(OR(CW52="",H52="",CW52="UA",CW52="U/A",CW52="Unattached"),"",IF(CH52>0,COUNTIF(CW$14:CW52,O52))) ->  | DB52: =IF(OR(CX52="",H52="",CX52="UA",CX52="U/A",CX52="Unattached"),"",IF(CJ52>0,COUNTIF(CX$14:CX52,O52))) -> 
C53: =IF(AND(I53="",MAX(C$14:C52)=0),"",IF(AND(I53="",MAX(C$14:C52)>0),C52,I53)) ->  | D53: 00 | E53: 00 | F53: =MATCH(H53,Dec!L:L,0) ->  | G53: 39 | L53: 39 | Q53: =IF(AP53=Dec!P$22,COUNTIF(AP$14:AP53,Dec!P$22),"") ->  | R53: =IF(CM53="MV",COUNTIF(CM$14:CM53,"MV"),"") ->  | S53: =IF(CM53=Dec!P$22&"V",COUNTIF(CM$14:CM53,Dec!P$22&"V"),"") ->  | T53: =IF(H53="","",COUNTIF(P$14:P53,P53)) ->  | U53: =IF(AN53="y",COUNTIF(AN$14:AN53,"y"),"") ->  | AD53: 0 | AI53: =IF(P53=0,1,INDIRECT("AgeFactors!"&Summary!$E$20&2+MATCH(P53,AgeFactors!A$3:A$52,0))) ->  | AO53: =IF(AP53="M",COUNTIF(AP$14:AP53,"M"),"") ->  | AT53: =IF(OR(AQ53="",H53="",AQ53="UA",AQ53="U/A",AQ53="Unattached"),"",IF(Q53>0,COUNTIF(AQ$14:AQ53,O53))) ->  | AV53: =IF(OR(AR53="",H53="",AR53="UA",AR53="U/A",AR53="Unattached"),"",IF(S53>0,COUNTIF(AR$14:AR53,O53))) ->  | BA53: =IF(OR(AX53="",H53="",AX53="UA",AX53="U/A",AX53="Unattached"),"",IF(AO53>0,COUNTIF(AX$14:AX53,O53))) ->  | BC53: =IF(OR(AY53="",H53="",AY53="UA",AY53="U/A",AY53="Unattached"),"",IF(R53>0,COUNTIF(AY$14:AY53,O53))) ->  | BM53: =IF(BP53="","",SUM(INDIRECT("BW51:BW"&DC$14+50))+INDIRECT("BW"&DC$14+50)/10000) ->  | BO53: 3 | BQ53: - | CH53: =IF(OR(AP53<>"M",AN53=""),"",SUMPRODUCT(--(AN$14:AN53="y"),--(AP$14:AP53="M"))) ->  | CI53: =IF(OR(AP53<>Dec!P$22,AN53=""),"",SUMPRODUCT(--(AN$14:AN53="y"),--(AP$14:AP53=Dec!P$22))) ->  | CJ53: =IF(OR(CM53<>"MV",AN53=""),"",SUMPRODUCT(--(AN$14:AN53="y"),--(CM$14:CM53="MV"))) ->  | CK53: =IF(OR(CM53<>Dec!P$22&"V",AN53=""),"",SUMPRODUCT(--(AN$14:AN53="y"),--(CM$14:CM53=Dec!P$22&"V"))) ->  | CL53: =IF(OR(AN53="",H53=""),"",SUMPRODUCT(--(AN$14:AN53="y"),--(P$14:P53=P53))) ->  | CS53: =IF(OR(CP53="",H53="",CP53="UA",CP53="U/A",CP53="Unattached"),"",IF(CI53>0,COUNTIF(CP$14:CP53,O53))) ->  | CU53: =IF(OR(CQ53="",H53="",CQ53="UA",CQ53="U/A",CQ53="Unattached"),"",IF(CK53>0,COUNTIF(CQ$14:CQ53,O53))) ->  | CZ53: =IF(OR(CW53="",H53="",CW53="UA",CW53="U/A",CW53="Unattached"),"",IF(CH53>0,COUNTIF(CW$14:CW53,O53))) ->  | DB53: =IF(OR(CX53="",H53="",CX53="UA",CX53="U/A",CX53="Unattached"),"",IF(CJ53>0,COUNTIF(CX$14:CX53,O53))) -> 
C54: =IF(AND(I54="",MAX(C$14:C53)=0),"",IF(AND(I54="",MAX(C$14:C53)>0),C53,I54)) ->  | D54: 00 | E54: 00 | F54: =MATCH(H54,Dec!L:L,0) ->  | G54: 40 | L54: 40 | Q54: =IF(AP54=Dec!P$22,COUNTIF(AP$14:AP54,Dec!P$22),"") ->  | R54: =IF(CM54="MV",COUNTIF(CM$14:CM54,"MV"),"") ->  | S54: =IF(CM54=Dec!P$22&"V",COUNTIF(CM$14:CM54,Dec!P$22&"V"),"") ->  | T54: =IF(H54="","",COUNTIF(P$14:P54,P54)) ->  | U54: =IF(AN54="y",COUNTIF(AN$14:AN54,"y"),"") ->  | AD54: 0 | AI54: =IF(P54=0,1,INDIRECT("AgeFactors!"&Summary!$E$20&2+MATCH(P54,AgeFactors!A$3:A$52,0))) ->  | AO54: =IF(AP54="M",COUNTIF(AP$14:AP54,"M"),"") ->  | AT54: =IF(OR(AQ54="",H54="",AQ54="UA",AQ54="U/A",AQ54="Unattached"),"",IF(Q54>0,COUNTIF(AQ$14:AQ54,O54))) ->  | AV54: =IF(OR(AR54="",H54="",AR54="UA",AR54="U/A",AR54="Unattached"),"",IF(S54>0,COUNTIF(AR$14:AR54,O54))) ->  | BA54: =IF(OR(AX54="",H54="",AX54="UA",AX54="U/A",AX54="Unattached"),"",IF(AO54>0,COUNTIF(AX$14:AX54,O54))) ->  | BC54: =IF(OR(AY54="",H54="",AY54="UA",AY54="U/A",AY54="Unattached"),"",IF(R54>0,COUNTIF(AY$14:AY54,O54))) ->  | BM54: =IF(BP54="","",SUM(INDIRECT("BY51:BY"&DC$14+50))+INDIRECT("BY"&DC$14+50)/10000) ->  | BO54: 4 | BQ54: - | CH54: =IF(OR(AP54<>"M",AN54=""),"",SUMPRODUCT(--(AN$14:AN54="y"),--(AP$14:AP54="M"))) ->  | CI54: =IF(OR(AP54<>Dec!P$22,AN54=""),"",SUMPRODUCT(--(AN$14:AN54="y"),--(AP$14:AP54=Dec!P$22))) ->  | CJ54: =IF(OR(CM54<>"MV",AN54=""),"",SUMPRODUCT(--(AN$14:AN54="y"),--(CM$14:CM54="MV"))) ->  | CK54: =IF(OR(CM54<>Dec!P$22&"V",AN54=""),"",SUMPRODUCT(--(AN$14:AN54="y"),--(CM$14:CM54=Dec!P$22&"V"))) ->  | CL54: =IF(OR(AN54="",H54=""),"",SUMPRODUCT(--(AN$14:AN54="y"),--(P$14:P54=P54))) ->  | CS54: =IF(OR(CP54="",H54="",CP54="UA",CP54="U/A",CP54="Unattached"),"",IF(CI54>0,COUNTIF(CP$14:CP54,O54))) ->  | CU54: =IF(OR(CQ54="",H54="",CQ54="UA",CQ54="U/A",CQ54="Unattached"),"",IF(CK54>0,COUNTIF(CQ$14:CQ54,O54))) ->  | CZ54: =IF(OR(CW54="",H54="",CW54="UA",CW54="U/A",CW54="Unattached"),"",IF(CH54>0,COUNTIF(CW$14:CW54,O54))) ->  | DB54: =IF(OR(CX54="",H54="",CX54="UA",CX54="U/A",CX54="Unattached"),"",IF(CJ54>0,COUNTIF(CX$14:CX54,O54))) -> 
C55: =IF(AND(I55="",MAX(C$14:C54)=0),"",IF(AND(I55="",MAX(C$14:C54)>0),C54,I55)) ->  | D55: 00 | E55: 00 | F55: =MATCH(H55,Dec!L:L,0) ->  | G55: 41 | L55: 41 | Q55: =IF(AP55=Dec!P$22,COUNTIF(AP$14:AP55,Dec!P$22),"") ->  | R55: =IF(CM55="MV",COUNTIF(CM$14:CM55,"MV"),"") ->  | S55: =IF(CM55=Dec!P$22&"V",COUNTIF(CM$14:CM55,Dec!P$22&"V"),"") ->  | T55: =IF(H55="","",COUNTIF(P$14:P55,P55)) ->  | U55: =IF(AN55="y",COUNTIF(AN$14:AN55,"y"),"") ->  | AD55: 0 | AI55: =IF(P55=0,1,INDIRECT("AgeFactors!"&Summary!$E$20&2+MATCH(P55,AgeFactors!A$3:A$52,0))) ->  | AO55: =IF(AP55="M",COUNTIF(AP$14:AP55,"M"),"") ->  | AT55: =IF(OR(AQ55="",H55="",AQ55="UA",AQ55="U/A",AQ55="Unattached"),"",IF(Q55>0,COUNTIF(AQ$14:AQ55,O55))) ->  | AV55: =IF(OR(AR55="",H55="",AR55="UA",AR55="U/A",AR55="Unattached"),"",IF(S55>0,COUNTIF(AR$14:AR55,O55))) ->  | BA55: =IF(OR(AX55="",H55="",AX55="UA",AX55="U/A",AX55="Unattached"),"",IF(AO55>0,COUNTIF(AX$14:AX55,O55))) ->  | BC55: =IF(OR(AY55="",H55="",AY55="UA",AY55="U/A",AY55="Unattached"),"",IF(R55>0,COUNTIF(AY$14:AY55,O55))) ->  | BM55: =IF(BP55="","",SUM(INDIRECT("CA51:CA"&DC$14+50))+INDIRECT("CA"&DC$14+50)/10000) ->  | BO55: 5 | BQ55: - | CH55: =IF(OR(AP55<>"M",AN55=""),"",SUMPRODUCT(--(AN$14:AN55="y"),--(AP$14:AP55="M"))) ->  | CI55: =IF(OR(AP55<>Dec!P$22,AN55=""),"",SUMPRODUCT(--(AN$14:AN55="y"),--(AP$14:AP55=Dec!P$22))) ->  | CJ55: =IF(OR(CM55<>"MV",AN55=""),"",SUMPRODUCT(--(AN$14:AN55="y"),--(CM$14:CM55="MV"))) ->  | CK55: =IF(OR(CM55<>Dec!P$22&"V",AN55=""),"",SUMPRODUCT(--(AN$14:AN55="y"),--(CM$14:CM55=Dec!P$22&"V"))) ->  | CL55: =IF(OR(AN55="",H55=""),"",SUMPRODUCT(--(AN$14:AN55="y"),--(P$14:P55=P55))) ->  | CS55: =IF(OR(CP55="",H55="",CP55="UA",CP55="U/A",CP55="Unattached"),"",IF(CI55>0,COUNTIF(CP$14:CP55,O55))) ->  | CU55: =IF(OR(CQ55="",H55="",CQ55="UA",CQ55="U/A",CQ55="Unattached"),"",IF(CK55>0,COUNTIF(CQ$14:CQ55,O55))) ->  | CZ55: =IF(OR(CW55="",H55="",CW55="UA",CW55="U/A",CW55="Unattached"),"",IF(CH55>0,COUNTIF(CW$14:CW55,O55))) ->  | DB55: =IF(OR(CX55="",H55="",CX55="UA",CX55="U/A",CX55="Unattached"),"",IF(CJ55>0,COUNTIF(CX$14:CX55,O55))) -> 
C56: =IF(AND(I56="",MAX(C$14:C55)=0),"",IF(AND(I56="",MAX(C$14:C55)>0),C55,I56)) ->  | D56: 00 | E56: 00 | F56: =MATCH(H56,Dec!L:L,0) ->  | G56: 42 | L56: 42 | Q56: =IF(AP56=Dec!P$22,COUNTIF(AP$14:AP56,Dec!P$22),"") ->  | R56: =IF(CM56="MV",COUNTIF(CM$14:CM56,"MV"),"") ->  | S56: =IF(CM56=Dec!P$22&"V",COUNTIF(CM$14:CM56,Dec!P$22&"V"),"") ->  | T56: =IF(H56="","",COUNTIF(P$14:P56,P56)) ->  | U56: =IF(AN56="y",COUNTIF(AN$14:AN56,"y"),"") ->  | AD56: 0 | AI56: =IF(P56=0,1,INDIRECT("AgeFactors!"&Summary!$E$20&2+MATCH(P56,AgeFactors!A$3:A$52,0))) ->  | AO56: =IF(AP56="M",COUNTIF(AP$14:AP56,"M"),"") ->  | AT56: =IF(OR(AQ56="",H56="",AQ56="UA",AQ56="U/A",AQ56="Unattached"),"",IF(Q56>0,COUNTIF(AQ$14:AQ56,O56))) ->  | AV56: =IF(OR(AR56="",H56="",AR56="UA",AR56="U/A",AR56="Unattached"),"",IF(S56>0,COUNTIF(AR$14:AR56,O56))) ->  | BA56: =IF(OR(AX56="",H56="",AX56="UA",AX56="U/A",AX56="Unattached"),"",IF(AO56>0,COUNTIF(AX$14:AX56,O56))) ->  | BC56: =IF(OR(AY56="",H56="",AY56="UA",AY56="U/A",AY56="Unattached"),"",IF(R56>0,COUNTIF(AY$14:AY56,O56))) ->  | BM56: =IF(BP56="","",SUM(INDIRECT("CC51:CC"&DC$14+50))+INDIRECT("CC"&DC$14+50)/10000) ->  | BO56: 6 | BQ56: - | CH56: =IF(OR(AP56<>"M",AN56=""),"",SUMPRODUCT(--(AN$14:AN56="y"),--(AP$14:AP56="M"))) ->  | CI56: =IF(OR(AP56<>Dec!P$22,AN56=""),"",SUMPRODUCT(--(AN$14:AN56="y"),--(AP$14:AP56=Dec!P$22))) ->  | CJ56: =IF(OR(CM56<>"MV",AN56=""),"",SUMPRODUCT(--(AN$14:AN56="y"),--(CM$14:CM56="MV"))) ->  | CK56: =IF(OR(CM56<>Dec!P$22&"V",AN56=""),"",SUMPRODUCT(--(AN$14:AN56="y"),--(CM$14:CM56=Dec!P$22&"V"))) ->  | CL56: =IF(OR(AN56="",H56=""),"",SUMPRODUCT(--(AN$14:AN56="y"),--(P$14:P56=P56))) ->  | CS56: =IF(OR(CP56="",H56="",CP56="UA",CP56="U/A",CP56="Unattached"),"",IF(CI56>0,COUNTIF(CP$14:CP56,O56))) ->  | CU56: =IF(OR(CQ56="",H56="",CQ56="UA",CQ56="U/A",CQ56="Unattached"),"",IF(CK56>0,COUNTIF(CQ$14:CQ56,O56))) ->  | CZ56: =IF(OR(CW56="",H56="",CW56="UA",CW56="U/A",CW56="Unattached"),"",IF(CH56>0,COUNTIF(CW$14:CW56,O56))) ->  | DB56: =IF(OR(CX56="",H56="",CX56="UA",CX56="U/A",CX56="Unattached"),"",IF(CJ56>0,COUNTIF(CX$14:CX56,O56))) -> 
C57: =IF(AND(I57="",MAX(C$14:C56)=0),"",IF(AND(I57="",MAX(C$14:C56)>0),C56,I57)) ->  | D57: 00 | E57: 00 | F57: =MATCH(H57,Dec!L:L,0) ->  | G57: 43 | L57: 43 | Q57: =IF(AP57=Dec!P$22,COUNTIF(AP$14:AP57,Dec!P$22),"") ->  | R57: =IF(CM57="MV",COUNTIF(CM$14:CM57,"MV"),"") ->  | S57: =IF(CM57=Dec!P$22&"V",COUNTIF(CM$14:CM57,Dec!P$22&"V"),"") ->  | T57: =IF(H57="","",COUNTIF(P$14:P57,P57)) ->  | U57: =IF(AN57="y",COUNTIF(AN$14:AN57,"y"),"") ->  | AD57: 0 | AI57: =IF(P57=0,1,INDIRECT("AgeFactors!"&Summary!$E$20&2+MATCH(P57,AgeFactors!A$3:A$52,0))) ->  | AO57: =IF(AP57="M",COUNTIF(AP$14:AP57,"M"),"") ->  | AT57: =IF(OR(AQ57="",H57="",AQ57="UA",AQ57="U/A",AQ57="Unattached"),"",IF(Q57>0,COUNTIF(AQ$14:AQ57,O57))) ->  | AV57: =IF(OR(AR57="",H57="",AR57="UA",AR57="U/A",AR57="Unattached"),"",IF(S57>0,COUNTIF(AR$14:AR57,O57))) ->  | BA57: =IF(OR(AX57="",H57="",AX57="UA",AX57="U/A",AX57="Unattached"),"",IF(AO57>0,COUNTIF(AX$14:AX57,O57))) ->  | BC57: =IF(OR(AY57="",H57="",AY57="UA",AY57="U/A",AY57="Unattached"),"",IF(R57>0,COUNTIF(AY$14:AY57,O57))) ->  | BM57: =IF(BP57="","",SUM(INDIRECT("CE51:CE"&DC$14+50))+INDIRECT("CE"&DC$14+50)/10000) ->  | BO57: 7 | BQ57: - | CH57: =IF(OR(AP57<>"M",AN57=""),"",SUMPRODUCT(--(AN$14:AN57="y"),--(AP$14:AP57="M"))) ->  | CI57: =IF(OR(AP57<>Dec!P$22,AN57=""),"",SUMPRODUCT(--(AN$14:AN57="y"),--(AP$14:AP57=Dec!P$22))) ->  | CJ57: =IF(OR(CM57<>"MV",AN57=""),"",SUMPRODUCT(--(AN$14:AN57="y"),--(CM$14:CM57="MV"))) ->  | CK57: =IF(OR(CM57<>Dec!P$22&"V",AN57=""),"",SUMPRODUCT(--(AN$14:AN57="y"),--(CM$14:CM57=Dec!P$22&"V"))) ->  | CL57: =IF(OR(AN57="",H57=""),"",SUMPRODUCT(--(AN$14:AN57="y"),--(P$14:P57=P57))) ->  | CS57: =IF(OR(CP57="",H57="",CP57="UA",CP57="U/A",CP57="Unattached"),"",IF(CI57>0,COUNTIF(CP$14:CP57,O57))) ->  | CU57: =IF(OR(CQ57="",H57="",CQ57="UA",CQ57="U/A",CQ57="Unattached"),"",IF(CK57>0,COUNTIF(CQ$14:CQ57,O57))) ->  | CZ57: =IF(OR(CW57="",H57="",CW57="UA",CW57="U/A",CW57="Unattached"),"",IF(CH57>0,COUNTIF(CW$14:CW57,O57))) ->  | DB57: =IF(OR(CX57="",H57="",CX57="UA",CX57="U/A",CX57="Unattached"),"",IF(CJ57>0,COUNTIF(CX$14:CX57,O57))) -> 
C58: =IF(AND(I58="",MAX(C$14:C57)=0),"",IF(AND(I58="",MAX(C$14:C57)>0),C57,I58)) ->  | D58: 00 | E58: 00 | F58: =MATCH(H58,Dec!L:L,0) ->  | G58: 44 | L58: 44 | Q58: =IF(AP58=Dec!P$22,COUNTIF(AP$14:AP58,Dec!P$22),"") ->  | R58: =IF(CM58="MV",COUNTIF(CM$14:CM58,"MV"),"") ->  | S58: =IF(CM58=Dec!P$22&"V",COUNTIF(CM$14:CM58,Dec!P$22&"V"),"") ->  | T58: =IF(H58="","",COUNTIF(P$14:P58,P58)) ->  | U58: =IF(AN58="y",COUNTIF(AN$14:AN58,"y"),"") ->  | AD58: 0 | AI58: =IF(P58=0,1,INDIRECT("AgeFactors!"&Summary!$E$20&2+MATCH(P58,AgeFactors!A$3:A$52,0))) ->  | AO58: =IF(AP58="M",COUNTIF(AP$14:AP58,"M"),"") ->  | AT58: =IF(OR(AQ58="",H58="",AQ58="UA",AQ58="U/A",AQ58="Unattached"),"",IF(Q58>0,COUNTIF(AQ$14:AQ58,O58))) ->  | AV58: =IF(OR(AR58="",H58="",AR58="UA",AR58="U/A",AR58="Unattached"),"",IF(S58>0,COUNTIF(AR$14:AR58,O58))) ->  | BA58: =IF(OR(AX58="",H58="",AX58="UA",AX58="U/A",AX58="Unattached"),"",IF(AO58>0,COUNTIF(AX$14:AX58,O58))) ->  | BC58: =IF(OR(AY58="",H58="",AY58="UA",AY58="U/A",AY58="Unattached"),"",IF(R58>0,COUNTIF(AY$14:AY58,O58))) ->  | BE58: 3 | BF58: =Winners!F153 -> - | BG58: =MATCH(BF58,AY$15:AY$5014,0) ->  | BH58: =14+BG58 ->  | BI58: =SCWinners!F153 -> - | BJ58: =MATCH(BI58,CX$15:CX$5014,0) ->  | BK58: =14+BJ58 ->  | BM58: =IF(BP58="","",SUM(INDIRECT("CG51:CG"&DC$14+50))+INDIRECT("CG"&DC$14+50)/10000) ->  | BO58: 8 | BQ58: - | CH58: =IF(OR(AP58<>"M",AN58=""),"",SUMPRODUCT(--(AN$14:AN58="y"),--(AP$14:AP58="M"))) ->  | CI58: =IF(OR(AP58<>Dec!P$22,AN58=""),"",SUMPRODUCT(--(AN$14:AN58="y"),--(AP$14:AP58=Dec!P$22))) ->  | CJ58: =IF(OR(CM58<>"MV",AN58=""),"",SUMPRODUCT(--(AN$14:AN58="y"),--(CM$14:CM58="MV"))) ->  | CK58: =IF(OR(CM58<>Dec!P$22&"V",AN58=""),"",SUMPRODUCT(--(AN$14:AN58="y"),--(CM$14:CM58=Dec!P$22&"V"))) ->  | CL58: =IF(OR(AN58="",H58=""),"",SUMPRODUCT(--(AN$14:AN58="y"),--(P$14:P58=P58))) ->  | CS58: =IF(OR(CP58="",H58="",CP58="UA",CP58="U/A",CP58="Unattached"),"",IF(CI58>0,COUNTIF(CP$14:CP58,O58))) ->  | CU58: =IF(OR(CQ58="",H58="",CQ58="UA",CQ58="U/A",CQ58="Unattached"),"",IF(CK58>0,COUNTIF(CQ$14:CQ58,O58))) ->  | CZ58: =IF(OR(CW58="",H58="",CW58="UA",CW58="U/A",CW58="Unattached"),"",IF(CH58>0,COUNTIF(CW$14:CW58,O58))) ->  | DB58: =IF(OR(CX58="",H58="",CX58="UA",CX58="U/A",CX58="Unattached"),"",IF(CJ58>0,COUNTIF(CX$14:CX58,O58))) -> 
C59: =IF(AND(I59="",MAX(C$14:C58)=0),"",IF(AND(I59="",MAX(C$14:C58)>0),C58,I59)) ->  | D59: 00 | E59: 00 | F59: =MATCH(H59,Dec!L:L,0) ->  | G59: 45 | L59: 45 | Q59: =IF(AP59=Dec!P$22,COUNTIF(AP$14:AP59,Dec!P$22),"") ->  | R59: =IF(CM59="MV",COUNTIF(CM$14:CM59,"MV"),"") ->  | S59: =IF(CM59=Dec!P$22&"V",COUNTIF(CM$14:CM59,Dec!P$22&"V"),"") ->  | T59: =IF(H59="","",COUNTIF(P$14:P59,P59)) ->  | U59: =IF(AN59="y",COUNTIF(AN$14:AN59,"y"),"") ->  | AD59: 0 | AI59: =IF(P59=0,1,INDIRECT("AgeFactors!"&Summary!$E$20&2+MATCH(P59,AgeFactors!A$3:A$52,0))) ->  | AO59: =IF(AP59="M",COUNTIF(AP$14:AP59,"M"),"") ->  | AT59: =IF(OR(AQ59="",H59="",AQ59="UA",AQ59="U/A",AQ59="Unattached"),"",IF(Q59>0,COUNTIF(AQ$14:AQ59,O59))) ->  | AV59: =IF(OR(AR59="",H59="",AR59="UA",AR59="U/A",AR59="Unattached"),"",IF(S59>0,COUNTIF(AR$14:AR59,O59))) ->  | BA59: =IF(OR(AX59="",H59="",AX59="UA",AX59="U/A",AX59="Unattached"),"",IF(AO59>0,COUNTIF(AX$14:AX59,O59))) ->  | BC59: =IF(OR(AY59="",H59="",AY59="UA",AY59="U/A",AY59="Unattached"),"",IF(R59>0,COUNTIF(AY$14:AY59,O59))) ->  | BG59: =MATCH(BF$58,INDIRECT("AY"&BH58+1&":AY5014"),0) ->  | BH59: =BH58+BG59 ->  | BJ59: =MATCH(BI$58,INDIRECT("cg"&BK58+1&":cg5014"),0) ->  | BK59: =BK58+BJ59 ->  | CH59: =IF(OR(AP59<>"M",AN59=""),"",SUMPRODUCT(--(AN$14:AN59="y"),--(AP$14:AP59="M"))) ->  | CI59: =IF(OR(AP59<>Dec!P$22,AN59=""),"",SUMPRODUCT(--(AN$14:AN59="y"),--(AP$14:AP59=Dec!P$22))) ->  | CJ59: =IF(OR(CM59<>"MV",AN59=""),"",SUMPRODUCT(--(AN$14:AN59="y"),--(CM$14:CM59="MV"))) ->  | CK59: =IF(OR(CM59<>Dec!P$22&"V",AN59=""),"",SUMPRODUCT(--(AN$14:AN59="y"),--(CM$14:CM59=Dec!P$22&"V"))) ->  | CL59: =IF(OR(AN59="",H59=""),"",SUMPRODUCT(--(AN$14:AN59="y"),--(P$14:P59=P59))) ->  | CS59: =IF(OR(CP59="",H59="",CP59="UA",CP59="U/A",CP59="Unattached"),"",IF(CI59>0,COUNTIF(CP$14:CP59,O59))) ->  | CU59: =IF(OR(CQ59="",H59="",CQ59="UA",CQ59="U/A",CQ59="Unattached"),"",IF(CK59>0,COUNTIF(CQ$14:CQ59,O59))) ->  | CZ59: =IF(OR(CW59="",H59="",CW59="UA",CW59="U/A",CW59="Unattached"),"",IF(CH59>0,COUNTIF(CW$14:CW59,O59))) ->  | DB59: =IF(OR(CX59="",H59="",CX59="UA",CX59="U/A",CX59="Unattached"),"",IF(CJ59>0,COUNTIF(CX$14:CX59,O59))) -> 
C60: =IF(AND(I60="",MAX(C$14:C59)=0),"",IF(AND(I60="",MAX(C$14:C59)>0),C59,I60)) ->  | D60: 00 | E60: 00 | F60: =MATCH(H60,Dec!L:L,0) ->  | G60: 46 | L60: 46 | Q60: =IF(AP60=Dec!P$22,COUNTIF(AP$14:AP60,Dec!P$22),"") ->  | R60: =IF(CM60="MV",COUNTIF(CM$14:CM60,"MV"),"") ->  | S60: =IF(CM60=Dec!P$22&"V",COUNTIF(CM$14:CM60,Dec!P$22&"V"),"") ->  | T60: =IF(H60="","",COUNTIF(P$14:P60,P60)) ->  | U60: =IF(AN60="y",COUNTIF(AN$14:AN60,"y"),"") ->  | AD60: 0 | AI60: =IF(P60=0,1,INDIRECT("AgeFactors!"&Summary!$E$20&2+MATCH(P60,AgeFactors!A$3:A$52,0))) ->  | AO60: =IF(AP60="M",COUNTIF(AP$14:AP60,"M"),"") ->  | AT60: =IF(OR(AQ60="",H60="",AQ60="UA",AQ60="U/A",AQ60="Unattached"),"",IF(Q60>0,COUNTIF(AQ$14:AQ60,O60))) ->  | AV60: =IF(OR(AR60="",H60="",AR60="UA",AR60="U/A",AR60="Unattached"),"",IF(S60>0,COUNTIF(AR$14:AR60,O60))) ->  | BA60: =IF(OR(AX60="",H60="",AX60="UA",AX60="U/A",AX60="Unattached"),"",IF(AO60>0,COUNTIF(AX$14:AX60,O60))) ->  | BC60: =IF(OR(AY60="",H60="",AY60="UA",AY60="U/A",AY60="Unattached"),"",IF(R60>0,COUNTIF(AY$14:AY60,O60))) ->  | BH60: =BH59+BG60 ->  | BK60: =BK59+BJ60 ->  | BL60: Women | CH60: =IF(OR(AP60<>"M",AN60=""),"",SUMPRODUCT(--(AN$14:AN60="y"),--(AP$14:AP60="M"))) ->  | CI60: =IF(OR(AP60<>Dec!P$22,AN60=""),"",SUMPRODUCT(--(AN$14:AN60="y"),--(AP$14:AP60=Dec!P$22))) ->  | CJ60: =IF(OR(CM60<>"MV",AN60=""),"",SUMPRODUCT(--(AN$14:AN60="y"),--(CM$14:CM60="MV"))) ->  | CK60: =IF(OR(CM60<>Dec!P$22&"V",AN60=""),"",SUMPRODUCT(--(AN$14:AN60="y"),--(CM$14:CM60=Dec!P$22&"V"))) ->  | CL60: =IF(OR(AN60="",H60=""),"",SUMPRODUCT(--(AN$14:AN60="y"),--(P$14:P60=P60))) ->  | CS60: =IF(OR(CP60="",H60="",CP60="UA",CP60="U/A",CP60="Unattached"),"",IF(CI60>0,COUNTIF(CP$14:CP60,O60))) ->  | CU60: =IF(OR(CQ60="",H60="",CQ60="UA",CQ60="U/A",CQ60="Unattached"),"",IF(CK60>0,COUNTIF(CQ$14:CQ60,O60))) ->  | CZ60: =IF(OR(CW60="",H60="",CW60="UA",CW60="U/A",CW60="Unattached"),"",IF(CH60>0,COUNTIF(CW$14:CW60,O60))) ->  | DB60: =IF(OR(CX60="",H60="",CX60="UA",CX60="U/A",CX60="Unattached"),"",IF(CJ60>0,COUNTIF(CX$14:CX60,O60))) -> 
C61: =IF(AND(I61="",MAX(C$14:C60)=0),"",IF(AND(I61="",MAX(C$14:C60)>0),C60,I61)) ->  | D61: 00 | E61: 00 | F61: =MATCH(H61,Dec!L:L,0) ->  | G61: 47 | L61: 47 | Q61: =IF(AP61=Dec!P$22,COUNTIF(AP$14:AP61,Dec!P$22),"") ->  | R61: =IF(CM61="MV",COUNTIF(CM$14:CM61,"MV"),"") ->  | S61: =IF(CM61=Dec!P$22&"V",COUNTIF(CM$14:CM61,Dec!P$22&"V"),"") ->  | T61: =IF(H61="","",COUNTIF(P$14:P61,P61)) ->  | U61: =IF(AN61="y",COUNTIF(AN$14:AN61,"y"),"") ->  | AD61: 0 | AI61: =IF(P61=0,1,INDIRECT("AgeFactors!"&Summary!$E$20&2+MATCH(P61,AgeFactors!A$3:A$52,0))) ->  | AO61: =IF(AP61="M",COUNTIF(AP$14:AP61,"M"),"") ->  | AT61: =IF(OR(AQ61="",H61="",AQ61="UA",AQ61="U/A",AQ61="Unattached"),"",IF(Q61>0,COUNTIF(AQ$14:AQ61,O61))) ->  | AV61: =IF(OR(AR61="",H61="",AR61="UA",AR61="U/A",AR61="Unattached"),"",IF(S61>0,COUNTIF(AR$14:AR61,O61))) ->  | BA61: =IF(OR(AX61="",H61="",AX61="UA",AX61="U/A",AX61="Unattached"),"",IF(AO61>0,COUNTIF(AX$14:AX61,O61))) ->  | BC61: =IF(OR(AY61="",H61="",AY61="UA",AY61="U/A",AY61="Unattached"),"",IF(R61>0,COUNTIF(AY$14:AY61,O61))) ->  | BL61: =RANK(BM61,BM$61:BM$68,1) ->  | BM61: =IF(CT13=0,"",SUM(INDIRECT("BS61:BS"&CT$14+60))+INDIRECT("BS"&CT$14+60)/10000) ->  | BO61: 1 | BP61: =IF(CT13=0,"",SMALL(CT$15:CT$5014,BO61)) ->  | BQ61: =IF(BP61="","-",INDIRECT("results!o"&BP61)) -> - | BR61: =MATCH($BQ61,$CP$15:$CP$5014,0) ->  | BS61: =14+BR61 ->  | BT61: =MATCH($BQ62,$CP$15:$CP$5014,0) ->  | BU61: =14+BT61 ->  | BV61: =MATCH($BQ63,$CP$15:$CP$5014,0) ->  | BW61: =14+BV61 ->  | BX61: =MATCH($BQ64,$CP$15:$CP$5014,0) ->  | BY61: =14+BX61 ->  | BZ61: =MATCH($BQ65,$CP$15:$CP$5014,0) ->  | CA61: =14+BZ61 ->  | CB61: =MATCH($BQ66,$CP$15:$CP$5014,0) ->  | CC61: =14+CB61 ->  | CD61: =MATCH($BQ67,$CP$15:$CP$5014,0) ->  | CE61: =14+CD61 ->  | CF61: =MATCH($BQ68,$CP$15:$CP$5014,0) ->  | CG61: =14+CF61 ->  | CH61: =IF(OR(AP61<>"M",AN61=""),"",SUMPRODUCT(--(AN$14:AN61="y"),--(AP$14:AP61="M"))) ->  | CI61: =IF(OR(AP61<>Dec!P$22,AN61=""),"",SUMPRODUCT(--(AN$14:AN61="y"),--(AP$14:AP61=Dec!P$22))) ->  | CJ61: =IF(OR(CM61<>"MV",AN61=""),"",SUMPRODUCT(--(AN$14:AN61="y"),--(CM$14:CM61="MV"))) ->  | CK61: =IF(OR(CM61<>Dec!P$22&"V",AN61=""),"",SUMPRODUCT(--(AN$14:AN61="y"),--(CM$14:CM61=Dec!P$22&"V"))) ->  | CL61: =IF(OR(AN61="",H61=""),"",SUMPRODUCT(--(AN$14:AN61="y"),--(P$14:P61=P61))) ->  | CS61: =IF(OR(CP61="",H61="",CP61="UA",CP61="U/A",CP61="Unattached"),"",IF(CI61>0,COUNTIF(CP$14:CP61,O61))) ->  | CU61: =IF(OR(CQ61="",H61="",CQ61="UA",CQ61="U/A",CQ61="Unattached"),"",IF(CK61>0,COUNTIF(CQ$14:CQ61,O61))) ->  | CZ61: =IF(OR(CW61="",H61="",CW61="UA",CW61="U/A",CW61="Unattached"),"",IF(CH61>0,COUNTIF(CW$14:CW61,O61))) ->  | DB61: =IF(OR(CX61="",H61="",CX61="UA",CX61="U/A",CX61="Unattached"),"",IF(CJ61>0,COUNTIF(CX$14:CX61,O61))) -> 
C62: =IF(AND(I62="",MAX(C$14:C61)=0),"",IF(AND(I62="",MAX(C$14:C61)>0),C61,I62)) ->  | D62: 00 | E62: 00 | F62: =MATCH(H62,Dec!L:L,0) ->  | G62: 48 | L62: 48 | Q62: =IF(AP62=Dec!P$22,COUNTIF(AP$14:AP62,Dec!P$22),"") ->  | R62: =IF(CM62="MV",COUNTIF(CM$14:CM62,"MV"),"") ->  | S62: =IF(CM62=Dec!P$22&"V",COUNTIF(CM$14:CM62,Dec!P$22&"V"),"") ->  | T62: =IF(H62="","",COUNTIF(P$14:P62,P62)) ->  | U62: =IF(AN62="y",COUNTIF(AN$14:AN62,"y"),"") ->  | AD62: 0 | AI62: =IF(P62=0,1,INDIRECT("AgeFactors!"&Summary!$E$20&2+MATCH(P62,AgeFactors!A$3:A$52,0))) ->  | AO62: =IF(AP62="M",COUNTIF(AP$14:AP62,"M"),"") ->  | AT62: =IF(OR(AQ62="",H62="",AQ62="UA",AQ62="U/A",AQ62="Unattached"),"",IF(Q62>0,COUNTIF(AQ$14:AQ62,O62))) ->  | AV62: =IF(OR(AR62="",H62="",AR62="UA",AR62="U/A",AR62="Unattached"),"",IF(S62>0,COUNTIF(AR$14:AR62,O62))) ->  | BA62: =IF(OR(AX62="",H62="",AX62="UA",AX62="U/A",AX62="Unattached"),"",IF(AO62>0,COUNTIF(AX$14:AX62,O62))) ->  | BC62: =IF(OR(AY62="",H62="",AY62="UA",AY62="U/A",AY62="Unattached"),"",IF(R62>0,COUNTIF(AY$14:AY62,O62))) ->  | BL62: =RANK(BM62,BM$61:BM$68,1) ->  | BM62: =IF(BP62="","",SUM(INDIRECT("BU61:BU"&CT$14+60))+INDIRECT("BU"&CT$14+60)/10000) ->  | BO62: 2 | BP62: =IF(CT$13<BO62,"",SMALL(CT$15:CT$5014,BO62)) ->  | BQ62: =IF(BP62="","-",INDIRECT("results!o"&BP62)) -> - | BR62: =MATCH(BQ$61,INDIRECT("CP"&BS61+1&":CP5014"),0) ->  | BS62: =BS61+BR62 ->  | BT62: =MATCH($BQ$62,INDIRECT("CP"&BU61+1&":CP5014"),0) ->  | BU62: =BU61+BT62 ->  | BV62: =MATCH($BQ$63,INDIRECT("CP"&BW61+1&":CP5014"),0) ->  | BW62: =BW61+BV62 ->  | BX62: =MATCH($BQ$64,INDIRECT("CP"&BY61+1&":CP5014"),0) ->  | BY62: =BY61+BX62 ->  | BZ62: =MATCH($BQ$65,INDIRECT("CP"&CA61+1&":CP5014"),0) ->  | CA62: =CA61+BZ62 ->  | CB62: =MATCH($BQ$66,INDIRECT("CP"&CC61+1&":CP5014"),0) ->  | CC62: =CC61+CB62 ->  | CD62: =MATCH($BQ$67,INDIRECT("CP"&CE61+1&":CP5014"),0) ->  | CE62: =CE61+CD62 ->  | CF62: =MATCH($BQ$68,INDIRECT("CP"&CG61+1&":CP5014"),0) ->  | CG62: =CG61+CF62 ->  | CH62: =IF(OR(AP62<>"M",AN62=""),"",SUMPRODUCT(--(AN$14:AN62="y"),--(AP$14:AP62="M"))) ->  | CI62: =IF(OR(AP62<>Dec!P$22,AN62=""),"",SUMPRODUCT(--(AN$14:AN62="y"),--(AP$14:AP62=Dec!P$22))) ->  | CJ62: =IF(OR(CM62<>"MV",AN62=""),"",SUMPRODUCT(--(AN$14:AN62="y"),--(CM$14:CM62="MV"))) ->  | CK62: =IF(OR(CM62<>Dec!P$22&"V",AN62=""),"",SUMPRODUCT(--(AN$14:AN62="y"),--(CM$14:CM62=Dec!P$22&"V"))) ->  | CL62: =IF(OR(AN62="",H62=""),"",SUMPRODUCT(--(AN$14:AN62="y"),--(P$14:P62=P62))) ->  | CS62: =IF(OR(CP62="",H62="",CP62="UA",CP62="U/A",CP62="Unattached"),"",IF(CI62>0,COUNTIF(CP$14:CP62,O62))) ->  | CU62: =IF(OR(CQ62="",H62="",CQ62="UA",CQ62="U/A",CQ62="Unattached"),"",IF(CK62>0,COUNTIF(CQ$14:CQ62,O62))) ->  | CZ62: =IF(OR(CW62="",H62="",CW62="UA",CW62="U/A",CW62="Unattached"),"",IF(CH62>0,COUNTIF(CW$14:CW62,O62))) ->  | DB62: =IF(OR(CX62="",H62="",CX62="UA",CX62="U/A",CX62="Unattached"),"",IF(CJ62>0,COUNTIF(CX$14:CX62,O62))) -> 
C63: =IF(AND(I63="",MAX(C$14:C62)=0),"",IF(AND(I63="",MAX(C$14:C62)>0),C62,I63)) ->  | D63: 00 | E63: 00 | F63: =MATCH(H63,Dec!L:L,0) ->  | G63: 49 | L63: 49 | Q63: =IF(AP63=Dec!P$22,COUNTIF(AP$14:AP63,Dec!P$22),"") ->  | R63: =IF(CM63="MV",COUNTIF(CM$14:CM63,"MV"),"") ->  | S63: =IF(CM63=Dec!P$22&"V",COUNTIF(CM$14:CM63,Dec!P$22&"V"),"") ->  | T63: =IF(H63="","",COUNTIF(P$14:P63,P63)) ->  | U63: =IF(AN63="y",COUNTIF(AN$14:AN63,"y"),"") ->  | AD63: 0 | AI63: =IF(P63=0,1,INDIRECT("AgeFactors!"&Summary!$E$20&2+MATCH(P63,AgeFactors!A$3:A$52,0))) ->  | AO63: =IF(AP63="M",COUNTIF(AP$14:AP63,"M"),"") ->  | AT63: =IF(OR(AQ63="",H63="",AQ63="UA",AQ63="U/A",AQ63="Unattached"),"",IF(Q63>0,COUNTIF(AQ$14:AQ63,O63))) ->  | AV63: =IF(OR(AR63="",H63="",AR63="UA",AR63="U/A",AR63="Unattached"),"",IF(S63>0,COUNTIF(AR$14:AR63,O63))) ->  | BA63: =IF(OR(AX63="",H63="",AX63="UA",AX63="U/A",AX63="Unattached"),"",IF(AO63>0,COUNTIF(AX$14:AX63,O63))) ->  | BC63: =IF(OR(AY63="",H63="",AY63="UA",AY63="U/A",AY63="Unattached"),"",IF(R63>0,COUNTIF(AY$14:AY63,O63))) ->  | BM63: =IF(BP63="","",SUM(INDIRECT("BW61:BW"&CT$14+60))+INDIRECT("BW"&CT$14+60)/10000) ->  | BO63: 3 | BQ63: - | CH63: =IF(OR(AP63<>"M",AN63=""),"",SUMPRODUCT(--(AN$14:AN63="y"),--(AP$14:AP63="M"))) ->  | CI63: =IF(OR(AP63<>Dec!P$22,AN63=""),"",SUMPRODUCT(--(AN$14:AN63="y"),--(AP$14:AP63=Dec!P$22))) ->  | CJ63: =IF(OR(CM63<>"MV",AN63=""),"",SUMPRODUCT(--(AN$14:AN63="y"),--(CM$14:CM63="MV"))) ->  | CK63: =IF(OR(CM63<>Dec!P$22&"V",AN63=""),"",SUMPRODUCT(--(AN$14:AN63="y"),--(CM$14:CM63=Dec!P$22&"V"))) ->  | CL63: =IF(OR(AN63="",H63=""),"",SUMPRODUCT(--(AN$14:AN63="y"),--(P$14:P63=P63))) ->  | CS63: =IF(OR(CP63="",H63="",CP63="UA",CP63="U/A",CP63="Unattached"),"",IF(CI63>0,COUNTIF(CP$14:CP63,O63))) ->  | CU63: =IF(OR(CQ63="",H63="",CQ63="UA",CQ63="U/A",CQ63="Unattached"),"",IF(CK63>0,COUNTIF(CQ$14:CQ63,O63))) ->  | CZ63: =IF(OR(CW63="",H63="",CW63="UA",CW63="U/A",CW63="Unattached"),"",IF(CH63>0,COUNTIF(CW$14:CW63,O63))) ->  | DB63: =IF(OR(CX63="",H63="",CX63="UA",CX63="U/A",CX63="Unattached"),"",IF(CJ63>0,COUNTIF(CX$14:CX63,O63))) -> 
C64: =IF(AND(I64="",MAX(C$14:C63)=0),"",IF(AND(I64="",MAX(C$14:C63)>0),C63,I64)) ->  | D64: 00 | E64: 00 | F64: =MATCH(H64,Dec!L:L,0) ->  | G64: 50 | L64: 50 | Q64: =IF(AP64=Dec!P$22,COUNTIF(AP$14:AP64,Dec!P$22),"") ->  | R64: =IF(CM64="MV",COUNTIF(CM$14:CM64,"MV"),"") ->  | S64: =IF(CM64=Dec!P$22&"V",COUNTIF(CM$14:CM64,Dec!P$22&"V"),"") ->  | T64: =IF(H64="","",COUNTIF(P$14:P64,P64)) ->  | U64: =IF(AN64="y",COUNTIF(AN$14:AN64,"y"),"") ->  | AD64: 0 | AI64: =IF(P64=0,1,INDIRECT("AgeFactors!"&Summary!$E$20&2+MATCH(P64,AgeFactors!A$3:A$52,0))) ->  | AO64: =IF(AP64="M",COUNTIF(AP$14:AP64,"M"),"") ->  | AT64: =IF(OR(AQ64="",H64="",AQ64="UA",AQ64="U/A",AQ64="Unattached"),"",IF(Q64>0,COUNTIF(AQ$14:AQ64,O64))) ->  | AV64: =IF(OR(AR64="",H64="",AR64="UA",AR64="U/A",AR64="Unattached"),"",IF(S64>0,COUNTIF(AR$14:AR64,O64))) ->  | BA64: =IF(OR(AX64="",H64="",AX64="UA",AX64="U/A",AX64="Unattached"),"",IF(AO64>0,COUNTIF(AX$14:AX64,O64))) ->  | BC64: =IF(OR(AY64="",H64="",AY64="UA",AY64="U/A",AY64="Unattached"),"",IF(R64>0,COUNTIF(AY$14:AY64,O64))) ->  | BM64: =IF(BP64="","",SUM(INDIRECT("BY61:BY"&CT$14+60))+INDIRECT("BY"&CT$14+60)/10000) ->  | BO64: 4 | BQ64: - | CH64: =IF(OR(AP64<>"M",AN64=""),"",SUMPRODUCT(--(AN$14:AN64="y"),--(AP$14:AP64="M"))) ->  | CI64: =IF(OR(AP64<>Dec!P$22,AN64=""),"",SUMPRODUCT(--(AN$14:AN64="y"),--(AP$14:AP64=Dec!P$22))) ->  | CJ64: =IF(OR(CM64<>"MV",AN64=""),"",SUMPRODUCT(--(AN$14:AN64="y"),--(CM$14:CM64="MV"))) ->  | CK64: =IF(OR(CM64<>Dec!P$22&"V",AN64=""),"",SUMPRODUCT(--(AN$14:AN64="y"),--(CM$14:CM64=Dec!P$22&"V"))) ->  | CL64: =IF(OR(AN64="",H64=""),"",SUMPRODUCT(--(AN$14:AN64="y"),--(P$14:P64=P64))) ->  | CS64: =IF(OR(CP64="",H64="",CP64="UA",CP64="U/A",CP64="Unattached"),"",IF(CI64>0,COUNTIF(CP$14:CP64,O64))) ->  | CU64: =IF(OR(CQ64="",H64="",CQ64="UA",CQ64="U/A",CQ64="Unattached"),"",IF(CK64>0,COUNTIF(CQ$14:CQ64,O64))) ->  | CZ64: =IF(OR(CW64="",H64="",CW64="UA",CW64="U/A",CW64="Unattached"),"",IF(CH64>0,COUNTIF(CW$14:CW64,O64))) ->  | DB64: =IF(OR(CX64="",H64="",CX64="UA",CX64="U/A",CX64="Unattached"),"",IF(CJ64>0,COUNTIF(CX$14:CX64,O64))) -> 
C65: =IF(AND(I65="",MAX(C$14:C64)=0),"",IF(AND(I65="",MAX(C$14:C64)>0),C64,I65)) ->  | D65: 00 | E65: 00 | F65: =MATCH(H65,Dec!L:L,0) ->  | G65: 51 | L65: 51 | Q65: =IF(AP65=Dec!P$22,COUNTIF(AP$14:AP65,Dec!P$22),"") ->  | R65: =IF(CM65="MV",COUNTIF(CM$14:CM65,"MV"),"") ->  | S65: =IF(CM65=Dec!P$22&"V",COUNTIF(CM$14:CM65,Dec!P$22&"V"),"") ->  | T65: =IF(H65="","",COUNTIF(P$14:P65,P65)) ->  | U65: =IF(AN65="y",COUNTIF(AN$14:AN65,"y"),"") ->  | AD65: 0 | AI65: =IF(P65=0,1,INDIRECT("AgeFactors!"&Summary!$E$20&2+MATCH(P65,AgeFactors!A$3:A$52,0))) ->  | AO65: =IF(AP65="M",COUNTIF(AP$14:AP65,"M"),"") ->  | AT65: =IF(OR(AQ65="",H65="",AQ65="UA",AQ65="U/A",AQ65="Unattached"),"",IF(Q65>0,COUNTIF(AQ$14:AQ65,O65))) ->  | AV65: =IF(OR(AR65="",H65="",AR65="UA",AR65="U/A",AR65="Unattached"),"",IF(S65>0,COUNTIF(AR$14:AR65,O65))) ->  | BA65: =IF(OR(AX65="",H65="",AX65="UA",AX65="U/A",AX65="Unattached"),"",IF(AO65>0,COUNTIF(AX$14:AX65,O65))) ->  | BC65: =IF(OR(AY65="",H65="",AY65="UA",AY65="U/A",AY65="Unattached"),"",IF(R65>0,COUNTIF(AY$14:AY65,O65))) ->  | BM65: =IF(BP65="","",SUM(INDIRECT("CA61:CA"&CT$14+60))+INDIRECT("CA"&CT$14+60)/10000) ->  | BO65: 5 | BQ65: - | CH65: =IF(OR(AP65<>"M",AN65=""),"",SUMPRODUCT(--(AN$14:AN65="y"),--(AP$14:AP65="M"))) ->  | CI65: =IF(OR(AP65<>Dec!P$22,AN65=""),"",SUMPRODUCT(--(AN$14:AN65="y"),--(AP$14:AP65=Dec!P$22))) ->  | CJ65: =IF(OR(CM65<>"MV",AN65=""),"",SUMPRODUCT(--(AN$14:AN65="y"),--(CM$14:CM65="MV"))) ->  | CK65: =IF(OR(CM65<>Dec!P$22&"V",AN65=""),"",SUMPRODUCT(--(AN$14:AN65="y"),--(CM$14:CM65=Dec!P$22&"V"))) ->  | CL65: =IF(OR(AN65="",H65=""),"",SUMPRODUCT(--(AN$14:AN65="y"),--(P$14:P65=P65))) ->  | CS65: =IF(OR(CP65="",H65="",CP65="UA",CP65="U/A",CP65="Unattached"),"",IF(CI65>0,COUNTIF(CP$14:CP65,O65))) ->  | CU65: =IF(OR(CQ65="",H65="",CQ65="UA",CQ65="U/A",CQ65="Unattached"),"",IF(CK65>0,COUNTIF(CQ$14:CQ65,O65))) ->  | CZ65: =IF(OR(CW65="",H65="",CW65="UA",CW65="U/A",CW65="Unattached"),"",IF(CH65>0,COUNTIF(CW$14:CW65,O65))) ->  | DB65: =IF(OR(CX65="",H65="",CX65="UA",CX65="U/A",CX65="Unattached"),"",IF(CJ65>0,COUNTIF(CX$14:CX65,O65))) -> 
C66: =IF(AND(I66="",MAX(C$14:C65)=0),"",IF(AND(I66="",MAX(C$14:C65)>0),C65,I66)) ->  | D66: 00 | E66: 00 | F66: =MATCH(H66,Dec!L:L,0) ->  | G66: 52 | L66: 52 | Q66: =IF(AP66=Dec!P$22,COUNTIF(AP$14:AP66,Dec!P$22),"") ->  | R66: =IF(CM66="MV",COUNTIF(CM$14:CM66,"MV"),"") ->  | S66: =IF(CM66=Dec!P$22&"V",COUNTIF(CM$14:CM66,Dec!P$22&"V"),"") ->  | T66: =IF(H66="","",COUNTIF(P$14:P66,P66)) ->  | U66: =IF(AN66="y",COUNTIF(AN$14:AN66,"y"),"") ->  | AD66: 0 | AI66: =IF(P66=0,1,INDIRECT("AgeFactors!"&Summary!$E$20&2+MATCH(P66,AgeFactors!A$3:A$52,0))) ->  | AO66: =IF(AP66="M",COUNTIF(AP$14:AP66,"M"),"") ->  | AT66: =IF(OR(AQ66="",H66="",AQ66="UA",AQ66="U/A",AQ66="Unattached"),"",IF(Q66>0,COUNTIF(AQ$14:AQ66,O66))) ->  | AV66: =IF(OR(AR66="",H66="",AR66="UA",AR66="U/A",AR66="Unattached"),"",IF(S66>0,COUNTIF(AR$14:AR66,O66))) ->  | BA66: =IF(OR(AX66="",H66="",AX66="UA",AX66="U/A",AX66="Unattached"),"",IF(AO66>0,COUNTIF(AX$14:AX66,O66))) ->  | BC66: =IF(OR(AY66="",H66="",AY66="UA",AY66="U/A",AY66="Unattached"),"",IF(R66>0,COUNTIF(AY$14:AY66,O66))) ->  | BM66: =IF(BP66="","",SUM(INDIRECT("CC61:CC"&CT$14+60))+INDIRECT("CC"&CT$14+60)/10000) ->  | BO66: 6 | BQ66: - | CH66: =IF(OR(AP66<>"M",AN66=""),"",SUMPRODUCT(--(AN$14:AN66="y"),--(AP$14:AP66="M"))) ->  | CI66: =IF(OR(AP66<>Dec!P$22,AN66=""),"",SUMPRODUCT(--(AN$14:AN66="y"),--(AP$14:AP66=Dec!P$22))) ->  | CJ66: =IF(OR(CM66<>"MV",AN66=""),"",SUMPRODUCT(--(AN$14:AN66="y"),--(CM$14:CM66="MV"))) ->  | CK66: =IF(OR(CM66<>Dec!P$22&"V",AN66=""),"",SUMPRODUCT(--(AN$14:AN66="y"),--(CM$14:CM66=Dec!P$22&"V"))) ->  | CL66: =IF(OR(AN66="",H66=""),"",SUMPRODUCT(--(AN$14:AN66="y"),--(P$14:P66=P66))) ->  | CS66: =IF(OR(CP66="",H66="",CP66="UA",CP66="U/A",CP66="Unattached"),"",IF(CI66>0,COUNTIF(CP$14:CP66,O66))) ->  | CU66: =IF(OR(CQ66="",H66="",CQ66="UA",CQ66="U/A",CQ66="Unattached"),"",IF(CK66>0,COUNTIF(CQ$14:CQ66,O66))) ->  | CZ66: =IF(OR(CW66="",H66="",CW66="UA",CW66="U/A",CW66="Unattached"),"",IF(CH66>0,COUNTIF(CW$14:CW66,O66))) ->  | DB66: =IF(OR(CX66="",H66="",CX66="UA",CX66="U/A",CX66="Unattached"),"",IF(CJ66>0,COUNTIF(CX$14:CX66,O66))) -> 
C67: =IF(AND(I67="",MAX(C$14:C66)=0),"",IF(AND(I67="",MAX(C$14:C66)>0),C66,I67)) ->  | D67: 00 | E67: 00 | F67: =MATCH(H67,Dec!L:L,0) ->  | G67: 53 | L67: 53 | Q67: =IF(AP67=Dec!P$22,COUNTIF(AP$14:AP67,Dec!P$22),"") ->  | R67: =IF(CM67="MV",COUNTIF(CM$14:CM67,"MV"),"") ->  | S67: =IF(CM67=Dec!P$22&"V",COUNTIF(CM$14:CM67,Dec!P$22&"V"),"") ->  | T67: =IF(H67="","",COUNTIF(P$14:P67,P67)) ->  | U67: =IF(AN67="y",COUNTIF(AN$14:AN67,"y"),"") ->  | AD67: 0 | AI67: =IF(P67=0,1,INDIRECT("AgeFactors!"&Summary!$E$20&2+MATCH(P67,AgeFactors!A$3:A$52,0))) ->  | AO67: =IF(AP67="M",COUNTIF(AP$14:AP67,"M"),"") ->  | AT67: =IF(OR(AQ67="",H67="",AQ67="UA",AQ67="U/A",AQ67="Unattached"),"",IF(Q67>0,COUNTIF(AQ$14:AQ67,O67))) ->  | AV67: =IF(OR(AR67="",H67="",AR67="UA",AR67="U/A",AR67="Unattached"),"",IF(S67>0,COUNTIF(AR$14:AR67,O67))) ->  | BA67: =IF(OR(AX67="",H67="",AX67="UA",AX67="U/A",AX67="Unattached"),"",IF(AO67>0,COUNTIF(AX$14:AX67,O67))) ->  | BC67: =IF(OR(AY67="",H67="",AY67="UA",AY67="U/A",AY67="Unattached"),"",IF(R67>0,COUNTIF(AY$14:AY67,O67))) ->  | BE67: women | BM67: =IF(BP67="","",SUM(INDIRECT("CE61:CE"&CT$14+60))+INDIRECT("CE"&CT$14+60)/10000) ->  | BO67: 7 | BQ67: - | CH67: =IF(OR(AP67<>"M",AN67=""),"",SUMPRODUCT(--(AN$14:AN67="y"),--(AP$14:AP67="M"))) ->  | CI67: =IF(OR(AP67<>Dec!P$22,AN67=""),"",SUMPRODUCT(--(AN$14:AN67="y"),--(AP$14:AP67=Dec!P$22))) ->  | CJ67: =IF(OR(CM67<>"MV",AN67=""),"",SUMPRODUCT(--(AN$14:AN67="y"),--(CM$14:CM67="MV"))) ->  | CK67: =IF(OR(CM67<>Dec!P$22&"V",AN67=""),"",SUMPRODUCT(--(AN$14:AN67="y"),--(CM$14:CM67=Dec!P$22&"V"))) ->  | CL67: =IF(OR(AN67="",H67=""),"",SUMPRODUCT(--(AN$14:AN67="y"),--(P$14:P67=P67))) ->  | CS67: =IF(OR(CP67="",H67="",CP67="UA",CP67="U/A",CP67="Unattached"),"",IF(CI67>0,COUNTIF(CP$14:CP67,O67))) ->  | CU67: =IF(OR(CQ67="",H67="",CQ67="UA",CQ67="U/A",CQ67="Unattached"),"",IF(CK67>0,COUNTIF(CQ$14:CQ67,O67))) ->  | CZ67: =IF(OR(CW67="",H67="",CW67="UA",CW67="U/A",CW67="Unattached"),"",IF(CH67>0,COUNTIF(CW$14:CW67,O67))) ->  | DB67: =IF(OR(CX67="",H67="",CX67="UA",CX67="U/A",CX67="Unattached"),"",IF(CJ67>0,COUNTIF(CX$14:CX67,O67))) -> 
C68: =IF(AND(I68="",MAX(C$14:C67)=0),"",IF(AND(I68="",MAX(C$14:C67)>0),C67,I68)) ->  | D68: 00 | E68: 00 | F68: =MATCH(H68,Dec!L:L,0) ->  | G68: 54 | L68: 54 | Q68: =IF(AP68=Dec!P$22,COUNTIF(AP$14:AP68,Dec!P$22),"") ->  | R68: =IF(CM68="MV",COUNTIF(CM$14:CM68,"MV"),"") ->  | S68: =IF(CM68=Dec!P$22&"V",COUNTIF(CM$14:CM68,Dec!P$22&"V"),"") ->  | T68: =IF(H68="","",COUNTIF(P$14:P68,P68)) ->  | U68: =IF(AN68="y",COUNTIF(AN$14:AN68,"y"),"") ->  | AD68: 0 | AI68: =IF(P68=0,1,INDIRECT("AgeFactors!"&Summary!$E$20&2+MATCH(P68,AgeFactors!A$3:A$52,0))) ->  | AO68: =IF(AP68="M",COUNTIF(AP$14:AP68,"M"),"") ->  | AT68: =IF(OR(AQ68="",H68="",AQ68="UA",AQ68="U/A",AQ68="Unattached"),"",IF(Q68>0,COUNTIF(AQ$14:AQ68,O68))) ->  | AV68: =IF(OR(AR68="",H68="",AR68="UA",AR68="U/A",AR68="Unattached"),"",IF(S68>0,COUNTIF(AR$14:AR68,O68))) ->  | BA68: =IF(OR(AX68="",H68="",AX68="UA",AX68="U/A",AX68="Unattached"),"",IF(AO68>0,COUNTIF(AX$14:AX68,O68))) ->  | BC68: =IF(OR(AY68="",H68="",AY68="UA",AY68="U/A",AY68="Unattached"),"",IF(R68>0,COUNTIF(AY$14:AY68,O68))) ->  | BE68: 1 | BF68: =Winners!M111 -> - | BG68: =MATCH(BF68,AQ$15:AQ$5014,0) ->  | BH68: =14+BG68 ->  | BI68: =SCWinners!M111 -> - | BJ68: =MATCH(BI68,CP$15:CP$5014,0) ->  | BK68: =14+BJ68 ->  | BM68: =IF(BP68="","",SUM(INDIRECT("CG61:CG"&CT$14+60))+INDIRECT("CG"&CT$14+60)/10000) ->  | BO68: 8 | BQ68: - | CH68: =IF(OR(AP68<>"M",AN68=""),"",SUMPRODUCT(--(AN$14:AN68="y"),--(AP$14:AP68="M"))) ->  | CI68: =IF(OR(AP68<>Dec!P$22,AN68=""),"",SUMPRODUCT(--(AN$14:AN68="y"),--(AP$14:AP68=Dec!P$22))) ->  | CJ68: =IF(OR(CM68<>"MV",AN68=""),"",SUMPRODUCT(--(AN$14:AN68="y"),--(CM$14:CM68="MV"))) ->  | CK68: =IF(OR(CM68<>Dec!P$22&"V",AN68=""),"",SUMPRODUCT(--(AN$14:AN68="y"),--(CM$14:CM68=Dec!P$22&"V"))) ->  | CL68: =IF(OR(AN68="",H68=""),"",SUMPRODUCT(--(AN$14:AN68="y"),--(P$14:P68=P68))) ->  | CS68: =IF(OR(CP68="",H68="",CP68="UA",CP68="U/A",CP68="Unattached"),"",IF(CI68>0,COUNTIF(CP$14:CP68,O68))) ->  | CU68: =IF(OR(CQ68="",H68="",CQ68="UA",CQ68="U/A",CQ68="Unattached"),"",IF(CK68>0,COUNTIF(CQ$14:CQ68,O68))) ->  | CZ68: =IF(OR(CW68="",H68="",CW68="UA",CW68="U/A",CW68="Unattached"),"",IF(CH68>0,COUNTIF(CW$14:CW68,O68))) ->  | DB68: =IF(OR(CX68="",H68="",CX68="UA",CX68="U/A",CX68="Unattached"),"",IF(CJ68>0,COUNTIF(CX$14:CX68,O68))) -> 
C69: =IF(AND(I69="",MAX(C$14:C68)=0),"",IF(AND(I69="",MAX(C$14:C68)>0),C68,I69)) ->  | D69: 00 | E69: 00 | F69: =MATCH(H69,Dec!L:L,0) ->  | G69: 55 | L69: 55 | Q69: =IF(AP69=Dec!P$22,COUNTIF(AP$14:AP69,Dec!P$22),"") ->  | R69: =IF(CM69="MV",COUNTIF(CM$14:CM69,"MV"),"") ->  | S69: =IF(CM69=Dec!P$22&"V",COUNTIF(CM$14:CM69,Dec!P$22&"V"),"") ->  | T69: =IF(H69="","",COUNTIF(P$14:P69,P69)) ->  | U69: =IF(AN69="y",COUNTIF(AN$14:AN69,"y"),"") ->  | AD69: 0 | AI69: =IF(P69=0,1,INDIRECT("AgeFactors!"&Summary!$E$20&2+MATCH(P69,AgeFactors!A$3:A$52,0))) ->  | AO69: =IF(AP69="M",COUNTIF(AP$14:AP69,"M"),"") ->  | AT69: =IF(OR(AQ69="",H69="",AQ69="UA",AQ69="U/A",AQ69="Unattached"),"",IF(Q69>0,COUNTIF(AQ$14:AQ69,O69))) ->  | AV69: =IF(OR(AR69="",H69="",AR69="UA",AR69="U/A",AR69="Unattached"),"",IF(S69>0,COUNTIF(AR$14:AR69,O69))) ->  | BA69: =IF(OR(AX69="",H69="",AX69="UA",AX69="U/A",AX69="Unattached"),"",IF(AO69>0,COUNTIF(AX$14:AX69,O69))) ->  | BC69: =IF(OR(AY69="",H69="",AY69="UA",AY69="U/A",AY69="Unattached"),"",IF(R69>0,COUNTIF(AY$14:AY69,O69))) ->  | BG69: =MATCH(BF$68,INDIRECT("AQ"&BH68+1&":AQ5014"),0) ->  | BH69: =BH68+BG69 ->  | BJ69: =MATCH(BI$68,INDIRECT("by"&BK68+1&":by5014"),0) ->  | BK69: =BK68+BJ69 ->  | CH69: =IF(OR(AP69<>"M",AN69=""),"",SUMPRODUCT(--(AN$14:AN69="y"),--(AP$14:AP69="M"))) ->  | CI69: =IF(OR(AP69<>Dec!P$22,AN69=""),"",SUMPRODUCT(--(AN$14:AN69="y"),--(AP$14:AP69=Dec!P$22))) ->  | CJ69: =IF(OR(CM69<>"MV",AN69=""),"",SUMPRODUCT(--(AN$14:AN69="y"),--(CM$14:CM69="MV"))) ->  | CK69: =IF(OR(CM69<>Dec!P$22&"V",AN69=""),"",SUMPRODUCT(--(AN$14:AN69="y"),--(CM$14:CM69=Dec!P$22&"V"))) ->  | CL69: =IF(OR(AN69="",H69=""),"",SUMPRODUCT(--(AN$14:AN69="y"),--(P$14:P69=P69))) ->  | CS69: =IF(OR(CP69="",H69="",CP69="UA",CP69="U/A",CP69="Unattached"),"",IF(CI69>0,COUNTIF(CP$14:CP69,O69))) ->  | CU69: =IF(OR(CQ69="",H69="",CQ69="UA",CQ69="U/A",CQ69="Unattached"),"",IF(CK69>0,COUNTIF(CQ$14:CQ69,O69))) ->  | CZ69: =IF(OR(CW69="",H69="",CW69="UA",CW69="U/A",CW69="Unattached"),"",IF(CH69>0,COUNTIF(CW$14:CW69,O69))) ->  | DB69: =IF(OR(CX69="",H69="",CX69="UA",CX69="U/A",CX69="Unattached"),"",IF(CJ69>0,COUNTIF(CX$14:CX69,O69))) -> 
C70: =IF(AND(I70="",MAX(C$14:C69)=0),"",IF(AND(I70="",MAX(C$14:C69)>0),C69,I70)) ->  | D70: 00 | E70: 00 | F70: =MATCH(H70,Dec!L:L,0) ->  | G70: 56 | L70: 56 | Q70: =IF(AP70=Dec!P$22,COUNTIF(AP$14:AP70,Dec!P$22),"") ->  | R70: =IF(CM70="MV",COUNTIF(CM$14:CM70,"MV"),"") ->  | S70: =IF(CM70=Dec!P$22&"V",COUNTIF(CM$14:CM70,Dec!P$22&"V"),"") ->  | T70: =IF(H70="","",COUNTIF(P$14:P70,P70)) ->  | U70: =IF(AN70="y",COUNTIF(AN$14:AN70,"y"),"") ->  | AD70: 0 | AI70: =IF(P70=0,1,INDIRECT("AgeFactors!"&Summary!$E$20&2+MATCH(P70,AgeFactors!A$3:A$52,0))) ->  | AO70: =IF(AP70="M",COUNTIF(AP$14:AP70,"M"),"") ->  | AT70: =IF(OR(AQ70="",H70="",AQ70="UA",AQ70="U/A",AQ70="Unattached"),"",IF(Q70>0,COUNTIF(AQ$14:AQ70,O70))) ->  | AV70: =IF(OR(AR70="",H70="",AR70="UA",AR70="U/A",AR70="Unattached"),"",IF(S70>0,COUNTIF(AR$14:AR70,O70))) ->  | BA70: =IF(OR(AX70="",H70="",AX70="UA",AX70="U/A",AX70="Unattached"),"",IF(AO70>0,COUNTIF(AX$14:AX70,O70))) ->  | BC70: =IF(OR(AY70="",H70="",AY70="UA",AY70="U/A",AY70="Unattached"),"",IF(R70>0,COUNTIF(AY$14:AY70,O70))) ->  | BH70: =BH69+BG70 ->  | BK70: =BK69+BJ70 ->  | BL70: Vet women | CH70: =IF(OR(AP70<>"M",AN70=""),"",SUMPRODUCT(--(AN$14:AN70="y"),--(AP$14:AP70="M"))) ->  | CI70: =IF(OR(AP70<>Dec!P$22,AN70=""),"",SUMPRODUCT(--(AN$14:AN70="y"),--(AP$14:AP70=Dec!P$22))) ->  | CJ70: =IF(OR(CM70<>"MV",AN70=""),"",SUMPRODUCT(--(AN$14:AN70="y"),--(CM$14:CM70="MV"))) ->  | CK70: =IF(OR(CM70<>Dec!P$22&"V",AN70=""),"",SUMPRODUCT(--(AN$14:AN70="y"),--(CM$14:CM70=Dec!P$22&"V"))) ->  | CL70: =IF(OR(AN70="",H70=""),"",SUMPRODUCT(--(AN$14:AN70="y"),--(P$14:P70=P70))) ->  | CS70: =IF(OR(CP70="",H70="",CP70="UA",CP70="U/A",CP70="Unattached"),"",IF(CI70>0,COUNTIF(CP$14:CP70,O70))) ->  | CU70: =IF(OR(CQ70="",H70="",CQ70="UA",CQ70="U/A",CQ70="Unattached"),"",IF(CK70>0,COUNTIF(CQ$14:CQ70,O70))) ->  | CZ70: =IF(OR(CW70="",H70="",CW70="UA",CW70="U/A",CW70="Unattached"),"",IF(CH70>0,COUNTIF(CW$14:CW70,O70))) ->  | DB70: =IF(OR(CX70="",H70="",CX70="UA",CX70="U/A",CX70="Unattached"),"",IF(CJ70>0,COUNTIF(CX$14:CX70,O70))) -> 
C71: =IF(AND(I71="",MAX(C$14:C70)=0),"",IF(AND(I71="",MAX(C$14:C70)>0),C70,I71)) ->  | D71: 00 | E71: 00 | F71: =MATCH(H71,Dec!L:L,0) ->  | G71: 57 | L71: 57 | Q71: =IF(AP71=Dec!P$22,COUNTIF(AP$14:AP71,Dec!P$22),"") ->  | R71: =IF(CM71="MV",COUNTIF(CM$14:CM71,"MV"),"") ->  | S71: =IF(CM71=Dec!P$22&"V",COUNTIF(CM$14:CM71,Dec!P$22&"V"),"") ->  | T71: =IF(H71="","",COUNTIF(P$14:P71,P71)) ->  | U71: =IF(AN71="y",COUNTIF(AN$14:AN71,"y"),"") ->  | AD71: 0 | AI71: =IF(P71=0,1,INDIRECT("AgeFactors!"&Summary!$E$20&2+MATCH(P71,AgeFactors!A$3:A$52,0))) ->  | AO71: =IF(AP71="M",COUNTIF(AP$14:AP71,"M"),"") ->  | AT71: =IF(OR(AQ71="",H71="",AQ71="UA",AQ71="U/A",AQ71="Unattached"),"",IF(Q71>0,COUNTIF(AQ$14:AQ71,O71))) ->  | AV71: =IF(OR(AR71="",H71="",AR71="UA",AR71="U/A",AR71="Unattached"),"",IF(S71>0,COUNTIF(AR$14:AR71,O71))) ->  | BA71: =IF(OR(AX71="",H71="",AX71="UA",AX71="U/A",AX71="Unattached"),"",IF(AO71>0,COUNTIF(AX$14:AX71,O71))) ->  | BC71: =IF(OR(AY71="",H71="",AY71="UA",AY71="U/A",AY71="Unattached"),"",IF(R71>0,COUNTIF(AY$14:AY71,O71))) ->  | BL71: =RANK(BM71,BM$71:BM$78,1) ->  | BM71: =IF(CV13=0,"",SUM(INDIRECT("BS71:BS"&CV$14+70))+INDIRECT("BS"&CV$14+70)/10000) ->  | BO71: 1 | BP71: =IF(CV13=0,"",SMALL(CV$15:CV$5014,BO71)) ->  | BQ71: =IF(BP71="","-",INDIRECT("results!o"&BP71)) -> - | BR71: =MATCH($BQ71,$CQ$15:$CQ$5014,0) ->  | BS71: =14+BR71 ->  | BT71: =MATCH($BQ72,$CQ$15:$CQ$5014,0) ->  | BU71: =14+BT71 ->  | BV71: =MATCH($BQ73,$CQ$15:$CQ$5014,0) ->  | BW71: =14+BV71 ->  | BX71: =MATCH($BQ74,$CQ$15:$CQ$5014,0) ->  | BY71: =14+BX71 ->  | BZ71: =MATCH($BQ75,$CQ$15:$CQ$5014,0) ->  | CA71: =14+BZ71 ->  | CB71: =MATCH($BQ76,$CQ$15:$CQ$5014,0) ->  | CC71: =14+CB71 ->  | CD71: =MATCH($BQ77,$CQ$15:$CQ$5014,0) ->  | CE71: =14+CD71 ->  | CF71: =MATCH($BQ78,$CQ$15:$CQ$5014,0) ->  | CG71: =14+CF71 ->  | CH71: =IF(OR(AP71<>"M",AN71=""),"",SUMPRODUCT(--(AN$14:AN71="y"),--(AP$14:AP71="M"))) ->  | CI71: =IF(OR(AP71<>Dec!P$22,AN71=""),"",SUMPRODUCT(--(AN$14:AN71="y"),--(AP$14:AP71=Dec!P$22))) ->  | CJ71: =IF(OR(CM71<>"MV",AN71=""),"",SUMPRODUCT(--(AN$14:AN71="y"),--(CM$14:CM71="MV"))) ->  | CK71: =IF(OR(CM71<>Dec!P$22&"V",AN71=""),"",SUMPRODUCT(--(AN$14:AN71="y"),--(CM$14:CM71=Dec!P$22&"V"))) ->  | CL71: =IF(OR(AN71="",H71=""),"",SUMPRODUCT(--(AN$14:AN71="y"),--(P$14:P71=P71))) ->  | CS71: =IF(OR(CP71="",H71="",CP71="UA",CP71="U/A",CP71="Unattached"),"",IF(CI71>0,COUNTIF(CP$14:CP71,O71))) ->  | CU71: =IF(OR(CQ71="",H71="",CQ71="UA",CQ71="U/A",CQ71="Unattached"),"",IF(CK71>0,COUNTIF(CQ$14:CQ71,O71))) ->  | CZ71: =IF(OR(CW71="",H71="",CW71="UA",CW71="U/A",CW71="Unattached"),"",IF(CH71>0,COUNTIF(CW$14:CW71,O71))) ->  | DB71: =IF(OR(CX71="",H71="",CX71="UA",CX71="U/A",CX71="Unattached"),"",IF(CJ71>0,COUNTIF(CX$14:CX71,O71))) -> 
C72: =IF(AND(I72="",MAX(C$14:C71)=0),"",IF(AND(I72="",MAX(C$14:C71)>0),C71,I72)) ->  | D72: 00 | E72: 00 | F72: =MATCH(H72,Dec!L:L,0) ->  | G72: 58 | L72: 58 | Q72: =IF(AP72=Dec!P$22,COUNTIF(AP$14:AP72,Dec!P$22),"") ->  | R72: =IF(CM72="MV",COUNTIF(CM$14:CM72,"MV"),"") ->  | S72: =IF(CM72=Dec!P$22&"V",COUNTIF(CM$14:CM72,Dec!P$22&"V"),"") ->  | T72: =IF(H72="","",COUNTIF(P$14:P72,P72)) ->  | U72: =IF(AN72="y",COUNTIF(AN$14:AN72,"y"),"") ->  | AD72: 0 | AI72: =IF(P72=0,1,INDIRECT("AgeFactors!"&Summary!$E$20&2+MATCH(P72,AgeFactors!A$3:A$52,0))) ->  | AO72: =IF(AP72="M",COUNTIF(AP$14:AP72,"M"),"") ->  | AT72: =IF(OR(AQ72="",H72="",AQ72="UA",AQ72="U/A",AQ72="Unattached"),"",IF(Q72>0,COUNTIF(AQ$14:AQ72,O72))) ->  | AV72: =IF(OR(AR72="",H72="",AR72="UA",AR72="U/A",AR72="Unattached"),"",IF(S72>0,COUNTIF(AR$14:AR72,O72))) ->  | BA72: =IF(OR(AX72="",H72="",AX72="UA",AX72="U/A",AX72="Unattached"),"",IF(AO72>0,COUNTIF(AX$14:AX72,O72))) ->  | BC72: =IF(OR(AY72="",H72="",AY72="UA",AY72="U/A",AY72="Unattached"),"",IF(R72>0,COUNTIF(AY$14:AY72,O72))) ->  | BL72: =RANK(BM72,BM$71:BM$78,1) ->  | BM72: =IF(BP72="","",SUM(INDIRECT("BU71:BU"&CV$14+70))+INDIRECT("BU"&CV$14+70)/10000) ->  | BO72: 2 | BP72: =IF(CV$13<BO72,"",SMALL(CV$15:CV$5014,BO72)) ->  | BQ72: - | BR72: =MATCH(BQ$71,INDIRECT("CQ"&BS71+1&":Cq5014"),0) ->  | BS72: =BS71+BR72 ->  | BT72: =MATCH($BQ$72,INDIRECT("CQ"&BU71+1&":Cq5014"),0) ->  | BU72: =BU71+BT72 ->  | BV72: =MATCH($BQ$73,INDIRECT("CQ"&BW71+1&":Cq5014"),0) ->  | BW72: =BW71+BV72 ->  | BX72: =MATCH($BQ$74,INDIRECT("CQ"&BY71+1&":Cq5014"),0) ->  | BY72: =BY71+BX72 ->  | BZ72: =MATCH($BQ$75,INDIRECT("CQ"&CA71+1&":Cq5014"),0) ->  | CA72: =CA71+BZ72 ->  | CB72: =MATCH($BQ$76,INDIRECT("CQ"&CC71+1&":Cq5014"),0) ->  | CC72: =CC71+CB72 ->  | CD72: =MATCH($BQ$77,INDIRECT("CQ"&CE71+1&":Cq5014"),0) ->  | CE72: =CE71+CD72 ->  | CF72: =MATCH($BQ$78,INDIRECT("CQ"&CG71+1&":Cq5014"),0) ->  | CG72: =CG71+CF72 ->  | CH72: =IF(OR(AP72<>"M",AN72=""),"",SUMPRODUCT(--(AN$14:AN72="y"),--(AP$14:AP72="M"))) ->  | CI72: =IF(OR(AP72<>Dec!P$22,AN72=""),"",SUMPRODUCT(--(AN$14:AN72="y"),--(AP$14:AP72=Dec!P$22))) ->  | CJ72: =IF(OR(CM72<>"MV",AN72=""),"",SUMPRODUCT(--(AN$14:AN72="y"),--(CM$14:CM72="MV"))) ->  | CK72: =IF(OR(CM72<>Dec!P$22&"V",AN72=""),"",SUMPRODUCT(--(AN$14:AN72="y"),--(CM$14:CM72=Dec!P$22&"V"))) ->  | CL72: =IF(OR(AN72="",H72=""),"",SUMPRODUCT(--(AN$14:AN72="y"),--(P$14:P72=P72))) ->  | CS72: =IF(OR(CP72="",H72="",CP72="UA",CP72="U/A",CP72="Unattached"),"",IF(CI72>0,COUNTIF(CP$14:CP72,O72))) ->  | CU72: =IF(OR(CQ72="",H72="",CQ72="UA",CQ72="U/A",CQ72="Unattached"),"",IF(CK72>0,COUNTIF(CQ$14:CQ72,O72))) ->  | CZ72: =IF(OR(CW72="",H72="",CW72="UA",CW72="U/A",CW72="Unattached"),"",IF(CH72>0,COUNTIF(CW$14:CW72,O72))) ->  | DB72: =IF(OR(CX72="",H72="",CX72="UA",CX72="U/A",CX72="Unattached"),"",IF(CJ72>0,COUNTIF(CX$14:CX72,O72))) -> 
C73: =IF(AND(I73="",MAX(C$14:C72)=0),"",IF(AND(I73="",MAX(C$14:C72)>0),C72,I73)) ->  | D73: 00 | E73: 00 | F73: =MATCH(H73,Dec!L:L,0) ->  | G73: 59 | L73: 59 | Q73: =IF(AP73=Dec!P$22,COUNTIF(AP$14:AP73,Dec!P$22),"") ->  | R73: =IF(CM73="MV",COUNTIF(CM$14:CM73,"MV"),"") ->  | S73: =IF(CM73=Dec!P$22&"V",COUNTIF(CM$14:CM73,Dec!P$22&"V"),"") ->  | T73: =IF(H73="","",COUNTIF(P$14:P73,P73)) ->  | U73: =IF(AN73="y",COUNTIF(AN$14:AN73,"y"),"") ->  | AD73: 0 | AI73: =IF(P73=0,1,INDIRECT("AgeFactors!"&Summary!$E$20&2+MATCH(P73,AgeFactors!A$3:A$52,0))) ->  | AO73: =IF(AP73="M",COUNTIF(AP$14:AP73,"M"),"") ->  | AT73: =IF(OR(AQ73="",H73="",AQ73="UA",AQ73="U/A",AQ73="Unattached"),"",IF(Q73>0,COUNTIF(AQ$14:AQ73,O73))) ->  | AV73: =IF(OR(AR73="",H73="",AR73="UA",AR73="U/A",AR73="Unattached"),"",IF(S73>0,COUNTIF(AR$14:AR73,O73))) ->  | BA73: =IF(OR(AX73="",H73="",AX73="UA",AX73="U/A",AX73="Unattached"),"",IF(AO73>0,COUNTIF(AX$14:AX73,O73))) ->  | BC73: =IF(OR(AY73="",H73="",AY73="UA",AY73="U/A",AY73="Unattached"),"",IF(R73>0,COUNTIF(AY$14:AY73,O73))) ->  | BM73: =IF(BP73="","",SUM(INDIRECT("BW71:BW"&CV$14+70))+INDIRECT("BW"&CV$14+70)/10000) ->  | BO73: 3 | BQ73: - | CH73: =IF(OR(AP73<>"M",AN73=""),"",SUMPRODUCT(--(AN$14:AN73="y"),--(AP$14:AP73="M"))) ->  | CI73: =IF(OR(AP73<>Dec!P$22,AN73=""),"",SUMPRODUCT(--(AN$14:AN73="y"),--(AP$14:AP73=Dec!P$22))) ->  | CJ73: =IF(OR(CM73<>"MV",AN73=""),"",SUMPRODUCT(--(AN$14:AN73="y"),--(CM$14:CM73="MV"))) ->  | CK73: =IF(OR(CM73<>Dec!P$22&"V",AN73=""),"",SUMPRODUCT(--(AN$14:AN73="y"),--(CM$14:CM73=Dec!P$22&"V"))) ->  | CL73: =IF(OR(AN73="",H73=""),"",SUMPRODUCT(--(AN$14:AN73="y"),--(P$14:P73=P73))) ->  | CS73: =IF(OR(CP73="",H73="",CP73="UA",CP73="U/A",CP73="Unattached"),"",IF(CI73>0,COUNTIF(CP$14:CP73,O73))) ->  | CU73: =IF(OR(CQ73="",H73="",CQ73="UA",CQ73="U/A",CQ73="Unattached"),"",IF(CK73>0,COUNTIF(CQ$14:CQ73,O73))) ->  | CZ73: =IF(OR(CW73="",H73="",CW73="UA",CW73="U/A",CW73="Unattached"),"",IF(CH73>0,COUNTIF(CW$14:CW73,O73))) ->  | DB73: =IF(OR(CX73="",H73="",CX73="UA",CX73="U/A",CX73="Unattached"),"",IF(CJ73>0,COUNTIF(CX$14:CX73,O73))) -> 
C74: =IF(AND(I74="",MAX(C$14:C73)=0),"",IF(AND(I74="",MAX(C$14:C73)>0),C73,I74)) ->  | D74: 00 | E74: 00 | F74: =MATCH(H74,Dec!L:L,0) ->  | G74: 60 | L74: 60 | Q74: =IF(AP74=Dec!P$22,COUNTIF(AP$14:AP74,Dec!P$22),"") ->  | R74: =IF(CM74="MV",COUNTIF(CM$14:CM74,"MV"),"") ->  | S74: =IF(CM74=Dec!P$22&"V",COUNTIF(CM$14:CM74,Dec!P$22&"V"),"") ->  | T74: =IF(H74="","",COUNTIF(P$14:P74,P74)) ->  | U74: =IF(AN74="y",COUNTIF(AN$14:AN74,"y"),"") ->  | AD74: 0 | AI74: =IF(P74=0,1,INDIRECT("AgeFactors!"&Summary!$E$20&2+MATCH(P74,AgeFactors!A$3:A$52,0))) ->  | AO74: =IF(AP74="M",COUNTIF(AP$14:AP74,"M"),"") ->  | AT74: =IF(OR(AQ74="",H74="",AQ74="UA",AQ74="U/A",AQ74="Unattached"),"",IF(Q74>0,COUNTIF(AQ$14:AQ74,O74))) ->  | AV74: =IF(OR(AR74="",H74="",AR74="UA",AR74="U/A",AR74="Unattached"),"",IF(S74>0,COUNTIF(AR$14:AR74,O74))) ->  | BA74: =IF(OR(AX74="",H74="",AX74="UA",AX74="U/A",AX74="Unattached"),"",IF(AO74>0,COUNTIF(AX$14:AX74,O74))) ->  | BC74: =IF(OR(AY74="",H74="",AY74="UA",AY74="U/A",AY74="Unattached"),"",IF(R74>0,COUNTIF(AY$14:AY74,O74))) ->  | BM74: =IF(BP74="","",SUM(INDIRECT("BY71:BY"&CV$14+70))+INDIRECT("BY"&CV$14+70)/10000) ->  | BO74: 4 | BQ74: - | CH74: =IF(OR(AP74<>"M",AN74=""),"",SUMPRODUCT(--(AN$14:AN74="y"),--(AP$14:AP74="M"))) ->  | CI74: =IF(OR(AP74<>Dec!P$22,AN74=""),"",SUMPRODUCT(--(AN$14:AN74="y"),--(AP$14:AP74=Dec!P$22))) ->  | CJ74: =IF(OR(CM74<>"MV",AN74=""),"",SUMPRODUCT(--(AN$14:AN74="y"),--(CM$14:CM74="MV"))) ->  | CK74: =IF(OR(CM74<>Dec!P$22&"V",AN74=""),"",SUMPRODUCT(--(AN$14:AN74="y"),--(CM$14:CM74=Dec!P$22&"V"))) ->  | CL74: =IF(OR(AN74="",H74=""),"",SUMPRODUCT(--(AN$14:AN74="y"),--(P$14:P74=P74))) ->  | CS74: =IF(OR(CP74="",H74="",CP74="UA",CP74="U/A",CP74="Unattached"),"",IF(CI74>0,COUNTIF(CP$14:CP74,O74))) ->  | CU74: =IF(OR(CQ74="",H74="",CQ74="UA",CQ74="U/A",CQ74="Unattached"),"",IF(CK74>0,COUNTIF(CQ$14:CQ74,O74))) ->  | CZ74: =IF(OR(CW74="",H74="",CW74="UA",CW74="U/A",CW74="Unattached"),"",IF(CH74>0,COUNTIF(CW$14:CW74,O74))) ->  | DB74: =IF(OR(CX74="",H74="",CX74="UA",CX74="U/A",CX74="Unattached"),"",IF(CJ74>0,COUNTIF(CX$14:CX74,O74))) -> 
C75: =IF(AND(I75="",MAX(C$14:C74)=0),"",IF(AND(I75="",MAX(C$14:C74)>0),C74,I75)) ->  | D75: 00 | E75: 00 | F75: =MATCH(H75,Dec!L:L,0) ->  | G75: 61 | L75: 61 | Q75: =IF(AP75=Dec!P$22,COUNTIF(AP$14:AP75,Dec!P$22),"") ->  | R75: =IF(CM75="MV",COUNTIF(CM$14:CM75,"MV"),"") ->  | S75: =IF(CM75=Dec!P$22&"V",COUNTIF(CM$14:CM75,Dec!P$22&"V"),"") ->  | T75: =IF(H75="","",COUNTIF(P$14:P75,P75)) ->  | U75: =IF(AN75="y",COUNTIF(AN$14:AN75,"y"),"") ->  | AD75: 0 | AI75: =IF(P75=0,1,INDIRECT("AgeFactors!"&Summary!$E$20&2+MATCH(P75,AgeFactors!A$3:A$52,0))) ->  | AO75: =IF(AP75="M",COUNTIF(AP$14:AP75,"M"),"") ->  | AT75: =IF(OR(AQ75="",H75="",AQ75="UA",AQ75="U/A",AQ75="Unattached"),"",IF(Q75>0,COUNTIF(AQ$14:AQ75,O75))) ->  | AV75: =IF(OR(AR75="",H75="",AR75="UA",AR75="U/A",AR75="Unattached"),"",IF(S75>0,COUNTIF(AR$14:AR75,O75))) ->  | BA75: =IF(OR(AX75="",H75="",AX75="UA",AX75="U/A",AX75="Unattached"),"",IF(AO75>0,COUNTIF(AX$14:AX75,O75))) ->  | BC75: =IF(OR(AY75="",H75="",AY75="UA",AY75="U/A",AY75="Unattached"),"",IF(R75>0,COUNTIF(AY$14:AY75,O75))) ->  | BM75: =IF(BP75="","",SUM(INDIRECT("CA71:CA"&CV$14+70))+INDIRECT("CA"&CV$14+70)/10000) ->  | BO75: 5 | BQ75: - | CH75: =IF(OR(AP75<>"M",AN75=""),"",SUMPRODUCT(--(AN$14:AN75="y"),--(AP$14:AP75="M"))) ->  | CI75: =IF(OR(AP75<>Dec!P$22,AN75=""),"",SUMPRODUCT(--(AN$14:AN75="y"),--(AP$14:AP75=Dec!P$22))) ->  | CJ75: =IF(OR(CM75<>"MV",AN75=""),"",SUMPRODUCT(--(AN$14:AN75="y"),--(CM$14:CM75="MV"))) ->  | CK75: =IF(OR(CM75<>Dec!P$22&"V",AN75=""),"",SUMPRODUCT(--(AN$14:AN75="y"),--(CM$14:CM75=Dec!P$22&"V"))) ->  | CL75: =IF(OR(AN75="",H75=""),"",SUMPRODUCT(--(AN$14:AN75="y"),--(P$14:P75=P75))) ->  | CS75: =IF(OR(CP75="",H75="",CP75="UA",CP75="U/A",CP75="Unattached"),"",IF(CI75>0,COUNTIF(CP$14:CP75,O75))) ->  | CU75: =IF(OR(CQ75="",H75="",CQ75="UA",CQ75="U/A",CQ75="Unattached"),"",IF(CK75>0,COUNTIF(CQ$14:CQ75,O75))) ->  | CZ75: =IF(OR(CW75="",H75="",CW75="UA",CW75="U/A",CW75="Unattached"),"",IF(CH75>0,COUNTIF(CW$14:CW75,O75))) ->  | DB75: =IF(OR(CX75="",H75="",CX75="UA",CX75="U/A",CX75="Unattached"),"",IF(CJ75>0,COUNTIF(CX$14:CX75,O75))) -> 
C76: =IF(AND(I76="",MAX(C$14:C75)=0),"",IF(AND(I76="",MAX(C$14:C75)>0),C75,I76)) ->  | D76: 00 | E76: 00 | F76: =MATCH(H76,Dec!L:L,0) ->  | G76: 62 | L76: 62 | Q76: =IF(AP76=Dec!P$22,COUNTIF(AP$14:AP76,Dec!P$22),"") ->  | R76: =IF(CM76="MV",COUNTIF(CM$14:CM76,"MV"),"") ->  | S76: =IF(CM76=Dec!P$22&"V",COUNTIF(CM$14:CM76,Dec!P$22&"V"),"") ->  | T76: =IF(H76="","",COUNTIF(P$14:P76,P76)) ->  | U76: =IF(AN76="y",COUNTIF(AN$14:AN76,"y"),"") ->  | AD76: 0 | AI76: =IF(P76=0,1,INDIRECT("AgeFactors!"&Summary!$E$20&2+MATCH(P76,AgeFactors!A$3:A$52,0))) ->  | AO76: =IF(AP76="M",COUNTIF(AP$14:AP76,"M"),"") ->  | AT76: =IF(OR(AQ76="",H76="",AQ76="UA",AQ76="U/A",AQ76="Unattached"),"",IF(Q76>0,COUNTIF(AQ$14:AQ76,O76))) ->  | AV76: =IF(OR(AR76="",H76="",AR76="UA",AR76="U/A",AR76="Unattached"),"",IF(S76>0,COUNTIF(AR$14:AR76,O76))) ->  | BA76: =IF(OR(AX76="",H76="",AX76="UA",AX76="U/A",AX76="Unattached"),"",IF(AO76>0,COUNTIF(AX$14:AX76,O76))) ->  | BC76: =IF(OR(AY76="",H76="",AY76="UA",AY76="U/A",AY76="Unattached"),"",IF(R76>0,COUNTIF(AY$14:AY76,O76))) ->  | BE76: 2 | BF76: =Winners!M119 -> - | BG76: =MATCH(BF76,AQ$15:AQ$5014,0) ->  | BH76: =14+BG76 ->  | BI76: =SCWinners!M119 -> - | BJ76: =MATCH(BI76,CP$15:CP$5014,0) ->  | BK76: =14+BJ76 ->  | BM76: =IF(BP76="","",SUM(INDIRECT("CC71:CC"&CV$14+70))+INDIRECT("CC"&CV$14+70)/10000) ->  | BO76: 6 | BQ76: - | CH76: =IF(OR(AP76<>"M",AN76=""),"",SUMPRODUCT(--(AN$14:AN76="y"),--(AP$14:AP76="M"))) ->  | CI76: =IF(OR(AP76<>Dec!P$22,AN76=""),"",SUMPRODUCT(--(AN$14:AN76="y"),--(AP$14:AP76=Dec!P$22))) ->  | CJ76: =IF(OR(CM76<>"MV",AN76=""),"",SUMPRODUCT(--(AN$14:AN76="y"),--(CM$14:CM76="MV"))) ->  | CK76: =IF(OR(CM76<>Dec!P$22&"V",AN76=""),"",SUMPRODUCT(--(AN$14:AN76="y"),--(CM$14:CM76=Dec!P$22&"V"))) ->  | CL76: =IF(OR(AN76="",H76=""),"",SUMPRODUCT(--(AN$14:AN76="y"),--(P$14:P76=P76))) ->  | CS76: =IF(OR(CP76="",H76="",CP76="UA",CP76="U/A",CP76="Unattached"),"",IF(CI76>0,COUNTIF(CP$14:CP76,O76))) ->  | CU76: =IF(OR(CQ76="",H76="",CQ76="UA",CQ76="U/A",CQ76="Unattached"),"",IF(CK76>0,COUNTIF(CQ$14:CQ76,O76))) ->  | CZ76: =IF(OR(CW76="",H76="",CW76="UA",CW76="U/A",CW76="Unattached"),"",IF(CH76>0,COUNTIF(CW$14:CW76,O76))) ->  | DB76: =IF(OR(CX76="",H76="",CX76="UA",CX76="U/A",CX76="Unattached"),"",IF(CJ76>0,COUNTIF(CX$14:CX76,O76))) -> 
C77: =IF(AND(I77="",MAX(C$14:C76)=0),"",IF(AND(I77="",MAX(C$14:C76)>0),C76,I77)) ->  | D77: 00 | E77: 00 | F77: =MATCH(H77,Dec!L:L,0) ->  | G77: 63 | L77: 63 | Q77: =IF(AP77=Dec!P$22,COUNTIF(AP$14:AP77,Dec!P$22),"") ->  | R77: =IF(CM77="MV",COUNTIF(CM$14:CM77,"MV"),"") ->  | S77: =IF(CM77=Dec!P$22&"V",COUNTIF(CM$14:CM77,Dec!P$22&"V"),"") ->  | T77: =IF(H77="","",COUNTIF(P$14:P77,P77)) ->  | U77: =IF(AN77="y",COUNTIF(AN$14:AN77,"y"),"") ->  | Z77: =IF(H77="","",IF(AK77=0,"",AK77&":")&IF(AL77<10,"0","")&AL77&":"&IF(AM77<10,"0","")&AM77) ->  | AD77: 0 | AI77: =IF(P77=0,1,INDIRECT("AgeFactors!"&Summary!$E$20&2+MATCH(P77,AgeFactors!A$3:A$52,0))) ->  | AJ77: =IF(H77="","",CEILING(AE77*IF(AI77="",1,AI77),1)) ->  | AO77: =IF(AP77="M",COUNTIF(AP$14:AP77,"M"),"") ->  | AT77: =IF(OR(AQ77="",H77="",AQ77="UA",AQ77="U/A",AQ77="Unattached"),"",IF(Q77>0,COUNTIF(AQ$14:AQ77,O77))) ->  | AV77: =IF(OR(AR77="",H77="",AR77="UA",AR77="U/A",AR77="Unattached"),"",IF(S77>0,COUNTIF(AR$14:AR77,O77))) ->  | BA77: =IF(OR(AX77="",H77="",AX77="UA",AX77="U/A",AX77="Unattached"),"",IF(AO77>0,COUNTIF(AX$14:AX77,O77))) ->  | BC77: =IF(OR(AY77="",H77="",AY77="UA",AY77="U/A",AY77="Unattached"),"",IF(R77>0,COUNTIF(AY$14:AY77,O77))) ->  | BG77: =MATCH(BF$76,INDIRECT("AQ"&BH76+1&":AQ5014"),0) ->  | BH77: =BH76+BG77 ->  | BJ77: =MATCH(BI$76,INDIRECT("by"&BK76+1&":by5014"),0) ->  | BK77: =BK76+BJ77 ->  | BM77: =IF(BP77="","",SUM(INDIRECT("CE71:CE"&CV$14+70))+INDIRECT("CE"&CV$14+70)/10000) ->  | BO77: 7 | BQ77: - | CH77: =IF(OR(AP77<>"M",AN77=""),"",SUMPRODUCT(--(AN$14:AN77="y"),--(AP$14:AP77="M"))) ->  | CI77: =IF(OR(AP77<>Dec!P$22,AN77=""),"",SUMPRODUCT(--(AN$14:AN77="y"),--(AP$14:AP77=Dec!P$22))) ->  | CJ77: =IF(OR(CM77<>"MV",AN77=""),"",SUMPRODUCT(--(AN$14:AN77="y"),--(CM$14:CM77="MV"))) ->  | CK77: =IF(OR(CM77<>Dec!P$22&"V",AN77=""),"",SUMPRODUCT(--(AN$14:AN77="y"),--(CM$14:CM77=Dec!P$22&"V"))) ->  | CL77: =IF(OR(AN77="",H77=""),"",SUMPRODUCT(--(AN$14:AN77="y"),--(P$14:P77=P77))) ->  | CS77: =IF(OR(CP77="",H77="",CP77="UA",CP77="U/A",CP77="Unattached"),"",IF(CI77>0,COUNTIF(CP$14:CP77,O77))) ->  | CU77: =IF(OR(CQ77="",H77="",CQ77="UA",CQ77="U/A",CQ77="Unattached"),"",IF(CK77>0,COUNTIF(CQ$14:CQ77,O77))) ->  | CZ77: =IF(OR(CW77="",H77="",CW77="UA",CW77="U/A",CW77="Unattached"),"",IF(CH77>0,COUNTIF(CW$14:CW77,O77))) ->  | DB77: =IF(OR(CX77="",H77="",CX77="UA",CX77="U/A",CX77="Unattached"),"",IF(CJ77>0,COUNTIF(CX$14:CX77,O77))) -> 
C78: =IF(AND(I78="",MAX(C$14:C77)=0),"",IF(AND(I78="",MAX(C$14:C77)>0),C77,I78)) ->  | D78: 00 | E78: 00 | F78: =MATCH(H78,Dec!L:L,0) ->  | G78: 64 | L78: 64 | Q78: =IF(AP78=Dec!P$22,COUNTIF(AP$14:AP78,Dec!P$22),"") ->  | R78: =IF(CM78="MV",COUNTIF(CM$14:CM78,"MV"),"") ->  | S78: =IF(CM78=Dec!P$22&"V",COUNTIF(CM$14:CM78,Dec!P$22&"V"),"") ->  | T78: =IF(H78="","",COUNTIF(P$14:P78,P78)) ->  | U78: =IF(AN78="y",COUNTIF(AN$14:AN78,"y"),"") ->  | AD78: 0 | AI78: =IF(P78=0,1,INDIRECT("AgeFactors!"&Summary!$E$20&2+MATCH(P78,AgeFactors!A$3:A$52,0))) ->  | AO78: =IF(AP78="M",COUNTIF(AP$14:AP78,"M"),"") ->  | AT78: =IF(OR(AQ78="",H78="",AQ78="UA",AQ78="U/A",AQ78="Unattached"),"",IF(Q78>0,COUNTIF(AQ$14:AQ78,O78))) ->  | AV78: =IF(OR(AR78="",H78="",AR78="UA",AR78="U/A",AR78="Unattached"),"",IF(S78>0,COUNTIF(AR$14:AR78,O78))) ->  | BA78: =IF(OR(AX78="",H78="",AX78="UA",AX78="U/A",AX78="Unattached"),"",IF(AO78>0,COUNTIF(AX$14:AX78,O78))) ->  | BC78: =IF(OR(AY78="",H78="",AY78="UA",AY78="U/A",AY78="Unattached"),"",IF(R78>0,COUNTIF(AY$14:AY78,O78))) ->  | BH78: =BH77+BG78 ->  | BK78: =BK77+BJ78 ->  | BM78: =IF(BP78="","",SUM(INDIRECT("CG71:CG"&CV$14+70))+INDIRECT("CG"&CV$14+70)/10000) ->  | BO78: 8 | BQ78: - | CH78: =IF(OR(AP78<>"M",AN78=""),"",SUMPRODUCT(--(AN$14:AN78="y"),--(AP$14:AP78="M"))) ->  | CI78: =IF(OR(AP78<>Dec!P$22,AN78=""),"",SUMPRODUCT(--(AN$14:AN78="y"),--(AP$14:AP78=Dec!P$22))) ->  | CJ78: =IF(OR(CM78<>"MV",AN78=""),"",SUMPRODUCT(--(AN$14:AN78="y"),--(CM$14:CM78="MV"))) ->  | CK78: =IF(OR(CM78<>Dec!P$22&"V",AN78=""),"",SUMPRODUCT(--(AN$14:AN78="y"),--(CM$14:CM78=Dec!P$22&"V"))) ->  | CL78: =IF(OR(AN78="",H78=""),"",SUMPRODUCT(--(AN$14:AN78="y"),--(P$14:P78=P78))) ->  | CS78: =IF(OR(CP78="",H78="",CP78="UA",CP78="U/A",CP78="Unattached"),"",IF(CI78>0,COUNTIF(CP$14:CP78,O78))) ->  | CU78: =IF(OR(CQ78="",H78="",CQ78="UA",CQ78="U/A",CQ78="Unattached"),"",IF(CK78>0,COUNTIF(CQ$14:CQ78,O78))) ->  | CZ78: =IF(OR(CW78="",H78="",CW78="UA",CW78="U/A",CW78="Unattached"),"",IF(CH78>0,COUNTIF(CW$14:CW78,O78))) ->  | DB78: =IF(OR(CX78="",H78="",CX78="UA",CX78="U/A",CX78="Unattached"),"",IF(CJ78>0,COUNTIF(CX$14:CX78,O78))) -> 
C79: =IF(AND(I79="",MAX(C$14:C78)=0),"",IF(AND(I79="",MAX(C$14:C78)>0),C78,I79)) ->  | D79: 00 | E79: 00 | F79: =MATCH(H79,Dec!L:L,0) ->  | G79: 65 | L79: 65 | Q79: =IF(AP79=Dec!P$22,COUNTIF(AP$14:AP79,Dec!P$22),"") ->  | R79: =IF(CM79="MV",COUNTIF(CM$14:CM79,"MV"),"") ->  | S79: =IF(CM79=Dec!P$22&"V",COUNTIF(CM$14:CM79,Dec!P$22&"V"),"") ->  | T79: =IF(H79="","",COUNTIF(P$14:P79,P79)) ->  | U79: =IF(AN79="y",COUNTIF(AN$14:AN79,"y"),"") ->  | W79: =IF(H79="","",IF(AF79=0,"",AF79&":")&IF(AG79<10,"0","")&AG79&":"&IF(AH79<10,"0","")&AH79) ->  | X79: =IF(H79="","",RANK(AE79,AE$15:AE$2014,1)) ->  | Y79: =IF(OR(H79=""),"",IF(AND(AB79=0,AC79="00"),"-",AB79&":"&AC79)) ->  | Z79: =IF(H79="","",IF(AK79=0,"",AK79&":")&IF(AL79<10,"0","")&AL79&":"&IF(AM79<10,"0","")&AM79) ->  | AA79: =IF(H79="","",RANK(AJ79,AJ$15:AJ$2014,1)) ->  | AB79: =INDIRECT("DEC!s"&F79) ->  | AC79: =IF(OR(INDIRECT("DEC!t"&F79)=0,INDIRECT("DEC!t"&F79)=""),"00",INDIRECT("DEC!t"&F79)) ->  | AD79: =IF(C79="",0,C79)*3600+(D79*60)+E79 -> 0 | AE79: =IF(H79="","",AD79-(AB79*60)-AC79) ->  | AI79: =IF(P79=0,1,INDIRECT("AgeFactors!"&Summary!$E$20&2+MATCH(P79,AgeFactors!A$3:A$52,0))) ->  | AJ79: =IF(H79="","",CEILING(AE79*IF(AI79="",1,AI79),1)) ->  | AN79: =IF(H79="","",IF(INDIRECT("DEC!R"&F79)<>"Y","","Y")) ->  | AO79: =IF(AP79="M",COUNTIF(AP$14:AP79,"M"),"") ->  | AP79: =LEFT(P79,1) ->  | AQ79: =IF(Q79="","",O79) ->  | AR79: =IF(S79="","",O79) ->  | AT79: =IF(OR(AQ79="",H79="",AQ79="UA",AQ79="U/A",AQ79="Unattached"),"",IF(Q79>0,COUNTIF(AQ$14:AQ79,O79))) ->  | AV79: =IF(OR(AR79="",H79="",AR79="UA",AR79="U/A",AR79="Unattached"),"",IF(S79>0,COUNTIF(AR$14:AR79,O79))) ->  | AX79: =IF(AO79="","",O79) ->  | AY79: =IF(R79="","",O79) ->  | BA79: =IF(OR(AX79="",H79="",AX79="UA",AX79="U/A",AX79="Unattached"),"",IF(AO79>0,COUNTIF(AX$14:AX79,O79))) ->  | BC79: =IF(OR(AY79="",H79="",AY79="UA",AY79="U/A",AY79="Unattached"),"",IF(R79>0,COUNTIF(AY$14:AY79,O79))) ->  | CH79: =IF(OR(AP79<>"M",AN79=""),"",SUMPRODUCT(--(AN$14:AN79="y"),--(AP$14:AP79="M"))) ->  | CI79: =IF(OR(AP79<>Dec!P$22,AN79=""),"",SUMPRODUCT(--(AN$14:AN79="y"),--(AP$14:AP79=Dec!P$22))) ->  | CJ79: =IF(OR(CM79<>"MV",AN79=""),"",SUMPRODUCT(--(AN$14:AN79="y"),--(CM$14:CM79="MV"))) ->  | CK79: =IF(OR(CM79<>Dec!P$22&"V",AN79=""),"",SUMPRODUCT(--(AN$14:AN79="y"),--(CM$14:CM79=Dec!P$22&"V"))) ->  | CL79: =IF(OR(AN79="",H79=""),"",SUMPRODUCT(--(AN$14:AN79="y"),--(P$14:P79=P79))) ->  | CM79: =LEFT(P79,1)&IF(LEN(P79)=3,"V","") ->  | CN79: =IF(AN79="y",P79,"") ->  | CP79: =IF(CI79="","",O79) ->  | CQ79: =IF(CK79="","",O79) ->  | CS79: =IF(OR(CP79="",H79="",CP79="UA",CP79="U/A",CP79="Unattached"),"",IF(CI79>0,COUNTIF(CP$14:CP79,O79))) ->  | CU79: =IF(OR(CQ79="",H79="",CQ79="UA",CQ79="U/A",CQ79="Unattached"),"",IF(CK79>0,COUNTIF(CQ$14:CQ79,O79))) ->  | CW79: =IF(CH79="","",O79) ->  | CX79: =IF(CJ79="","",O79) ->  | CZ79: =IF(OR(CW79="",H79="",CW79="UA",CW79="U/A",CW79="Unattached"),"",IF(CH79>0,COUNTIF(CW$14:CW79,O79))) ->  | DB79: =IF(OR(CX79="",H79="",CX79="UA",CX79="U/A",CX79="Unattached"),"",IF(CJ79>0,COUNTIF(CX$14:CX79,O79))) -> 
C80: =IF(AND(I80="",MAX(C$14:C79)=0),"",IF(AND(I80="",MAX(C$14:C79)>0),C79,I80)) ->  | D80: =IF(C80=C79,IF(AND(LEN(J80)=1,ISNUMBER(C80)),"0"&IF(J80="",D79,J80),IF(J80="",D79,J80)),IF(J80="","00",IF(LEN(J80)=1,"0"&J80,J80))) -> 00 | E80: =IF(K80="","00",IF(LEN(K80)=1,"0"&K80,K80)) -> 00 | F80: =MATCH(H80,Dec!L:L,0) ->  | G80: 66 | L80: 66 | N80: =IF(H80="","",PROPER(INDIRECT("DEC!N"&F80))) ->  | O80: =IF(H80="","",IF(INDIRECT("DEC!o"&F80)="","",INDIRECT("DEC!o"&F80))) ->  | P80: =IF(H80="","",INDIRECT("DEC!p"&F80)) ->  | Q80: =IF(AP80=Dec!P$22,COUNTIF(AP$14:AP80,Dec!P$22),"") ->  | R80: =IF(CM80="MV",COUNTIF(CM$14:CM80,"MV"),"") ->  | S80: =IF(CM80=Dec!P$22&"V",COUNTIF(CM$14:CM80,Dec!P$22&"V"),"") ->  | T80: =IF(H80="","",COUNTIF(P$14:P80,P80)) ->  | U80: =IF(AN80="y",COUNTIF(AN$14:AN80,"y"),"") ->  | V80: =IF(H80="","",IF(C80="","",C80&":")&(D80&":"&E80)) ->  | AD80: 0 | AF80: =ROUNDDOWN(AE80/3600,0) ->  | AI80: =IF(P80=0,1,INDIRECT("AgeFactors!"&Summary!$E$20&2+MATCH(P80,AgeFactors!A$3:A$52,0))) ->  | AK80: =ROUNDDOWN(AJ80/3600,0) ->  | AL80: =ROUNDDOWN(((AJ80-3600*ROUNDDOWN(AJ80/3600,0))/60),0) ->  | AM80: =(AJ80-60*ROUNDDOWN(AJ80/60,0)) ->  | AO80: =IF(AP80="M",COUNTIF(AP$14:AP80,"M"),"") ->  | AT80: =IF(OR(AQ80="",H80="",AQ80="UA",AQ80="U/A",AQ80="Unattached"),"",IF(Q80>0,COUNTIF(AQ$14:AQ80,O80))) ->  | AU80: =IF(AT80=AU$14,ROW(),"") ->  | AV80: =IF(OR(AR80="",H80="",AR80="UA",AR80="U/A",AR80="Unattached"),"",IF(S80>0,COUNTIF(AR$14:AR80,O80))) ->  | AW80: =IF(AV80=AW$14,ROW(),"") ->  | BA80: =IF(OR(AX80="",H80="",AX80="UA",AX80="U/A",AX80="Unattached"),"",IF(AO80>0,COUNTIF(AX$14:AX80,O80))) ->  | BB80: =IF(BA80=BB$14,ROW(),"") ->  | BC80: =IF(OR(AY80="",H80="",AY80="UA",AY80="U/A",AY80="Unattached"),"",IF(R80>0,COUNTIF(AY$14:AY80,O80))) ->  | BD80: =IF(BC80=BD$14,ROW(),"") ->  | CH80: =IF(OR(AP80<>"M",AN80=""),"",SUMPRODUCT(--(AN$14:AN80="y"),--(AP$14:AP80="M"))) ->  | CI80: =IF(OR(AP80<>Dec!P$22,AN80=""),"",SUMPRODUCT(--(AN$14:AN80="y"),--(AP$14:AP80=Dec!P$22))) ->  | CJ80: =IF(OR(CM80<>"MV",AN80=""),"",SUMPRODUCT(--(AN$14:AN80="y"),--(CM$14:CM80="MV"))) ->  | CK80: =IF(OR(CM80<>Dec!P$22&"V",AN80=""),"",SUMPRODUCT(--(AN$14:AN80="y"),--(CM$14:CM80=Dec!P$22&"V"))) ->  | CL80: =IF(OR(AN80="",H80=""),"",SUMPRODUCT(--(AN$14:AN80="y"),--(P$14:P80=P80))) ->  | CS80: =IF(OR(CP80="",H80="",CP80="UA",CP80="U/A",CP80="Unattached"),"",IF(CI80>0,COUNTIF(CP$14:CP80,O80))) ->  | CT80: =IF(CS80=CT$14,ROW(),"") ->  | CU80: =IF(OR(CQ80="",H80="",CQ80="UA",CQ80="U/A",CQ80="Unattached"),"",IF(CK80>0,COUNTIF(CQ$14:CQ80,O80))) ->  | CV80: =IF(CU80=CV$14,ROW(),"") ->  | CZ80: =IF(OR(CW80="",H80="",CW80="UA",CW80="U/A",CW80="Unattached"),"",IF(CH80>0,COUNTIF(CW$14:CW80,O80))) ->  | DA80: =IF(CZ80=DA$14,ROW(),"") ->  | DB80: =IF(OR(CX80="",H80="",CX80="UA",CX80="U/A",CX80="Unattached"),"",IF(CJ80>0,COUNTIF(CX$14:CX80,O80))) ->  | DC80: =IF(DB80=DC$14,ROW(),"") -> 
C81: =IF(AND(I81="",MAX(C$14:C80)=0),"",IF(AND(I81="",MAX(C$14:C80)>0),C80,I81)) ->  | D81: 00 | E81: 00 | F81: =MATCH(H81,Dec!L:L,0) ->  | G81: =G80+1 -> 67 | L81: =G81 -> 67 | M81: =IF(H81="","",H81) ->  | Q81: =IF(AP81=Dec!P$22,COUNTIF(AP$14:AP81,Dec!P$22),"") ->  | R81: =IF(CM81="MV",COUNTIF(CM$14:CM81,"MV"),"") ->  | S81: =IF(CM81=Dec!P$22&"V",COUNTIF(CM$14:CM81,Dec!P$22&"V"),"") ->  | T81: =IF(H81="","",COUNTIF(P$14:P81,P81)) ->  | U81: =IF(AN81="y",COUNTIF(AN$14:AN81,"y"),"") ->  | AD81: 0 | AI81: =IF(P81=0,1,INDIRECT("AgeFactors!"&Summary!$E$20&2+MATCH(P81,AgeFactors!A$3:A$52,0))) ->  | AO81: =IF(AP81="M",COUNTIF(AP$14:AP81,"M"),"") ->  | AT81: =IF(OR(AQ81="",H81="",AQ81="UA",AQ81="U/A",AQ81="Unattached"),"",IF(Q81>0,COUNTIF(AQ$14:AQ81,O81))) ->  | AV81: =IF(OR(AR81="",H81="",AR81="UA",AR81="U/A",AR81="Unattached"),"",IF(S81>0,COUNTIF(AR$14:AR81,O81))) ->  | BA81: =IF(OR(AX81="",H81="",AX81="UA",AX81="U/A",AX81="Unattached"),"",IF(AO81>0,COUNTIF(AX$14:AX81,O81))) ->  | BC81: =IF(OR(AY81="",H81="",AY81="UA",AY81="U/A",AY81="Unattached"),"",IF(R81>0,COUNTIF(AY$14:AY81,O81))) ->  | CH81: =IF(OR(AP81<>"M",AN81=""),"",SUMPRODUCT(--(AN$14:AN81="y"),--(AP$14:AP81="M"))) ->  | CI81: =IF(OR(AP81<>Dec!P$22,AN81=""),"",SUMPRODUCT(--(AN$14:AN81="y"),--(AP$14:AP81=Dec!P$22))) ->  | CJ81: =IF(OR(CM81<>"MV",AN81=""),"",SUMPRODUCT(--(AN$14:AN81="y"),--(CM$14:CM81="MV"))) ->  | CK81: =IF(OR(CM81<>Dec!P$22&"V",AN81=""),"",SUMPRODUCT(--(AN$14:AN81="y"),--(CM$14:CM81=Dec!P$22&"V"))) ->  | CL81: =IF(OR(AN81="",H81=""),"",SUMPRODUCT(--(AN$14:AN81="y"),--(P$14:P81=P81))) ->  | CS81: =IF(OR(CP81="",H81="",CP81="UA",CP81="U/A",CP81="Unattached"),"",IF(CI81>0,COUNTIF(CP$14:CP81,O81))) ->  | CU81: =IF(OR(CQ81="",H81="",CQ81="UA",CQ81="U/A",CQ81="Unattached"),"",IF(CK81>0,COUNTIF(CQ$14:CQ81,O81))) ->  | CZ81: =IF(OR(CW81="",H81="",CW81="UA",CW81="U/A",CW81="Unattached"),"",IF(CH81>0,COUNTIF(CW$14:CW81,O81))) ->  | DB81: =IF(OR(CX81="",H81="",CX81="UA",CX81="U/A",CX81="Unattached"),"",IF(CJ81>0,COUNTIF(CX$14:CX81,O81))) -> 
C82: =IF(AND(I82="",MAX(C$14:C81)=0),"",IF(AND(I82="",MAX(C$14:C81)>0),C81,I82)) ->  | D82: 00 | E82: 00 | F82: =MATCH(H82,Dec!L:L,0) ->  | G82: 68 | L82: 68 | Q82: =IF(AP82=Dec!P$22,COUNTIF(AP$14:AP82,Dec!P$22),"") ->  | R82: =IF(CM82="MV",COUNTIF(CM$14:CM82,"MV"),"") ->  | S82: =IF(CM82=Dec!P$22&"V",COUNTIF(CM$14:CM82,Dec!P$22&"V"),"") ->  | T82: =IF(H82="","",COUNTIF(P$14:P82,P82)) ->  | U82: =IF(AN82="y",COUNTIF(AN$14:AN82,"y"),"") ->  | AD82: 0 | AI82: =IF(P82=0,1,INDIRECT("AgeFactors!"&Summary!$E$20&2+MATCH(P82,AgeFactors!A$3:A$52,0))) ->  | AO82: =IF(AP82="M",COUNTIF(AP$14:AP82,"M"),"") ->  | AT82: =IF(OR(AQ82="",H82="",AQ82="UA",AQ82="U/A",AQ82="Unattached"),"",IF(Q82>0,COUNTIF(AQ$14:AQ82,O82))) ->  | AV82: =IF(OR(AR82="",H82="",AR82="UA",AR82="U/A",AR82="Unattached"),"",IF(S82>0,COUNTIF(AR$14:AR82,O82))) ->  | BA82: =IF(OR(AX82="",H82="",AX82="UA",AX82="U/A",AX82="Unattached"),"",IF(AO82>0,COUNTIF(AX$14:AX82,O82))) ->  | BC82: =IF(OR(AY82="",H82="",AY82="UA",AY82="U/A",AY82="Unattached"),"",IF(R82>0,COUNTIF(AY$14:AY82,O82))) ->  | CH82: =IF(OR(AP82<>"M",AN82=""),"",SUMPRODUCT(--(AN$14:AN82="y"),--(AP$14:AP82="M"))) ->  | CI82: =IF(OR(AP82<>Dec!P$22,AN82=""),"",SUMPRODUCT(--(AN$14:AN82="y"),--(AP$14:AP82=Dec!P$22))) ->  | CJ82: =IF(OR(CM82<>"MV",AN82=""),"",SUMPRODUCT(--(AN$14:AN82="y"),--(CM$14:CM82="MV"))) ->  | CK82: =IF(OR(CM82<>Dec!P$22&"V",AN82=""),"",SUMPRODUCT(--(AN$14:AN82="y"),--(CM$14:CM82=Dec!P$22&"V"))) ->  | CL82: =IF(OR(AN82="",H82=""),"",SUMPRODUCT(--(AN$14:AN82="y"),--(P$14:P82=P82))) ->  | CS82: =IF(OR(CP82="",H82="",CP82="UA",CP82="U/A",CP82="Unattached"),"",IF(CI82>0,COUNTIF(CP$14:CP82,O82))) ->  | CU82: =IF(OR(CQ82="",H82="",CQ82="UA",CQ82="U/A",CQ82="Unattached"),"",IF(CK82>0,COUNTIF(CQ$14:CQ82,O82))) ->  | CZ82: =IF(OR(CW82="",H82="",CW82="UA",CW82="U/A",CW82="Unattached"),"",IF(CH82>0,COUNTIF(CW$14:CW82,O82))) ->  | DB82: =IF(OR(CX82="",H82="",CX82="UA",CX82="U/A",CX82="Unattached"),"",IF(CJ82>0,COUNTIF(CX$14:CX82,O82))) -> 
C83: =IF(AND(I83="",MAX(C$14:C82)=0),"",IF(AND(I83="",MAX(C$14:C82)>0),C82,I83)) ->  | D83: 00 | E83: 00 | F83: =MATCH(H83,Dec!L:L,0) ->  | G83: 69 | L83: 69 | Q83: =IF(AP83=Dec!P$22,COUNTIF(AP$14:AP83,Dec!P$22),"") ->  | R83: =IF(CM83="MV",COUNTIF(CM$14:CM83,"MV"),"") ->  | S83: =IF(CM83=Dec!P$22&"V",COUNTIF(CM$14:CM83,Dec!P$22&"V"),"") ->  | T83: =IF(H83="","",COUNTIF(P$14:P83,P83)) ->  | U83: =IF(AN83="y",COUNTIF(AN$14:AN83,"y"),"") ->  | AD83: 0 | AI83: =IF(P83=0,1,INDIRECT("AgeFactors!"&Summary!$E$20&2+MATCH(P83,AgeFactors!A$3:A$52,0))) ->  | AO83: =IF(AP83="M",COUNTIF(AP$14:AP83,"M"),"") ->  | AT83: =IF(OR(AQ83="",H83="",AQ83="UA",AQ83="U/A",AQ83="Unattached"),"",IF(Q83>0,COUNTIF(AQ$14:AQ83,O83))) ->  | AV83: =IF(OR(AR83="",H83="",AR83="UA",AR83="U/A",AR83="Unattached"),"",IF(S83>0,COUNTIF(AR$14:AR83,O83))) ->  | BA83: =IF(OR(AX83="",H83="",AX83="UA",AX83="U/A",AX83="Unattached"),"",IF(AO83>0,COUNTIF(AX$14:AX83,O83))) ->  | BC83: =IF(OR(AY83="",H83="",AY83="UA",AY83="U/A",AY83="Unattached"),"",IF(R83>0,COUNTIF(AY$14:AY83,O83))) ->  | CH83: =IF(OR(AP83<>"M",AN83=""),"",SUMPRODUCT(--(AN$14:AN83="y"),--(AP$14:AP83="M"))) ->  | CI83: =IF(OR(AP83<>Dec!P$22,AN83=""),"",SUMPRODUCT(--(AN$14:AN83="y"),--(AP$14:AP83=Dec!P$22))) ->  | CJ83: =IF(OR(CM83<>"MV",AN83=""),"",SUMPRODUCT(--(AN$14:AN83="y"),--(CM$14:CM83="MV"))) ->  | CK83: =IF(OR(CM83<>Dec!P$22&"V",AN83=""),"",SUMPRODUCT(--(AN$14:AN83="y"),--(CM$14:CM83=Dec!P$22&"V"))) ->  | CL83: =IF(OR(AN83="",H83=""),"",SUMPRODUCT(--(AN$14:AN83="y"),--(P$14:P83=P83))) ->  | CS83: =IF(OR(CP83="",H83="",CP83="UA",CP83="U/A",CP83="Unattached"),"",IF(CI83>0,COUNTIF(CP$14:CP83,O83))) ->  | CU83: =IF(OR(CQ83="",H83="",CQ83="UA",CQ83="U/A",CQ83="Unattached"),"",IF(CK83>0,COUNTIF(CQ$14:CQ83,O83))) ->  | CZ83: =IF(OR(CW83="",H83="",CW83="UA",CW83="U/A",CW83="Unattached"),"",IF(CH83>0,COUNTIF(CW$14:CW83,O83))) ->  | DB83: =IF(OR(CX83="",H83="",CX83="UA",CX83="U/A",CX83="Unattached"),"",IF(CJ83>0,COUNTIF(CX$14:CX83,O83))) -> 
C84: =IF(AND(I84="",MAX(C$14:C83)=0),"",IF(AND(I84="",MAX(C$14:C83)>0),C83,I84)) ->  | D84: 00 | E84: 00 | F84: =MATCH(H84,Dec!L:L,0) ->  | G84: 70 | L84: 70 | Q84: =IF(AP84=Dec!P$22,COUNTIF(AP$14:AP84,Dec!P$22),"") ->  | R84: =IF(CM84="MV",COUNTIF(CM$14:CM84,"MV"),"") ->  | S84: =IF(CM84=Dec!P$22&"V",COUNTIF(CM$14:CM84,Dec!P$22&"V"),"") ->  | T84: =IF(H84="","",COUNTIF(P$14:P84,P84)) ->  | U84: =IF(AN84="y",COUNTIF(AN$14:AN84,"y"),"") ->  | AD84: 0 | AI84: =IF(P84=0,1,INDIRECT("AgeFactors!"&Summary!$E$20&2+MATCH(P84,AgeFactors!A$3:A$52,0))) ->  | AO84: =IF(AP84="M",COUNTIF(AP$14:AP84,"M"),"") ->  | AT84: =IF(OR(AQ84="",H84="",AQ84="UA",AQ84="U/A",AQ84="Unattached"),"",IF(Q84>0,COUNTIF(AQ$14:AQ84,O84))) ->  | AV84: =IF(OR(AR84="",H84="",AR84="UA",AR84="U/A",AR84="Unattached"),"",IF(S84>0,COUNTIF(AR$14:AR84,O84))) ->  | BA84: =IF(OR(AX84="",H84="",AX84="UA",AX84="U/A",AX84="Unattached"),"",IF(AO84>0,COUNTIF(AX$14:AX84,O84))) ->  | BC84: =IF(OR(AY84="",H84="",AY84="UA",AY84="U/A",AY84="Unattached"),"",IF(R84>0,COUNTIF(AY$14:AY84,O84))) ->  | BE84: 3 | BF84: =Winners!M127 -> - | BG84: =MATCH(BF84,AQ$15:AQ$5014,0) ->  | BH84: =14+BG84 ->  | BI84: =SCWinners!M127 -> - | BJ84: =MATCH(BI84,CP$15:CP$5014,0) ->  | BK84: =14+BJ84 ->  | CH84: =IF(OR(AP84<>"M",AN84=""),"",SUMPRODUCT(--(AN$14:AN84="y"),--(AP$14:AP84="M"))) ->  | CI84: =IF(OR(AP84<>Dec!P$22,AN84=""),"",SUMPRODUCT(--(AN$14:AN84="y"),--(AP$14:AP84=Dec!P$22))) ->  | CJ84: =IF(OR(CM84<>"MV",AN84=""),"",SUMPRODUCT(--(AN$14:AN84="y"),--(CM$14:CM84="MV"))) ->  | CK84: =IF(OR(CM84<>Dec!P$22&"V",AN84=""),"",SUMPRODUCT(--(AN$14:AN84="y"),--(CM$14:CM84=Dec!P$22&"V"))) ->  | CL84: =IF(OR(AN84="",H84=""),"",SUMPRODUCT(--(AN$14:AN84="y"),--(P$14:P84=P84))) ->  | CS84: =IF(OR(CP84="",H84="",CP84="UA",CP84="U/A",CP84="Unattached"),"",IF(CI84>0,COUNTIF(CP$14:CP84,O84))) ->  | CU84: =IF(OR(CQ84="",H84="",CQ84="UA",CQ84="U/A",CQ84="Unattached"),"",IF(CK84>0,COUNTIF(CQ$14:CQ84,O84))) ->  | CZ84: =IF(OR(CW84="",H84="",CW84="UA",CW84="U/A",CW84="Unattached"),"",IF(CH84>0,COUNTIF(CW$14:CW84,O84))) ->  | DB84: =IF(OR(CX84="",H84="",CX84="UA",CX84="U/A",CX84="Unattached"),"",IF(CJ84>0,COUNTIF(CX$14:CX84,O84))) -> 
C85: =IF(AND(I85="",MAX(C$14:C84)=0),"",IF(AND(I85="",MAX(C$14:C84)>0),C84,I85)) ->  | D85: 00 | E85: 00 | F85: =MATCH(H85,Dec!L:L,0) ->  | G85: 71 | L85: 71 | Q85: =IF(AP85=Dec!P$22,COUNTIF(AP$14:AP85,Dec!P$22),"") ->  | R85: =IF(CM85="MV",COUNTIF(CM$14:CM85,"MV"),"") ->  | S85: =IF(CM85=Dec!P$22&"V",COUNTIF(CM$14:CM85,Dec!P$22&"V"),"") ->  | T85: =IF(H85="","",COUNTIF(P$14:P85,P85)) ->  | U85: =IF(AN85="y",COUNTIF(AN$14:AN85,"y"),"") ->  | AD85: 0 | AI85: =IF(P85=0,1,INDIRECT("AgeFactors!"&Summary!$E$20&2+MATCH(P85,AgeFactors!A$3:A$52,0))) ->  | AO85: =IF(AP85="M",COUNTIF(AP$14:AP85,"M"),"") ->  | AT85: =IF(OR(AQ85="",H85="",AQ85="UA",AQ85="U/A",AQ85="Unattached"),"",IF(Q85>0,COUNTIF(AQ$14:AQ85,O85))) ->  | AV85: =IF(OR(AR85="",H85="",AR85="UA",AR85="U/A",AR85="Unattached"),"",IF(S85>0,COUNTIF(AR$14:AR85,O85))) ->  | BA85: =IF(OR(AX85="",H85="",AX85="UA",AX85="U/A",AX85="Unattached"),"",IF(AO85>0,COUNTIF(AX$14:AX85,O85))) ->  | BC85: =IF(OR(AY85="",H85="",AY85="UA",AY85="U/A",AY85="Unattached"),"",IF(R85>0,COUNTIF(AY$14:AY85,O85))) ->  | BG85: =MATCH(BF$84,INDIRECT("AQ"&BH84+1&":AQ5014"),0) ->  | BH85: =BH84+BG85 ->  | BJ85: =MATCH(BI$84,INDIRECT("by"&BK84+1&":by5014"),0) ->  | BK85: =BK84+BJ85 ->  | CH85: =IF(OR(AP85<>"M",AN85=""),"",SUMPRODUCT(--(AN$14:AN85="y"),--(AP$14:AP85="M"))) ->  | CI85: =IF(OR(AP85<>Dec!P$22,AN85=""),"",SUMPRODUCT(--(AN$14:AN85="y"),--(AP$14:AP85=Dec!P$22))) ->  | CJ85: =IF(OR(CM85<>"MV",AN85=""),"",SUMPRODUCT(--(AN$14:AN85="y"),--(CM$14:CM85="MV"))) ->  | CK85: =IF(OR(CM85<>Dec!P$22&"V",AN85=""),"",SUMPRODUCT(--(AN$14:AN85="y"),--(CM$14:CM85=Dec!P$22&"V"))) ->  | CL85: =IF(OR(AN85="",H85=""),"",SUMPRODUCT(--(AN$14:AN85="y"),--(P$14:P85=P85))) ->  | CS85: =IF(OR(CP85="",H85="",CP85="UA",CP85="U/A",CP85="Unattached"),"",IF(CI85>0,COUNTIF(CP$14:CP85,O85))) ->  | CU85: =IF(OR(CQ85="",H85="",CQ85="UA",CQ85="U/A",CQ85="Unattached"),"",IF(CK85>0,COUNTIF(CQ$14:CQ85,O85))) ->  | CZ85: =IF(OR(CW85="",H85="",CW85="UA",CW85="U/A",CW85="Unattached"),"",IF(CH85>0,COUNTIF(CW$14:CW85,O85))) ->  | DB85: =IF(OR(CX85="",H85="",CX85="UA",CX85="U/A",CX85="Unattached"),"",IF(CJ85>0,COUNTIF(CX$14:CX85,O85))) -> 
C86: =IF(AND(I86="",MAX(C$14:C85)=0),"",IF(AND(I86="",MAX(C$14:C85)>0),C85,I86)) ->  | D86: 00 | E86: 00 | F86: =MATCH(H86,Dec!L:L,0) ->  | G86: 72 | L86: 72 | Q86: =IF(AP86=Dec!P$22,COUNTIF(AP$14:AP86,Dec!P$22),"") ->  | R86: =IF(CM86="MV",COUNTIF(CM$14:CM86,"MV"),"") ->  | S86: =IF(CM86=Dec!P$22&"V",COUNTIF(CM$14:CM86,Dec!P$22&"V"),"") ->  | T86: =IF(H86="","",COUNTIF(P$14:P86,P86)) ->  | U86: =IF(AN86="y",COUNTIF(AN$14:AN86,"y"),"") ->  | AD86: 0 | AI86: =IF(P86=0,1,INDIRECT("AgeFactors!"&Summary!$E$20&2+MATCH(P86,AgeFactors!A$3:A$52,0))) ->  | AO86: =IF(AP86="M",COUNTIF(AP$14:AP86,"M"),"") ->  | AT86: =IF(OR(AQ86="",H86="",AQ86="UA",AQ86="U/A",AQ86="Unattached"),"",IF(Q86>0,COUNTIF(AQ$14:AQ86,O86))) ->  | AV86: =IF(OR(AR86="",H86="",AR86="UA",AR86="U/A",AR86="Unattached"),"",IF(S86>0,COUNTIF(AR$14:AR86,O86))) ->  | BA86: =IF(OR(AX86="",H86="",AX86="UA",AX86="U/A",AX86="Unattached"),"",IF(AO86>0,COUNTIF(AX$14:AX86,O86))) ->  | BC86: =IF(OR(AY86="",H86="",AY86="UA",AY86="U/A",AY86="Unattached"),"",IF(R86>0,COUNTIF(AY$14:AY86,O86))) ->  | BH86: =BH85+BG86 ->  | BK86: =BK85+BJ86 ->  | CH86: =IF(OR(AP86<>"M",AN86=""),"",SUMPRODUCT(--(AN$14:AN86="y"),--(AP$14:AP86="M"))) ->  | CI86: =IF(OR(AP86<>Dec!P$22,AN86=""),"",SUMPRODUCT(--(AN$14:AN86="y"),--(AP$14:AP86=Dec!P$22))) ->  | CJ86: =IF(OR(CM86<>"MV",AN86=""),"",SUMPRODUCT(--(AN$14:AN86="y"),--(CM$14:CM86="MV"))) ->  | CK86: =IF(OR(CM86<>Dec!P$22&"V",AN86=""),"",SUMPRODUCT(--(AN$14:AN86="y"),--(CM$14:CM86=Dec!P$22&"V"))) ->  | CL86: =IF(OR(AN86="",H86=""),"",SUMPRODUCT(--(AN$14:AN86="y"),--(P$14:P86=P86))) ->  | CS86: =IF(OR(CP86="",H86="",CP86="UA",CP86="U/A",CP86="Unattached"),"",IF(CI86>0,COUNTIF(CP$14:CP86,O86))) ->  | CU86: =IF(OR(CQ86="",H86="",CQ86="UA",CQ86="U/A",CQ86="Unattached"),"",IF(CK86>0,COUNTIF(CQ$14:CQ86,O86))) ->  | CZ86: =IF(OR(CW86="",H86="",CW86="UA",CW86="U/A",CW86="Unattached"),"",IF(CH86>0,COUNTIF(CW$14:CW86,O86))) ->  | DB86: =IF(OR(CX86="",H86="",CX86="UA",CX86="U/A",CX86="Unattached"),"",IF(CJ86>0,COUNTIF(CX$14:CX86,O86))) -> 
C87: =IF(AND(I87="",MAX(C$14:C86)=0),"",IF(AND(I87="",MAX(C$14:C86)>0),C86,I87)) ->  | D87: 00 | E87: 00 | F87: =MATCH(H87,Dec!L:L,0) ->  | G87: 73 | L87: 73 | Q87: =IF(AP87=Dec!P$22,COUNTIF(AP$14:AP87,Dec!P$22),"") ->  | R87: =IF(CM87="MV",COUNTIF(CM$14:CM87,"MV"),"") ->  | S87: =IF(CM87=Dec!P$22&"V",COUNTIF(CM$14:CM87,Dec!P$22&"V"),"") ->  | T87: =IF(H87="","",COUNTIF(P$14:P87,P87)) ->  | U87: =IF(AN87="y",COUNTIF(AN$14:AN87,"y"),"") ->  | AD87: 0 | AI87: =IF(P87=0,1,INDIRECT("AgeFactors!"&Summary!$E$20&2+MATCH(P87,AgeFactors!A$3:A$52,0))) ->  | AO87: =IF(AP87="M",COUNTIF(AP$14:AP87,"M"),"") ->  | AT87: =IF(OR(AQ87="",H87="",AQ87="UA",AQ87="U/A",AQ87="Unattached"),"",IF(Q87>0,COUNTIF(AQ$14:AQ87,O87))) ->  | AV87: =IF(OR(AR87="",H87="",AR87="UA",AR87="U/A",AR87="Unattached"),"",IF(S87>0,COUNTIF(AR$14:AR87,O87))) ->  | BA87: =IF(OR(AX87="",H87="",AX87="UA",AX87="U/A",AX87="Unattached"),"",IF(AO87>0,COUNTIF(AX$14:AX87,O87))) ->  | BC87: =IF(OR(AY87="",H87="",AY87="UA",AY87="U/A",AY87="Unattached"),"",IF(R87>0,COUNTIF(AY$14:AY87,O87))) ->  | CH87: =IF(OR(AP87<>"M",AN87=""),"",SUMPRODUCT(--(AN$14:AN87="y"),--(AP$14:AP87="M"))) ->  | CI87: =IF(OR(AP87<>Dec!P$22,AN87=""),"",SUMPRODUCT(--(AN$14:AN87="y"),--(AP$14:AP87=Dec!P$22))) ->  | CJ87: =IF(OR(CM87<>"MV",AN87=""),"",SUMPRODUCT(--(AN$14:AN87="y"),--(CM$14:CM87="MV"))) ->  | CK87: =IF(OR(CM87<>Dec!P$22&"V",AN87=""),"",SUMPRODUCT(--(AN$14:AN87="y"),--(CM$14:CM87=Dec!P$22&"V"))) ->  | CL87: =IF(OR(AN87="",H87=""),"",SUMPRODUCT(--(AN$14:AN87="y"),--(P$14:P87=P87))) ->  | CS87: =IF(OR(CP87="",H87="",CP87="UA",CP87="U/A",CP87="Unattached"),"",IF(CI87>0,COUNTIF(CP$14:CP87,O87))) ->  | CU87: =IF(OR(CQ87="",H87="",CQ87="UA",CQ87="U/A",CQ87="Unattached"),"",IF(CK87>0,COUNTIF(CQ$14:CQ87,O87))) ->  | CZ87: =IF(OR(CW87="",H87="",CW87="UA",CW87="U/A",CW87="Unattached"),"",IF(CH87>0,COUNTIF(CW$14:CW87,O87))) ->  | DB87: =IF(OR(CX87="",H87="",CX87="UA",CX87="U/A",CX87="Unattached"),"",IF(CJ87>0,COUNTIF(CX$14:CX87,O87))) -> 
C88: =IF(AND(I88="",MAX(C$14:C87)=0),"",IF(AND(I88="",MAX(C$14:C87)>0),C87,I88)) ->  | D88: 00 | E88: 00 | F88: =MATCH(H88,Dec!L:L,0) ->  | G88: 74 | L88: 74 | Q88: =IF(AP88=Dec!P$22,COUNTIF(AP$14:AP88,Dec!P$22),"") ->  | R88: =IF(CM88="MV",COUNTIF(CM$14:CM88,"MV"),"") ->  | S88: =IF(CM88=Dec!P$22&"V",COUNTIF(CM$14:CM88,Dec!P$22&"V"),"") ->  | T88: =IF(H88="","",COUNTIF(P$14:P88,P88)) ->  | U88: =IF(AN88="y",COUNTIF(AN$14:AN88,"y"),"") ->  | AD88: 0 | AI88: =IF(P88=0,1,INDIRECT("AgeFactors!"&Summary!$E$20&2+MATCH(P88,AgeFactors!A$3:A$52,0))) ->  | AO88: =IF(AP88="M",COUNTIF(AP$14:AP88,"M"),"") ->  | AT88: =IF(OR(AQ88="",H88="",AQ88="UA",AQ88="U/A",AQ88="Unattached"),"",IF(Q88>0,COUNTIF(AQ$14:AQ88,O88))) ->  | AV88: =IF(OR(AR88="",H88="",AR88="UA",AR88="U/A",AR88="Unattached"),"",IF(S88>0,COUNTIF(AR$14:AR88,O88))) ->  | BA88: =IF(OR(AX88="",H88="",AX88="UA",AX88="U/A",AX88="Unattached"),"",IF(AO88>0,COUNTIF(AX$14:AX88,O88))) ->  | BC88: =IF(OR(AY88="",H88="",AY88="UA",AY88="U/A",AY88="Unattached"),"",IF(R88>0,COUNTIF(AY$14:AY88,O88))) ->  | CH88: =IF(OR(AP88<>"M",AN88=""),"",SUMPRODUCT(--(AN$14:AN88="y"),--(AP$14:AP88="M"))) ->  | CI88: =IF(OR(AP88<>Dec!P$22,AN88=""),"",SUMPRODUCT(--(AN$14:AN88="y"),--(AP$14:AP88=Dec!P$22))) ->  | CJ88: =IF(OR(CM88<>"MV",AN88=""),"",SUMPRODUCT(--(AN$14:AN88="y"),--(CM$14:CM88="MV"))) ->  | CK88: =IF(OR(CM88<>Dec!P$22&"V",AN88=""),"",SUMPRODUCT(--(AN$14:AN88="y"),--(CM$14:CM88=Dec!P$22&"V"))) ->  | CL88: =IF(OR(AN88="",H88=""),"",SUMPRODUCT(--(AN$14:AN88="y"),--(P$14:P88=P88))) ->  | CS88: =IF(OR(CP88="",H88="",CP88="UA",CP88="U/A",CP88="Unattached"),"",IF(CI88>0,COUNTIF(CP$14:CP88,O88))) ->  | CU88: =IF(OR(CQ88="",H88="",CQ88="UA",CQ88="U/A",CQ88="Unattached"),"",IF(CK88>0,COUNTIF(CQ$14:CQ88,O88))) ->  | CZ88: =IF(OR(CW88="",H88="",CW88="UA",CW88="U/A",CW88="Unattached"),"",IF(CH88>0,COUNTIF(CW$14:CW88,O88))) ->  | DB88: =IF(OR(CX88="",H88="",CX88="UA",CX88="U/A",CX88="Unattached"),"",IF(CJ88>0,COUNTIF(CX$14:CX88,O88))) -> 
C89: =IF(AND(I89="",MAX(C$14:C88)=0),"",IF(AND(I89="",MAX(C$14:C88)>0),C88,I89)) ->  | D89: 00 | E89: 00 | F89: =MATCH(H89,Dec!L:L,0) ->  | G89: 75 | L89: 75 | Q89: =IF(AP89=Dec!P$22,COUNTIF(AP$14:AP89,Dec!P$22),"") ->  | R89: =IF(CM89="MV",COUNTIF(CM$14:CM89,"MV"),"") ->  | S89: =IF(CM89=Dec!P$22&"V",COUNTIF(CM$14:CM89,Dec!P$22&"V"),"") ->  | T89: =IF(H89="","",COUNTIF(P$14:P89,P89)) ->  | U89: =IF(AN89="y",COUNTIF(AN$14:AN89,"y"),"") ->  | AD89: 0 | AI89: =IF(P89=0,1,INDIRECT("AgeFactors!"&Summary!$E$20&2+MATCH(P89,AgeFactors!A$3:A$52,0))) ->  | AO89: =IF(AP89="M",COUNTIF(AP$14:AP89,"M"),"") ->  | AT89: =IF(OR(AQ89="",H89="",AQ89="UA",AQ89="U/A",AQ89="Unattached"),"",IF(Q89>0,COUNTIF(AQ$14:AQ89,O89))) ->  | AV89: =IF(OR(AR89="",H89="",AR89="UA",AR89="U/A",AR89="Unattached"),"",IF(S89>0,COUNTIF(AR$14:AR89,O89))) ->  | BA89: =IF(OR(AX89="",H89="",AX89="UA",AX89="U/A",AX89="Unattached"),"",IF(AO89>0,COUNTIF(AX$14:AX89,O89))) ->  | BC89: =IF(OR(AY89="",H89="",AY89="UA",AY89="U/A",AY89="Unattached"),"",IF(R89>0,COUNTIF(AY$14:AY89,O89))) ->  | CH89: =IF(OR(AP89<>"M",AN89=""),"",SUMPRODUCT(--(AN$14:AN89="y"),--(AP$14:AP89="M"))) ->  | CI89: =IF(OR(AP89<>Dec!P$22,AN89=""),"",SUMPRODUCT(--(AN$14:AN89="y"),--(AP$14:AP89=Dec!P$22))) ->  | CJ89: =IF(OR(CM89<>"MV",AN89=""),"",SUMPRODUCT(--(AN$14:AN89="y"),--(CM$14:CM89="MV"))) ->  | CK89: =IF(OR(CM89<>Dec!P$22&"V",AN89=""),"",SUMPRODUCT(--(AN$14:AN89="y"),--(CM$14:CM89=Dec!P$22&"V"))) ->  | CL89: =IF(OR(AN89="",H89=""),"",SUMPRODUCT(--(AN$14:AN89="y"),--(P$14:P89=P89))) ->  | CS89: =IF(OR(CP89="",H89="",CP89="UA",CP89="U/A",CP89="Unattached"),"",IF(CI89>0,COUNTIF(CP$14:CP89,O89))) ->  | CU89: =IF(OR(CQ89="",H89="",CQ89="UA",CQ89="U/A",CQ89="Unattached"),"",IF(CK89>0,COUNTIF(CQ$14:CQ89,O89))) ->  | CZ89: =IF(OR(CW89="",H89="",CW89="UA",CW89="U/A",CW89="Unattached"),"",IF(CH89>0,COUNTIF(CW$14:CW89,O89))) ->  | DB89: =IF(OR(CX89="",H89="",CX89="UA",CX89="U/A",CX89="Unattached"),"",IF(CJ89>0,COUNTIF(CX$14:CX89,O89))) -> 
C90: =IF(AND(I90="",MAX(C$14:C89)=0),"",IF(AND(I90="",MAX(C$14:C89)>0),C89,I90)) ->  | D90: 00 | E90: 00 | F90: =MATCH(H90,Dec!L:L,0) ->  | G90: 76 | L90: 76 | Q90: =IF(AP90=Dec!P$22,COUNTIF(AP$14:AP90,Dec!P$22),"") ->  | R90: =IF(CM90="MV",COUNTIF(CM$14:CM90,"MV"),"") ->  | S90: =IF(CM90=Dec!P$22&"V",COUNTIF(CM$14:CM90,Dec!P$22&"V"),"") ->  | T90: =IF(H90="","",COUNTIF(P$14:P90,P90)) ->  | U90: =IF(AN90="y",COUNTIF(AN$14:AN90,"y"),"") ->  | AD90: 0 | AI90: =IF(P90=0,1,INDIRECT("AgeFactors!"&Summary!$E$20&2+MATCH(P90,AgeFactors!A$3:A$52,0))) ->  | AO90: =IF(AP90="M",COUNTIF(AP$14:AP90,"M"),"") ->  | AT90: =IF(OR(AQ90="",H90="",AQ90="UA",AQ90="U/A",AQ90="Unattached"),"",IF(Q90>0,COUNTIF(AQ$14:AQ90,O90))) ->  | AV90: =IF(OR(AR90="",H90="",AR90="UA",AR90="U/A",AR90="Unattached"),"",IF(S90>0,COUNTIF(AR$14:AR90,O90))) ->  | BA90: =IF(OR(AX90="",H90="",AX90="UA",AX90="U/A",AX90="Unattached"),"",IF(AO90>0,COUNTIF(AX$14:AX90,O90))) ->  | BC90: =IF(OR(AY90="",H90="",AY90="UA",AY90="U/A",AY90="Unattached"),"",IF(R90>0,COUNTIF(AY$14:AY90,O90))) ->  | CH90: =IF(OR(AP90<>"M",AN90=""),"",SUMPRODUCT(--(AN$14:AN90="y"),--(AP$14:AP90="M"))) ->  | CI90: =IF(OR(AP90<>Dec!P$22,AN90=""),"",SUMPRODUCT(--(AN$14:AN90="y"),--(AP$14:AP90=Dec!P$22))) ->  | CJ90: =IF(OR(CM90<>"MV",AN90=""),"",SUMPRODUCT(--(AN$14:AN90="y"),--(CM$14:CM90="MV"))) ->  | CK90: =IF(OR(CM90<>Dec!P$22&"V",AN90=""),"",SUMPRODUCT(--(AN$14:AN90="y"),--(CM$14:CM90=Dec!P$22&"V"))) ->  | CL90: =IF(OR(AN90="",H90=""),"",SUMPRODUCT(--(AN$14:AN90="y"),--(P$14:P90=P90))) ->  | CS90: =IF(OR(CP90="",H90="",CP90="UA",CP90="U/A",CP90="Unattached"),"",IF(CI90>0,COUNTIF(CP$14:CP90,O90))) ->  | CU90: =IF(OR(CQ90="",H90="",CQ90="UA",CQ90="U/A",CQ90="Unattached"),"",IF(CK90>0,COUNTIF(CQ$14:CQ90,O90))) ->  | CZ90: =IF(OR(CW90="",H90="",CW90="UA",CW90="U/A",CW90="Unattached"),"",IF(CH90>0,COUNTIF(CW$14:CW90,O90))) ->  | DB90: =IF(OR(CX90="",H90="",CX90="UA",CX90="U/A",CX90="Unattached"),"",IF(CJ90>0,COUNTIF(CX$14:CX90,O90))) -> 
C91: =IF(AND(I91="",MAX(C$14:C90)=0),"",IF(AND(I91="",MAX(C$14:C90)>0),C90,I91)) ->  | D91: 00 | E91: 00 | F91: =MATCH(H91,Dec!L:L,0) ->  | G91: 77 | L91: 77 | Q91: =IF(AP91=Dec!P$22,COUNTIF(AP$14:AP91,Dec!P$22),"") ->  | R91: =IF(CM91="MV",COUNTIF(CM$14:CM91,"MV"),"") ->  | S91: =IF(CM91=Dec!P$22&"V",COUNTIF(CM$14:CM91,Dec!P$22&"V"),"") ->  | T91: =IF(H91="","",COUNTIF(P$14:P91,P91)) ->  | U91: =IF(AN91="y",COUNTIF(AN$14:AN91,"y"),"") ->  | AD91: 0 | AI91: =IF(P91=0,1,INDIRECT("AgeFactors!"&Summary!$E$20&2+MATCH(P91,AgeFactors!A$3:A$52,0))) ->  | AO91: =IF(AP91="M",COUNTIF(AP$14:AP91,"M"),"") ->  | AT91: =IF(OR(AQ91="",H91="",AQ91="UA",AQ91="U/A",AQ91="Unattached"),"",IF(Q91>0,COUNTIF(AQ$14:AQ91,O91))) ->  | AV91: =IF(OR(AR91="",H91="",AR91="UA",AR91="U/A",AR91="Unattached"),"",IF(S91>0,COUNTIF(AR$14:AR91,O91))) ->  | BA91: =IF(OR(AX91="",H91="",AX91="UA",AX91="U/A",AX91="Unattached"),"",IF(AO91>0,COUNTIF(AX$14:AX91,O91))) ->  | BC91: =IF(OR(AY91="",H91="",AY91="UA",AY91="U/A",AY91="Unattached"),"",IF(R91>0,COUNTIF(AY$14:AY91,O91))) ->  | CH91: =IF(OR(AP91<>"M",AN91=""),"",SUMPRODUCT(--(AN$14:AN91="y"),--(AP$14:AP91="M"))) ->  | CI91: =IF(OR(AP91<>Dec!P$22,AN91=""),"",SUMPRODUCT(--(AN$14:AN91="y"),--(AP$14:AP91=Dec!P$22))) ->  | CJ91: =IF(OR(CM91<>"MV",AN91=""),"",SUMPRODUCT(--(AN$14:AN91="y"),--(CM$14:CM91="MV"))) ->  | CK91: =IF(OR(CM91<>Dec!P$22&"V",AN91=""),"",SUMPRODUCT(--(AN$14:AN91="y"),--(CM$14:CM91=Dec!P$22&"V"))) ->  | CL91: =IF(OR(AN91="",H91=""),"",SUMPRODUCT(--(AN$14:AN91="y"),--(P$14:P91=P91))) ->  | CS91: =IF(OR(CP91="",H91="",CP91="UA",CP91="U/A",CP91="Unattached"),"",IF(CI91>0,COUNTIF(CP$14:CP91,O91))) ->  | CU91: =IF(OR(CQ91="",H91="",CQ91="UA",CQ91="U/A",CQ91="Unattached"),"",IF(CK91>0,COUNTIF(CQ$14:CQ91,O91))) ->  | CZ91: =IF(OR(CW91="",H91="",CW91="UA",CW91="U/A",CW91="Unattached"),"",IF(CH91>0,COUNTIF(CW$14:CW91,O91))) ->  | DB91: =IF(OR(CX91="",H91="",CX91="UA",CX91="U/A",CX91="Unattached"),"",IF(CJ91>0,COUNTIF(CX$14:CX91,O91))) -> 
C92: =IF(AND(I92="",MAX(C$14:C91)=0),"",IF(AND(I92="",MAX(C$14:C91)>0),C91,I92)) ->  | D92: 00 | E92: 00 | F92: =MATCH(H92,Dec!L:L,0) ->  | G92: 78 | L92: 78 | Q92: =IF(AP92=Dec!P$22,COUNTIF(AP$14:AP92,Dec!P$22),"") ->  | R92: =IF(CM92="MV",COUNTIF(CM$14:CM92,"MV"),"") ->  | S92: =IF(CM92=Dec!P$22&"V",COUNTIF(CM$14:CM92,Dec!P$22&"V"),"") ->  | T92: =IF(H92="","",COUNTIF(P$14:P92,P92)) ->  | U92: =IF(AN92="y",COUNTIF(AN$14:AN92,"y"),"") ->  | AD92: 0 | AI92: =IF(P92=0,1,INDIRECT("AgeFactors!"&Summary!$E$20&2+MATCH(P92,AgeFactors!A$3:A$52,0))) ->  | AO92: =IF(AP92="M",COUNTIF(AP$14:AP92,"M"),"") ->  | AT92: =IF(OR(AQ92="",H92="",AQ92="UA",AQ92="U/A",AQ92="Unattached"),"",IF(Q92>0,COUNTIF(AQ$14:AQ92,O92))) ->  | AV92: =IF(OR(AR92="",H92="",AR92="UA",AR92="U/A",AR92="Unattached"),"",IF(S92>0,COUNTIF(AR$14:AR92,O92))) ->  | BA92: =IF(OR(AX92="",H92="",AX92="UA",AX92="U/A",AX92="Unattached"),"",IF(AO92>0,COUNTIF(AX$14:AX92,O92))) ->  | BC92: =IF(OR(AY92="",H92="",AY92="UA",AY92="U/A",AY92="Unattached"),"",IF(R92>0,COUNTIF(AY$14:AY92,O92))) ->  | CH92: =IF(OR(AP92<>"M",AN92=""),"",SUMPRODUCT(--(AN$14:AN92="y"),--(AP$14:AP92="M"))) ->  | CI92: =IF(OR(AP92<>Dec!P$22,AN92=""),"",SUMPRODUCT(--(AN$14:AN92="y"),--(AP$14:AP92=Dec!P$22))) ->  | CJ92: =IF(OR(CM92<>"MV",AN92=""),"",SUMPRODUCT(--(AN$14:AN92="y"),--(CM$14:CM92="MV"))) ->  | CK92: =IF(OR(CM92<>Dec!P$22&"V",AN92=""),"",SUMPRODUCT(--(AN$14:AN92="y"),--(CM$14:CM92=Dec!P$22&"V"))) ->  | CL92: =IF(OR(AN92="",H92=""),"",SUMPRODUCT(--(AN$14:AN92="y"),--(P$14:P92=P92))) ->  | CS92: =IF(OR(CP92="",H92="",CP92="UA",CP92="U/A",CP92="Unattached"),"",IF(CI92>0,COUNTIF(CP$14:CP92,O92))) ->  | CU92: =IF(OR(CQ92="",H92="",CQ92="UA",CQ92="U/A",CQ92="Unattached"),"",IF(CK92>0,COUNTIF(CQ$14:CQ92,O92))) ->  | CZ92: =IF(OR(CW92="",H92="",CW92="UA",CW92="U/A",CW92="Unattached"),"",IF(CH92>0,COUNTIF(CW$14:CW92,O92))) ->  | DB92: =IF(OR(CX92="",H92="",CX92="UA",CX92="U/A",CX92="Unattached"),"",IF(CJ92>0,COUNTIF(CX$14:CX92,O92))) -> 
C93: =IF(AND(I93="",MAX(C$14:C92)=0),"",IF(AND(I93="",MAX(C$14:C92)>0),C92,I93)) ->  | D93: 00 | E93: 00 | F93: =MATCH(H93,Dec!L:L,0) ->  | G93: 79 | L93: 79 | Q93: =IF(AP93=Dec!P$22,COUNTIF(AP$14:AP93,Dec!P$22),"") ->  | R93: =IF(CM93="MV",COUNTIF(CM$14:CM93,"MV"),"") ->  | S93: =IF(CM93=Dec!P$22&"V",COUNTIF(CM$14:CM93,Dec!P$22&"V"),"") ->  | T93: =IF(H93="","",COUNTIF(P$14:P93,P93)) ->  | U93: =IF(AN93="y",COUNTIF(AN$14:AN93,"y"),"") ->  | AD93: 0 | AI93: =IF(P93=0,1,INDIRECT("AgeFactors!"&Summary!$E$20&2+MATCH(P93,AgeFactors!A$3:A$52,0))) ->  | AO93: =IF(AP93="M",COUNTIF(AP$14:AP93,"M"),"") ->  | AT93: =IF(OR(AQ93="",H93="",AQ93="UA",AQ93="U/A",AQ93="Unattached"),"",IF(Q93>0,COUNTIF(AQ$14:AQ93,O93))) ->  | AV93: =IF(OR(AR93="",H93="",AR93="UA",AR93="U/A",AR93="Unattached"),"",IF(S93>0,COUNTIF(AR$14:AR93,O93))) ->  | BA93: =IF(OR(AX93="",H93="",AX93="UA",AX93="U/A",AX93="Unattached"),"",IF(AO93>0,COUNTIF(AX$14:AX93,O93))) ->  | BC93: =IF(OR(AY93="",H93="",AY93="UA",AY93="U/A",AY93="Unattached"),"",IF(R93>0,COUNTIF(AY$14:AY93,O93))) ->  | BE93: Vet women | CH93: =IF(OR(AP93<>"M",AN93=""),"",SUMPRODUCT(--(AN$14:AN93="y"),--(AP$14:AP93="M"))) ->  | CI93: =IF(OR(AP93<>Dec!P$22,AN93=""),"",SUMPRODUCT(--(AN$14:AN93="y"),--(AP$14:AP93=Dec!P$22))) ->  | CJ93: =IF(OR(CM93<>"MV",AN93=""),"",SUMPRODUCT(--(AN$14:AN93="y"),--(CM$14:CM93="MV"))) ->  | CK93: =IF(OR(CM93<>Dec!P$22&"V",AN93=""),"",SUMPRODUCT(--(AN$14:AN93="y"),--(CM$14:CM93=Dec!P$22&"V"))) ->  | CL93: =IF(OR(AN93="",H93=""),"",SUMPRODUCT(--(AN$14:AN93="y"),--(P$14:P93=P93))) ->  | CS93: =IF(OR(CP93="",H93="",CP93="UA",CP93="U/A",CP93="Unattached"),"",IF(CI93>0,COUNTIF(CP$14:CP93,O93))) ->  | CU93: =IF(OR(CQ93="",H93="",CQ93="UA",CQ93="U/A",CQ93="Unattached"),"",IF(CK93>0,COUNTIF(CQ$14:CQ93,O93))) ->  | CZ93: =IF(OR(CW93="",H93="",CW93="UA",CW93="U/A",CW93="Unattached"),"",IF(CH93>0,COUNTIF(CW$14:CW93,O93))) ->  | DB93: =IF(OR(CX93="",H93="",CX93="UA",CX93="U/A",CX93="Unattached"),"",IF(CJ93>0,COUNTIF(CX$14:CX93,O93))) -> 
C94: =IF(AND(I94="",MAX(C$14:C93)=0),"",IF(AND(I94="",MAX(C$14:C93)>0),C93,I94)) ->  | D94: 00 | E94: 00 | F94: =MATCH(H94,Dec!L:L,0) ->  | G94: 80 | L94: 80 | Q94: =IF(AP94=Dec!P$22,COUNTIF(AP$14:AP94,Dec!P$22),"") ->  | R94: =IF(CM94="MV",COUNTIF(CM$14:CM94,"MV"),"") ->  | S94: =IF(CM94=Dec!P$22&"V",COUNTIF(CM$14:CM94,Dec!P$22&"V"),"") ->  | T94: =IF(H94="","",COUNTIF(P$14:P94,P94)) ->  | U94: =IF(AN94="y",COUNTIF(AN$14:AN94,"y"),"") ->  | AD94: 0 | AI94: =IF(P94=0,1,INDIRECT("AgeFactors!"&Summary!$E$20&2+MATCH(P94,AgeFactors!A$3:A$52,0))) ->  | AO94: =IF(AP94="M",COUNTIF(AP$14:AP94,"M"),"") ->  | AT94: =IF(OR(AQ94="",H94="",AQ94="UA",AQ94="U/A",AQ94="Unattached"),"",IF(Q94>0,COUNTIF(AQ$14:AQ94,O94))) ->  | AV94: =IF(OR(AR94="",H94="",AR94="UA",AR94="U/A",AR94="Unattached"),"",IF(S94>0,COUNTIF(AR$14:AR94,O94))) ->  | BA94: =IF(OR(AX94="",H94="",AX94="UA",AX94="U/A",AX94="Unattached"),"",IF(AO94>0,COUNTIF(AX$14:AX94,O94))) ->  | BC94: =IF(OR(AY94="",H94="",AY94="UA",AY94="U/A",AY94="Unattached"),"",IF(R94>0,COUNTIF(AY$14:AY94,O94))) ->  | BE94: 1 | BF94: =Winners!M137 -> - | BG94: =MATCH(BF94,AR$15:AR$5014,0) ->  | BH94: =14+BG94 ->  | BI94: =SCWinners!M137 -> - | BJ94: =MATCH(BI94,CQ$15:CQ$5014,0) ->  | BK94: =14+BJ94 ->  | CH94: =IF(OR(AP94<>"M",AN94=""),"",SUMPRODUCT(--(AN$14:AN94="y"),--(AP$14:AP94="M"))) ->  | CI94: =IF(OR(AP94<>Dec!P$22,AN94=""),"",SUMPRODUCT(--(AN$14:AN94="y"),--(AP$14:AP94=Dec!P$22))) ->  | CJ94: =IF(OR(CM94<>"MV",AN94=""),"",SUMPRODUCT(--(AN$14:AN94="y"),--(CM$14:CM94="MV"))) ->  | CK94: =IF(OR(CM94<>Dec!P$22&"V",AN94=""),"",SUMPRODUCT(--(AN$14:AN94="y"),--(CM$14:CM94=Dec!P$22&"V"))) ->  | CL94: =IF(OR(AN94="",H94=""),"",SUMPRODUCT(--(AN$14:AN94="y"),--(P$14:P94=P94))) ->  | CS94: =IF(OR(CP94="",H94="",CP94="UA",CP94="U/A",CP94="Unattached"),"",IF(CI94>0,COUNTIF(CP$14:CP94,O94))) ->  | CU94: =IF(OR(CQ94="",H94="",CQ94="UA",CQ94="U/A",CQ94="Unattached"),"",IF(CK94>0,COUNTIF(CQ$14:CQ94,O94))) ->  | CZ94: =IF(OR(CW94="",H94="",CW94="UA",CW94="U/A",CW94="Unattached"),"",IF(CH94>0,COUNTIF(CW$14:CW94,O94))) ->  | DB94: =IF(OR(CX94="",H94="",CX94="UA",CX94="U/A",CX94="Unattached"),"",IF(CJ94>0,COUNTIF(CX$14:CX94,O94))) -> 
C95: =IF(AND(I95="",MAX(C$14:C94)=0),"",IF(AND(I95="",MAX(C$14:C94)>0),C94,I95)) ->  | D95: 00 | E95: 00 | F95: =MATCH(H95,Dec!L:L,0) ->  | G95: 81 | L95: 81 | Q95: =IF(AP95=Dec!P$22,COUNTIF(AP$14:AP95,Dec!P$22),"") ->  | R95: =IF(CM95="MV",COUNTIF(CM$14:CM95,"MV"),"") ->  | S95: =IF(CM95=Dec!P$22&"V",COUNTIF(CM$14:CM95,Dec!P$22&"V"),"") ->  | T95: =IF(H95="","",COUNTIF(P$14:P95,P95)) ->  | U95: =IF(AN95="y",COUNTIF(AN$14:AN95,"y"),"") ->  | AD95: 0 | AI95: =IF(P95=0,1,INDIRECT("AgeFactors!"&Summary!$E$20&2+MATCH(P95,AgeFactors!A$3:A$52,0))) ->  | AO95: =IF(AP95="M",COUNTIF(AP$14:AP95,"M"),"") ->  | AT95: =IF(OR(AQ95="",H95="",AQ95="UA",AQ95="U/A",AQ95="Unattached"),"",IF(Q95>0,COUNTIF(AQ$14:AQ95,O95))) ->  | AV95: =IF(OR(AR95="",H95="",AR95="UA",AR95="U/A",AR95="Unattached"),"",IF(S95>0,COUNTIF(AR$14:AR95,O95))) ->  | BA95: =IF(OR(AX95="",H95="",AX95="UA",AX95="U/A",AX95="Unattached"),"",IF(AO95>0,COUNTIF(AX$14:AX95,O95))) ->  | BC95: =IF(OR(AY95="",H95="",AY95="UA",AY95="U/A",AY95="Unattached"),"",IF(R95>0,COUNTIF(AY$14:AY95,O95))) ->  | BG95: =MATCH(BF$94,INDIRECT("AR"&BH94+1&":AR5014"),0) ->  | BH95: =BH94+BG95 ->  | BJ95: =MATCH(BI$94,INDIRECT("bz"&BK94+1&":bz5014"),0) ->  | BK95: =BK94+BJ95 ->  | CH95: =IF(OR(AP95<>"M",AN95=""),"",SUMPRODUCT(--(AN$14:AN95="y"),--(AP$14:AP95="M"))) ->  | CI95: =IF(OR(AP95<>Dec!P$22,AN95=""),"",SUMPRODUCT(--(AN$14:AN95="y"),--(AP$14:AP95=Dec!P$22))) ->  | CJ95: =IF(OR(CM95<>"MV",AN95=""),"",SUMPRODUCT(--(AN$14:AN95="y"),--(CM$14:CM95="MV"))) ->  | CK95: =IF(OR(CM95<>Dec!P$22&"V",AN95=""),"",SUMPRODUCT(--(AN$14:AN95="y"),--(CM$14:CM95=Dec!P$22&"V"))) ->  | CL95: =IF(OR(AN95="",H95=""),"",SUMPRODUCT(--(AN$14:AN95="y"),--(P$14:P95=P95))) ->  | CS95: =IF(OR(CP95="",H95="",CP95="UA",CP95="U/A",CP95="Unattached"),"",IF(CI95>0,COUNTIF(CP$14:CP95,O95))) ->  | CU95: =IF(OR(CQ95="",H95="",CQ95="UA",CQ95="U/A",CQ95="Unattached"),"",IF(CK95>0,COUNTIF(CQ$14:CQ95,O95))) ->  | CZ95: =IF(OR(CW95="",H95="",CW95="UA",CW95="U/A",CW95="Unattached"),"",IF(CH95>0,COUNTIF(CW$14:CW95,O95))) ->  | DB95: =IF(OR(CX95="",H95="",CX95="UA",CX95="U/A",CX95="Unattached"),"",IF(CJ95>0,COUNTIF(CX$14:CX95,O95))) -> 
C96: =IF(AND(I96="",MAX(C$14:C95)=0),"",IF(AND(I96="",MAX(C$14:C95)>0),C95,I96)) ->  | D96: 00 | E96: 00 | F96: =MATCH(H96,Dec!L:L,0) ->  | G96: 82 | L96: 82 | Q96: =IF(AP96=Dec!P$22,COUNTIF(AP$14:AP96,Dec!P$22),"") ->  | R96: =IF(CM96="MV",COUNTIF(CM$14:CM96,"MV"),"") ->  | S96: =IF(CM96=Dec!P$22&"V",COUNTIF(CM$14:CM96,Dec!P$22&"V"),"") ->  | T96: =IF(H96="","",COUNTIF(P$14:P96,P96)) ->  | U96: =IF(AN96="y",COUNTIF(AN$14:AN96,"y"),"") ->  | AD96: 0 | AI96: =IF(P96=0,1,INDIRECT("AgeFactors!"&Summary!$E$20&2+MATCH(P96,AgeFactors!A$3:A$52,0))) ->  | AO96: =IF(AP96="M",COUNTIF(AP$14:AP96,"M"),"") ->  | AT96: =IF(OR(AQ96="",H96="",AQ96="UA",AQ96="U/A",AQ96="Unattached"),"",IF(Q96>0,COUNTIF(AQ$14:AQ96,O96))) ->  | AV96: =IF(OR(AR96="",H96="",AR96="UA",AR96="U/A",AR96="Unattached"),"",IF(S96>0,COUNTIF(AR$14:AR96,O96))) ->  | BA96: =IF(OR(AX96="",H96="",AX96="UA",AX96="U/A",AX96="Unattached"),"",IF(AO96>0,COUNTIF(AX$14:AX96,O96))) ->  | BC96: =IF(OR(AY96="",H96="",AY96="UA",AY96="U/A",AY96="Unattached"),"",IF(R96>0,COUNTIF(AY$14:AY96,O96))) ->  | BH96: =BH95+BG96 ->  | BK96: =BK95+BJ96 ->  | CH96: =IF(OR(AP96<>"M",AN96=""),"",SUMPRODUCT(--(AN$14:AN96="y"),--(AP$14:AP96="M"))) ->  | CI96: =IF(OR(AP96<>Dec!P$22,AN96=""),"",SUMPRODUCT(--(AN$14:AN96="y"),--(AP$14:AP96=Dec!P$22))) ->  | CJ96: =IF(OR(CM96<>"MV",AN96=""),"",SUMPRODUCT(--(AN$14:AN96="y"),--(CM$14:CM96="MV"))) ->  | CK96: =IF(OR(CM96<>Dec!P$22&"V",AN96=""),"",SUMPRODUCT(--(AN$14:AN96="y"),--(CM$14:CM96=Dec!P$22&"V"))) ->  | CL96: =IF(OR(AN96="",H96=""),"",SUMPRODUCT(--(AN$14:AN96="y"),--(P$14:P96=P96))) ->  | CS96: =IF(OR(CP96="",H96="",CP96="UA",CP96="U/A",CP96="Unattached"),"",IF(CI96>0,COUNTIF(CP$14:CP96,O96))) ->  | CU96: =IF(OR(CQ96="",H96="",CQ96="UA",CQ96="U/A",CQ96="Unattached"),"",IF(CK96>0,COUNTIF(CQ$14:CQ96,O96))) ->  | CZ96: =IF(OR(CW96="",H96="",CW96="UA",CW96="U/A",CW96="Unattached"),"",IF(CH96>0,COUNTIF(CW$14:CW96,O96))) ->  | DB96: =IF(OR(CX96="",H96="",CX96="UA",CX96="U/A",CX96="Unattached"),"",IF(CJ96>0,COUNTIF(CX$14:CX96,O96))) -> 
C97: =IF(AND(I97="",MAX(C$14:C96)=0),"",IF(AND(I97="",MAX(C$14:C96)>0),C96,I97)) ->  | D97: 00 | E97: 00 | F97: =MATCH(H97,Dec!L:L,0) ->  | G97: 83 | L97: 83 | Q97: =IF(AP97=Dec!P$22,COUNTIF(AP$14:AP97,Dec!P$22),"") ->  | R97: =IF(CM97="MV",COUNTIF(CM$14:CM97,"MV"),"") ->  | S97: =IF(CM97=Dec!P$22&"V",COUNTIF(CM$14:CM97,Dec!P$22&"V"),"") ->  | T97: =IF(H97="","",COUNTIF(P$14:P97,P97)) ->  | U97: =IF(AN97="y",COUNTIF(AN$14:AN97,"y"),"") ->  | AD97: 0 | AI97: =IF(P97=0,1,INDIRECT("AgeFactors!"&Summary!$E$20&2+MATCH(P97,AgeFactors!A$3:A$52,0))) ->  | AO97: =IF(AP97="M",COUNTIF(AP$14:AP97,"M"),"") ->  | AT97: =IF(OR(AQ97="",H97="",AQ97="UA",AQ97="U/A",AQ97="Unattached"),"",IF(Q97>0,COUNTIF(AQ$14:AQ97,O97))) ->  | AV97: =IF(OR(AR97="",H97="",AR97="UA",AR97="U/A",AR97="Unattached"),"",IF(S97>0,COUNTIF(AR$14:AR97,O97))) ->  | BA97: =IF(OR(AX97="",H97="",AX97="UA",AX97="U/A",AX97="Unattached"),"",IF(AO97>0,COUNTIF(AX$14:AX97,O97))) ->  | BC97: =IF(OR(AY97="",H97="",AY97="UA",AY97="U/A",AY97="Unattached"),"",IF(R97>0,COUNTIF(AY$14:AY97,O97))) ->  | CH97: =IF(OR(AP97<>"M",AN97=""),"",SUMPRODUCT(--(AN$14:AN97="y"),--(AP$14:AP97="M"))) ->  | CI97: =IF(OR(AP97<>Dec!P$22,AN97=""),"",SUMPRODUCT(--(AN$14:AN97="y"),--(AP$14:AP97=Dec!P$22))) ->  | CJ97: =IF(OR(CM97<>"MV",AN97=""),"",SUMPRODUCT(--(AN$14:AN97="y"),--(CM$14:CM97="MV"))) ->  | CK97: =IF(OR(CM97<>Dec!P$22&"V",AN97=""),"",SUMPRODUCT(--(AN$14:AN97="y"),--(CM$14:CM97=Dec!P$22&"V"))) ->  | CL97: =IF(OR(AN97="",H97=""),"",SUMPRODUCT(--(AN$14:AN97="y"),--(P$14:P97=P97))) ->  | CS97: =IF(OR(CP97="",H97="",CP97="UA",CP97="U/A",CP97="Unattached"),"",IF(CI97>0,COUNTIF(CP$14:CP97,O97))) ->  | CU97: =IF(OR(CQ97="",H97="",CQ97="UA",CQ97="U/A",CQ97="Unattached"),"",IF(CK97>0,COUNTIF(CQ$14:CQ97,O97))) ->  | CZ97: =IF(OR(CW97="",H97="",CW97="UA",CW97="U/A",CW97="Unattached"),"",IF(CH97>0,COUNTIF(CW$14:CW97,O97))) ->  | DB97: =IF(OR(CX97="",H97="",CX97="UA",CX97="U/A",CX97="Unattached"),"",IF(CJ97>0,COUNTIF(CX$14:CX97,O97))) -> 
